Workbook

Sheet General
BA1: No. | BC1: Admin | BD1: Quarter | BE1: =Settings!$T$6 -> 1
BA2: 1 | BD2: FIRST QUARTER ENDED 30 JUNE 2020
BA3: 2 | BD3: SECOND QUARTER ENDED 30 SEPTEMBER 2020
BA4: 3 | BD4: THIRD QUARTER ENDED 31 DECEMBER 2020
BA5: 4 | BD5: FOURTH QUARTER ENDED 31 MARCH 2021
BA6: 5
BA7: 6 | BD7: =INDEX($BD$2:$BD$5,BE1) -> FIRST QUARTER ENDED 30 JUNE 2020
BA8: 7
BA9: 8
BA10: 9
BA11: 10
BA12: 11
BA13: 12
BA14: 13
BA15: 14
BA16: 15
BA17: 16
BA18: 17
BA19: 18
BA20: 19
BA21: 20

Sheet Settings (hidden)
R3: Selections:
Q5: FALSE | R5: =INDEX($R$8:$R$17,$R$6,1) -> 2022/23 | S5: =INDEX($S$8:$S$17,$S$6,1) -> All Provinces | T5: =INDEX($T$8:$T$11,$T$6,1) -> 1st Quarter | U5: =LEFT(FinYear,4) & "-" & RIGHT(FinYear,2) -> 2022-23 | V5: =INDEX($V$8:$V$17,$V$6,1) -> ALL PROVINCES
R6: 8 | S6: 2 | T6: 1 | V6: 10
C7: Import Selection: | Q7: FALSE | R7: Financial Year | S7: Print | T7: Quarter | U7: PrintYear | V7: Province | W7: Province code | X7: Accounting officers | Y7: Title | Z7: Position | AA7: Provincial Treasury | AB7: Tel No.
R8: 2015/16 | S8: All Provinces | T8: 1st Quarter | V8: EASTERN CAPE | W8: EC | X8: Daluhlanga Majeke | Y8: Mr | Z8: Head Official | AA8: Eastern Cape | AB8: (040) 609-5612
R9: 2016/17 | S9: =PROPER(Prov) -> All Provinces | T9: 2nd Quarter | V9: FREE STATE | W9: FS | X9: Masechaba Sesing | Y9: Mr | Z9: Acting Head Official | AA9: Free State | AB9: (051) 403-3066
R10: 2017/18 | T10: 3rd Quarter | V10: GAUTENG | W10: GT | X10: Ncumisa Mnyani | Y10: Ms | Z10: Head Official | AA10: Gauteng | AB10: (011) 689-8233
R11: 2019/20 | T11: 4th Quarter | V11: KWAZULU-NATAL | W11: KZN | X11: Carol Coetzee | Y11: Mr | Z11: Head Official | AA11: KwaZulu-Natal | AB11: (033) 897-4547
R12: 2019/20 | V12: LIMPOPO | W12: LIM | X12: Gavin Pratt | Y12: Mr | Z12: Head Official | AA12: Limpopo | AB12: (015) 298-7123
R13: 2020/21 | V13: MPUMALANGA | W13: MPU | X13: Gugu Mashiteng | Y13: Ms | Z13: Head Official | AA13: Mpumalanga | AB13: (013) 766-4571
R14: 2021/22 | V14: NORTHERN CAPE | W14: NC | X14: Moses Gasela | Y14: Ms | Z14: Acting Head Official | AA14: Northern Cape | AB14: (053) 830-8357
R15: 2022/23 | V15: NORTH WEST | W15: NW | X15: Ndlela Kunene | Y15: Mr | Z15: Head Official | AA15: North West | AB15: (018) 388-4441
R16: 2023/24 | V16: WESTERN CAPE | W16: WC | X16: David Savage | Y16: Mr | Z16: Head Official | AA16: Western Cape | AB16: (021) 483-3749
R17: 2024/25 | V17: ALL PROVINCES
C21: Print Settings: | J21: Print Directory:
J23: K:\CD - PROVINCIAL BUDGET ANALYSIS\Provinces\Early Warning System\2019-20\06. Section 32 Publication\3rd Quarter\Final\02. Publication
C24: =PROPER(Prov) -> All Provinces

Sheet EC_1
C3: STATEMENT OF RECEIPTS AND PAYMENTS FOR THE FIRST QUARTER ENDED 30 JUNE 2022 | T3: ="NATIONAL TREASURY: " & C3 -> NATIONAL TREASURY: STATEMENT OF RECEIPTS AND PAYMENTS FOR THE FIRST QUARTER ENDED 30 JUNE 2022 | AK3: ="VARIANCE FROM NATIONAL TREASURY: " & C3 -> VARIANCE FROM NATIONAL TREASURY: STATEMENT OF RECEIPTS AND PAYMENTS FOR THE FIRST QUARTER ENDED 30 JUNE 2022
C4: EASTERN CAPE PROVINCE | T4: =C4 -> EASTERN CAPE PROVINCE | AK4: =C4 -> EASTERN CAPE PROVINCE
C6: Provincial departments | D6: =Settings!$R$5 -> 2022/23 | T6: Provincial departments | U6: 2019/20 | AK6: Provincial departments | AL6: 2019/20
D7: Budget | H7: Receipts/Payments by Quarter | M7: Receipts/Payments to Date | U7: Budget | Y7: Payments by Quarter | AD7: Payments to Date | AL7: Budget | AP7: Payments by Quarter | AU7: Payments to Date
D8: Main Budget1. | E8: Adjustments | F8: Adjusted Budget2. | H8: First Quarter | I8: Second Quarter | J8: Third Quarter | K8: Fourth Quarter | M8: Actual Receipts/ Payments | N8: % Actual Receipts/ Payments | U8: Main Budget1. | V8: Adjustments | W8: Adjusted Budget2. | Y8: First Quarter | Z8: Second Quarter | AA8: Third Quarter | AB8: Fourth Quarter | AD8: Actual Payments | AE8: % Actual Payments | AL8: Main Budget1. | AM8: Adjustments | AN8: Adjusted Budget2. | AP8: First Quarter | AQ8: Second Quarter | AR8: Third Quarter | AS8: Fourth Quarter | AU8: Actual Payments | AV8: % Actual Payments
A9: Filter | D9: R'000 | E9: R'000 | F9: R'000 | H9: R'000 | I9: R'000 | J9: R'000 | K9: R'000 | M9: R'000 | N9: % | U9: R'000 | V9: R'000 | W9: R'000 | Y9: R'000 | Z9: R'000 | AA9: R'000 | AB9: R'000 | AD9: R'000 | AE9: % | AL9: R'000 | AM9: R'000 | AN9: R'000 | AP9: R'000 | AQ9: R'000 | AR9: R'000 | AS9: R'000 | AU9: R'000 | AV9: %
A10: 1
A11: 1 | C11: Receipts | T11: Receipts | AK11: Receipts
A12: 1 | C12: Transfers from National Revenue Fund | D12: =SUM(D13:D14) -> 86081366 | E12: =SUM(E13:E14) -> -5067787 | F12: 81013579 | H12: =SUM(H13:H14) -> 21852168 | I12: =SUM(I13:I14) -> 0 | J12: 0 | K12: 0 | M12: =SUM(M13:M14) -> 21852168 | N12: =IFERROR(M12/D12,0) -> 0.2538548006 | T12: =C12 -> Transfers from National Revenue Fund | U12: 80903186 | V12: 0 | W12: 80903186 | Y12: 20808702 | Z12: 20464609 | AA12: 0 | AB12: 0 | AD12: 41273311 | AE12: 0.5101568064 | AK12: Transfers from National Revenue Fund | AL12: =SUM(AL13:AL14) -> -5178180 | AM12: =SUM(AM13:AM14) -> 5067787 | AN12: =SUM(AN13:AN14) -> -110393 | AP12: =SUM(AP13:AP14) -> -1043466 | AQ12: =SUM(AQ13:AQ14) -> 20464609 | AR12: 0 | AS12: 0 | AU12: =SUM(AU13:AU14) -> 19421143 | EB12: DoRA(annexure) | EC12: check
A13: 1 | C13: Equitable share of revenue | D13: 72230960 | E13: =SUM(F13-D13) -> -3035707 | F13: 69195253 | H13: 18057741 | M13: =SUM(H13:K13) -> 18057741 | N13: =IFERROR(M13/D13,0) -> 0.2500000138 | T13: =C13 -> Equitable share of revenue | U13: 68824353 | V13: 0 | W13: 68824353 | Y13: 17206089 | Z13: 17206089 | AD13: 34412178 | AE13: 0.5000000218 | AK13: Equitable share of revenue | AL13: =IFERROR(U13-D13,0) -> -3406607 | AM13: 3035707 | AN13: -370900 | AP13: =IFERROR(Y13-H13,0) -> -851652 | AQ13: =IFERROR(Z13-I13,0) -> 17206089 | AR13: 0 | AS13: 0 | AU13: =IFERROR(AD13-M13,0) -> 16354437 | EB13: 72230960 | EC13: =D13-EB13 -> 0
A14: 1 | C14: Conditional grants | D14: 13850406 | E14: =SUM(F14-D14) -> -2032080 | F14: 11818326 | H14: 3794427 | M14: =SUM(H14:K14) -> 3794427 | N14: =IFERROR(M14/D14,0) -> 0.2739578176 | T14: Conditional grants | U14: 12078833 | V14: 0 | W14: 12078833 | Y14: 3602613 | Z14: 3258520 | AD14: 6861133 | AE14: 0.5680294611 | AK14: Conditional grants | AL14: -1771573 | AM14: 2032080 | AN14: 260507 | AP14: =IFERROR(Y14-H14,0) -> -191814 | AQ14: 3258520 | AR14: 0 | AS14: 0 | AU14: 3066706 | EB14: 13850406 | EC14: =D14-EB14 -> 0
A15: 1 | C15: Provincial own receipts | D15: 1591925 | E15: -75635 | F15: 1516290 | H15: 291751.3 | M15: 291751.3 | N15: =IFERROR(M15/D15,0) -> 0.1832695008 | T15: Provincial own receipts | U15: 1453671 | V15: 0 | W15: 1453671 | Y15: 394957 | Z15: 712433.8 | AD15: 1107390.8 | AE15: 0.7617891531 | AK15: Provincial own receipts | AL15: -138254 | AM15: 75635 | AN15: -62619 | AP15: 103205.7 | AQ15: 712433.8 | AR15: 0 | AS15: 0 | AU15: 815639.5
A16: 1
A17: 1 | C17: Total receipts | D17: =SUM(D12+D15) -> 87673291 | E17: =SUM(E12+E15) -> -5143422 | F17: 82529869 | G17: =G12+G15 -> 0 | H17: =SUM(H12+H15) -> 22143919.3 | I17: =SUM(I12+I15) -> 0 | J17: 0 | K17: 0 | M17: =SUM(M12+M15) -> 22143919.3 | N17: =IFERROR(M17/D17,0) -> 0.2525731502 | T17: Total receipts | U17: 82356857 | V17: 0 | W17: 82356857 | X17: 0 | Y17: 21203659 | Z17: 21177042.8 | AA17: 0 | AD17: 42380701.8 | AE17: 0.5145983388 | AK17: Total receipts | AL17: =AL12+AL15 -> -5316434 | AM17: =AM12+AM15 -> 5143422 | AN17: -173012 | AO17: 0 | AP17: -940260.3 | AQ17: 21177042.8 | AR17: 0 | AS17: 0 | AU17: =AU12+AU15 -> 20236782.5
A18: 1
A19: 1 | C19: Payments by provincial departments | T19: Payments by provincial departments | AK19: Payments by provincial departments
A20: =IF(LEN(C20)>3,1,0) -> 1 | C20: Education | D20: 38559185 | E20: =SUM(F20-D20) -> -3482447 | F20: 35076738 | H20: 9994888 | M20: =SUM(H20:K20) -> 9994888 | N20: =IFERROR(M20/D20,0) -> 0.2592090056 | T20: =C20 -> Education | U20: 36328510.13 | V20: 0 | W20: 36328510.13 | Y20: 10097264 | Z20: 9310507 | AD20: 19407771 | AE20: 0.5342297532 | AK20: =C20 -> Education | AL20: =IFERROR(U20-D20,0) -> -2230674.87 | AM20: 3482447 | AN20: 1251772.13 | AP20: =IFERROR(Y20-H20,0) -> 102376 | AQ20: 9310507 | AR20: 0 | AS20: 0 | AU20: =IFERROR(AD20-M20,0) -> 9412883
A21: =IF(LEN(C21)>3,1,0) -> 1 | C21: Health | D21: 27362251 | E21: -931663 | F21: 26430588 | H21: 7672557 | M21: 7672557 | N21: =IFERROR(M21/D21,0) -> 0.2804066449 | T21: Health | U21: 25189631.98 | V21: 0 | W21: 25189631.98 | Y21: 7451118 | Z21: 6394842 | AD21: 13845960 | AE21: 0.5496690071 | AK21: =C21 -> Health | AL21: -2172619.02 | AM21: 931663 | AN21: -1240956.02 | AP21: -221439 | AQ21: 6394842 | AR21: 0 | AS21: 0 | AU21: 6173403
A22: 1 | C22: Social Development And Special Programmes | D22: 2788194 | E22: 266664 | F22: 3054858 | H22: 639854 | M22: 639854 | N22: 0.2294869008 | T22: Social Development And Special Programmes | U22: 3020607 | V22: 0 | W22: 3020607 | Y22: 536173 | Z22: 889221 | AD22: 1425394 | AE22: 0.4718899215 | AK22: Social Development And Special Programmes | AL22: 232413 | AM22: -266664 | AN22: -34251 | AP22: -103681 | AQ22: 889221 | AR22: 0 | AS22: 0 | AU22: 785540
A23: 1 | C23: Office Of The Premier | D23: 963592 | E23: 68553 | F23: 1032145 | H23: 201088 | M23: 201088 | N23: 0.2086858338 | T23: Office Of The Premier | U23: 973083.46 | V23: 0 | W23: 973083.46 | Y23: 161829 | Z23: 186798 | AD23: 348627 | AE23: 0.3582703995 | AK23: Office Of The Premier | AL23: 9491.46 | AM23: -68553 | AN23: -59061.54 | AP23: -39259 | AQ23: 186798 | AR23: 0 | AS23: 0 | AU23: 147539
A24: 1 | C24: Provincial Legislature | D24: 571146 | E24: -17896 | F24: 553250 | H24: 146650 | M24: 146650 | N24: 0.25676447 | T24: Provincial Legislature | U24: 541734 | V24: 0 | W24: 541734 | Y24: 167884 | Z24: 150198 | AD24: 318082 | AE24: 0.5871553198 | AK24: Provincial Legislature | AL24: -29412 | AM24: 17896 | AN24: -11516 | AP24: 21234 | AQ24: 150198 | AR24: 0 | AS24: 0 | AU24: 171432
A25: 1 | C25: Public Works And Infrastructure | D25: 2584294 | E25: -78791 | F25: 2505503 | H25: 603043 | M25: 603043 | N25: 0.2333492242 | T25: Public Works And Infrastructure | U25: 2365265 | V25: 0 | W25: 2365265 | Y25: 451273 | Z25: 729895 | AD25: 1181168 | AE25: 0.4993808305 | AK25: Public Works And Infrastructure | AL25: -219029 | AM25: 78791 | AN25: -140238 | AP25: -151770 | AQ25: 729895 | AR25: 0 | AS25: 0 | AU25: 578125
A26: 1 | C26: Cooperative Governance And Traditional Affairs | D26: 1007859 | E26: -16367.5 | F26: 991491.5 | H26: 238055 | M26: 238055 | N26: 0.2361987143 | T26: Cooperative Governance And Traditional Affairs | U26: 1009712.01 | V26: 0 | W26: 1009712.01 | Y26: 227049 | Z26: 245101 | AD26: 472150 | AE26: 0.4676085808 | AK26: Cooperative Governance And Traditional Affairs | AL26: 1853.01 | AM26: 16367.5 | AN26: 18220.51 | AP26: -11006 | AQ26: 245101 | AR26: 0 | AS26: 0 | AU26: 234095
A27: 1 | C27: Rural Development And Agrarian Reform | D27: 2328201 | E27: -32657 | F27: 2295544 | H27: 463474 | M27: 463474 | N27: 0.1990695821 | T27: Rural Development And Agrarian Reform | U27: 2340324 | V27: 0 | W27: 2340324 | Y27: 493092 | Z27: 517165 | AD27: 1010257 | AE27: 0.4316739904 | AK27: Rural Development And Agrarian Reform | AL27: 12123 | AM27: 32657 | AN27: 44780 | AP27: 29618 | AQ27: 517165 | AR27: 0 | AS27: 0 | AU27: 546783
A28: 1 | C28: Economic Development, Environmental Affairs And Tourism | D28: 1338282 | E28: 351342 | F28: 1689624 | H28: 445251 | M28: 445251 | N28: 0.3327034213 | T28: Economic Development, Environmental Affairs And Tourism | U28: 1481960.31 | V28: 0 | W28: 1481960.31 | Y28: 395425 | Z28: 332243 | AD28: 727668 | AE28: 0.4910171987 | AK28: Economic Development, Environmental Affairs And Tourism | AL28: 143678.31 | AM28: -351342 | AN28: -207663.69 | AP28: -49826 | AQ28: 332243 | AR28: 0 | AS28: 0 | AU28: 282417
A29: 1 | C29: Transport | D29: 4951119.65 | E29: 210437.38 | F29: 5161557.03 | H29: 1155882 | M29: 1155882 | N29: 0.2334587087 | T29: Transport | U29: 4974537.38 | V29: 0 | W29: 4974537.38 | Y29: 915381.0396 | Z29: 1047823.567 | AD29: 1963204.606 | AE29: 0.3946506894 | AK29: Transport | AL29: 23417.73 | AM29: -210437.38 | AN29: -187019.65 | AP29: -240500.9604 | AQ29: 1047823.567 | AR29: 0 | AS29: 0 | AU29: 807322.6063
A30: 1 | C30: Human Settlements | D30: 2448031 | E30: -122883 | F30: 2325148 | H30: 272529 | M30: 272529 | N30: 0.1113257961 | T30: Human Settlements | U30: 2443382 | V30: 0 | W30: 2443382 | Y30: 568047 | Z30: 601938 | AD30: 1169985 | AE30: 0.4788383478 | AK30: Human Settlements | AL30: -4649 | AM30: 122883 | AN30: 118234 | AP30: 295518 | AQ30: 601938 | AR30: 0 | AS30: 0 | AU30: 897456
A31: 1 | C31: Provincial Treasury | D31: 427316 | E31: -20826 | F31: 406490 | H31: 90192 | M31: 90192 | N31: 0.2110662835 | T31: Provincial Treasury | U31: 440930 | V31: 0 | W31: 440930 | Y31: 96175 | Z31: 106759 | AD31: 202934 | AE31: 0.4602408546 | AK31: Provincial Treasury | AL31: 13614 | AM31: 20826 | AN31: 34440 | AP31: 5983 | AQ31: 106759 | AR31: 0 | AS31: 0 | AU31: 112742
A32: 1 | C32: Sport, Recreation, Arts And Culture | D32: 990731 | E32: -10503 | F32: 980228 | H32: 219279 | M32: 219279 | N32: 0.2213305125 | T32: Sport, Recreation, Arts And Culture | U32: 983069 | V32: 0 | W32: 983069 | Y32: 206375 | Z32: 260736 | AD32: 467111 | AE32: 0.4751558639 | AK32: Sport, Recreation, Arts And Culture | AL32: -7662 | AM32: 10503 | AN32: 2841 | AP32: -12904 | AQ32: 260736 | AR32: 0 | AS32: 0 | AU32: 247832
A33: 1 | C33: Community Safety | D33: 107969 | E33: -2959 | F33: 105010 | H33: 24205 | M33: 24205 | N33: 0.2241847197 | T33: Community Safety | U33: 105499 | V33: 0 | W33: 105499 | Y33: 22274 | Z33: 25927 | AD33: 48201 | AE33: 0.4568858473 | AK33: Community Safety | AL33: -2470 | AM33: 2959 | AN33: 489 | AP33: -1931 | AQ33: 25927 | AR33: 0 | AS33: 0 | AU33: 23996
A34: 0 | D34: 0 | E34: 0 | F34: 0 | H34: 0 | M34: 0 | N34: 0 | U34: 0 | V34: 0 | W34: 0 | Y34: 0 | Z34: 0 | AD34: 0 | AE34: 0 | AL34: =U34-D34 -> 0 | AM34: =AN34-AL34 -> 0 | AN34: 0 | AP34: 0 | AQ34: 0 | AR34: 0 | AS34: 0 | AU34: =SUM(AP34:AQ34) -> 0
A35: 0 | D35: 0 | E35: 0 | F35: 0 | H35: 0 | M35: 0 | N35: 0 | U35: 0 | V35: 0 | W35: 0 | Y35: 0 | Z35: 0 | AD35: 0 | AE35: 0 | AL35: 0 | AM35: 0 | AN35: 0 | AP35: 0 | AQ35: 0 | AR35: 0 | AS35: 0 | AU35: 0
A36: 0 | C36: =PROPER("") ->  | E36: 0 | F36: 0 | M36: 0 | N36: 0 | U36: 0 | V36: 0 | W36: 0 | Y36: 0 | Z36: 0 | AD36: 0 | AE36: 0 | AL36: 0 | AM36: 0 | AN36: 0 | AP36: 0 | AQ36: 0 | AR36: 0 | AS36: 0 | AU36: 0
A37: 0 | E37: 0 | F37: 0 | M37: 0 | N37: 0 | U37: 0 | V37: 0 | W37: 0 | Y37: 0 | Z37: 0 | AD37: 0 | AE37: 0 | AL37: 0 | AM37: 0 | AN37: 0 | AP37: 0 | AQ37: 0 | AR37: 0 | AS37: 0 | AU37: 0
A38: 0 | E38: 0 | F38: 0 | M38: 0 | N38: 0 | U38: 0 | V38: 0 | W38: 0 | Y38: 0 | Z38: 0 | AD38: 0 | AE38: 0 | AL38: 0 | AM38: 0 | AN38: 0 | AP38: 0 | AQ38: 0 | AR38: 0 | AS38: 0 | AU38: 0
A39: 0 | E39: 0 | F39: 0 | M39: 0 | N39: 0 | U39: 0 | V39: 0 | W39: 0 | Y39: 0 | Z39: 0 | AD39: 0 | AE39: 0 | AL39: 0 | AM39: 0 | AN39: 0 | AP39: 0 | AQ39: 0 | AR39: 0 | AS39: 0 | AU39: 0
A40: 1
A41: 1 | C41: Total payments | D41: =SUM(D20:D39) -> 86428170.65 | E41: =SUM(E20:E39) -> -3819996.12 | F41: 82608174.53 | H41: =SUM(H20:H39) -> 22166947 | I41: 0 | J41: 0 | K41: 0 | M41: =SUM(M20:M39) -> 22166947 | N41: =IFERROR(M41/D41,0) -> 0.256478262 | T41: Total payments | U41: 82198245.27 | V41: 0 | W41: 82198245.27 | Y41: 21789359.04 | Z41: 20799153.57 | AA41: 0 | AD41: 42588512.61 | AE41: 0.5181194862 | AK41: Total payments | AL41: =SUM(AL20:AL39) -> -4229925.38 | AM41: =SUM(AM20:AM39) -> 3819996.12 | AN41: =SUM(AN20:AN39) -> -409929.26 | AP41: =SUM(AP20:AP39) -> -377587.9604 | AQ41: =SUM(AQ20:AQ39) -> 20799153.57 | AR41: 0 | AS41: 0 | AU41: =SUM(AU20:AU39) -> 20421565.61
A42: 1
A43: 1 | C43: Payments by economic classification | T43: Payments by economic classification | AK43: Payments by economic classification
A44: 1 | C44: Current payments | D44: =SUM(D45:D47) -> 73346646.05 | E44: =SUM(E45:E47) -> -4271482.95 | F44: 69075163.1 | G44: =SUM(G45:G47) -> 0 | H44: =SUM(H45:H47) -> 19054432.93 | I44: =SUM(I45:I47) -> 0 | J44: 0 | K44: 0 | M44: =SUM(M45:M47) -> 19054432.93 | N44: =IFERROR(M44/D44,0) -> 0.2597860156 | T44: =C44 -> Current payments | U44: 68611109.57 | V44: 0 | W44: 68611109.57 | X44: 0 | Y44: 17881432.79 | Z44: 17346527.07 | AA44: 0 | AB44: 0 | AD44: 35227959.86 | AE44: 0.513443961 | AK44: Current payments | AL44: =SUM(AL45:AL47) -> -4735536.48 | AM44: =SUM(AM45:AM47) -> 4271482.95 | AN44: =SUM(AN45:AN47) -> -464053.53 | AO44: 0 | AP44: =SUM(AP45:AP47) -> -1173000.143 | AQ44: =SUM(AQ45:AQ47) -> 17346527.07 | AR44: 0 | AS44: 0 | AU44: =SUM(AU45:AU47) -> 16173526.93
A45: 1 | C45: Compensation of employees | D45: 56522578.7 | E45: =SUM(F45-D45) -> -2487322.05 | F45: 54035256.65 | H45: 13700513.03 | M45: =SUM(H45:K45) -> 13700513.03 | N45: 0.2423900917 | T45: Compensation of employees | U45: 54152698.94 | V45: 0 | W45: 54152698.94 | Y45: 13341110.73 | Z45: 13672432.37 | AD45: 27013543.1 | AE45: 0.4988401987 | AK45: Compensation of employees | AL45: =IFERROR(U45-D45,0) -> -2369879.76 | AM45: 2487322.05 | AN45: 117442.29 | AP45: =IFERROR(Y45-H45,0) -> -359402.3015 | AQ45: 13672432.37 | AR45: 0 | AS45: 0 | AU45: =IFERROR(AD45-M45,0) -> 13313030.07
A46: 1 | C46: Goods and services | D46: 16824067.35 | E46: -1784160.9 | F46: 15039906.45 | H46: 5351094.9 | M46: 5351094.9 | N46: 0.3180619043 | T46: Goods and services | U46: 14458410.63 | V46: 0 | W46: 14458410.63 | Y46: 4528730.059 | Z46: 3660735.503 | AD46: 8189465.562 | AE46: 0.5664153392 | AK46: Goods and services | AL46: -2365656.72 | AM46: 1784160.9 | AN46: -581495.82 | AP46: -822364.8413 | AQ46: 3660735.503 | AR46: 0 | AS46: 0 | AU46: 2838370.662
A47: 1 | C47: Interest and rent on land | D47: 0 | E47: 0 | F47: 0 | H47: 2825 | M47: 2825 | N47: 0 | T47: Interest and rent on land | U47: 0 | V47: 0 | W47: 0 | Y47: 11592 | Z47: 13359.2 | AD47: 24951.2 | AE47: 0 | AK47: Interest and rent on land | AL47: 0 | AM47: 0 | AN47: 0 | AP47: 8767 | AQ47: 13359.2 | AR47: 0 | AS47: 0 | AU47: 22126.2
A48: 1 | C48: Transfers and subsidies | D48: =SUM(D49:D55) -> 8945619 | E48: =SUM(E49:E55) -> 57674.43 | F48: 9003293.43 | G48: =SUM(G49:G55) -> 0 | H48: 2238541.3 | I48: 0 | J48: 0 | K48: 0 | M48: =SUM(M49:M55) -> 2238541.3 | N48: 0.2502388376 | T48: Transfers and subsidies | U48: 8844684.83 | V48: 0 | W48: 8844684.83 | X48: 0 | Y48: 2859224.386 | Z48: 2528167.064 | AA48: 0 | AB48: 0 | AD48: 5387391.45 | AE48: 0.6091106188 | AK48: Transfers and subsidies | AL48: =SUM(AL49:AL55) -> -100934.17 | AM48: =SUM(AM49:AM55) -> -57674.43 | AN48: =SUM(AN49:AN55) -> -158608.6 | AO48: 0 | AP48: =SUM(AP49:AP55) -> 620683.0858 | AQ48: =SUM(AQ49:AQ55) -> 2528167.064 | AR48: 0 | AS48: 0 | AU48: =SUM(AU49:AU55) -> 3148850.15
A49: 1 | C49: Provinces and municipalities | D49: 906747 | E49: =SUM(F49-D49) -> -42248 | F49: 864499 | H49: 99045 | M49: =SUM(H49:K49) -> 99045 | N49: 0.1092311306 | T49: Provinces and municipalities | U49: 662586 | V49: 0 | W49: 662586 | Y49: 63574.0934 | Z49: 355413 | AD49: 418987.0934 | AE49: 0.6323512622 | AK49: Provinces and municipalities | AL49: =IFERROR(U49-D49,0) -> -244161 | AM49: 42248 | AN49: -201913 | AP49: =IFERROR(Y49-H49,0) -> -35470.9066 | AQ49: 355413 | AR49: 0 | AS49: 0 | AU49: =IFERROR(AD49-M49,0) -> 319942.0934
A50: 1 | C50: Departmental agencies and accounts | D50: 1245029 | E50: 391057 | F50: 1636086 | H50: 518697.8 | M50: 518697.8 | N50: 0.4166150347 | T50: Departmental agencies and accounts | U50: 1331834 | V50: 0 | W50: 1331834 | Y50: 475203.6004 | Z50: 272154.9058 | AD50: 747358.5062 | AE50: 0.5611498927 | AK50: Departmental agencies and accounts | AL50: 86805 | AM50: -391057 | AN50: -304252 | AP50: -43494.19958 | AQ50: 272154.9058 | AR50: 0 | AS50: 0 | AU50: 228660.7062
A51: 1 | C51: Higher education and institutions | D51: 74164 | E51: -3261 | F51: 70903 | H51: 27913 | M51: 27913 | N51: 0.3763685885 | T51: Higher education and institutions | U51: 55904 | V51: 0 | W51: 55904 | Y51: 13826 | Z51: 13826 | AD51: 27652 | AE51: 0.4946336577 | AK51: Higher education and institutions | AL51: -18260 | AM51: 3261 | AN51: -14999 | AP51: -14087 | AQ51: 13826 | AR51: 0 | AS51: 0 | AU51: -261
A52: 1 | C52: Foreign governments and international organisations | D52: 0 | E52: 0 | F52: 0 | H52: 0 | M52: 0 | N52: 0 | T52: Foreign governments and international organisations | U52: 0 | V52: 0 | W52: 0 | Y52: 0 | Z52: 0 | AD52: 0 | AE52: 0 | AK52: Foreign governments and international organisations | AL52: 0 | AM52: 0 | AN52: 0 | AP52: 0 | AQ52: 0 | AR52: 0 | AS52: 0 | AU52: 0
A53: 1 | C53: Public corporations and private enterprises | D53: 652793 | E53: -32231 | F53: 620562 | H53: 182413.9 | M53: 182413.9 | N53: 0.279436054 | T53: Public corporations and private enterprises | U53: 554665 | V53: 0 | W53: 554665 | Y53: 109998.5212 | Z53: 133780.9317 | AD53: 243779.4529 | AE53: 0.4395075459 | AK53: Public corporations and private enterprises | AL53: -98128 | AM53: 32231 | AN53: -65897 | AP53: -72415.37875 | AQ53: 133780.9317 | AR53: 0 | AS53: 0 | AU53: 61365.55292
A54: 1 | C54: Non profit institutions | D54: 3416523 | E54: -167806 | F54: 3248717 | H54: 1028423 | M54: 1028423 | N54: 0.301014511 | T54: Non profit institutions | U54: 3573034.73 | V54: 0 | W54: 3573034.73 | Y54: 1116276 | Z54: 1037745 | AD54: 2154021 | AE54: 0.6028547615 | AK54: Non profit institutions | AL54: 156511.73 | AM54: 167806 | AN54: 324317.73 | AP54: 87853 | AQ54: 1037745 | AR54: 0 | AS54: 0 | AU54: 1125598
A55: 1 | C55: Households | D55: 2650363 | E55: -87836.57 | F55: 2562526.43 | H55: 382048.6 | M55: 382048.6 | N55: 0.1441495373 | T55: Households | U55: 2666661.1 | V55: 0 | W55: 2666661.1 | Y55: 1080346.171 | Z55: 715247.2264 | AD55: 1795593.397 | AE55: 0.6733489296 | AK55: Households | AL55: 16298.1 | AM55: 87836.57 | AN55: 104134.67 | AP55: 698297.5708 | AQ55: 715247.2264 | AR55: 0 | AS55: 0 | AU55: 1413544.797
A56: 1 | C56: Payments for capital assets | D56: =SUM(D57:D63) -> 4135905.6 | E56: =SUM(E57:E63) -> 393812.4 | F56: 4529718 | G56: =SUM(G57:G63) -> 0 | H56: 873973 | I56: 0 | J56: 0 | K56: 0 | M56: =SUM(M57:M63) -> 873973 | N56: 0.2113135754 | T56: Payments for capital assets | U56: 4742450.96 | V56: 0 | W56: 4742450.96 | X56: 0 | Y56: 1048442.985 | Z56: 924459.4285 | AA56: 0 | AB56: 0 | AD56: 1972902.413 | AE56: 0.4160090277 | AK56: Payments for capital assets | AL56: =SUM(AL57:AL63) -> 606545.36 | AM56: =SUM(AM57:AM63) -> -393812.4 | AN56: =SUM(AN57:AN63) -> 212732.96 | AO56: 0 | AP56: =SUM(AP57:AP63) -> 174469.9845 | AQ56: =SUM(AQ57:AQ63) -> 924459.4285 | AR56: 0 | AS56: 0 | AU56: =SUM(AU57:AU63) -> 1098929.413
A57: 1 | C57: Buildings and other fixed structures | D57: 2921489.6 | E57: =SUM(F57-D57) -> 314301.4 | F57: 3235791 | H57: 346897.1 | M57: =SUM(H57:K57) -> 346897.1 | N57: 0.1187398031 | T57: Buildings and other fixed structures | U57: 3635517 | V57: 0 | W57: 3635517 | Y57: 907397.9635 | Z57: 734847.4854 | AD57: 1642245.449 | AE57: 0.4517226708 | AK57: Buildings and other fixed structures | AL57: =IFERROR(U57-D57,0) -> 714027.4 | AM57: -314301.4 | AN57: 399726 | AP57: =IFERROR(Y57-H57,0) -> 560500.8635 | AQ57: 734847.4854 | AR57: 0 | AS57: 0 | AU57: =IFERROR(AD57-M57,0) -> 1295348.349
A58: 1 | C58: Machinery and equipment | D58: 1162058 | E58: 79522 | F58: 1241580 | H58: 490221.1 | M58: 490221.1 | N58: 0.4218559659 | T58: Machinery and equipment | U58: 1073001.94 | V58: 0 | W58: 1073001.94 | Y58: 129562.021 | Z58: 182905.5488 | AD58: 312467.5698 | AE58: 0.291208765 | AK58: Machinery and equipment | AL58: -89056.06 | AM58: -79522 | AN58: -168578.06 | AP58: -360659.079 | AQ58: 182905.5488 | AR58: 0 | AS58: 0 | AU58: -177753.5302
A59: 1 | C59: Heritage assets | D59: 1000 | E59: 700 | F59: 1700 | H59: 0 | M59: 0 | N59: 0 | T59: Heritage assets | U59: 500 | V59: 0 | W59: 500 | Y59: 155 | Z59: 0 | AD59: 155 | AE59: 0.31 | AK59: Heritage assets | AL59: -500 | AM59: -700 | AN59: -1200 | AP59: 155 | AQ59: 0 | AR59: 0 | AS59: 0 | AU59: 155
A60: 1 | C60: Specialised military assets | D60: 0 | E60: 0 | F60: 0 | H60: 0 | M60: 0 | N60: 0 | T60: Specialised military assets | U60: 0 | V60: 0 | W60: 0 | Y60: 0 | Z60: 0 | AD60: 0 | AE60: 0 | AK60: Specialised military assets | AL60: 0 | AM60: 0 | AN60: 0 | AP60: 0 | AQ60: 0 | AR60: 0 | AS60: 0 | AU60: 0
A61: 1 | C61: Biological assets | D61: 11702 | E61: -165 | F61: 11537 | H61: 1451 | M61: 1451 | N61: 0.1239958981 | T61: Biological assets | U61: 16500 | V61: 0 | W61: 16500 | Y61: 0 | Z61: 87 | AD61: 87 | AE61: 0.005272727273 | AK61: Biological assets | AL61: 4798 | AM61: 165 | AN61: 4963 | AP61: -1451 | AQ61: 87 | AR61: 0 | AS61: 0 | AU61: -1364
A62: 1 | C62: Land and sub-soil assets | D62: 0 | E62: 0 | F62: 0 | H62: 0 | M62: 0 | N62: 0 | T62: Land and sub-soil assets | U62: 0 | V62: 0 | W62: 0 | Y62: 0 | Z62: 0 | AD62: 0 | AE62: 0 | AK62: Land and sub-soil assets | AL62: 0 | AM62: 0 | AN62: 0 | AP62: 0 | AQ62: 0 | AR62: 0 | AS62: 0 | AU62: 0
A63: 1 | C63: Software and other intangible assets | D63: 39656 | E63: -546 | F63: 39110 | H63: 35403.8 | M63: 35403.8 | N63: 0.8927728465 | T63: Software and other intangible assets | U63: 16932.02 | V63: 0 | W63: 16932.02 | Y63: 11328 | Z63: 6619.39424 | AD63: 17947.39424 | AE63: 1.059967697 | AK63: Software and other intangible assets | AL63: -22723.98 | AM63: 546 | AN63: -22177.98 | AP63: -24075.8 | AQ63: 6619.39424 | AR63: 0 | AS63: 0 | AU63: -17456.40576
A64: 1 | C64: Payments for financial assets | D64: 0 | E64: 0 | F64: 0 | H64: 0 | M64: 0 | N64: 0 | T64: Payments for financial assets | U64: 0 | V64: 0 | W64: 0 | Y64: 259 | Z64: 0 | AD64: 259 | AE64: 0 | AK64: Payments for financial assets | AL64: 0 | AM64: 0 | AN64: 0 | AP64: 259 | AQ64: 0 | AR64: 0 | AS64: 0 | AU64: 259
A65: 1
A66: 1 | C66: Total payments | D66: =SUM(D44+D48+D56+D64) -> 86428170.65 | E66: =SUM(E44+E48+E56+E64) -> -3819996.12 | F66: 82608174.53 | H66: =SUM(H44+H48+H56+H64) -> 22166947.23 | I66: =SUM(I44+I48+I56+I64) -> 0 | J66: 0 | K66: 0 | M66: =SUM(M44+M48+M56+M64) -> 22166947.23 | N66: =IFERROR(M66/D66,0) -> 0.2564782647 | T66: Total payments | U66: 82198245.36 | V66: 0 | W66: 82198245.36 | Y66: 21789359.16 | Z66: 20799153.57 | AD66: 42588512.73 | AE66: 0.5181194871 | AK66: Total payments | AL66: =AL44+AL48+AL56+AL64 -> -4229925.29 | AM66: =AM44+AM48+AM56+AM64 -> 3819996.12 | AN66: =AN44+AN48+AN56+AN64 -> -409929.17 | AP66: =AP44+AP48+AP56+AP64 -> -377588.0725 | AQ66: =AQ44+AQ48+AQ56+AQ64 -> 20799153.57 | AR66: 0 | AS66: 0 | AU66: =AU44+AU48+AU56+AU64 -> 20421565.49
A67: 1
A68: 1 | C68: ="Information submitted by: " & Settings!$X$8 & " " & Settings!$Z$8 & ": Provincial Treasury Eastern Cape Tel No: " & Settings!$AB$8 -> Information submitted by: Daluhlanga Majeke Head Official: Provincial Treasury Eastern Cape Tel No: (040) 609-5612
A69: 1
A70: 1 | B70: 1. | C70: ="Main Budget figures are based on the " & Settings!FinYear & " Estimates of Provincial Revenue and Expenditure tabled in the Provincial Legislature during March " & LEFT(Settings!FinYear,4) & "." -> Main Budget figures are based on the 2022/23 Estimates of Provincial Revenue and Expenditure tabled in the Provincial Legislature during March 2022.
A71: 1
A72: 1
A73: 1
A74: 1 | C74: Signature:……………………………………………………………………………………………..………………………………Date:…………………………………………………………………..
A75: 1 | C75: ="I, " & Settings!$X$8 & " certify :" -> I, Daluhlanga Majeke certify :
A76: 1 | C76: 1. Amounts set out by provincial department have been checked and verified where necessary; and
A77: 1 | C77: ="2. are in compliance with the relevant sections of the Public Finance Management Act, and Section 31(2) of the Division of Revenue Act, " & LEFT(Settings!FinYear,4) & " (Act No. 4 of " & LEFT(Settings!FinYear,4) & ")." -> 2. are in compliance with the relevant sections of the Public Finance Management Act, and Section 31(2) of the Division of Revenue Act, 2022 (Act No. 4 of 2022).
A78: 0
A79: 0
A80: 0 | C80: Checks: Depts vs Eco Classification | D80: =D41-D66 -> 0 | E80: =E41-E66 -> 0 | F80: 0 | G80: 0 | H80: =H41-H66 -> -0.2320300005 | I80: 0 | J80: 0 | K80: 0 | L80: 0 | M80: =M41-M66 -> -0.2320300005 | O80: =O41-O66 -> 0
A81: 0 | C81: Checks: Receipts vs IYM Model | D81: 0 | F81: 0 | H81: 0 | I81: 21391636 | J81: 21216210 | K81: 18566175 | M81: 0 | O81: =O42-O67 -> 0
A82: 0 | C82: Checks: Depts vs IYM Model | D82: 0 | F82: 0 | H82: 0 | I82: 20860975.37 | J82: 20387856.67 | K82: 18481235.62 | M82: 0 | O82: =O43-O68 -> 0
A83: 0 | C83: Checks: Depts vs Datafile | D83: -3819996.12 | F83: 0 | H83: 412716 | I83: 20860975.37 | J83: 20387856.67 | K83: 18481235.62 | M83: 60142783.65 | O83: 0
A238: 1
A239: 1
A240: 1
A241: 1
A242: 1
A243: 1

Sheet EC_2
C3: CONDITIONAL GRANTS TRANSFERRED FROM NATIONAL DEPARTMENTS AND ACTUAL PAYMENTS MADE BY PROVINCES FOR THE FIRST QUARTER ENDED 30 JUNE 2022 | T3: ="NATIONAL TREASURY: " & C3 -> NATIONAL TREASURY: CONDITIONAL GRANTS TRANSFERRED FROM NATIONAL DEPARTMENTS AND ACTUAL PAYMENTS MADE BY PROVINCES FOR THE FIRST QUARTER ENDED 30 JUNE 2022 | AK3: ="VARIANCE FROM NATIONAL TREASURY: " & C3 -> VARIANCE FROM NATIONAL TREASURY: CONDITIONAL GRANTS TRANSFERRED FROM NATIONAL DEPARTMENTS AND ACTUAL PAYMENTS MADE BY PROVINCES FOR THE FIRST QUARTER ENDED 30 JUNE 2022
C4: EASTERN CAPE PROVINCE | T4: =C4 -> EASTERN CAPE PROVINCE | AK4: =C4 -> EASTERN CAPE PROVINCE
C6: National departments administering conditional grants | D6: =EC_1!D6 -> 2022/23 | T6: National departments administering conditional grants | U6: 2019/20 | AK6: National departments administering conditional grants | AL6: =D6 -> 2022/23
D7: Budget | J7: Transfers | M7: Payments to Date | U7: Budget | AA7: Transfers | AD7: Payments to Date | AL7: =D7 -> Budget | AR7: =J7 -> Transfers | AU7: =M7 -> Payments to Date
D8: ="Division of Revenue Act, No. 9 of " & LEFT(Settings!$R$5,4) -> Division of Revenue Act, No. 9 of 2022 | E8: ="Division of Revenue Amendment Act, No. 30 of " & LEFT(Settings!$R$5,4) & " and other Gazettes" -> Division of Revenue Amendment Act, No. 30 of 2022 and other Gazettes | F8: Total National Allocation | G8: Provincial roll-overs approved by National Treasury | H8: Total Available | J8: Provincial Payment Schedule (National Allocation) | K8: Transferred from National to Province | M8: Actual Payments | N8: % Actual Payments | U8: Division of Revenue Act, No. 14 of 2018 | V8: Division of Revenue Amendment Act, No. 14 of 2018 | W8: Total National Allocation | X8: Provincial roll-overs approved by National Treasury | Y8: Total Available | AA8: Provincial Payment Schedule (National Allocation) | AB8: Transferred from National to Province | AD8: Actual Payments | AE8: % Actual Payments | AL8: =D8 -> Division of Revenue Act, No. 9 of 2022 | AM8: =E8 -> Division of Revenue Amendment Act, No. 30 of 2022 and other Gazettes | AN8: =F8 -> Total National Allocation | AO8: =G8 -> Provincial roll-overs approved by National Treasury | AP8: =H8 -> Total Available | AR8: =J8 -> Provincial Payment Schedule (National Allocation) | AS8: =K8 -> Transferred from National to Province | AU8: =M8 -> Actual Payments | AV8: =N8 -> % Actual Payments
D9: R'000 | E9: R'000 | F9: R'000 | G9: R'000 | H9: R'000 | J9: R'000 | K9: R'000 | M9: R'000 | N9: % | U9: R'000 | V9: R'000 | W9: R'000 | X9: R'000 | Y9: R'000 | AA9: R'000 | AB9: R'000 | AD9: R'000 | AE9: % | AL9: R'000 | AM9: R'000 | AN9: R'000 | AO9: R'000 | AP9: R'000 | AR9: R'000 | AS9: R'000 | AU9: R'000 | AV9: %
C11: Schedule 5, Part A Grants2. | T11: Schedule 5, Part A Grants2. | AK11: Schedule 5, Part A Grants2.
DB12: Numbers from the sources | DE12: Checks
C13: Agriculture, Land Reform and Rural Development (Vote 29) | D13: =SUM(D14+D15+D16) -> 340143 | E13: -99723 | F13: 240420 | G13: 4481 | H13: 244901 | I13: 0 | J13: 34014 | K13: 0 | M13: =SUM(M14+M15+M16) -> 8244 | N13: =IFERROR(M13/D13,0) -> 0.02423686508 | T13: =C13 -> Agriculture, Land Reform and Rural Development (Vote 29) | U13: 330418 | V13: 0 | W13: 330418 | X13: 0 | Y13: 330418 | AA13: 184183 | AB13: 184183 | AD13: 86222 | AE13: 0.2609482534 | AK13: =C13 -> Agriculture, Land Reform and Rural Development (Vote 29) | AL13: =SUM(AL14:AL16) -> -9725 | AM13: =SUM(AM14:AM16) -> 99723 | AN13: =SUM(AN14:AN16) -> 89998 | AO13: =SUM(AO14:AO16) -> -4481 | AP13: =SUM(AP14:AP16) -> 85517 | AR13: =SUM(AR14:AR16) -> 150169 | AS13: =SUM(AS14:AS16) -> 184183 | AU13: =SUM(AU14:AU16) -> 77978 | DB13: DoRA(annexure) | DC13: Payment schedule(macro) | DD13: Transfer from National(vulindlela) | DE13: DoRA | DF13: Payment Schedule | DG13: Transfer from National(vulindlela)
C14: (a) Comprehensive Agricultural Support Programme Grant | D14: 251233 | E14: =SUM(F14-D14) -> -73397 | F14: 177836 | G14: 4481 | H14: =SUM(F14:G14) -> 182317 | J14: 25123 | K14: 0 | M14: 8007 | N14: =IFERROR(M14/D14,0) -> 0.03187081315 | T14: (a) Comprehensive Agricultural Support Programme Grant | U14: 244101 | V14: 0 | W14: 244101 | X14: 0 | Y14: 244101 | AA14: 141578 | AB14: 141578 | AD14: 62765 | AE14: 0.2571271728 | AK14: (a) Comprehensive Agricultural Support Programme Grant | AL14: =IFERROR(U14-D14,0) -> -7132 | AM14: =IFERROR(V14-E14,0) -> 73397 | AN14: =IFERROR(W14-F14,0) -> 66265 | AO14: =IFERROR(X14-G14,0) -> -4481 | AP14: =IFERROR(Y14-H14,0) -> 61784 | AR14: =IFERROR(AA14-J14,0) -> 116455 | AS14: =IFERROR(AB14-K14,0) -> 141578 | AU14: =IFERROR(AD14-M14,0) -> 54758 | DB14: 251233 | DC14: 25123 | DD14: 0 | DE14: =D14-DB14 -> 0 | DF14: =J14-DC14 -> 0 | DG14: 0
C15: (b) Ilima/Letsema Projects Grant | D15: 76210 | E15: =SUM(F15-D15) -> -25850 | F15: 50360 | G15: 0 | H15: =SUM(F15:G15) -> 50360 | J15: 7621 | K15: 0 | M15: 128 | N15: =IFERROR(M15/D15,0) -> 0.00167956961 | T15: (b) Ilima/Letsema Projects Grant | U15: 75254 | V15: 0 | W15: 75254 | X15: 0 | Y15: 75254 | AA15: 37627 | AB15: 37627 | AD15: 12015 | AE15: 0.1596592872 | AK15: (b) Ilima/Letsema Projects Grant | AL15: -956 | AM15: 25850 | AN15: 24894 | AO15: 0 | AP15: 24894 | AR15: 30006 | AS15: 37627 | AU15: 11887 | DB15: 76210 | DC15: 7621 | DD15: 0 | DE15: =D15-DB15 -> 0 | DF15: 0 | DG15: 0
C16: (c) Land Care Programme Grant: Poverty Relief and Infrastructure Development | D16: 12700 | E16: =SUM(F16-D16) -> -476 | F16: 12224 | G16: 0 | H16: =SUM(F16:G16) -> 12224 | J16: 1270 | K16: 0 | M16: 109 | N16: =IFERROR(M16/D16,0) -> 0.008582677165 | T16: (c) Land Care Programme Grant: Poverty Relief and Infrastructure Development | U16: 11063 | V16: 0 | W16: 11063 | X16: 0 | Y16: 11063 | AA16: 4978 | AB16: 4978 | AD16: 11442 | AE16: 1.034258339 | AK16: (c) Land Care Programme Grant: Poverty Relief and Infrastructure Development | AL16: -1637 | AM16: 476 | AN16: -1161 | AO16: 0 | AP16: -1161 | AR16: 3708 | AS16: 4978 | AU16: 11333 | DB16: 12700 | DC16: 1270 | DD16: 0 | DE16: =D16-DB16 -> 0 | DF16: 0 | DG16: 0
E17: =F17-D17 -> 0 | H17: =SUM(F17:G17) -> 0 | N17: =IFERROR(M17/F17,0) -> 0 | T17: 0 | V17: 0 | Y17: 0 | AE17: 0 | AK17: 0 | AL17: 0 | AM17: 0 | AN17: 0 | AO17: 0 | AP17: 0 | AR17: 0 | AS17: 0 | AU17: 0 | DC17: 7621 | DE17: =D17-DB17 -> 0 | DF17: =J17-DC17 -> -7621
E18: =F18-D18 -> 0 | H18: =SUM(F18:G18) -> 0 | N18: =IFERROR(M18/F18,0) -> 0 | T18: 0 | V18: 0 | Y18: 0 | AE18: 0 | AK18: 0 | AL18: 0 | AM18: 0 | AN18: 0 | AO18: 0 | AP18: 0 | AR18: 0 | AS18: 0 | AU18: 0 | DC18: 7621 | DE18: =D18-DB18 -> 0 | DF18: =J18-DC18 -> -7621
AK19: 0 | AL19: 0 | AM19: 0 | AN19: 0 | AO19: 0 | AP19: 0 | AR19: 0 | AS19: 0 | AU19: 0
C20: Sports, Arts and Culture (Vote 37) | D20: =SUM(D21) -> 181169 | E20: -50905 | F20: 130264 | G20: 4369 | H20: 134633 | I20: 0 | J20: 30000 | K20: 30000 | M20: =SUM(M21) -> 21127 | N20: =IFERROR(M20/D20,0) -> 0.1166148734 | T20: =C20 -> Sports, Arts and Culture (Vote 37) | U20: 169824 | V20: 0 | W20: 169824 | X20: 0 | Y20: 169824 | AA20: 79231 | AB20: 79231 | AD20: 82181 | AE20: 0.4839186452 | AK20: Sports, Arts and Culture (Vote 37) | AL20: -11345 | AM20: 50905 | AN20: 39560 | AO20: -4369 | AP20: 35191 | AR20: 49231 | AS20: 49231 | AU20: 61054
C21: Community Library Services Grant | D21: 181169 | E21: =SUM(F21-D21) -> -50905 | F21: 130264 | G21: 4369 | H21: =SUM(F21:G21) -> 134633 | J21: 30000 | K21: 30000 | M21: 21127 | N21: =IFERROR(M21/D21,0) -> 0.1166148734 | T21: Community Library Services Grant | U21: 169824 | V21: 0 | W21: 169824 | X21: 0 | Y21: 169824 | AA21: 79231 | AB21: 79231 | AD21: 82181 | AE21: 0.4839186452 | AK21: Community Library Services Grant | AL21: -11345 | AM21: 50905 | AN21: 39560 | AO21: -4369 | AP21: 35191 | AR21: 49231 | AS21: 49231 | AU21: 61054 | DB21: 181169 | DC21: 30000 | DD21: 30000 | DE21: =D21-DB21 -> 0 | DF21: =J21-DC21 -> 0 | DG21: =K21-DD21 -> 0
E22: =F22-D22 -> 0 | H22: =SUM(F22:G22) -> 0 | N22: =IFERROR(M22/F22,0) -> 0 | T22: 0 | V22: 0 | Y22: 0 | AE22: 0 | AK22: 0 | AL22: 0 | AM22: 0 | AN22: 0 | AO22: 0 | AP22: 0 | AR22: 0 | AS22: 0 | AU22: 0 | DE22: =D22-DB22 -> 0
E23: =F23-D23 -> 0 | H23: =SUM(F23:G23) -> 0 | N23: =IFERROR(M23/F23,0) -> 0 | T23: 0 | V23: 0 | Y23: 0 | AE23: 0 | AK23: 0 | AL23: 0 | AM23: 0 | AN23: 0 | AO23: 0 | AP23: 0 | AR23: 0 | AS23: 0 | AU23: 0 | DE23: =D23-DB23 -> 0
E24: =F24-D24 -> 0 | H24: =SUM(F24:G24) -> 0 | N24: =IFERROR(M24/F24,0) -> 0 | T24: 0 | V24: 0 | Y24: 0 | AE24: 0 | AK24: 0 | AL24: 0 | AM24: 0 | AN24: 0 | AO24: 0 | AP24: 0 | AR24: 0 | AS24: 0 | AU24: 0 | DE24: =D24-DB24 -> 0
E25: =F25-D25 -> 0 | H25: =SUM(F25:G25) -> 0 | N25: =IFERROR(M25/F25,0) -> 0 | T25: 0 | V25: 0 | Y25: 0 | AE25: 0 | AK25: 0 | AL25: 0 | AM25: 0 | AN25: 0 | AO25: 0 | AP25: 0 | AR25: 0 | AS25: 0 | AU25: 0 | DE25: =D25-DB25 -> 0
AK26: 0 | AL26: 0 | AM26: 0 | AN26: 0 | AO26: 0 | AP26: 0 | AR26: 0 | AS26: 0 | AU26: 0
C27: Basic Education (Vote 16) | D27: =SUM(D28+D29+D30+D31+D32) -> 1821127 | E27: =SUM(E29+E30+E31+E32) -> -149752 | F27: =SUM(F29+F30+F31+F32) -> 1471707 | G27: =SUM(G29+G30+G31+G32) -> 16989 | H27: =SUM(H29+H30+H31+H32) -> 1488696 | I27: =SUM(I29+I30+I31+I32) -> 0 | J27: =SUM(J28+J29+J30+J31+J32) -> 848882 | K27: =SUM(K28+K29+K30+K31+K32) -> 848882 | M27: =SUM(M28+M29+M30+M31+M32) -> 499632 | N27: =IFERROR(M27/D27,0) -> 0.274353189 | T27: =C27 -> Basic Education (Vote 16) | U27: 1398706 | V27: 0 | W27: 1398706 | X27: 0 | Y27: 1398706 | AA27: 1022190 | AB27: 1022190 | AD27: 986310 | AE27: 0.7051589112 | AK27: Basic Education (Vote 16) | AL27: -422421 | AM27: 149752 | AN27: -73001 | AO27: -16989 | AP27: -89990 | AR27: 173308 | AS27: 173308 | AU27: 486678
C28: (a) Early Childhood Development Grant | D28: 199668 | J28: 49917 | K28: 49917 | M28: 70031 | N28: 0.3507372238 | T28: =C29 -> (b) HIV and AIDS (Life Skills Education) Grant | U28: 45455 | V28: 0 | W28: 45455 | X28: 0 | Y28: 45455 | AA28: 18182 | AB28: 18182 | AD28: 24690 | AE28: 0.5431745683 | AK28: =C29 -> (b) HIV and AIDS (Life Skills Education) Grant | AL28: =IFERROR(U28-D29,0) -> 927 | AM28: 10493 | AN28: 11420 | AO28: 0 | AP28: 11420 | AR28: =IFERROR(AA28-J29,0) -> 13730 | AS28: 13730 | AU28: =IFERROR(AD28-M29,0) -> 16031 | DB28: 199668 | DC28: 49917 | DD28: 49917 | DE28: =D28-DB28 -> 0 | DF28: =J28-DC28 -> 0 | DG28: 0
C29: (b) HIV and AIDS (Life Skills Education) Grant | D29: 44528 | E29: =SUM(F29-D29) -> -10493 | F29: 34035 | G29: 0 | H29: =SUM(F29:G29) -> 34035 | J29: 4452 | K29: 4452 | M29: 8659 | N29: 0.1944619116 | T29: =C30 -> (c) Learners with Profound Intellectual Disabilities Grant | U29: 25182 | V29: 0 | W29: 25182 | X29: 0 | Y29: 25182 | AA29: 16785 | AB29: 16785 | AD29: 8389 | AE29: 0.3331347788 | AK29: =C30 -> (c) Learners with Profound Intellectual Disabilities Grant | AL29: -3151 | AM29: 565 | AN29: -2586 | AO29: -6311 | AP29: -8897 | AR29: 7785 | AS29: 7785 | AU29: =IFERROR(AD29-M30,0) -> 4006 | DB29: 44528 | DC29: 4452 | DD29: 4452 | DE29: =D29-DB29 -> 0 | DF29: 0 | DG29: 0
C30: (c) Learners with Profound Intellectual Disabilities Grant | D30: 28333 | E30: =SUM(F30-D30) -> -565 | F30: 27768 | G30: 6311 | H30: =SUM(F30:G30) -> 34079 | J30: 9000 | K30: 9000 | M30: 4383 | N30: 0.1546959376 | T30: =C31 -> (d) Maths, Science and Technology Grant | U30: 49434 | V30: 0 | W30: 49434 | X30: 0 | Y30: 49434 | AA30: 24717 | AB30: 24717 | AD30: 9816 | AE30: 0.1985677874 | AK30: =C31 -> (d) Maths, Science and Technology Grant | AL30: -4516 | AM30: 20389 | AN30: 15873 | AO30: -9654 | AP30: 6219 | AR30: 19322 | AS30: 19322 | AU30: =IFERROR(AD30-M31,0) -> -10451 | DB30: 28333 | DC30: 9000 | DD30: 9000 | DE30: =D30-DB30 -> 0 | DF30: 0 | DG30: 0
C31: (d) Maths, Science and Technology Grant | D31: 53950 | E31: =SUM(F31-D31) -> -20389 | F31: 33561 | G31: 9654 | H31: =SUM(F31:G31) -> 43215 | J31: 5395 | K31: 5395 | M31: 20267 | N31: 0.3756626506 | T31: =C32 -> (e) National School Nutrition Programme Grant | U31: 1278635 | V31: 0 | W31: 1278635 | X31: 0 | Y31: 1278635 | AA31: 962506 | AB31: 962506 | AD31: 943415 | AE31: 0.7378297951 | AK31: =C32 -> (e) National School Nutrition Programme Grant | AL31: -216013 | AM31: 118305 | AN31: -97708 | AO31: -1024 | AP31: -98732 | AR31: 182388 | AS31: 182388 | AU31: =IFERROR(AD31-M32,0) -> 547123 | DB31: 53950 | DC31: 5395 | DD31: 5395 | DE31: =D31-DB31 -> 0 | DF31: 0 | DG31: 0
C32: (e) National School Nutrition Programme Grant | D32: 1494648 | E32: =SUM(F32-D32) -> -118305 | F32: 1376343 | G32: 1024 | H32: =SUM(F32:G32) -> 1377367 | J32: 780118 | K32: 780118 | M32: 396292 | N32: 0.2651406886 | T32: =#REF! ->  | V32: 0 | Y32: 0 | AE32: 0 | AK32: =#REF! ->  | AL32: =IFERROR(U32-#REF!,0) -> 0 | AM32: =IFERROR(V32-#REF!,0) -> 0 | AN32: =IFERROR(W32-#REF!,0) -> 0 | AO32: =IFERROR(X32-#REF!,0) -> 0 | AP32: =IFERROR(Y32-#REF!,0) -> 0 | AR32: =IFERROR(AA32-#REF!,0) -> 0 | AS32: =IFERROR(AB32-#REF!,0) -> 0 | AU32: =IFERROR(AD32-#REF!,0) -> 0 | DB32: 1494648 | DC32: 780118 | DD32: 780118 | DE32: =D32-DB32 -> 0 | DF32: 0 | DG32: 0
AK33: =C33 -> 0 | AL33: =IFERROR(U33-D33,0) -> 0 | AM33: =IFERROR(V33-E33,0) -> 0 | AN33: =IFERROR(W33-F33,0) -> 0 | AO33: =IFERROR(X33-G33,0) -> 0 | AP33: =IFERROR(Y33-H33,0) -> 0 | AR33: =IFERROR(AA33-J33,0) -> 0 | AS33: =IFERROR(AB33-K33,0) -> 0 | AU33: =IFERROR(AD33-M33,0) -> 0
C34: Cooperative Governance and Traditional Affairs (Vote 4) | D34: =SUM(D35) -> 0 | E34: 0 | F34: 0 | G34: 0 | H34: 0 | I34: 0 | J34: 0 | K34: 0 | L34: 0 | M34: 0 | N34: =IFERROR(M34/H34,0) -> 0 | T34: =C34 -> Cooperative Governance and Traditional Affairs (Vote 4) | AK34: Cooperative Governance and Traditional Affairs (Vote 4) | AL34: =SUM(AL35:AL37) -> 0 | AM34: =SUM(AM35:AM37) -> 0 | AN34: =SUM(AN35:AN37) -> 0 | AO34: =SUM(AO35:AO37) -> 0 | AP34: =SUM(AP35:AP37) -> 0 | AR34: =SUM(AR35:AR37) -> 0 | AS34: =SUM(AS35:AS37) -> 0 | AU34: =SUM(AU35:AU37) -> 0 | DE34: =D34-DB34 -> 0
C35: Provincial Disaster Recovery Grant | E35: =SUM(F35-D35) -> 0 | H35: =SUM(F35:G35) -> 0 | T35: Provincial Disaster Recovery Grant | V35: 0 | Y35: 0 | AE35: 0 | AK35: Provincial Disaster Recovery Grant | AL35: =IFERROR(U35-D35,0) -> 0 | AM35: =IFERROR(V35-E35,0) -> 0 | AN35: =IFERROR(W35-F35,0) -> 0 | AO35: =IFERROR(X35-G35,0) -> 0 | AP35: =IFERROR(Y35-H35,0) -> 0 | AR35: =IFERROR(AA35-J35,0) -> 0 | AS35: =IFERROR(AB35-K35,0) -> 0 | AU35: =IFERROR(AD35-M35,0) -> 0 | DE35: 0
E36: =F36-D36 -> 0 | H36: =SUM(F36:G36) -> 0 | N36: =IFERROR(M36/F36,0) -> 0 | T36: 0 | V36: 0 | Y36: 0 | AE36: 0 | AK36: 0 | AL36: 0 | AM36: 0 | AN36: 0 | AO36: 0 | AP36: 0 | AR36: 0 | AS36: 0 | AU36: 0 | DE36: 0
E37: =F37-D37 -> 0 | H37: =SUM(F37:G37) -> 0 | N37: =IFERROR(M37/F37,0) -> 0 | T37: 0 | V37: 0 | Y37: 0 | AE37: 0 | AK37: 0 | AL37: 0 | AM37: 0 | AN37: 0 | AO37: 0 | AP37: 0 | AR37: 0 | AS37: 0 | AU37: 0 | DE37: 0
E38: =F38-D38 -> 0 | H38: =SUM(F38:G38) -> 0 | N38: =IFERROR(M38/F38,0) -> 0 | T38: 0 | V38: 0 | Y38: 0 | AE38: 0 | AK38: 0 | AL38: 0 | AM38: 0 | AN38: 0 | AO38: 0 | AP38: 0 | AR38: 0 | AS38: 0 | AU38: 0 | DE38: 0
E39: =F39-D39 -> 0 | H39: =SUM(F39:G39) -> 0 | N39: =IFERROR(M39/F39,0) -> 0 | T39: 0 | V39: 0 | Y39: 0 | AE39: 0 | AK39: 0 | AL39: 0 | AM39: 0 | AN39: 0 | AO39: 0 | AP39: 0 | AR39: 0 | AS39: 0 | AU39: 0 | DE39: 0
AK40: 0 | AL40: 0 | AM40: 0 | AN40: 0 | AO40: 0 | AP40: 0 | AR40: 0 | AS40: 0 | AU40: 0
C41: Health (Vote 18) | D41: =SUM(D42+D43+D44+D45+D46) -> 4659348 | E41: -441223 | F41: 4218125 | G41: 11194 | H41: 4229319 | I41: 0 | J41: 1164829 | K41: 1162960 | M41: =SUM(M42+M43+M44+M45+M46) -> 1068656 | N41: =IFERROR(M41/D41,0) -> 0.2293574122 | T41: =C41 -> Health (Vote 18) | U41: 3276289 | V41: 0 | W41: 3276289 | X41: 0 | Y41: 3276289 | AA41: 1777697 | AB41: 1777700 | AD41: 1686271 | AE41: 0.514689333 | AK41: Health (Vote 18) | AL41: -1383059 | AM41: 441223 | AN41: -941836 | AO41: -11194 | AP41: -953030 | AR41: 612868 | AS41: 614740 | AU41: 617615
C42: (a) District Health Programmes Grant | D42: 3221279 | E42: =SUM(F42-D42) -> -63980 | F42: 3157299 | G42: 0 | H42: =SUM(F42:G42) -> 3157299 | J42: 805317 | K42: 805317 | M42: 807084 | N42: =IFERROR(M42/D42,0) -> 0.2505476862 | T42: (a) District Health Programmes Grant | U42: 2397703 | V42: 0 | W42: 2397703 | X42: 0 | Y42: 2397703 | AA42: 1198848 | AB42: 1198851 | AD42: 1104098 | AE42: 0.4604815526 | AK42: (a) District Health Programmes Grant | AL42: -823576 | AM42: 63980 | AN42: -759596 | AO42: 0 | AP42: -759596 | AR42: 393531 | AS42: 393534 | AU42: 297014 | DB42: 3221279 | DC42: 805317 | DD42: 805316.9989 | DE42: =D42-DB42 -> 0 | DF42: =J42-DC42 -> 0 | DG42: 0.001140000066
C43: (b) Health Facility Revitalisation Grant | D43: 730829 | E43: =SUM(F43-D43) -> -61296 | F43: 669533 | G43: 11194 | H43: =SUM(F43:G43) -> 680727 | J43: 182707 | K43: 182707 | M43: 98394 | N43: =IFERROR(M43/D43,0) -> 0.1346334095 | T43: (b) Health Facility Revitalisation Grant | U43: 784988 | V43: 0 | W43: 784988 | X43: 0 | Y43: 784988 | AA43: 532055 | AB43: 532055 | AD43: 515189 | AE43: 0.6563017524 | AK43: (b) Health Facility Revitalisation Grant | AL43: 54159 | AM43: 61296 | AN43: 115455 | AO43: -11194 | AP43: 104261 | AR43: 349348 | AS43: 349348 | AU43: 416795 | DB43: 730829 | DC43: 182707 | DD43: 182707 | DE43: =D43-DB43 -> 0 | DF43: 0 | DG43: 0
C44: (c) Human Resources and Training Grant | D44: 578756 | E44: =SUM(F44-D44) -> -578756 | F44: 0 | G44: 0 | H44: =SUM(F44:G44) -> 0 | J44: 144684 | K44: 144684 | M44: 146990 | N44: =IFERROR(M44/D44,0) -> 0.2539757687 | T44: (c) Human Resources and Training Grant | U44: 35345 | V44: 0 | W44: 35345 | X44: 0 | Y44: 35345 | AA44: 17670 | AB44: 17670 | AD44: 17524 | AE44: 0.4957985571 | AK44: (c) Human Resources and Training Grant | AL44: -543411 | AM44: 578756 | AN44: 35345 | AO44: 0 | AP44: 35345 | AR44: -127014 | AS44: -127014 | AU44: -129466 | DB44: 578756 | DC44: 144684 | DD44: 144683.9975 | DE44: =D44-DB44 -> 0 | DF44: 0 | DG44: 0.002500000002
C45: (d) National Health Insurance Grant | D45: 128484 | E45: =SUM(F45-D45) -> 262809 | F45: 391293 | G45: 0 | H45: =SUM(F45:G45) -> 391293 | J45: 32121 | K45: 30252 | M45: 16188 | N45: =IFERROR(M45/D45,0) -> 0.1259923415 | T45: (d) National Health Insurance Grant | U45: 58253 | V45: 0 | W45: 58253 | X45: 0 | Y45: 58253 | AA45: 29124 | AB45: 29124 | AD45: 49460 | AE45: 0.8490549843 | AK45: (d) National Health Insurance Grant | AL45: -70231 | AM45: -262809 | AN45: -333040 | AO45: 0 | AP45: -333040 | AR45: -2997 | AS45: -1128 | AU45: 33272 | DB45: 128484 | DC45: 32121 | DD45: 30252.00416 | DE45: =D45-DB45 -> 0 | DF45: 0 | DG45: -0.004159999997
T46: 0 | V46: 0 | Y46: 0 | AE46: 0 | AK46: 0 | AL46: 0 | AM46: 0 | AN46: 0 | AO46: 0 | AP46: 0 | AR46: 0 | AS46: 0 | AU46: 0
AK47: 0 | AL47: 0 | AM47: 0 | AN47: 0 | AO47: 0 | AP47: 0 | AR47: 0 | AS47: 0 | AU47: 0 | DE47: =D47-DB47 -> 0
C48: Human Settlements (Vote 33) | D48: =SUM(D49+D50) -> 2000173 | E48: -703849 | F48: 1296324 | G48: 237589 | H48: 1533913 | I48: 0 | J48: 494540 | K48: 494540 | M48: =SUM(M49+M50) -> 170340 | N48: =IFERROR(M48/D48,0) -> 0.08516263343 | T48: =C48 -> Human Settlements (Vote 33) | U48: 2021182 | V48: 0 | W48: 2021182 | X48: 0 | Y48: 2021182 | AA48: 969157 | AB48: 979307 | AD48: 959607 | AE48: 0.4747751563 | AK48: Human Settlements (Vote 33) | AL48: 21009 | AM48: 703849 | AN48: 724858 | AO48: -237589 | AP48: 487269 | AR48: 474617 | AS48: 484767 | AU48: 789267
C49: (a) Human Settlements Development Grant | D49: 1542022 | E49: =SUM(F49-D49) -> -267938 | F49: 1274084 | G49: 205080 | H49: =SUM(F49:G49) -> 1479164 | J49: 357095 | K49: 357095 | M49: 170340 | N49: =IFERROR(M49/D49,0) -> 0.11046535 | T49: (a) Human Settlements Development Grant | U49: 1960278 | V49: 0 | W49: 1960278 | X49: 0 | Y49: 1960278 | AA49: 953931 | AB49: 953931 | AD49: 939260 | AE49: 0.4791463252 | AK49: (a) Human Settlements Development Grant | AL49: 418256 | AM49: 267938 | AN49: 686194 | AO49: -205080 | AP49: 481114 | AR49: 596836 | AS49: 596836 | AU49: 768920 | DB49: 1542022 | DC49: 357095 | DD49: 251385 | DE49: =D49-DB49 -> 0 | DF49: =J49-DC49 -> 0 | DG49: =K49-DD49 -> 105710
C50: (b) Informal Settlements Upgrading Partnership Grant: Provinces | D50: 458151 | E50: =SUM(F50-D50) -> -435911 | F50: 22240 | G50: 32509 | H50: =SUM(F50:G50) -> 54749 | J50: 137445 | K50: 137445 | M50: 0 | N50: =IFERROR(M50/D50,0) -> 0 | T50: (b) Informal Settlements Upgrading Partnership Grant: Provinces | U50: 60904 | V50: 0 | W50: 60904 | X50: 0 | Y50: 60904 | AA50: 15226 | AB50: 25376 | AD50: 20347 | AE50: 0.3340831472 | AK50: (b) Informal Settlements Upgrading Partnership Grant: Provinces | AL50: -397247 | AM50: 435911 | AN50: 38664 | AO50: -32509 | AP50: 6155 | AR50: -122219 | AS50: -112069 | AU50: 20347 | DB50: 458151 | DC50: 137445 | DD50: 176046 | DE50: =D50-DB50 -> 0 | DF50: =J50-DC50 -> 0 | DG50: =K50-DD50 -> -38601
E51: =F51-D51 -> 0 | H51: =SUM(F51:G51) -> 0 | N51: =IFERROR(M51/F51,0) -> 0 | T51: 0 | V51: 0 | Y51: 0 | AE51: 0 | AK51: 0 | AL51: 0 | AM51: 0 | AN51: 0 | AO51: 0 | AP51: 0 | AR51: 0 | AS51: 0 | AU51: 0 | DC51: 357095 | DE51: =D51-DB51 -> 0
E52: =F52-D52 -> 0 | H52: =SUM(F52:G52) -> 0 | N52: =IFERROR(M52/F52,0) -> 0 | T52: 0 | V52: 0 | Y52: 0 | AE52: 0 | AK52: 0 | AL52: 0 | AM52: 0 | AN52: 0 | AO52: 0 | AP52: 0 | AR52: 0 | AS52: 0 | AU52: 0 | DC52: 357095 | DE52: =D52-DB52 -> 0
E53: =F53-D53 -> 0 | H53: =SUM(F53:G53) -> 0 | N53: =IFERROR(M53/F53,0) -> 0 | T53: 0 | V53: 0 | Y53: 0 | AE53: 0 | AK53: 0 | AL53: 0 | AM53: 0 | AN53: 0 | AO53: 0 | AP53: 0 | AR53: 0 | AS53: 0 | AU53: 0 | DC53: 357095 | DE53: =D53-DB53 -> 0
AK54: 0 | AL54: 0 | AM54: 0 | AN54: 0 | AO54: 0 | AP54: 0 | AR54: 0 | AS54: 0 | AU54: 0
C55: Public Works and Infrastructure (Vote 13) | D55: =SUM(D56+D57) -> 174909 | E55: -11918 | F55: 162991 | G55: 0 | H55: 162991 | I55: 0 | J55: 43731 | K55: 36773 | M55: =SUM(M56+M57) -> 40689.8 | N55: =IFERROR(M55/D55,0) -> 0.2326341126 | T55: =C55 -> Public Works and Infrastructure (Vote 13) | U55: 157225 | V55: 0 | W55: 157225 | X55: 0 | Y55: 157225 | AA55: 110057 | AB55: 104823 | AD55: 78040.1276 | AE55: 0.4963595332 | AK55: Public Works and Infrastructure (Vote 13) | AL55: -17684 | AM55: 11918 | AN55: -5766 | AO55: 0 | AP55: -5766 | AR55: 66326 | AS55: 68050 | AU55: 37350.3276
C56: (a) Expanded Public Works Programme Integrated Grant for Provinces | D56: 106459 | E56: =SUM(F56-D56) -> 1330 | F56: 107789 | G56: 0 | H56: =SUM(F56:G56) -> 107789 | J56: 26617 | K56: 23339 | M56: 29190.8 | N56: =IFERROR(M56/D56,0) -> 0.2741975784 | T56: (a) Expanded Public Works Programme Integrated Grant for Provinces | U56: 106862 | V56: 0 | W56: 106862 | X56: 0 | Y56: 106862 | AA56: 74804 | AB56: 69570 | AD56: 51083.1276 | AE56: 0.4780289308 | AK56: (a) Expanded Public Works Programme Integrated Grant for Provinces | AL56: 403 | AM56: -1330 | AN56: -927 | AO56: 0 | AP56: -927 | AR56: 48187 | AS56: 46231 | AU56: 21892.3276 | DB56: 106459 | DC56: 26617 | DD56: 23339 | DE56: =D56-DB56 -> 0 | DF56: =J56-DC56 -> 0 | DG56: =K56-DD56 -> 0
C57: (b) Social Sector Expanded Public Works Programme Incentive Grant for Provinces | D57: 68450 | E57: =SUM(F57-D57) -> -13248 | F57: 55202 | G57: 0 | H57: =SUM(F57:G57) -> 55202 | J57: 17114 | K57: 13434 | M57: 11499 | N57: =IFERROR(M57/D57,0) -> 0.1679912345 | T57: (b) Social Sector Expanded Public Works Programme Incentive Grant for Provinces | U57: 50363 | V57: 0 | W57: 50363 | X57: 0 | Y57: 50363 | AA57: 35253 | AB57: 35253 | AD57: 26957 | AE57: 0.5352540556 | AK57: (b) Social Sector Expanded Public Works Programme Incentive Grant for Provinces | AL57: -18087 | AM57: 13248 | AN57: -4839 | AO57: 0 | AP57: -4839 | AR57: 18139 | AS57: 21819 | AU57: 15458 | DB57: 68450 | DC57: 17114 | DD57: 13434 | DE57: =D57-DB57 -> 0 | DF57: =J57-DC57 -> 0 | DG57: =K57-DD57 -> 0
E58: =F58-D58 -> 0 | H58: =SUM(F58:G58) -> 0 | N58: =IFERROR(M58/F58,0) -> 0 | T58: 0 | V58: 0 | Y58: 0 | AE58: 0 | AK58: 0 | AL58: 0 | AM58: 0 | AN58: 0 | AO58: 0 | AP58: 0 | AR58: 0 | AS58: 0 | AU58: 0 | DE58: =D58-DB58 -> 0
E59: =F59-D59 -> 0 | H59: =SUM(F59:G59) -> 0 | N59: =IFERROR(M59/F59,0) -> 0 | T59: 0 | V59: 0 | Y59: 0 | AE59: 0 | AK59: 0 | AL59: 0 | AM59: 0 | AN59: 0 | AO59: 0 | AP59: 0 | AR59: 0 | AS59: 0 | AU59: 0 | DE59: =D59-DB59 -> 0
E60: =F60-D60 -> 0 | H60: =SUM(F60:G60) -> 0 | N60: =IFERROR(M60/F60,0) -> 0 | T60: 0 | V60: 0 | Y60: 0 | AE60: 0 | AK60: 0 | AL60: 0 | AM60: 0 | AN60: 0 | AO60: 0 | AP60: 0 | AR60: 0 | AS60: 0 | AU60: 0 | DE60: =D60-DB60 -> 0
AK61: 0 | AL61: 0 | AM61: 0 | AN61: 0 | AO61: 0 | AP61: 0 | AR61: 0 | AS61: 0 | AU61: 0
C62: Social Development (Vote 19) | D62: =SUM(D63) -> 0 | E62: 193934 | F62: 193934 | G62: 1978 | H62: 195912 | I62: 0 | J62: 0 | K62: 0 | M62: =SUM(M63) -> 0 | N62: =IFERROR(M62/D62,0) -> 0 | T62: =C62 -> Social Development (Vote 19) | U62: 85397 | V62: 0 | W62: 85397 | X62: 0 | Y62: 85397 | AA62: 45025 | AB62: 45025 | AD62: 33094 | AE62: 0.3875311779 | AK62: Social Development (Vote 19) | AL62: 85397 | AM62: -193934 | AN62: -108537 | AO62: -1978 | AP62: -110515 | AR62: 45025 | AS62: 45025 | AU62: 33094 | DE62: =D62-DB62 -> 0
E63: =SUM(F63-D63) -> 193934 | F63: 193934 | G63: 1978 | H63: =SUM(F63:G63) -> 195912 | T63: 0 | U63: 85397 | V63: 0 | W63: 85397 | X63: 0 | Y63: 85397 | AA63: 45025 | AB63: 45025 | AD63: 33094 | AE63: 0.3875311779 | AK63: 0 | AL63: 85397 | AM63: -193934 | AN63: -108537 | AO63: -1978 | AP63: -110515 | AR63: 45025 | AS63: 45025 | AU63: 33094 | DE63: 0
C64: (b) Substance Abuse Treatment Grant | T64: (b) Substance Abuse Treatment Grant | U64: 0 | V64: 0 | W64: 0 | X64: 0 | Y64: 0 | AA64: 0 | AB64: 0 | AD64: 0 | AE64: 0 | AK64: (b) Substance Abuse Treatment Grant | AL64: 0 | AM64: 0 | AN64: 0 | AO64: 0 | AP64: 0 | AR64: 0 | AS64: 0 | AU64: 0 | DE64: 0
E65: =F65-D65 -> 0 | H65: =SUM(F65:G65) -> 0 | N65: =IFERROR(M65/F65,0) -> 0 | T65: 0 | V65: 0 | Y65: 0 | AE65: 0 | AK65: 0 | AL65: 0 | AM65: 0 | AN65: 0 | AO65: 0 | AP65: 0 | AR65: 0 | AS65: 0 | AU65: 0 | DE65: 0
E66: =F66-D66 -> 0 | H66: =SUM(F66:G66) -> 0 | N66: =IFERROR(M66/F66,0) -> 0 | T66: 0 | V66: 0 | Y66: 0 | AE66: 0 | AK66: 0 | AL66: 0 | AM66: 0 | AN66: 0 | AO66: 0 | AP66: 0 | AR66: 0 | AS66: 0 | AU66: 0 | DE66: 0
E67: =F67-D67 -> 0 | H67: =SUM(F67:G67) -> 0 | N67: =IFERROR(M67/F67,0) -> 0 | T67: 0 | V67: 0 | Y67: 0 | AE67: 0 | AK67: 0 | AL67: =IFERROR(U67-D67,0) -> 0 | AM67: =IFERROR(V67-E67,0) -> 0 | AN67: =IFERROR(W67-F67,0) -> 0 | AO67: =IFERROR(X67-G67,0) -> 0 | AP67: =IFERROR(Y67-H67,0) -> 0 | AR67: =IFERROR(AA67-J67,0) -> 0 | AS67: =IFERROR(AB67-K67,0) -> 0 | AU67: =IFERROR(AD67-M67,0) -> 0 | DE67: 0
AK68: 0 | AL68: 0 | AM68: 0 | AN68: 0 | AO68: 0 | AP68: 0 | AR68: 0 | AS68: 0 | AU68: 0
C69: Sports, Arts and Culture (Vote 37) | D69: =SUM(D70) -> 70879 | E69: -37275 | F69: 33604 | G69: 475 | H69: 34079 | I69: 0 | J69: 14175 | K69: 0 | M69: =SUM(M70) -> 12679 | N69: =IFERROR(M69/D69,0) -> 0.1788823206 | T69: =C69 -> Sports, Arts and Culture (Vote 37) | U69: 70037 | V69: 0 | W69: 70037 | X69: 0 | Y69: 70037 | AA69: 35018 | AB69: 35018 | AD69: 29735 | AE69: 0.4245613033 | AK69: Sports, Arts and Culture (Vote 37) | AL69: -842 | AM69: 37275 | AN69: 36433 | AO69: -475 | AP69: 35958 | AR69: 20843 | AS69: 35018 | AU69: 17056
C70: Mass Participation and Sport Development Grant | D70: 70879 | E70: =SUM(F70-D70) -> -37275 | F70: 33604 | G70: 475 | H70: =SUM(F70:G70) -> 34079 | J70: 14175 | K70: 0 | M70: 12679 | N70: =IFERROR(M70/D70,0) -> 0.1788823206 | T70: Mass Participation and Sport Development Grant | U70: 70037 | V70: 0 | W70: 70037 | X70: 0 | Y70: 70037 | AA70: 35018 | AB70: 35018 | AD70: 29735 | AE70: 0.4245613033 | AK70: Mass Participation and Sport Development Grant | AL70: -842 | AM70: 37275 | AN70: 36433 | AO70: -475 | AP70: 35958 | AR70: 20843 | AS70: 35018 | AU70: 17056 | DB70: 70879 | DC70: 14175 | DD70: 0 | DE70: =D70-DB70 -> 0 | DF70: =J70-DC70 -> 0 | DG70: =K70-DD70 -> 0
E71: =F71-D71 -> 0 | H71: =SUM(F71:G71) -> 0 | N71: =IFERROR(M71/F71,0) -> 0 | T71: 0 | V71: 0 | Y71: 0 | AE71: 0 | AK71: 0 | AL71: 0 | AM71: 0 | AN71: 0 | AO71: 0 | AP71: 0 | AR71: 0 | AS71: 0 | AU71: 0 | DE71: =D71-DB71 -> 0
E72: =F72-D72 -> 0 | H72: =SUM(F72:G72) -> 0 | N72: =IFERROR(M72/F72,0) -> 0 | T72: 0 | V72: 0 | Y72: 0 | AE72: 0 | AK72: 0 | AL72: 0 | AM72: 0 | AN72: 0 | AO72: 0 | AP72: 0 | AR72: 0 | AS72: 0 | AU72: 0 | DE72: =D72-DB72 -> 0
E73: =F73-D73 -> 0 | H73: =SUM(F73:G73) -> 0 | N73: =IFERROR(M73/F73,0) -> 0 | T73: 0 | V73: 0 | Y73: 0 | AE73: 0 | AK73: 0 | AL73: 0 | AM73: 0 | AN73: 0 | AO73: 0 | AP73: 0 | AR73: 0 | AS73: 0 | AU73: 0 | DE73: =D73-DB73 -> 0
E74: =F74-D74 -> 0 | H74: =SUM(F74:G74) -> 0 | N74: =IFERROR(M74/F74,0) -> 0 | T74: 0 | V74: 0 | Y74: 0 | AE74: 0 | AK74: 0 | AL74: 0 | AM74: 0 | AN74: 0 | AO74: 0 | AP74: 0 | AR74: 0 | AS74: 0 | AU74: 0 | DE74: =D74-DB74 -> 0
AK75: 0 | AL75: 0 | AM75: 0 | AN75: 0 | AO75: 0 | AP75: 0 | AR75: 0 | AS75: 0 | AU75: 0
C76: Sub-Total | D76: =SUM(D13+D20+D27+D41+D48+D55+D69) -> 9247748 | E76: =SUM(E13+E20+E27+E34+E41+E48+E55+E62+E69) -> -1300711 | F76: =SUM(F13+F20+F27+F34+F41+F48+F55+F62+F69) -> 7747369 | G76: =SUM(G13+G20+G27+G34+G41+G48+G55+G62+G69) -> 277075 | H76: =SUM(H13+H20+H27+H34+H41+H48+H55+H62+H69) -> 8024444 | I76: =SUM(I13+I20+I27+I34+I41+I48+I55+I62+I69) -> 0 | J76: =SUM(J13+J20+J27+J41+J48+J55+J69) -> 2630171 | K76: =SUM(K13+K20+K27+K41+K48+K55+K69) -> 2573155 | M76: =SUM(M13+M20+M27+M41+M48+M55+M69) -> 1821367.8 | N76: =IFERROR(M76/D76,0) -> 0.196952577 | T76: Sub-Total | U76: 7509078 | V76: 0 | W76: 7509078 | X76: 0 | Y76: 7509078 | Z76: 0 | AA76: 4222558 | AB76: 4227477 | AD76: 3941460.128 | AE76: 0.5248926869 | AK76: Sub-Total | AL76: -1738670 | AM76: 1300711 | AN76: -238291 | AO76: -277075 | AP76: -515366 | AR76: 1592387 | AS76: 1654322 | AU76: 2120092.328
AL77: 0 | AM77: 0 | AN77: 0 | AO77: 0 | AP77: 0 | AR77: 0 | AS77: 0 | AU77: 0
C78: Schedule 4, Part A Grants1. | T78: Schedule 4, Part A Grants1. | AK78: =C78 -> Schedule 4, Part A Grants1. | AL78: 0 | AM78: 0 | AN78: 0 | AO78: 0 | AP78: 0 | AR78: 0 | AS78: 0 | AU78: 0
AL79: 0 | AM79: 0 | AN79: 0 | AO79: 0 | AP79: 0 | AR79: 0 | AS79: 0 | AU79: 0
C80: Basic Education (Vote 16) | D80: =SUM(D81) -> 1741459 | E80: -514424 | F80: 1227035 | G80: 113603 | H80: 1340638 | I80: 0 | J80: 522438 | K80: 522438 | T80: =C80 -> Basic Education (Vote 16) | U80: 1585532 | V80: 0 | W80: 1585532 | X80: 0 | Y80: 1585532 | AA80: 990958 | AB80: 990958 | AK80: =C80 -> Basic Education (Vote 16) | AL80: -155927 | AM80: 514424 | AN80: 358497 | AO80: -113603 | AP80: 244894 | AR80: 468520 | AS80: 468520 | AU80: 0
C81: Education Infrastructure Grant | D81: 1741459 | E81: =SUM(F81-D81) -> -514424 | F81: 1227035 | G81: 113603 | H81: =SUM(F81:G81) -> 1340638 | J81: 522438 | K81: 522438 | T81: Education Infrastructure Grant | U81: 1585532 | V81: 0 | W81: 1585532 | X81: 0 | Y81: 1585532 | AA81: 990958 | AB81: 990958 | AK81: Education Infrastructure Grant | AL81: -155927 | AM81: 514424 | AN81: 358497 | AO81: -113603 | AP81: 244894 | AR81: 468520 | AS81: 468520 | AU81: 0 | DB81: 1741459 | DC81: 522438 | DD81: 522438 | DE81: =D81-DB81 -> 0 | DF81: =J81-DC81 -> 0 | DG81: =K81-DD81 -> 0
E82: =F82-D82 -> 0 | H82: =SUM(F82:G82) -> 0 | T82: 0 | V82: 0 | Y82: 0 | AK82: 0 | AL82: 0 | AM82: 0 | AN82: 0 | AO82: 0 | AP82: 0 | AR82: 0 | AS82: 0 | AU82: 0 | DE82: =D82-DB82 -> 0
E83: =F83-D83 -> 0 | H83: =SUM(F83:G83) -> 0 | T83: 0 | V83: 0 | Y83: 0 | AK83: 0 | AL83: 0 | AM83: 0 | AN83: 0 | AO83: 0 | AP83: 0 | AR83: 0 | AS83: 0 | AU83: 0 | DE83: =D83-DB83 -> 0
E84: =F84-D84 -> 0 | H84: =SUM(F84:G84) -> 0 | T84: 0 | V84: 0 | Y84: 0 | AK84: 0 | AL84: 0 | AM84: 0 | AN84: 0 | AO84: 0 | AP84: 0 | AR84: 0 | AS84: 0 | AU84: 0 | DE84: =D84-DB84 -> 0
E85: =F85-D85 -> 0 | H85: =SUM(F85:G85) -> 0 | T85: 0 | V85: 0 | Y85: 0 | AK85: 0 | AL85: 0 | AM85: 0 | AN85: 0 | AO85: 0 | AP85: 0 | AR85: 0 | AS85: 0 | AU85: 0 | DE85: =D85-DB85 -> 0
AK86: 0 | AL86: 0 | AM86: 0 | AN86: 0 | AO86: 0 | AP86: 0 | AR86: 0 | AS86: 0 | AU86: 0
C87: Health (Vote 18) | D87: =SUM(D88) -> 1148953 | E87: =SUM(E88+E89) -> -68107 | F87: =SUM(F88+F89) -> 1080846 | G87: =SUM(G88+G89) -> 55587 | H87: =SUM(H88+H89) -> 1136433 | I87: =SUM(I88+I89) -> 0 | J87: =SUM(J88) -> 287238 | K87: =SUM(K88) -> 287238 | T87: =C87 -> Health (Vote 18) | U87: 1248569 | V87: 0 | W87: 1248569 | X87: 0 | Y87: 1248569 | AA87: 624282 | AB87: 624282 | AK87: Health (Vote 18) | AL87: 99616 | AM87: 68107 | AN87: 167723 | AO87: -55587 | AP87: 112136 | AR87: 337044 | AS87: 337044 | AU87: 0
C88: National Tertiary Services Grant | D88: 1148953 | E88: =SUM(F88-D88) -> -1148953 | F88: 0 | G88: 44551 | H88: =SUM(F88:G88) -> 44551 | J88: 287238 | K88: 287238 | T88: National Tertiary Services Grant | U88: 253131 | V88: 0 | W88: 253131 | X88: 0 | Y88: 253131 | AA88: 126564 | AB88: 126564 | AK88: National Tertiary Services Grant | AL88: -895822 | AM88: 1148953 | AN88: 253131 | AO88: -44551 | AP88: 208580 | AR88: -160674 | AS88: -160674 | AU88: 0 | DB88: 1148953 | DC88: 287238 | DD88: 287237.9995 | DE88: =D88-DB88 -> 0 | DF88: =J88-DC88 -> 0 | DG88: =K88-DD88 -> 0.0005200000014
E89: =SUM(F89-D89) -> 1080846 | F89: 1080846 | G89: 11036 | H89: =SUM(F89:G89) -> 1091882 | T89: 0 | U89: 995438 | V89: 0 | W89: 995438 | X89: 0 | Y89: 995438 | AA89: 497718 | AB89: 497718 | AK89: 0 | AL89: 995438 | AM89: -1080846 | AN89: -85408 | AO89: -11036 | AP89: -96444 | AR89: 497718 | AS89: 497718 | AU89: 0 | DE89: 0
E90: =F90-D90 -> 0 | H90: =SUM(F90:G90) -> 0 | T90: 0 | V90: 0 | Y90: 0 | AK90: 0 | AL90: 0 | AM90: 0 | AN90: 0 | AO90: 0 | AP90: 0 | AR90: 0 | AS90: 0 | AU90: 0 | DE90: 0
E91: =F91-D91 -> 0 | H91: =SUM(F91:G91) -> 0 | T91: 0 | V91: 0 | Y91: 0 | AK91: 0 | AL91: 0 | AM91: 0 | AN91: 0 | AO91: 0 | AP91: 0 | AR91: 0 | AS91: 0 | AU91: 0 | DE91: 0
E92: =F92-D92 -> 0 | H92: =SUM(F92:G92) -> 0 | T92: 0 | V92: 0 | Y92: 0 | AK92: 0 | AL92: 0 | AM92: 0 | AN92: 0 | AO92: 0 | AP92: 0 | AR92: 0 | AS92: 0 | AU92: 0 | DE92: 0
AK93: 0 | AL93: 0 | AM93: 0 | AN93: 0 | AO93: 0 | AP93: 0 | AR93: 0 | AS93: 0 | AU93: 0 | DE93: 0
E94: =F94-D94 -> 0 | T94: =C94 -> 0 | V94: 0 | AK94: 0 | AL94: 0 | AM94: 0 | AN94: 0 | AO94: 0 | AP94: 0 | AR94: 0 | AS94: 0 | AU94: 0 | DE94: 0
D95: 0 | E95: 0 | F95: 0 | G95: 0 | H95: =SUM(F95:G95) -> 0 | J95: 0 | K95: 0 | T95: 0 | U95: 0 | V95: 0 | W95: 0 | X95: 0 | Y95: 0 | AA95: 0 | AB95: 0 | AK95: 0 | AL95: 0 | AM95: 0 | AN95: 0 | AO95: 0 | AP95: 0 | AR95: 0 | AS95: 0 | AU95: 0 | DE95: 0
E96: 0 | H96: =SUM(F96:G96) -> 0 | T96: 0 | V96: 0 | Y96: 0 | AK96: 0 | AL96: 0 | AM96: 0 | AN96: 0 | AO96: 0 | AP96: 0 | AR96: 0 | AS96: 0 | AU96: 0 | DE96: 0
E97: 0 | H97: =SUM(F97:G97) -> 0 | T97: 0 | V97: 0 | Y97: 0 | AK97: 0 | AL97: 0 | AM97: 0 | AN97: 0 | AO97: 0 | AP97: 0 | AR97: 0 | AS97: 0 | AU97: 0 | DE97: 0
E98: 0 | H98: =SUM(F98:G98) -> 0 | T98: 0 | V98: 0 | Y98: 0 | AK98: 0 | AL98: 0 | AM98: 0 | AN98: 0 | AO98: 0 | AP98: 0 | AR98: 0 | AS98: 0 | AU98: 0 | DE98: 0
E99: 0 | H99: =SUM(F99:G99) -> 0 | T99: 0 | V99: 0 | Y99: 0 | AK99: 0 | AL99: =IFERROR(U99-D99,0) -> 0 | AM99: =IFERROR(V99-E99,0) -> 0 | AN99: =IFERROR(W99-F99,0) -> 0 | AO99: =IFERROR(X99-G99,0) -> 0 | AP99: =IFERROR(Y99-H99,0) -> 0 | AR99: =IFERROR(AA99-J99,0) -> 0 | AS99: =IFERROR(AB99-K99,0) -> 0 | AU99: =IFERROR(AD99-M99,0) -> 0 | DE99: 0
AK100: 0 | AL100: 0 | AM100: 0 | AN100: 0 | AO100: 0 | AP100: 0 | AR100: 0 | AS100: 0 | AU100: 0
C101: Transport (Vote 40) | D101: =SUM(D102+D103) -> 1712246 | E101: 25568 | F101: 1737814 | G101: 34572 | H101: 1772386 | I101: 0 | J101: 411596 | K101: 411596 | T101: =C101 -> Transport (Vote 40) | U101: 1735654 | V101: 0 | W101: 1735654 | X101: 0 | Y101: 1735654 | AA101: 1018416 | AB101: 1018416 | AK101: Transport (Vote 40) | AL101: 23408 | AM101: -25568 | AN101: -2160 | AO101: -34572 | AP101: -36732 | AR101: 606820 | AS101: 606820 | AU101: 0
C102: (a) Provincial Roads Maintenance Grant | D102: 1429653 | E102: =SUM(F102-D102) -> 39154 | F102: 1468807 | G102: 34572 | H102: =SUM(F102:G102) -> 1503379 | J102: 357413 | K102: 357413 | T102: (a) Provincial Roads Maintenance Grant | U102: 1483539 | V102: 0 | W102: 1483539 | X102: 0 | Y102: 1483539 | AA102: 903816 | AB102: 903816 | AK102: (a) Provincial Roads Maintenance Grant | AL102: 53886 | AM102: -39154 | AN102: 14732 | AO102: -34572 | AP102: -19840 | AR102: 546403 | AS102: 546403 | AU102: 0 | DB102: 1429653 | DC102: 357413 | DD102: 357413 | DE102: =D102-DB102 -> 0 | DF102: =J102-DC102 -> 0 | DG102: =K102-DD102 -> 0
C103: (b) Public Transport Operations Grant | D103: 282593 | E103: =SUM(F103-D103) -> -13586 | F103: 269007 | G103: 0 | H103: =SUM(F103:G103) -> 269007 | J103: 54183 | K103: 54183 | T103: (b) Public Transport Operations Grant | U103: 252115 | V103: 0 | W103: 252115 | X103: 0 | Y103: 252115 | AA103: 114600 | AB103: 114600 | AK103: (b) Public Transport Operations Grant | AL103: -30478 | AM103: 13586 | AN103: -16892 | AO103: 0 | AP103: -16892 | AR103: 60417 | AS103: 60417 | AU103: 0 | DB103: 282593 | DC103: 54183 | DD103: 54183 | DE103: =D103-DB103 -> 0 | DF103: =J103-DC103 -> 0 | DG103: =K103-DD103 -> 0
E104: =F104-D104 -> 0 | H104: =SUM(F104:G104) -> 0 | T104: 0 | V104: 0 | Y104: 0 | AK104: 0 | AL104: 0 | AM104: 0 | AN104: 0 | AO104: 0 | AP104: 0 | AR104: 0 | AS104: 0 | AU104: 0 | DE104: =D104-DB104 -> 0
E105: =F105-D105 -> 0 | H105: =SUM(F105:G105) -> 0 | T105: 0 | V105: 0 | Y105: 0 | AK105: 0 | AL105: 0 | AM105: 0 | AN105: 0 | AO105: 0 | AP105: 0 | AR105: 0 | AS105: 0 | AU105: 0 | DE105: =D105-DB105 -> 0
E106: =F106-D106 -> 0 | H106: =SUM(F106:G106) -> 0 | T106: 0 | V106: 0 | Y106: 0 | AK106: 0 | AL106: 0 | AM106: 0 | AN106: 0 | AO106: 0 | AP106: 0 | AR106: 0 | AS106: 0 | AU106: 0 | DE106: =D106-DB106 -> 0
AK107: 0 | AL107: 0 | AM107: 0 | AN107: 0 | AO107: 0 | AP107: 0 | AR107: 0 | AS107: 0 | AU107: 0
C108: Sub-Total | D108: =SUM(D80+D87+D101) -> 4602658 | E108: -556963 | F108: 4045695 | G108: 203762 | H108: 4249457 | I108: 0 | J108: 1221272 | K108: 1221272 | T108: Sub-Total | U108: 4569755 | V108: 0 | W108: 4569755 | X108: 0 | Y108: 4569755 | AA108: 2633656 | AB108: 2633656 | AK108: Sub-Total | AL108: -32903 | AM108: 556963 | AN108: 524060 | AO108: -203762 | AP108: 320298 | AR108: 1412384 | AS108: 1412384 | AU108: 0
AL109: 0 | AM109: 0 | AN109: 0 | AO109: 0 | AP109: 0 | AR109: 0 | AS109: 0 | AU109: 0
C110: Schedule 7, Part A Grants3. | T110: Schedule 7, Part A Grants3. | AK110: =C110 -> Schedule 7, Part A Grants3. | AL110: 0 | AM110: 0 | AN110: 0 | AO110: 0 | AP110: 0 | AR110: 0 | AS110: 0 | AU110: 0
AK111: 0 | AL111: 0 | AM111: 0 | AN111: 0 | AO111: 0 | AP111: 0 | AR111: 0 | AS111: 0 | AU111: 0
C112: Cooperative Governance (Vote 3) | D112: =SUM(D113) -> 0 | E112: =SUM(E113) -> 0 | F112: =SUM(F113) -> 0 | G112: =SUM(G113) -> 35000 | H112: =SUM(H113) -> 35000 | K112: =SUM(K113) -> 0 | T112: =C112 -> Cooperative Governance (Vote 3) | U112: 0 | V112: 0 | W112: 0 | X112: 0 | Y112: 0 | AB112: 0 | AK112: Cooperative Governance (Vote 3) | AL112: 0 | AM112: 0 | AN112: 0 | AO112: -35000 | AP112: -35000 | AR112: 0 | AS112: 0 | AU112: 0
C113: Provincial Disaster Relief Grant | D113: 0 | E113: =SUM(F113-D113) -> 0 | F113: 0 | G113: 35000 | H113: =SUM(F113:G113) -> 35000 | K113: 0 | T113: =C113 -> Provincial Disaster Relief Grant | U113: 0 | V113: 0 | W113: 0 | X113: 0 | Y113: 0 | AB113: 0 | AK113: Provincial Disaster Relief Grant | AL113: 0 | AM113: 0 | AN113: 0 | AO113: -35000 | AP113: -35000 | AR113: 0 | AS113: 0 | AU113: 0
E114: =F114-D114 -> 0 | H114: =SUM(F114:G114) -> 0 | T114: =C114 -> 0 | V114: 0 | Y114: 0 | AK114: 0 | AL114: 0 | AM114: 0 | AN114: 0 | AO114: 0 | AP114: 0 | AR114: 0 | AS114: 0 | AU114: 0 | DE114: =D114-DB114 -> 0
E115: =F115-D115 -> 0 | H115: =SUM(F115:G115) -> 0 | V115: 0 | Y115: 0 | AK115: 0 | AL115: 0 | AM115: 0 | AN115: 0 | AO115: 0 | AP115: 0 | AR115: 0 | AS115: 0 | AU115: 0 | DE115: =D115-DB115 -> 0
AK116: 0 | AL116: 0 | AM116: 0 | AN116: 0 | AO116: 0 | AP116: 0 | AR116: 0 | AS116: 0 | AU116: 0
C117: Human Settlements (Vote 33) | D117: =SUM(D118) -> 0 | E117: =SUM(E118) -> 0 | F117: =SUM(F118) -> 0 | G117: =SUM(G118) -> 90153 | H117: =SUM(H118) -> 90153 | K117: =SUM(K118) -> 0 | T117: =C117 -> Human Settlements (Vote 33) | U117: 0 | V117: 0 | W117: 0 | X117: 0 | Y117: 0 | AB117: 0 | AK117: Human Settlements (Vote 33) | AL117: 0 | AM117: 0 | AN117: 0 | AO117: -90153 | AP117: -90153 | AR117: 0 | AS117: 0 | AU117: 0
C118: Provincial Emergency Housing Grant | D118: 0 | E118: =SUM(F118-D118) -> 0 | F118: 0 | G118: 90153 | H118: =SUM(F118:G118) -> 90153 | K118: 0 | T118: =C118 -> Provincial Emergency Housing Grant | U118: 0 | V118: 0 | W118: 0 | X118: 0 | Y118: 0 | AB118: 0 | AK118: Provincial Emergency Housing Grant | AL118: 0 | AM118: 0 | AN118: 0 | AO118: -90153 | AP118: -90153 | AR118: 0 | AS118: 0 | AU118: 0
T119: =C119 -> 0 | AK119: 0 | AL119: 0 | AM119: 0 | AN119: 0 | AO119: 0 | AP119: 0 | AR119: 0 | AS119: 0 | AU119: 0 | DE119: =D119-DB119 -> 0
AK120: 0 | AL120: 0 | AM120: 0 | AN120: 0 | AO120: 0 | AP120: 0 | AR120: 0 | AS120: 0 | AU120: 0 | DE120: =D120-DB120 -> 0
AK121: 0 | AL121: 0 | AM121: 0 | AN121: 0 | AO121: 0 | AP121: 0 | AR121: 0 | AS121: 0 | AU121: 0
C122: Sub-Total | D122: =SUM(D112+D117) -> 0 | E122: =SUM(E112+E117) -> 0 | F122: =SUM(F112+F117) -> 0 | G122: =SUM(G112+G117) -> 125153 | H122: =SUM(H112+H117) -> 125153 | K122: =SUM(K112+K117) -> 0 | T122: Sub-Total | U122: 0 | V122: 0 | W122: 0 | X122: 0 | Y122: 0 | AB122: 0 | AK122: Sub-Total | AL122: 0 | AM122: 0 | AN122: 0 | AO122: -125153 | AP122: -125153 | AR122: 0 | AS122: 0 | AU122: 0
AL123: 0 | AM123: 0 | AN123: 0 | AO123: 0 | AP123: 0 | AR123: 0 | AS123: 0 | AU123: 0
C124: Total | D124: =SUM(D76+D108+D122) -> 13850406 | E124: -1857674 | F124: 11793064 | G124: 605990 | H124: 12399054 | I124: 0 | J124: 3851443 | K124: 3794427 | T124: Total | U124: 12078833 | V124: 0 | W124: 12078833 | X124: 0 | Y124: 12078833 | AA124: 6856214 | AB124: 6861133 | AK124: =C124 -> Total | AL124: -1771573 | AM124: 1857674 | AN124: 285769 | AO124: -605990 | AP124: -320221 | AR124: 3004771 | AS124: 3066706 | AU124: 0 | DB124: =SUM(DB14:DB123) -> 13850406 | DC124: 4937970 | DD124: 3727318 | DE124: 0 | DF124: =SUM(DF14:DF123) -> -15242 | DG124: 67109
B126: 1. | C126: Schedule 4, Part A grants specifying allocations to provinces to supplement the funding of programmes or functions funded from provincial budgets.
B127: 2. | C127: Schedule 5, Part A grants specifying specific-purpose allocations to provinces.
B128: 3. | C128: Schedule 7, Part A grants specifying unallocated provisions for provinces for disaster response.
B130: Signature:………………………………………………………………………………………………………………………………Date:…………………………………………………………………..
B131: =EC_1!C75 -> I, Daluhlanga Majeke certify :
B132: =EC_1!C76 -> 1. Amounts set out by provincial department have been checked and verified where necessary; and
B133: =EC_1!C77 -> 2. are in compliance with the relevant sections of the Public Finance Management Act, and Section 31(2) of the Division of Revenue Act, 2022 (Act No. 4 of 2022).
C137: Checks: IYM Model | D137: -1362795 | E137: 1188389 | F137: 25262 | G137: 0 | H137: 25262 | I137: 12487611 | J137: -600281 | K137: -544502
C138: Checks: Datafile | D138: -554369 | E138: 1857674 | F138: 1502973 | G138: -605990 | H138: 896983 | I138: 13296037 | J138: -83208.25 | K138: -103399.25
C140: checks | D140: 0 | J140: 0 | K140: 0

Sheet FS_1
C3: STATEMENT OF RECEIPTS AND PAYMENTS FOR THE FIRST QUARTER ENDED 30 JUNE 2022 | T3: ="NATIONAL TREASURY: " & C3 -> NATIONAL TREASURY: STATEMENT OF RECEIPTS AND PAYMENTS FOR THE FIRST QUARTER ENDED 30 JUNE 2022 | AK3: ="VARIANCE FROM NATIONAL TREASURY: " & C3 -> VARIANCE FROM NATIONAL TREASURY: STATEMENT OF RECEIPTS AND PAYMENTS FOR THE FIRST QUARTER ENDED 30 JUNE 2022
C4: FREE STATE PROVINCE | T4: =C4 -> FREE STATE PROVINCE | AK4: =C4 -> FREE STATE PROVINCE
C6: Provincial departments | D6: 2022/23 | T6: Provincial departments | U6: 2019/20 | AK6: Provincial departments | AL6: 2019/20
D7: Budget | H7: Receipts/Payments by Quarter | M7: Receipts/Payments to Date | U7: Budget | Y7: Payments by Quarter | AD7: Payments to Date | AL7: Budget | AP7: Payments by Quarter | AU7: Payments to Date
D8: Main Budget1. | E8: Adjustments | F8: Adjusted Budget2. | H8: First Quarter | I8: Second Quarter | J8: Third Quarter | K8: Fourth Quarter | M8: Actual Receipts/ Payments | N8: % Actual Receipts/ Payments | U8: Main Budget1. | V8: Adjustments | W8: Adjusted Budget2. | Y8: First Quarter | Z8: Second Quarter | AA8: Third Quarter | AB8: Fourth Quarter | AD8: Actual Payments | AE8: % Actual Payments | AL8: Main Budget1. | AM8: Adjustments | AN8: Adjusted Budget2. | AP8: First Quarter | AQ8: Second Quarter | AR8: Third Quarter | AS8: Fourth Quarter | AU8: Actual Payments | AV8: % Actual Payments
A9: Filter | D9: R'000 | E9: R'000 | F9: R'000 | H9: R'000 | I9: R'000 | J9: R'000 | K9: R'000 | M9: R'000 | N9: % | U9: R'000 | V9: R'000 | W9: R'000 | Y9: R'000 | Z9: R'000 | AA9: R'000 | AB9: R'000 | AD9: R'000 | AE9: % | AL9: R'000 | AM9: R'000 | AN9: R'000 | AP9: R'000 | AQ9: R'000 | AR9: R'000 | AS9: R'000 | AU9: R'000 | AV9: %
A10: 1
A11: 1 | C11: Receipts | T11: Receipts | AK11: Receipts
A12: 1 | C12: Transfers from National Revenue Fund | D12: =SUM(D13:D14) -> 39844718 | E12: =SUM(E13:E14) -> 41168861 | F12: =SUM(F13:F14) -> 81013579 | H12: =SUM(H13:H14) -> 10008521 | I12: =SUM(I13:I14) -> 0 | J12: =SUM(J13:J14) -> 0 | K12: =SUM(K13:K14) -> 0 | M12: =SUM(M13:M14) -> 10008521 | N12: =IFERROR(M12/D12,0) -> 0.25118815 | T12: =C12 -> Transfers from National Revenue Fund | U12: 80903186 | V12: 0 | W12: 80903186 | Y12: 20808702 | Z12: 20464609 | AA12: 0 | AB12: 0 | AD12: 41273311 | AE12: 0.5101568064 | AK12: Transfers from National Revenue Fund | AL12: =SUM(AL13:AL14) -> 41058468 | AM12: =SUM(AM13:AM14) -> -41168861 | AN12: =SUM(AN13:AN14) -> -110393 | AP12: =SUM(AP13:AP14) -> 10800181 | AQ12: =SUM(AQ13:AQ14) -> 20464609 | AR12: =SUM(AR13:AR14) -> 0 | AS12: =SUM(AS13:AS14) -> 0 | AU12: =SUM(AU13:AU14) -> 31264790 | EB12: DoRA(annexure) | EC12: check
A13: 1 | C13: Equitable share of revenue | D13: 31107440 | E13: =SUM(F13-D13) -> 38087813 | F13: 69195253 | H13: 7776861 | M13: =SUM(H13:K13) -> 7776861 | N13: =IFERROR(M13/D13,0) -> 0.2500000321 | T13: =C13 -> Equitable share of revenue | U13: 68824353 | V13: 0 | W13: 68824353 | Y13: 17206089 | Z13: 17206089 | AD13: 34412178 | AE13: 0.5000000218 | AK13: Equitable share of revenue | AL13: =IFERROR(U13-D13,0) -> 37716913 | AM13: -38087813 | AN13: -370900 | AP13: =IFERROR(Y13-H13,0) -> 9429228 | AQ13: 17206089 | AR13: 0 | AS13: 0 | AU13: =IFERROR(AD13-M13,0) -> 26635317 | EB13: 31107440 | EC13: =D13-EB13 -> 0
A14: 1 | C14: Conditional grants | D14: 8737278 | E14: =SUM(F14-D14) -> 3081048 | F14: 11818326 | H14: 2231660 | M14: =SUM(H14:K14) -> 2231660 | N14: =IFERROR(M14/D14,0) -> 0.2554182206 | T14: =C14 -> Conditional grants | U14: 12078833 | V14: 0 | W14: 12078833 | Y14: 3602613 | Z14: 3258520 | AD14: 6861133 | AE14: 0.5680294611 | AK14: Conditional grants | AL14: 3341555 | AM14: -3081048 | AN14: 260507 | AP14: 1370953 | AQ14: 3258520 | AR14: 0 | AS14: 0 | AU14: =IFERROR(AD14-M14,0) -> 4629473 | EB14: 8737278 | EC14: =D14-EB14 -> 0
A15: 1 | C15: Provincial own receipts | D15: 1091909 | E15: =SUM(F15-D15) -> 424381 | F15: 1516290 | H15: 278850.4 | M15: =SUM(H15:K15) -> 278850.4 | N15: =IFERROR(M15/D15,0) -> 0.2553787907 | T15: =C15 -> Provincial own receipts | U15: 1453671 | V15: 0 | W15: 1453671 | Y15: 394957 | Z15: 712433.8 | AD15: 1107390.8 | AE15: 0.7617891531 | AK15: Provincial own receipts | AL15: 361762 | AM15: -424381 | AN15: -62619 | AP15: 116106.6 | AQ15: 712433.8 | AR15: 0 | AS15: 0 | AU15: =IFERROR(AD15-M15,0) -> 828540.4
A16: 1
A17: 1 | C17: Total receipts | D17: =SUM(D12+D15) -> 40936627 | E17: =SUM(E12+E15) -> 41593242 | F17: =SUM(F12+F15) -> 82529869 | G17: =G12+G15 -> 0 | H17: =SUM(H12+H15) -> 10287371.4 | I17: =SUM(I12+I15) -> 0 | J17: =SUM(J12+J15) -> 0 | K17: =SUM(K12+K15) -> 0 | M17: =SUM(M12+M15) -> 10287371.4 | N17: =IFERROR(M17/D17,0) -> 0.2512999276 | T17: Total receipts | U17: 82356857 | V17: 0 | W17: 82356857 | X17: 0 | Y17: 21203659 | Z17: 21177042.8 | AA17: 0 | AD17: 42380701.8 | AE17: 0.5145983388 | AK17: Total receipts | AL17: =AL12+AL15 -> 41420230 | AM17: -41593242 | AN17: -173012 | AO17: 0 | AP17: 10916287.6 | AQ17: 21177042.8 | AR17: 0 | AS17: 0 | AU17: =AU12+AU15 -> 32093330.4
A18: 1
A19: 1 | C19: Payments by provincial departments | T19: Payments by provincial departments | AK19: Payments by provincial departments
A20: =IF(LEN(C20)>3,1,0) -> 1 | C20: Education | D20: 17293137 | E20: =SUM(F20-D20) -> 17783601 | F20: 35076738 | H20: 4576407 | M20: =SUM(H20:K20) -> 4576407 | N20: =IFERROR(M20/D20,0) -> 0.2646371795 | T20: =C20 -> Education | U20: 36328510.13 | V20: 0 | W20: 36328510.13 | Y20: 10097264 | Z20: 9310507 | AD20: 19407771 | AE20: 0.5342297532 | AK20: =C20 -> Education | AL20: =IFERROR(U20-D20,0) -> 19035373.13 | AM20: -17783601 | AN20: 1251772.13 | AP20: =IFERROR(Y20-H20,0) -> 5520857 | AQ20: 9310507 | AR20: 0 | AS20: 0 | AU20: =IFERROR(AD20-M20,0) -> 14831364
A21: 1 | C21: Health | D21: 12711441 | E21: 13719147 | F21: 26430588 | H21: 2931156 | M21: 2931156 | N21: 0.2305919526 | T21: Health | U21: 25189631.98 | V21: 0 | W21: 25189631.98 | Y21: 7451118 | Z21: 6394842 | AD21: 13845960 | AE21: 0.5496690071 | AK21: Health | AL21: 12478190.98 | AM21: -13719147 | AN21: -1240956.02 | AP21: 4519962 | AQ21: 6394842 | AR21: 0 | AS21: 0 | AU21: 10914804
A22: 1 | C22: Social Development | D22: 1179492 | E22: 1875366 | F22: 3054858 | H22: 287271 | M22: 287271 | N22: 0.2435548524 | T22: Social Development | U22: 3020607 | V22: 0 | W22: 3020607 | Y22: 536173 | Z22: 889221 | AD22: 1425394 | AE22: 0.4718899215 | AK22: Social Development | AL22: 1841115 | AM22: -1875366 | AN22: -34251 | AP22: 248902 | AQ22: 889221 | AR22: 0 | AS22: 0 | AU22: 1138123
A23: 1 | C23: Premier | D23: 688782 | E23: 343363 | F23: 1032145 | H23: 140403 | M23: 140403 | N23: 0.2038424349 | T23: Premier | U23: 973083.46 | V23: 0 | W23: 973083.46 | Y23: 161829 | Z23: 186798 | AD23: 348627 | AE23: 0.3582703995 | AK23: Premier | AL23: 284301.46 | AM23: -343363 | AN23: -59061.54 | AP23: 21426 | AQ23: 186798 | AR23: 0 | AS23: 0 | AU23: 208224
A24: 1 | C24: Free State Legislature | D24: 294653 | E24: 258597 | F24: 553250 | H24: 69555 | M24: 69555 | N24: 0.2360573285 | T24: Free State Legislature | U24: 541734 | V24: 0 | W24: 541734 | Y24: 167884 | Z24: 150198 | AD24: 318082 | AE24: 0.5871553198 | AK24: Free State Legislature | AL24: 247081 | AM24: -258597 | AN24: -11516 | AP24: 98329 | AQ24: 150198 | AR24: 0 | AS24: 0 | AU24: 248527
A25: 1 | C25: Economic Development & Small Business Development, Tourism & Environmental Affairs | D25: 631738 | E25: 1873765 | F25: 2505503 | H25: 139564 | M25: 139564 | N25: 0.2209206981 | T25: Economic Development & Small Business Development, Tourism & Environmental Affairs | U25: 2365265 | V25: 0 | W25: 2365265 | Y25: 451273 | Z25: 729895 | AD25: 1181168 | AE25: 0.4993808305 | AK25: Economic Development & Small Business Development, Tourism & Environmental Affairs | AL25: 1733527 | AM25: -1873765 | AN25: -140238 | AP25: 311709 | AQ25: 729895 | AR25: 0 | AS25: 0 | AU25: 1041604
A26: 1 | C26: Provincial Treasury | D26: 317266 | E26: 674225.5 | F26: 991491.5 | H26: 64462 | M26: 64462 | N26: 0.2031796663 | T26: Provincial Treasury | U26: 1009712.01 | V26: 0 | W26: 1009712.01 | Y26: 227049 | Z26: 245101 | AD26: 472150 | AE26: 0.4676085808 | AK26: Provincial Treasury | AL26: 692446.01 | AM26: -674225.5 | AN26: 18220.51 | AP26: 162587 | AQ26: 245101 | AR26: 0 | AS26: 0 | AU26: 407688
A27: 1 | C27: Cooperative Governance And Traditional Affairs | D27: 427247 | E27: 1868297 | F27: 2295544 | H27: 73684 | M27: 73684 | N27: 0.1724622993 | T27: Cooperative Governance And Traditional Affairs | U27: 2340324 | V27: 0 | W27: 2340324 | Y27: 493092 | Z27: 517165 | AD27: 1010257 | AE27: 0.4316739904 | AK27: Cooperative Governance And Traditional Affairs | AL27: 1913077 | AM27: -1868297 | AN27: 44780 | AP27: 419408 | AQ27: 517165 | AR27: 0 | AS27: 0 | AU27: 936573
A28: 1 | C28: Public Works & Infrastructure | D28: 1814372 | E28: -124748 | F28: 1689624 | H28: 475933 | M28: 475933 | N28: 0.2623128002 | T28: Public Works & Infrastructure | U28: 1481960.31 | V28: 0 | W28: 1481960.31 | Y28: 395425 | Z28: 332243 | AD28: 727668 | AE28: 0.4910171987 | AK28: Public Works & Infrastructure | AL28: -332411.69 | AM28: 124748 | AN28: -207663.69 | AP28: -80508 | AQ28: 332243 | AR28: 0 | AS28: 0 | AU28: 251735
A29: 1 | C29: Police, Roads And Transport | D29: 2793889 | E29: 2367668.03 | F29: 5161557.03 | H29: 506355 | M29: 506355 | N29: 0.1812366204 | T29: Police, Roads And Transport | U29: 4974537.38 | V29: 0 | W29: 4974537.38 | Y29: 915381.0396 | Z29: 1047823.567 | AD29: 1963204.606 | AE29: 0.3946506894 | AK29: Police, Roads And Transport | AL29: 2180648.38 | AM29: -2367668.03 | AN29: -187019.65 | AP29: 409026.0396 | AQ29: 1047823.567 | AR29: 0 | AS29: 0 | AU29: 1456849.606
A30: 1 | C30: Agriculture And Rural Development | D30: 830699 | E30: 1494449 | F30: 2325148 | H30: 123962 | M30: 123962 | N30: 0.1492261337 | T30: Agriculture And Rural Development | U30: 2443382 | V30: 0 | W30: 2443382 | Y30: 568047 | Z30: 601938 | AD30: 1169985 | AE30: 0.4788383478 | AK30: Agriculture And Rural Development | AL30: 1612683 | AM30: -1494449 | AN30: 118234 | AP30: 444085 | AQ30: 601938 | AR30: 0 | AS30: 0 | AU30: 1046023
A31: 1 | C31: Sport, Arts, Culture And Recreation | D31: 665733 | E31: -259243 | F31: 406490 | H31: 110237 | M31: 110237 | N31: 0.1655874052 | T31: Sport, Arts, Culture And Recreation | U31: 440930 | V31: 0 | W31: 440930 | Y31: 96175 | Z31: 106759 | AD31: 202934 | AE31: 0.4602408546 | AK31: Sport, Arts, Culture And Recreation | AL31: -224803 | AM31: 259243 | AN31: 34440 | AP31: -14062 | AQ31: 106759 | AR31: 0 | AS31: 0 | AU31: 92697
A32: 1 | C32: Human Settlements | D32: 1332155 | E32: -351927 | F32: 980228 | H32: 122769 | M32: 122769 | N32: 0.0921581948 | T32: Human Settlements | U32: 983069 | V32: 0 | W32: 983069 | Y32: 206375 | Z32: 260736 | AD32: 467111 | AE32: 0.4751558639 | AK32: Human Settlements | AL32: -349086 | AM32: 351927 | AN32: 2841 | AP32: 83606 | AQ32: 260736 | AR32: 0 | AS32: 0 | AU32: 344342
A33: 0 | D33: 0 | E33: 105010 | F33: 105010 | H33: 0 | M33: 0 | N33: 0 | U33: 105499 | V33: 0 | W33: 105499 | Y33: 22274 | Z33: 25927 | AD33: 48201 | AE33: 0.4568858473 | AL33: 105499 | AM33: -105010 | AN33: 489 | AP33: 22274 | AQ33: 25927 | AR33: 0 | AS33: 0 | AU33: 48201
A34: 0 | D34: 0 | E34: 0 | F34: 0 | H34: 0 | M34: 0 | N34: 0 | U34: 0 | V34: 0 | W34: 0 | Y34: 0 | Z34: 0 | AD34: 0 | AE34: 0 | AL34: =U34-D34 -> 0 | AM34: =AN34-AL34 -> 0 | AN34: =W34-F34 -> 0 | AP34: =Y34-H34 -> 0 | AQ34: 0 | AR34: 0 | AS34: 0 | AU34: =SUM(AP34:AQ34) -> 0
A35: 0 | D35: 0 | E35: 0 | F35: 0 | H35: 0 | M35: 0 | N35: 0 | U35: 0 | V35: 0 | W35: 0 | Y35: 0 | Z35: 0 | AD35: 0 | AE35: 0 | AL35: 0 | AM35: 0 | AN35: 0 | AP35: 0 | AQ35: 0 | AR35: 0 | AS35: 0 | AU35: 0
A36: 0 | C36: =PROPER("") ->  | E36: 0 | F36: 0 | M36: 0 | N36: 0 | U36: 0 | V36: 0 | W36: 0 | Y36: 0 | Z36: 0 | AD36: 0 | AE36: 0 | AL36: 0 | AM36: 0 | AN36: 0 | AP36: 0 | AQ36: 0 | AR36: 0 | AS36: 0 | AU36: 0
A37: 0 | C37: =PROPER("") ->  | E37: 0 | F37: 0 | M37: 0 | N37: 0 | U37: 0 | V37: 0 | W37: 0 | Y37: 0 | Z37: 0 | AD37: 0 | AE37: 0 | AL37: 0 | AM37: 0 | AN37: 0 | AP37: 0 | AQ37: 0 | AR37: 0 | AS37: 0 | AU37: 0
A38: 0 | C38: =PROPER("") ->  | E38: 0 | F38: 0 | M38: 0 | N38: 0 | U38: 0 | V38: 0 | W38: 0 | Y38: 0 | Z38: 0 | AD38: 0 | AE38: 0 | AL38: 0 | AM38: 0 | AN38: 0 | AP38: 0 | AQ38: 0 | AR38: 0 | AS38: 0 | AU38: 0
A39: 0 | C39: =PROPER("") ->  | E39: 0 | F39: 0 | M39: 0 | N39: 0 | U39: 0 | V39: 0 | W39: 0 | Y39: 0 | Z39: 0 | AD39: 0 | AE39: 0 | AL39: 0 | AM39: 0 | AN39: 0 | AP39: 0 | AQ39: 0 | AR39: 0 | AS39: 0 | AU39: 0
A40: 1
A41: 1 | C41: Total payments | D41: =SUM(D20:D39) -> 40980604 | E41: =SUM(E20:E39) -> 41627570.53 | F41: =SUM(F20:F39) -> 82608174.53 | H41: =SUM(H20:H39) -> 9621758 | I41: =SUM(I20:I39) -> 0 | J41: =SUM(J20:J39) -> 0 | K41: =SUM(K20:K39) -> 0 | M41: =SUM(M20:M39) -> 9621758 | N41: =IFERROR(M41/D41,0) -> 0.2347880963 | T41: Total payments | U41: 82198245.27 | V41: 0 | W41: 82198245.27 | Y41: 21789359.04 | Z41: 20799153.57 | AA41: 0 | AD41: 42588512.61 | AE41: 0.5181194862 | AK41: Total payments | AL41: =SUM(AL20:AL39) -> 41217641.27 | AM41: =SUM(AM20:AM39) -> -41627570.53 | AN41: =SUM(AN20:AN39) -> -409929.26 | AP41: =SUM(AP20:AP39) -> 12167601.04 | AQ41: =SUM(AQ20:AQ39) -> 20799153.57 | AR41: =SUM(AR20:AR39) -> 0 | AS41: =SUM(AS20:AS39) -> 0 | AU41: =SUM(AU20:AU39) -> 32966754.61
A42: 1
A43: 1 | C43: Payments by economic classification | T43: Payments by economic classification | AK43: Payments by economic classification
A44: 1 | C44: Current payments | D44: =SUM(D45:D47) -> 33066648 | E44: 36008515.1 | F44: 69075163.1 | G44: 0 | H44: 7725772 | I44: 0 | J44: 0 | K44: 0 | M44: =SUM(M45:M47) -> 7725772 | N44: =IFERROR(M44/D44,0) -> 0.2336424303 | T44: =C44 -> Current payments | U44: 68611109.57 | V44: 0 | W44: 68611109.57 | X44: 0 | Y44: 17881432.79 | Z44: 17346527.07 | AA44: 0 | AB44: 0 | AD44: 35227959.86 | AE44: 0.513443961 | AK44: Current payments | AL44: =SUM(AL45:AL47) -> 35544461.57 | AM44: -36008515.1 | AN44: -464053.53 | AO44: 0 | AP44: 10155660.79 | AQ44: 17346527.07 | AR44: 0 | AS44: 0 | AU44: =SUM(AU45:AU47) -> 27502187.86
A45: 1 | C45: Compensation of employees | D45: 25611413 | E45: =SUM(F45-D45) -> 28423843.65 | F45: 54035256.65 | H45: 6331882 | M45: =SUM(H45:K45) -> 6331882 | N45: 0.247228921 | T45: Compensation of employees | U45: 54152698.94 | V45: 0 | W45: 54152698.94 | Y45: 13341110.73 | Z45: 13672432.37 | AD45: 27013543.1 | AE45: 0.4988401987 | AK45: Compensation of employees | AL45: =IFERROR(U45-D45,0) -> 28541285.94 | AM45: -28423843.65 | AN45: 117442.29 | AP45: =IFERROR(Y45-H45,0) -> 7009228.731 | AQ45: 13672432.37 | AR45: 0 | AS45: 0 | AU45: =IFERROR(AD45-M45,0) -> 20681661.1
A46: 1 | C46: Goods and services | D46: 7454988 | E46: =SUM(F46-D46) -> 7584918.45 | F46: 15039906.45 | H46: 1392016 | M46: =SUM(H46:K46) -> 1392016 | N46: 0.1867227687 | T46: Goods and services | U46: 14458410.63 | V46: 0 | W46: 14458410.63 | Y46: 4528730.059 | Z46: 3660735.503 | AD46: 8189465.562 | AE46: 0.5664153392 | AK46: Goods and services | AL46: 7003422.63 | AM46: -7584918.45 | AN46: -581495.82 | AP46: 3136714.059 | AQ46: 3660735.503 | AR46: 0 | AS46: 0 | AU46: =IFERROR(AD46-M46,0) -> 6797449.562
A47: 1 | C47: Interest and rent on land | D47: 247 | E47: =SUM(F47-D47) -> -247 | F47: 0 | H47: 1874 | M47: =SUM(H47:K47) -> 1874 | N47: 7.587044534 | T47: Interest and rent on land | U47: 0 | V47: 0 | W47: 0 | Y47: 11592 | Z47: 13359.2 | AD47: 24951.2 | AE47: 0 | AK47: Interest and rent on land | AL47: -247 | AM47: 247 | AN47: 0 | AP47: 9718 | AQ47: 13359.2 | AR47: 0 | AS47: 0 | AU47: =IFERROR(AD47-M47,0) -> 23077.2
A48: 1 | C48: Transfers and subsidies | D48: =SUM(D49:D55) -> 5487730 | E48: 3515563.43 | F48: 9003293.43 | G48: 0 | H48: 1510054 | I48: 0 | J48: 0 | K48: 0 | M48: =SUM(M49:M55) -> 1510054 | N48: 0.2751691501 | T48: Transfers and subsidies | U48: 8844684.83 | V48: 0 | W48: 8844684.83 | X48: 0 | Y48: 2859224.386 | Z48: 2528167.064 | AA48: 0 | AB48: 0 | AD48: 5387391.45 | AE48: 0.6091106188 | AK48: Transfers and subsidies | AL48: =SUM(AL49:AL55) -> 3356954.83 | AM48: -3515563.43 | AN48: -158608.6 | AO48: 0 | AP48: 1349170.386 | AQ48: 2528167.064 | AR48: 0 | AS48: 0 | AU48: =SUM(AU49:AU55) -> 3877337.45
A49: 1 | C49: Provinces and municipalities | D49: 527155 | E49: =SUM(F49-D49) -> 337344 | F49: 864499 | H49: 186013 | M49: =SUM(H49:K49) -> 186013 | N49: 0.3528620614 | T49: Provinces and municipalities | U49: 662586 | V49: 0 | W49: 662586 | Y49: 63574.0934 | Z49: 355413 | AD49: 418987.0934 | AE49: 0.6323512622 | AK49: Provinces and municipalities | AL49: =IFERROR(U49-D49,0) -> 135431 | AM49: -337344 | AN49: -201913 | AP49: =IFERROR(Y49-H49,0) -> -122438.9066 | AQ49: 355413 | AR49: 0 | AS49: 0 | AU49: =IFERROR(AD49-M49,0) -> 232974.0934
A50: 1 | C50: Departmental agencies and accounts | D50: 265359 | E50: 1370727 | F50: 1636086 | H50: 78947 | M50: 78947 | N50: 0.2975101655 | T50: Departmental agencies and accounts | U50: 1331834 | V50: 0 | W50: 1331834 | Y50: 475203.6004 | Z50: 272154.9058 | AD50: 747358.5062 | AE50: 0.5611498927 | AK50: Departmental agencies and accounts | AL50: 1066475 | AM50: -1370727 | AN50: -304252 | AP50: 396256.6004 | AQ50: 272154.9058 | AR50: 0 | AS50: 0 | AU50: 668411.5062
A51: 1 | C51: Higher education and institutions | D51: 2000 | E51: 68903 | F51: 70903 | H51: 0 | M51: 0 | N51: 0 | T51: Higher education and institutions | U51: 55904 | V51: 0 | W51: 55904 | Y51: 13826 | Z51: 13826 | AD51: 27652 | AE51: 0.4946336577 | AK51: Higher education and institutions | AL51: 53904 | AM51: -68903 | AN51: -14999 | AP51: 13826 | AQ51: 13826 | AR51: 0 | AS51: 0 | AU51: 27652
A52: 1 | C52: Foreign governments and international organisations | D52: 0 | E52: 0 | F52: 0 | H52: 0 | M52: 0 | N52: 0 | T52: Foreign governments and international organisations | U52: 0 | V52: 0 | W52: 0 | Y52: 0 | Z52: 0 | AD52: 0 | AE52: 0 | AK52: Foreign governments and international organisations | AL52: 0 | AM52: 0 | AN52: 0 | AP52: 0 | AQ52: 0 | AR52: 0 | AS52: 0 | AU52: 0
A53: 1 | C53: Public corporations and private enterprises | D53: 367209 | E53: 253353 | F53: 620562 | H53: 64905 | M53: 64905 | N53: 0.1767522038 | T53: Public corporations and private enterprises | U53: 554665 | V53: 0 | W53: 554665 | Y53: 109998.5212 | Z53: 133780.9317 | AD53: 243779.4529 | AE53: 0.4395075459 | AK53: Public corporations and private enterprises | AL53: 187456 | AM53: -253353 | AN53: -65897 | AP53: 45093.52125 | AQ53: 133780.9317 | AR53: 0 | AS53: 0 | AU53: 178874.4529
A54: 1 | C54: Non profit institutions | D54: 2703940 | E54: 544777 | F54: 3248717 | H54: 1059257 | M54: 1059257 | N54: 0.3917457488 | T54: Non profit institutions | U54: 3573034.73 | V54: 0 | W54: 3573034.73 | Y54: 1116276 | Z54: 1037745 | AD54: 2154021 | AE54: 0.6028547615 | AK54: Non profit institutions | AL54: 869094.73 | AM54: -544777 | AN54: 324317.73 | AP54: 57019 | AQ54: 1037745 | AR54: 0 | AS54: 0 | AU54: 1094764
A55: 1 | C55: Households | D55: 1622067 | E55: 940459.43 | F55: 2562526.43 | H55: 120932 | M55: 120932 | N55: 0.07455425701 | T55: Households | U55: 2666661.1 | V55: 0 | W55: 2666661.1 | Y55: 1080346.171 | Z55: 715247.2264 | AD55: 1795593.397 | AE55: 0.6733489296 | AK55: Households | AL55: 1044594.1 | AM55: -940459.43 | AN55: 104134.67 | AP55: 959414.1708 | AQ55: 715247.2264 | AR55: 0 | AS55: 0 | AU55: 1674661.397
A56: 1 | C56: Payments for capital assets | D56: =SUM(D57:D63) -> 2426226 | E56: 2103492 | F56: 4529718 | G56: 0 | H56: 385717 | I56: 0 | J56: 0 | K56: 0 | M56: =SUM(M57:M63) -> 385717 | N56: 0.1589781826 | T56: Payments for capital assets | U56: 4742450.96 | V56: 0 | W56: 4742450.96 | X56: 0 | Y56: 1048442.985 | Z56: 924459.4285 | AA56: 0 | AB56: 0 | AD56: 1972902.413 | AE56: 0.4160090277 | AK56: Payments for capital assets | AL56: =SUM(AL57:AL63) -> 2316224.96 | AM56: -2103492 | AN56: 212732.96 | AO56: 0 | AP56: 662725.9845 | AQ56: 924459.4285 | AR56: 0 | AS56: 0 | AU56: =SUM(AU57:AU63) -> 1587185.413
A57: 1 | C57: Buildings and other fixed structures | D57: 2020169 | E57: =SUM(F57-D57) -> 1215622 | F57: 3235791 | H57: 287295 | M57: =SUM(H57:K57) -> 287295 | N57: 0.1422133495 | T57: Buildings and other fixed structures | U57: 3635517 | V57: 0 | W57: 3635517 | Y57: 907397.9635 | Z57: 734847.4854 | AD57: 1642245.449 | AE57: 0.4517226708 | AK57: Buildings and other fixed structures | AL57: =IFERROR(U57-D57,0) -> 1615348 | AM57: -1215622 | AN57: 399726 | AP57: =IFERROR(Y57-H57,0) -> 620102.9635 | AQ57: 734847.4854 | AR57: 0 | AS57: 0 | AU57: =IFERROR(AD57-M57,0) -> 1354950.449
A58: 1 | C58: Machinery and equipment | D58: 392448 | E58: 849132 | F58: 1241580 | H58: 94619 | M58: 94619 | N58: 0.2410994578 | T58: Machinery and equipment | U58: 1073001.94 | V58: 0 | W58: 1073001.94 | Y58: 129562.021 | Z58: 182905.5488 | AD58: 312467.5698 | AE58: 0.291208765 | AK58: Machinery and equipment | AL58: 680553.94 | AM58: -849132 | AN58: -168578.06 | AP58: 34943.02098 | AQ58: 182905.5488 | AR58: 0 | AS58: 0 | AU58: 217848.5698
A59: 1 | C59: Heritage assets | D59: 0 | E59: 1700 | F59: 1700 | H59: 0 | M59: 0 | N59: 0 | T59: Heritage assets | U59: 500 | V59: 0 | W59: 500 | Y59: 155 | Z59: 0 | AD59: 155 | AE59: 0.31 | AK59: Heritage assets | AL59: 500 | AM59: -1700 | AN59: -1200 | AP59: 155 | AQ59: 0 | AR59: 0 | AS59: 0 | AU59: 155
A60: 1 | C60: Specialised military assets | D60: 0 | E60: 0 | F60: 0 | H60: 0 | M60: 0 | N60: 0 | T60: Specialised military assets | U60: 0 | V60: 0 | W60: 0 | Y60: 0 | Z60: 0 | AD60: 0 | AE60: 0 | AK60: Specialised military assets | AL60: 0 | AM60: 0 | AN60: 0 | AP60: 0 | AQ60: 0 | AR60: 0 | AS60: 0 | AU60: 0
A61: 1 | C61: Biological assets | D61: 0 | E61: 11537 | F61: 11537 | H61: 0 | M61: 0 | N61: 0 | T61: Biological assets | U61: 16500 | V61: 0 | W61: 16500 | Y61: 0 | Z61: 87 | AD61: 87 | AE61: 0.005272727273 | AK61: Biological assets | AL61: 16500 | AM61: -11537 | AN61: 4963 | AP61: 0 | AQ61: 87 | AR61: 0 | AS61: 0 | AU61: 87
A62: 1 | C62: Land and sub-soil assets | D62: 877 | E62: -877 | F62: 0 | H62: 0 | M62: 0 | N62: 0 | T62: Land and sub-soil assets | U62: 0 | V62: 0 | W62: 0 | Y62: 0 | Z62: 0 | AD62: 0 | AE62: 0 | AK62: Land and sub-soil assets | AL62: -877 | AM62: 877 | AN62: 0 | AP62: 0 | AQ62: 0 | AR62: 0 | AS62: 0 | AU62: 0
A63: 1 | C63: Software and other intangible assets | D63: 12732 | E63: 26378 | F63: 39110 | H63: 3803 | M63: 3803 | N63: 0.2986961986 | T63: Software and other intangible assets | U63: 16932.02 | V63: 0 | W63: 16932.02 | Y63: 11328 | Z63: 6619.39424 | AD63: 17947.39424 | AE63: 1.059967697 | AK63: Software and other intangible assets | AL63: 4200.02 | AM63: -26378 | AN63: -22177.98 | AP63: 7525 | AQ63: 6619.39424 | AR63: 0 | AS63: 0 | AU63: 14144.39424
A64: 1 | C64: Payments for financial assets | D64: 0 | E64: 0 | F64: 0 | H64: 215 | M64: 215 | N64: 0 | T64: Payments for financial assets | U64: 0 | V64: 0 | W64: 0 | Y64: 259 | Z64: 0 | AD64: 259 | AE64: 0 | AK64: Payments for financial assets | AL64: 0 | AM64: 0 | AN64: 0 | AP64: 44 | AQ64: 0 | AR64: 0 | AS64: 0 | AU64: 44
A65: 1
A66: 1 | C66: Total payments | D66: =SUM(D44+D48+D56+D64) -> 40980604 | E66: =SUM(E44+E48+E56+E64) -> 41627570.53 | F66: =SUM(F44+F48+F56+F64) -> 82608174.53 | H66: =SUM(H44+H48+H56+H64) -> 9621758 | I66: =SUM(I44+I48+I56+I64) -> 0 | J66: =SUM(J44+J48+J56+J64) -> 0 | K66: =SUM(K44+K48+K56+K64) -> 0 | M66: =SUM(M44+M48+M56+M64) -> 9621758 | N66: =IFERROR(M66/D66,0) -> 0.2347880963 | T66: Total payments | U66: 82198245.36 | V66: 0 | W66: 82198245.36 | Y66: 21789359.16 | Z66: 20799153.57 | AD66: 42588512.73 | AE66: 0.5181194871 | AK66: Total payments | AL66: =AL44+AL48+AL56+AL64 -> 41217641.36 | AM66: =AM44+AM48+AM56+AM64 -> -41627570.53 | AN66: =AN44+AN48+AN56+AN64 -> -409929.17 | AP66: =AP44+AP48+AP56+AP64 -> 12167601.16 | AQ66: =AQ44+AQ48+AQ56+AQ64 -> 20799153.57 | AR66: =AR44+AR48+AR56+AR64 -> 0 | AS66: =AS44+AS48+AS56+AS64 -> 0 | AU66: =AU44+AU48+AU56+AU64 -> 32966754.73
A67: 1
A68: 1 | C68: Information submitted by: Masechaba Sesing Acting Head Official: Provincial Treasury Free State Tel No: (051) 403-3066
A69: 1
A70: 1 | B70: 1. | C70: Main Budget figures are based on the 2022/23 Estimates of Provincial Revenue and Expenditure tabled in the Provincial Legislature during March 2022.
A71: 1
A72: 1
A73: 1
A74: 1 | C74: Signature:……………………………………………………………………………………………..………………………………Date:…………………………………………………………………..
A75: 1 | C75: I, Masechaba Sesing certify :
A76: 1 | C76: 1. Amounts set out by provincial department have been checked and verified where necessary; and
A77: 1 | C77: 2. are in compliance with the relevant sections of the Public Finance Management Act, and Section 31(2) of the Division of Revenue Act, 2022 (Act No. 4 of 2022).
A78: 0
A79: 0
A80: 0 | C80: Checks: Depts vs Eco Classification | D80: =D41-D66 -> 0 | E80: 0 | F80: 0 | G80: 0 | H80: 0 | I80: 0 | J80: 0 | K80: 0 | L80: 0 | M80: 0 | O80: =O41-O66 -> 0
A81: 0 | C81: Checks: Receipts vs IYM Model | D81: 0 | F81: 0 | H81: 0 | I81: 21391636 | J81: 21216210 | K81: 18566175 | M81: 0 | O81: =O42-O67 -> 0
A82: 0 | C82: Checks: Depts vs IYM Model | D82: 0 | F82: 0 | H82: 0 | I82: 20860975.37 | J82: 20387856.67 | K82: 18481235.62 | M82: 0 | O82: =O43-O68 -> 0
A83: 0 | C83: Checks: Depts vs Datafile | D83: 41627570.53 | F83: 0 | H83: 12957905 | I83: 20860975.37 | J83: 20387856.67 | K83: 18481235.62 | M83: 72687972.65 | O83: =O44-O69 -> 0
A238: 1
A239: 1
A240: 1
A241: 1
A242: 1
A243: 1

Sheet FS_2
C3: CONDITIONAL GRANTS TRANSFERRED FROM NATIONAL DEPARTMENTS AND ACTUAL PAYMENTS MADE BY PROVINCES FOR THE FIRST QUARTER ENDED 30 JUNE 2022 | T3: ="NATIONAL TREASURY: " & C3 -> NATIONAL TREASURY: CONDITIONAL GRANTS TRANSFERRED FROM NATIONAL DEPARTMENTS AND ACTUAL PAYMENTS MADE BY PROVINCES FOR THE FIRST QUARTER ENDED 30 JUNE 2022 | AK3: ="VARIANCE FROM NATIONAL TREASURY: " & C3 -> VARIANCE FROM NATIONAL TREASURY: CONDITIONAL GRANTS TRANSFERRED FROM NATIONAL DEPARTMENTS AND ACTUAL PAYMENTS MADE BY PROVINCES FOR THE FIRST QUARTER ENDED 30 JUNE 2022
C4: FREE STATE PROVINCE | T4: =C4 -> FREE STATE PROVINCE | AK4: =C4 -> FREE STATE PROVINCE
C6: National departments administering conditional grants | D6: =FS_1!D6 -> 2022/23 | T6: National departments administering conditional grants | U6: 2019/20 | AK6: National departments administering conditional grants | AL6: =D6 -> 2022/23
D7: Budget | J7: Transfers | M7: Payments to Date | U7: Budget | AA7: Transfers | AD7: Payments to Date | AL7: =D7 -> Budget | AR7: =J7 -> Transfers | AU7: =M7 -> Payments to Date
D8: Division of Revenue Act, No. 9 of 2022 | E8: Division of Revenue Amendment Act, No. 30 of 2022 and other Gazettes | F8: Total National Allocation | G8: Provincial roll-overs approved by National Treasury | H8: Total Available | J8: Provincial Payment Schedule (National Allocation) | K8: Transferred from National to Province | M8: Actual Payments | N8: % Actual Payments | U8: Division of Revenue Act, No. 14 of 2018 | V8: Division of Revenue Amendment Act, No. 14 of 2018 | W8: Total National Allocation | X8: Provincial roll-overs approved by National Treasury | Y8: Total Available | AA8: Provincial Payment Schedule (National Allocation) | AB8: Transferred from National to Province | AD8: Actual Payments | AE8: % Actual Payments | AL8: =D8 -> Division of Revenue Act, No. 9 of 2022 | AM8: =E8 -> Division of Revenue Amendment Act, No. 30 of 2022 and other Gazettes | AN8: =F8 -> Total National Allocation | AO8: =G8 -> Provincial roll-overs approved by National Treasury | AP8: =H8 -> Total Available | AR8: =J8 -> Provincial Payment Schedule (National Allocation) | AS8: =K8 -> Transferred from National to Province | AU8: =M8 -> Actual Payments | AV8: =N8 -> % Actual Payments
D9: R'000 | E9: R'000 | F9: R'000 | G9: R'000 | H9: R'000 | J9: R'000 | K9: R'000 | M9: R'000 | N9: % | U9: R'000 | V9: R'000 | W9: R'000 | X9: R'000 | Y9: R'000 | AA9: R'000 | AB9: R'000 | AD9: R'000 | AE9: % | AL9: R'000 | AM9: R'000 | AN9: R'000 | AO9: R'000 | AP9: R'000 | AR9: R'000 | AS9: R'000 | AU9: R'000 | AV9: %
C11: Schedule 5, Part A Grants2. | T11: Schedule 5, Part A Grants2. | AK11: Schedule 5, Part A Grants2.
DB12: Numbers from the sources | DE12: Checks
C13: Agriculture, Land Reform and Rural Development (Vote 29) | D13: =SUM(D14+D15+D16) -> 272071 | E13: -31651 | F13: 240420 | G13: 4481 | H13: 244901 | I13: 0 | J13: 53563 | K13: 0 | M13: =SUM(M14+M15+M16) -> 9601 | N13: =IFERROR(M13/D13,0) -> 0.03528858276 | T13: =C13 -> Agriculture, Land Reform and Rural Development (Vote 29) | U13: 330418 | V13: 0 | W13: 330418 | X13: 0 | Y13: 330418 | AA13: 184183 | AB13: 184183 | AD13: 86222 | AE13: 0.2609482534 | AK13: =C13 -> Agriculture, Land Reform and Rural Development (Vote 29) | AL13: =SUM(AL14:AL16) -> 58347 | AM13: =SUM(AM14:AM16) -> 31651 | AN13: =SUM(AN14:AN16) -> 89998 | AO13: =SUM(AO14:AO16) -> -4481 | AP13: =SUM(AP14:AP16) -> 85517 | AR13: =SUM(AR14:AR16) -> 130620 | AS13: =SUM(AS14:AS16) -> 184183 | AU13: =SUM(AU14:AU16) -> 76621 | DB13: DoRA(annexure) | DC13: Payment schedule(macro) | DD13: Transfer from National(vulindlela) | DE13: DoRA | DF13: Payment Schedule | DG13: Transfer from National(vulindlela)
C14: (a) Comprehensive Agricultural Support Programme Grant | D14: 190377 | E14: =SUM(F14-D14) -> -12541 | F14: 177836 | G14: 4481 | H14: =SUM(F14:G14) -> 182317 | J14: 38075 | K14: 0 | M14: 9184 | N14: =IFERROR(M14/D14,0) -> 0.04824112156 | T14: (a) Comprehensive Agricultural Support Programme Grant | U14: 244101 | V14: 0 | W14: 244101 | X14: 0 | Y14: 244101 | AA14: 141578 | AB14: 141578 | AD14: 62765 | AE14: 0.2571271728 | AK14: (a) Comprehensive Agricultural Support Programme Grant | AL14: =IFERROR(U14-D14,0) -> 53724 | AM14: 12541 | AN14: 66265 | AO14: -4481 | AP14: 61784 | AR14: =IFERROR(AA14-J14,0) -> 103503 | AS14: 141578 | AU14: =IFERROR(AD14-M14,0) -> 53581 | DB14: 190377 | DC14: 38075 | DD14: 0 | DE14: =D14-DB14 -> 0 | DF14: =J14-DC14 -> 0 | DG14: 0
C15: (b) Ilima/Letsema Projects Grant | D15: 73178 | E15: =SUM(F15-D15) -> -22818 | F15: 50360 | G15: 0 | H15: =SUM(F15:G15) -> 50360 | J15: 14636 | K15: 0 | M15: 142 | N15: =IFERROR(M15/D15,0) -> 0.001940473913 | T15: (b) Ilima/Letsema Projects Grant | U15: 75254 | V15: 0 | W15: 75254 | X15: 0 | Y15: 75254 | AA15: 37627 | AB15: 37627 | AD15: 12015 | AE15: 0.1596592872 | AK15: (b) Ilima/Letsema Projects Grant | AL15: 2076 | AM15: 22818 | AN15: 24894 | AO15: 0 | AP15: 24894 | AR15: 22991 | AS15: 37627 | AU15: 11873 | DB15: 73178 | DC15: 14636 | DD15: 0 | DE15: =D15-DB15 -> 0 | DF15: 0 | DG15: 0
C16: (c) Land Care Programme Grant: Poverty Relief and Infrastructure Development | D16: 8516 | E16: =SUM(F16-D16) -> 3708 | F16: 12224 | G16: 0 | H16: =SUM(F16:G16) -> 12224 | J16: 852 | K16: 0 | M16: 275 | N16: =IFERROR(M16/D16,0) -> 0.03229215594 | T16: (c) Land Care Programme Grant: Poverty Relief and Infrastructure Development | U16: 11063 | V16: 0 | W16: 11063 | X16: 0 | Y16: 11063 | AA16: 4978 | AB16: 4978 | AD16: 11442 | AE16: 1.034258339 | AK16: (c) Land Care Programme Grant: Poverty Relief and Infrastructure Development | AL16: 2547 | AM16: -3708 | AN16: -1161 | AO16: 0 | AP16: -1161 | AR16: 4126 | AS16: 4978 | AU16: 11167 | DB16: 8516 | DC16: 852 | DD16: 0 | DE16: =D16-DB16 -> 0 | DF16: 0 | DG16: 0
E17: =F17-D17 -> 0 | H17: =SUM(F17:G17) -> 0 | N17: =IFERROR(M17/F17,0) -> 0 | T17: 0 | V17: 0 | Y17: 0 | AE17: 0 | AK17: 0 | AL17: 0 | AM17: 0 | AN17: 0 | AO17: 0 | AP17: 0 | AR17: 0 | AS17: 0 | AU17: 0 | DC17: 14636 | DE17: =D17-DB17 -> 0 | DF17: =J17-DC17 -> -14636
E18: =F18-D18 -> 0 | H18: =SUM(F18:G18) -> 0 | N18: =IFERROR(M18/F18,0) -> 0 | T18: 0 | V18: 0 | Y18: 0 | AE18: 0 | AK18: 0 | AL18: 0 | AM18: 0 | AN18: 0 | AO18: 0 | AP18: 0 | AR18: 0 | AS18: 0 | AU18: 0 | DC18: 14636 | DE18: =D18-DB18 -> 0 | DF18: =J18-DC18 -> -14636
AK19: 0 | AL19: 0 | AM19: 0 | AN19: 0 | AO19: 0 | AP19: 0 | AR19: 0 | AS19: 0 | AU19: 0
C20: Sports, Arts and Culture (Vote 37) | D20: =SUM(D21) -> 183761 | E20: -53497 | F20: 130264 | G20: 4369 | H20: 134633 | I20: 0 | J20: 46372 | K20: 46372 | M20: =SUM(M21) -> 35789 | N20: =IFERROR(M20/D20,0) -> 0.194758409 | T20: =C20 -> Sports, Arts and Culture (Vote 37) | U20: 169824 | V20: 0 | W20: 169824 | X20: 0 | Y20: 169824 | AA20: 79231 | AB20: 79231 | AD20: 82181 | AE20: 0.4839186452 | AK20: Sports, Arts and Culture (Vote 37) | AL20: -13937 | AM20: 53497 | AN20: 39560 | AO20: -4369 | AP20: 35191 | AR20: 32859 | AS20: 32859 | AU20: 46392
C21: Community Library Services Grant | D21: 183761 | E21: =SUM(F21-D21) -> -53497 | F21: 130264 | G21: 4369 | H21: =SUM(F21:G21) -> 134633 | J21: 46372 | K21: 46372 | M21: 35789 | N21: =IFERROR(M21/D21,0) -> 0.194758409 | T21: Community Library Services Grant | U21: 169824 | V21: 0 | W21: 169824 | X21: 0 | Y21: 169824 | AA21: 79231 | AB21: 79231 | AD21: 82181 | AE21: 0.4839186452 | AK21: Community Library Services Grant | AL21: -13937 | AM21: 53497 | AN21: 39560 | AO21: -4369 | AP21: 35191 | AR21: 32859 | AS21: 32859 | AU21: 46392 | DB21: 183761 | DC21: 46372 | DD21: 46372 | DE21: =D21-DB21 -> 0 | DF21: =J21-DC21 -> 0 | DG21: =K21-DD21 -> 0
E22: =F22-D22 -> 0 | H22: =SUM(F22:G22) -> 0 | N22: =IFERROR(M22/F22,0) -> 0 | T22: 0 | V22: 0 | Y22: 0 | AE22: 0 | AK22: 0 | AL22: 0 | AM22: 0 | AN22: 0 | AO22: 0 | AP22: 0 | AR22: 0 | AS22: 0 | AU22: 0 | DE22: =D22-DB22 -> 0
E23: =F23-D23 -> 0 | H23: =SUM(F23:G23) -> 0 | N23: =IFERROR(M23/F23,0) -> 0 | T23: 0 | V23: 0 | Y23: 0 | AE23: 0 | AK23: 0 | AL23: 0 | AM23: 0 | AN23: 0 | AO23: 0 | AP23: 0 | AR23: 0 | AS23: 0 | AU23: 0 | DE23: =D23-DB23 -> 0
E24: =F24-D24 -> 0 | H24: =SUM(F24:G24) -> 0 | N24: =IFERROR(M24/F24,0) -> 0 | T24: 0 | V24: 0 | Y24: 0 | AE24: 0 | AK24: 0 | AL24: 0 | AM24: 0 | AN24: 0 | AO24: 0 | AP24: 0 | AR24: 0 | AS24: 0 | AU24: 0 | DE24: =D24-DB24 -> 0
E25: =F25-D25 -> 0 | H25: =SUM(F25:G25) -> 0 | N25: =IFERROR(M25/F25,0) -> 0 | T25: 0 | V25: 0 | Y25: 0 | AE25: 0 | AK25: 0 | AL25: 0 | AM25: 0 | AN25: 0 | AO25: 0 | AP25: 0 | AR25: 0 | AS25: 0 | AU25: 0 | DE25: =D25-DB25 -> 0
AK26: 0 | AL26: 0 | AM26: 0 | AN26: 0 | AO26: 0 | AP26: 0 | AR26: 0 | AS26: 0 | AU26: 0
C27: Basic Education (Vote 16) | D27: =SUM(D28+D29+D30+D31+D32) -> 631698 | E27: =SUM(E29+E30+E31+E32) -> 905291 | F27: =SUM(F29+F30+F31+F32) -> 1471707 | G27: =SUM(G29+G30+G31+G32) -> 16989 | H27: =SUM(H29+H30+H31+H32) -> 1488696 | I27: =SUM(I29+I30+I31+I32) -> 0 | J27: =SUM(J28+J29+J30+J31+J32) -> 285338 | K27: =SUM(K28+K29+K30+K31+K32) -> 285338 | M27: =SUM(M28+M29+M30+M31+M32) -> 115532 | N27: =IFERROR(M27/D27,0) -> 0.1828911917 | T27: =C27 -> Basic Education (Vote 16) | U27: 1398706 | V27: 0 | W27: 1398706 | X27: 0 | Y27: 1398706 | AA27: 1022190 | AB27: 1022190 | AD27: 986310 | AE27: 0.7051589112 | AK27: Basic Education (Vote 16) | AL27: 767008 | AM27: -905291 | AN27: -73001 | AO27: -16989 | AP27: -89990 | AR27: 736852 | AS27: 736852 | AU27: 870778
C28: (a) Early Childhood Development Grant | D28: 65282 | J28: 16321 | K28: 16321 | M28: 11818 | N28: 0.181029993 | T28: =C29 -> (b) HIV and AIDS (Life Skills Education) Grant | U28: 45455 | V28: 0 | W28: 45455 | X28: 0 | Y28: 45455 | AA28: 18182 | AB28: 18182 | AD28: 24690 | AE28: 0.5431745683 | AK28: =C29 -> (b) HIV and AIDS (Life Skills Education) Grant | AL28: =IFERROR(U28-D29,0) -> 34283 | AM28: -22863 | AN28: 11420 | AO28: 0 | AP28: 11420 | AR28: =IFERROR(AA28-J29,0) -> 17065 | AS28: 17065 | AU28: =IFERROR(AD28-M29,0) -> 23792 | DB28: 65282 | DC28: 16321 | DD28: 16321 | DE28: =D28-DB28 -> 0 | DF28: =J28-DC28 -> 0 | DG28: 0
C29: (b) HIV and AIDS (Life Skills Education) Grant | D29: 11172 | E29: =SUM(F29-D29) -> 22863 | F29: 34035 | G29: 0 | H29: =SUM(F29:G29) -> 34035 | J29: 1117 | K29: 1117 | M29: 898 | N29: 0.08037952023 | T29: =C30 -> (c) Learners with Profound Intellectual Disabilities Grant | U29: 25182 | V29: 0 | W29: 25182 | X29: 0 | Y29: 25182 | AA29: 16785 | AB29: 16785 | AD29: 8389 | AE29: 0.3331347788 | AK29: =C30 -> (c) Learners with Profound Intellectual Disabilities Grant | AL29: -1943 | AM29: -643 | AN29: -2586 | AO29: -6311 | AP29: -8897 | AR29: 7660 | AS29: 7660 | AU29: =IFERROR(AD29-M30,0) -> 415 | DB29: 11172 | DC29: 1117 | DD29: 1117 | DE29: =D29-DB29 -> 0 | DF29: 0 | DG29: 0
C30: (c) Learners with Profound Intellectual Disabilities Grant | D30: 27125 | E30: =SUM(F30-D30) -> 643 | F30: 27768 | G30: 6311 | H30: =SUM(F30:G30) -> 34079 | J30: 9125 | K30: 9125 | M30: 7974 | N30: 0.2939723502 | T30: =C31 -> (d) Maths, Science and Technology Grant | U30: 49434 | V30: 0 | W30: 49434 | X30: 0 | Y30: 49434 | AA30: 24717 | AB30: 24717 | AD30: 9816 | AE30: 0.1985677874 | AK30: =C31 -> (d) Maths, Science and Technology Grant | AL30: 10100 | AM30: 5773 | AN30: 15873 | AO30: -9654 | AP30: 6219 | AR30: 20784 | AS30: 20784 | AU30: =IFERROR(AD30-M31,0) -> 5825 | DB30: 27125 | DC30: 9125 | DD30: 9125 | DE30: =D30-DB30 -> 0 | DF30: 0 | DG30: 0
C31: (d) Maths, Science and Technology Grant | D31: 39334 | E31: =SUM(F31-D31) -> -5773 | F31: 33561 | G31: 9654 | H31: =SUM(F31:G31) -> 43215 | J31: 3933 | K31: 3933 | M31: 3991 | N31: 0.101464382 | T31: =C32 -> (e) National School Nutrition Programme Grant | U31: 1278635 | V31: 0 | W31: 1278635 | X31: 0 | Y31: 1278635 | AA31: 962506 | AB31: 962506 | AD31: 943415 | AE31: 0.7378297951 | AK31: =C32 -> (e) National School Nutrition Programme Grant | AL31: 789850 | AM31: -887558 | AN31: -97708 | AO31: -1024 | AP31: -98732 | AR31: 707664 | AS31: 707664 | AU31: =IFERROR(AD31-M32,0) -> 852564 | DB31: 39334 | DC31: 3933 | DD31: 3933 | DE31: =D31-DB31 -> 0 | DF31: 0 | DG31: 0
C32: (e) National School Nutrition Programme Grant | D32: 488785 | E32: =SUM(F32-D32) -> 887558 | F32: 1376343 | G32: 1024 | H32: =SUM(F32:G32) -> 1377367 | J32: 254842 | K32: 254842 | M32: 90851 | N32: 0.1858710885 | T32: =#REF! ->  | V32: 0 | Y32: 0 | AE32: 0 | AK32: =#REF! ->  | AL32: =IFERROR(U32-#REF!,0) -> 0 | AM32: =IFERROR(V32-#REF!,0) -> 0 | AN32: =IFERROR(W32-#REF!,0) -> 0 | AO32: =IFERROR(X32-#REF!,0) -> 0 | AP32: =IFERROR(Y32-#REF!,0) -> 0 | AR32: =IFERROR(AA32-#REF!,0) -> 0 | AS32: =IFERROR(AB32-#REF!,0) -> 0 | AU32: =IFERROR(AD32-#REF!,0) -> 0 | DB32: 488785 | DC32: 254842 | DD32: 254842 | DE32: =D32-DB32 -> 0 | DF32: 0 | DG32: 0
AK33: =C33 -> 0 | AL33: =IFERROR(U33-D33,0) -> 0 | AM33: =IFERROR(V33-E33,0) -> 0 | AN33: =IFERROR(W33-F33,0) -> 0 | AO33: =IFERROR(X33-G33,0) -> 0 | AP33: =IFERROR(Y33-H33,0) -> 0 | AR33: =IFERROR(AA33-J33,0) -> 0 | AS33: =IFERROR(AB33-K33,0) -> 0 | AU33: =IFERROR(AD33-M33,0) -> 0
C34: Cooperative Governance and Traditional Affairs (Vote 4) | D34: =SUM(D35) -> 0 | E34: 0 | F34: 0 | G34: 0 | H34: 0 | I34: 0 | J34: 0 | K34: 0 | L34: 0 | M34: 0 | N34: =IFERROR(M34/H34,0) -> 0 | T34: =C34 -> Cooperative Governance and Traditional Affairs (Vote 4) | AK34: Cooperative Governance and Traditional Affairs (Vote 4) | AL34: =SUM(AL35:AL37) -> 0 | AM34: =SUM(AM35:AM37) -> 0 | AN34: =SUM(AN35:AN37) -> 0 | AO34: =SUM(AO35:AO37) -> 0 | AP34: =SUM(AP35:AP37) -> 0 | AR34: =SUM(AR35:AR37) -> 0 | AS34: =SUM(AS35:AS37) -> 0 | AU34: =SUM(AU35:AU37) -> 0 | DE34: =D34-DB34 -> 0
C35: Provincial Disaster Recovery Grant | E35: =SUM(F35-D35) -> 0 | H35: =SUM(F35:G35) -> 0 | T35: Provincial Disaster Recovery Grant | V35: 0 | Y35: 0 | AE35: 0 | AK35: Provincial Disaster Recovery Grant | AL35: =IFERROR(U35-D35,0) -> 0 | AM35: 0 | AN35: 0 | AO35: 0 | AP35: 0 | AR35: =IFERROR(AA35-J35,0) -> 0 | AS35: 0 | AU35: =IFERROR(AD35-M35,0) -> 0 | DE35: 0
E36: =F36-D36 -> 0 | H36: =SUM(F36:G36) -> 0 | N36: =IFERROR(M36/F36,0) -> 0 | T36: 0 | V36: 0 | Y36: 0 | AE36: 0 | AK36: 0 | AL36: 0 | AM36: 0 | AN36: 0 | AO36: 0 | AP36: 0 | AR36: 0 | AS36: 0 | AU36: 0 | DE36: 0
E37: =F37-D37 -> 0 | H37: =SUM(F37:G37) -> 0 | N37: =IFERROR(M37/F37,0) -> 0 | T37: 0 | V37: 0 | Y37: 0 | AE37: 0 | AK37: 0 | AL37: 0 | AM37: 0 | AN37: 0 | AO37: 0 | AP37: 0 | AR37: 0 | AS37: 0 | AU37: 0 | DE37: 0
E38: =F38-D38 -> 0 | H38: =SUM(F38:G38) -> 0 | N38: =IFERROR(M38/F38,0) -> 0 | T38: 0 | V38: 0 | Y38: 0 | AE38: 0 | AK38: 0 | AL38: 0 | AM38: 0 | AN38: 0 | AO38: 0 | AP38: 0 | AR38: 0 | AS38: 0 | AU38: 0 | DE38: 0
E39: =F39-D39 -> 0 | H39: =SUM(F39:G39) -> 0 | N39: =IFERROR(M39/F39,0) -> 0 | T39: 0 | V39: 0 | Y39: 0 | AE39: 0 | AK39: 0 | AL39: 0 | AM39: 0 | AN39: 0 | AO39: 0 | AP39: 0 | AR39: 0 | AS39: 0 | AU39: 0 | DE39: 0
AK40: 0 | AL40: 0 | AM40: 0 | AN40: 0 | AO40: 0 | AP40: 0 | AR40: 0 | AS40: 0 | AU40: 0
C41: Health (Vote 18) | D41: =SUM(D42+D43+D44+D45+D46) -> 2659160 | E41: 1558965 | F41: 4218125 | G41: 11194 | H41: 4229319 | I41: 0 | J41: 664785 | K41: 664689 | M41: =SUM(M42+M43+M44+M45+M46) -> 456305 | N41: =IFERROR(M41/D41,0) -> 0.1715974217 | T41: =C41 -> Health (Vote 18) | U41: 3276289 | V41: 0 | W41: 3276289 | X41: 0 | Y41: 3276289 | AA41: 1777697 | AB41: 1777700 | AD41: 1686271 | AE41: 0.514689333 | AK41: Health (Vote 18) | AL41: 617129 | AM41: -1558965 | AN41: -941836 | AO41: -11194 | AP41: -953030 | AR41: 1112912 | AS41: 1113011 | AU41: 1229966
C42: (a) District Health Programmes Grant | D42: 1724306 | E42: =SUM(F42-D42) -> 1432993 | F42: 3157299 | G42: 0 | H42: =SUM(F42:G42) -> 3157299 | J42: 431076 | K42: 431076 | M42: 255373 | N42: =IFERROR(M42/D42,0) -> 0.148101903 | T42: (a) District Health Programmes Grant | U42: 2397703 | V42: 0 | W42: 2397703 | X42: 0 | Y42: 2397703 | AA42: 1198848 | AB42: 1198851 | AD42: 1104098 | AE42: 0.4604815526 | AK42: (a) District Health Programmes Grant | AL42: 673397 | AM42: -1432993 | AN42: -759596 | AO42: 0 | AP42: -759596 | AR42: 767772 | AS42: 767775 | AU42: 848725 | DB42: 1724306 | DC42: 431076 | DD42: 431076.0009 | DE42: =D42-DB42 -> 0 | DF42: =J42-DC42 -> 0 | DG42: -0.0008600000292
C43: (b) Health Facility Revitalisation Grant | D43: 642446 | E43: =SUM(F43-D43) -> 27087 | F43: 669533 | G43: 11194 | H43: =SUM(F43:G43) -> 680727 | J43: 160611 | K43: 160611 | M43: 136291 | N43: =IFERROR(M43/D43,0) -> 0.2121439 | T43: (b) Health Facility Revitalisation Grant | U43: 784988 | V43: 0 | W43: 784988 | X43: 0 | Y43: 784988 | AA43: 532055 | AB43: 532055 | AD43: 515189 | AE43: 0.6563017524 | AK43: (b) Health Facility Revitalisation Grant | AL43: 142542 | AM43: -27087 | AN43: 115455 | AO43: -11194 | AP43: 104261 | AR43: 371444 | AS43: 371444 | AU43: 378898 | DB43: 642446 | DC43: 160611 | DD43: 160611.0007 | DE43: =D43-DB43 -> 0 | DF43: 0 | DG43: -0.0006699999794
C44: (c) Human Resources and Training Grant | D44: 264004 | E44: =SUM(F44-D44) -> -264004 | F44: 0 | G44: 0 | H44: =SUM(F44:G44) -> 0 | J44: 65997 | K44: 65997 | M44: 63360 | N44: =IFERROR(M44/D44,0) -> 0.2399963637 | T44: (c) Human Resources and Training Grant | U44: 35345 | V44: 0 | W44: 35345 | X44: 0 | Y44: 35345 | AA44: 17670 | AB44: 17670 | AD44: 17524 | AE44: 0.4957985571 | AK44: (c) Human Resources and Training Grant | AL44: -228659 | AM44: 264004 | AN44: 35345 | AO44: 0 | AP44: 35345 | AR44: -48327 | AS44: -48327 | AU44: -45836 | DB44: 264004 | DC44: 65997 | DD44: 65996.9975 | DE44: =D44-DB44 -> 0 | DF44: 0 | DG44: 0.002500000002
C45: (d) National Health Insurance Grant | D45: 28404 | E45: =SUM(F45-D45) -> 362889 | F45: 391293 | G45: 0 | H45: =SUM(F45:G45) -> 391293 | J45: 7101 | K45: 7005 | M45: 1281 | N45: =IFERROR(M45/D45,0) -> 0.04509928179 | T45: (d) National Health Insurance Grant | U45: 58253 | V45: 0 | W45: 58253 | X45: 0 | Y45: 58253 | AA45: 29124 | AB45: 29124 | AD45: 49460 | AE45: 0.8490549843 | AK45: (d) National Health Insurance Grant | AL45: 29849 | AM45: -362889 | AN45: -333040 | AO45: 0 | AP45: -333040 | AR45: 22023 | AS45: 22119 | AU45: 48179 | DB45: 28404 | DC45: 7101 | DD45: 7005.00202 | DE45: =D45-DB45 -> 0 | DF45: 0 | DG45: -0.00202
T46: 0 | V46: 0 | Y46: 0 | AE46: 0 | AK46: 0 | AL46: 0 | AM46: 0 | AN46: 0 | AO46: 0 | AP46: 0 | AR46: 0 | AS46: 0 | AU46: 0
AK47: 0 | AL47: 0 | AM47: 0 | AN47: 0 | AO47: 0 | AP47: 0 | AR47: 0 | AS47: 0 | AU47: 0 | DE47: =D47-DB47 -> 0
C48: Human Settlements (Vote 33) | D48: =SUM(D49+D50) -> 1054604 | E48: 241720 | F48: 1296324 | G48: 237589 | H48: 1533913 | I48: 0 | J48: 234621 | K48: 234621 | M48: =SUM(M49+M50) -> 59214 | N48: =IFERROR(M48/D48,0) -> 0.05614808971 | T48: =C48 -> Human Settlements (Vote 33) | U48: 2021182 | V48: 0 | W48: 2021182 | X48: 0 | Y48: 2021182 | AA48: 969157 | AB48: 979307 | AD48: 959607 | AE48: 0.4747751563 | AK48: Human Settlements (Vote 33) | AL48: 966578 | AM48: -241720 | AN48: 724858 | AO48: -237589 | AP48: 487269 | AR48: 734536 | AS48: 744686 | AU48: 900393
C49: (a) Human Settlements Development Grant | D49: 813041 | E49: =SUM(F49-D49) -> 461043 | F49: 1274084 | G49: 205080 | H49: =SUM(F49:G49) -> 1479164 | J49: 171638 | K49: 171638 | M49: 45067 | N49: =IFERROR(M49/D49,0) -> 0.05543016896 | T49: (a) Human Settlements Development Grant | U49: 1960278 | V49: 0 | W49: 1960278 | X49: 0 | Y49: 1960278 | AA49: 953931 | AB49: 953931 | AD49: 939260 | AE49: 0.4791463252 | AK49: (a) Human Settlements Development Grant | AL49: 1147237 | AM49: -461043 | AN49: 686194 | AO49: -205080 | AP49: 481114 | AR49: 782293 | AS49: 782293 | AU49: 894193 | DB49: 813041 | DC49: 171638 | DD49: 171638 | DE49: =D49-DB49 -> 0 | DF49: =J49-DC49 -> 0 | DG49: =K49-DD49 -> 0
C50: (b) Informal Settlements Upgrading Partnership Grant: Provinces | D50: 241563 | E50: =SUM(F50-D50) -> -219323 | F50: 22240 | G50: 32509 | H50: =SUM(F50:G50) -> 54749 | J50: 62983 | K50: 62983 | M50: 14147 | N50: =IFERROR(M50/D50,0) -> 0.05856443247 | T50: (b) Informal Settlements Upgrading Partnership Grant: Provinces | U50: 60904 | V50: 0 | W50: 60904 | X50: 0 | Y50: 60904 | AA50: 15226 | AB50: 25376 | AD50: 20347 | AE50: 0.3340831472 | AK50: (b) Informal Settlements Upgrading Partnership Grant: Provinces | AL50: -180659 | AM50: 219323 | AN50: 38664 | AO50: -32509 | AP50: 6155 | AR50: -47757 | AS50: -37607 | AU50: 6200 | DB50: 241563 | DC50: 62983 | DD50: 24382 | DE50: =D50-DB50 -> 0 | DF50: =J50-DC50 -> 0 | DG50: =K50-DD50 -> 38601
E51: =F51-D51 -> 0 | H51: =SUM(F51:G51) -> 0 | N51: =IFERROR(M51/F51,0) -> 0 | T51: 0 | V51: 0 | Y51: 0 | AE51: 0 | AK51: 0 | AL51: 0 | AM51: 0 | AN51: 0 | AO51: 0 | AP51: 0 | AR51: 0 | AS51: 0 | AU51: 0 | DC51: 171638 | DE51: =D51-DB51 -> 0
E52: =F52-D52 -> 0 | H52: =SUM(F52:G52) -> 0 | N52: =IFERROR(M52/F52,0) -> 0 | T52: 0 | V52: 0 | Y52: 0 | AE52: 0 | AK52: 0 | AL52: 0 | AM52: 0 | AN52: 0 | AO52: 0 | AP52: 0 | AR52: 0 | AS52: 0 | AU52: 0 | DC52: 171638 | DE52: =D52-DB52 -> 0
E53: =F53-D53 -> 0 | H53: =SUM(F53:G53) -> 0 | N53: =IFERROR(M53/F53,0) -> 0 | T53: 0 | V53: 0 | Y53: 0 | AE53: 0 | AK53: 0 | AL53: 0 | AM53: 0 | AN53: 0 | AO53: 0 | AP53: 0 | AR53: 0 | AS53: 0 | AU53: 0 | DC53: 171638 | DE53: =D53-DB53 -> 0
AK54: 0 | AL54: 0 | AM54: 0 | AN54: 0 | AO54: 0 | AP54: 0 | AR54: 0 | AS54: 0 | AU54: 0
C55: Public Works and Infrastructure (Vote 13) | D55: =SUM(D56+D57) -> 61000 | E55: 101991 | F55: 162991 | G55: 0 | H55: 162991 | I55: 0 | J55: 15253 | K55: 14726 | M55: =SUM(M56+M57) -> 10570 | N55: =IFERROR(M55/D55,0) -> 0.1732786885 | T55: =C55 -> Public Works and Infrastructure (Vote 13) | U55: 157225 | V55: 0 | W55: 157225 | X55: 0 | Y55: 157225 | AA55: 110057 | AB55: 104823 | AD55: 78040.1276 | AE55: 0.4963595332 | AK55: Public Works and Infrastructure (Vote 13) | AL55: 96225 | AM55: -101991 | AN55: -5766 | AO55: 0 | AP55: -5766 | AR55: 94804 | AS55: 90097 | AU55: 67470.1276
C56: (a) Expanded Public Works Programme Integrated Grant for Provinces | D56: 20943 | E56: =SUM(F56-D56) -> 86846 | F56: 107789 | G56: 0 | H56: =SUM(F56:G56) -> 107789 | J56: 5238 | K56: 4711 | M56: 4750 | N56: =IFERROR(M56/D56,0) -> 0.2268060927 | T56: (a) Expanded Public Works Programme Integrated Grant for Provinces | U56: 106862 | V56: 0 | W56: 106862 | X56: 0 | Y56: 106862 | AA56: 74804 | AB56: 69570 | AD56: 51083.1276 | AE56: 0.4780289308 | AK56: (a) Expanded Public Works Programme Integrated Grant for Provinces | AL56: 85919 | AM56: -86846 | AN56: -927 | AO56: 0 | AP56: -927 | AR56: 69566 | AS56: 64859 | AU56: 46333.1276 | DB56: 20943 | DC56: 5238 | DD56: 4711 | DE56: =D56-DB56 -> 0 | DF56: =J56-DC56 -> 0 | DG56: =K56-DD56 -> 0
C57: (b) Social Sector Expanded Public Works Programme Incentive Grant for Provinces | D57: 40057 | E57: =SUM(F57-D57) -> 15145 | F57: 55202 | G57: 0 | H57: =SUM(F57:G57) -> 55202 | J57: 10015 | K57: 10015 | M57: 5820 | N57: =IFERROR(M57/D57,0) -> 0.1452929575 | T57: (b) Social Sector Expanded Public Works Programme Incentive Grant for Provinces | U57: 50363 | V57: 0 | W57: 50363 | X57: 0 | Y57: 50363 | AA57: 35253 | AB57: 35253 | AD57: 26957 | AE57: 0.5352540556 | AK57: (b) Social Sector Expanded Public Works Programme Incentive Grant for Provinces | AL57: 10306 | AM57: -15145 | AN57: -4839 | AO57: 0 | AP57: -4839 | AR57: 25238 | AS57: 25238 | AU57: 21137 | DB57: 40057 | DC57: 10015 | DD57: 10015 | DE57: =D57-DB57 -> 0 | DF57: =J57-DC57 -> 0 | DG57: =K57-DD57 -> 0
E58: =F58-D58 -> 0 | H58: =SUM(F58:G58) -> 0 | N58: =IFERROR(M58/F58,0) -> 0 | T58: 0 | V58: 0 | Y58: 0 | AE58: 0 | AK58: 0 | AL58: 0 | AM58: 0 | AN58: 0 | AO58: 0 | AP58: 0 | AR58: 0 | AS58: 0 | AU58: 0 | DE58: =D58-DB58 -> 0
E59: =F59-D59 -> 0 | H59: =SUM(F59:G59) -> 0 | N59: =IFERROR(M59/F59,0) -> 0 | T59: 0 | V59: 0 | Y59: 0 | AE59: 0 | AK59: 0 | AL59: 0 | AM59: 0 | AN59: 0 | AO59: 0 | AP59: 0 | AR59: 0 | AS59: 0 | AU59: 0 | DE59: =D59-DB59 -> 0
E60: =F60-D60 -> 0 | H60: =SUM(F60:G60) -> 0 | N60: =IFERROR(M60/F60,0) -> 0 | T60: 0 | V60: 0 | Y60: 0 | AE60: 0 | AK60: 0 | AL60: 0 | AM60: 0 | AN60: 0 | AO60: 0 | AP60: 0 | AR60: 0 | AS60: 0 | AU60: 0 | DE60: =D60-DB60 -> 0
AK61: 0 | AL61: 0 | AM61: 0 | AN61: 0 | AO61: 0 | AP61: 0 | AR61: 0 | AS61: 0 | AU61: 0
C62: Social Development (Vote 19) | D62: =SUM(D63) -> 0 | E62: 193934 | F62: 193934 | G62: 1978 | H62: 195912 | I62: 0 | J62: 0 | K62: 0 | M62: =SUM(M63) -> 0 | N62: =IFERROR(M62/D62,0) -> 0 | T62: =C62 -> Social Development (Vote 19) | U62: 85397 | V62: 0 | W62: 85397 | X62: 0 | Y62: 85397 | AA62: 45025 | AB62: 45025 | AD62: 33094 | AE62: 0.3875311779 | AK62: Social Development (Vote 19) | AL62: 85397 | AM62: -193934 | AN62: -108537 | AO62: -1978 | AP62: -110515 | AR62: 45025 | AS62: 45025 | AU62: 33094 | DE62: =D62-DB62 -> 0
E63: =SUM(F63-D63) -> 193934 | F63: 193934 | G63: 1978 | H63: =SUM(F63:G63) -> 195912 | T63: 0 | U63: 85397 | V63: 0 | W63: 85397 | X63: 0 | Y63: 85397 | AA63: 45025 | AB63: 45025 | AD63: 33094 | AE63: 0.3875311779 | AK63: 0 | AL63: 85397 | AM63: -193934 | AN63: -108537 | AO63: -1978 | AP63: -110515 | AR63: 45025 | AS63: 45025 | AU63: 33094 | DE63: 0
C64: (b) Substance Abuse Treatment Grant | T64: (b) Substance Abuse Treatment Grant | U64: 0 | V64: 0 | W64: 0 | X64: 0 | Y64: 0 | AA64: 0 | AB64: 0 | AD64: 0 | AE64: 0 | AK64: (b) Substance Abuse Treatment Grant | AL64: 0 | AM64: 0 | AN64: 0 | AO64: 0 | AP64: 0 | AR64: 0 | AS64: 0 | AU64: 0 | DE64: 0
E65: =F65-D65 -> 0 | H65: =SUM(F65:G65) -> 0 | N65: =IFERROR(M65/F65,0) -> 0 | T65: 0 | V65: 0 | Y65: 0 | AE65: 0 | AK65: 0 | AL65: 0 | AM65: 0 | AN65: 0 | AO65: 0 | AP65: 0 | AR65: 0 | AS65: 0 | AU65: 0 | DE65: 0
E66: =F66-D66 -> 0 | H66: =SUM(F66:G66) -> 0 | N66: =IFERROR(M66/F66,0) -> 0 | T66: 0 | V66: 0 | Y66: 0 | AE66: 0 | AK66: 0 | AL66: 0 | AM66: 0 | AN66: 0 | AO66: 0 | AP66: 0 | AR66: 0 | AS66: 0 | AU66: 0 | DE66: 0
E67: =F67-D67 -> 0 | H67: =SUM(F67:G67) -> 0 | N67: =IFERROR(M67/F67,0) -> 0 | T67: 0 | V67: 0 | Y67: 0 | AE67: 0 | AK67: 0 | AL67: =IFERROR(U67-D67,0) -> 0 | AM67: 0 | AN67: 0 | AO67: 0 | AP67: 0 | AR67: =IFERROR(AA67-J67,0) -> 0 | AS67: 0 | AU67: 0 | DE67: 0
AK68: 0 | AL68: 0 | AM68: 0 | AN68: 0 | AO68: 0 | AP68: 0 | AR68: 0 | AS68: 0 | AU68: 0
C69: Sports, Arts and Culture (Vote 37) | D69: =SUM(D70) -> 41695 | E69: -8091 | F69: 33604 | G69: 475 | H69: 34079 | I69: 0 | J69: 8340 | K69: 0 | M69: =SUM(M70) -> 3678 | N69: =IFERROR(M69/D69,0) -> 0.08821201583 | T69: =C69 -> Sports, Arts and Culture (Vote 37) | U69: 70037 | V69: 0 | W69: 70037 | X69: 0 | Y69: 70037 | AA69: 35018 | AB69: 35018 | AD69: 29735 | AE69: 0.4245613033 | AK69: Sports, Arts and Culture (Vote 37) | AL69: 28342 | AM69: 8091 | AN69: 36433 | AO69: -475 | AP69: 35958 | AR69: 26678 | AS69: 35018 | AU69: 26057
C70: Mass Participation and Sport Development Grant | D70: 41695 | E70: =SUM(F70-D70) -> -8091 | F70: 33604 | G70: 475 | H70: =SUM(F70:G70) -> 34079 | J70: 8340 | K70: 0 | M70: 3678 | N70: =IFERROR(M70/D70,0) -> 0.08821201583 | T70: Mass Participation and Sport Development Grant | U70: 70037 | V70: 0 | W70: 70037 | X70: 0 | Y70: 70037 | AA70: 35018 | AB70: 35018 | AD70: 29735 | AE70: 0.4245613033 | AK70: Mass Participation and Sport Development Grant | AL70: 28342 | AM70: 8091 | AN70: 36433 | AO70: -475 | AP70: 35958 | AR70: 26678 | AS70: 35018 | AU70: 26057 | DB70: 41695 | DC70: 8340 | DD70: 0 | DE70: =D70-DB70 -> 0 | DF70: =J70-DC70 -> 0 | DG70: =K70-DD70 -> 0
E71: =F71-D71 -> 0 | H71: =SUM(F71:G71) -> 0 | N71: =IFERROR(M71/F71,0) -> 0 | T71: 0 | V71: 0 | Y71: 0 | AE71: 0 | AK71: 0 | AL71: 0 | AM71: 0 | AN71: 0 | AO71: 0 | AP71: 0 | AR71: 0 | AS71: 0 | AU71: 0 | DE71: =D71-DB71 -> 0
E72: =F72-D72 -> 0 | H72: =SUM(F72:G72) -> 0 | N72: =IFERROR(M72/F72,0) -> 0 | T72: 0 | V72: 0 | Y72: 0 | AE72: 0 | AK72: 0 | AL72: 0 | AM72: 0 | AN72: 0 | AO72: 0 | AP72: 0 | AR72: 0 | AS72: 0 | AU72: 0 | DE72: =D72-DB72 -> 0
E73: =F73-D73 -> 0 | H73: =SUM(F73:G73) -> 0 | N73: =IFERROR(M73/F73,0) -> 0 | T73: 0 | V73: 0 | Y73: 0 | AE73: 0 | AK73: 0 | AL73: 0 | AM73: 0 | AN73: 0 | AO73: 0 | AP73: 0 | AR73: 0 | AS73: 0 | AU73: 0 | DE73: =D73-DB73 -> 0
E74: =F74-D74 -> 0 | H74: =SUM(F74:G74) -> 0 | N74: =IFERROR(M74/F74,0) -> 0 | T74: 0 | V74: 0 | Y74: 0 | AE74: 0 | AK74: 0 | AL74: 0 | AM74: 0 | AN74: 0 | AO74: 0 | AP74: 0 | AR74: 0 | AS74: 0 | AU74: 0 | DE74: =D74-DB74 -> 0
AK75: 0 | AL75: 0 | AM75: 0 | AN75: 0 | AO75: 0 | AP75: 0 | AR75: 0 | AS75: 0 | AU75: 0
C76: Sub-Total | D76: =SUM(D13+D20+D27+D41+D48+D55+D69) -> 4903989 | E76: =SUM(E13+E20+E27+E34+E41+E48+E55+E62+E69) -> 2908662 | F76: =SUM(F13+F20+F27+F34+F41+F48+F55+F62+F69) -> 7747369 | G76: =SUM(G13+G20+G27+G34+G41+G48+G55+G62+G69) -> 277075 | H76: =SUM(H13+H20+H27+H34+H41+H48+H55+H62+H69) -> 8024444 | I76: =SUM(I13+I20+I27+I34+I41+I48+I55+I62+I69) -> 0 | J76: =SUM(J13+J20+J27+J41+J48+J55+J69) -> 1308272 | K76: =SUM(K13+K20+K27+K41+K48+K55+K69) -> 1245746 | M76: =SUM(M13+M20+M27+M41+M48+M55+M69) -> 690689 | N76: =IFERROR(M76/D76,0) -> 0.1408422817 | T76: Sub-Total | U76: 7509078 | V76: 0 | W76: 7509078 | X76: 0 | Y76: 7509078 | Z76: 0 | AA76: 4222558 | AB76: 4227477 | AD76: 3941460.128 | AE76: 0.5248926869 | AK76: Sub-Total | AL76: 2605089 | AM76: -2908662 | AN76: -238291 | AO76: -277075 | AP76: -515366 | AR76: 2914286 | AS76: 2981731 | AU76: 3250771.128
AL77: 0 | AM77: 0 | AN77: 0 | AO77: 0 | AP77: 0 | AR77: 0 | AS77: 0 | AU77: 0
C78: Schedule 4, Part A Grants1. | T78: Schedule 4, Part A Grants1. | AK78: =C78 -> Schedule 4, Part A Grants1. | AL78: 0 | AM78: 0 | AN78: 0 | AO78: 0 | AP78: 0 | AR78: 0 | AS78: 0 | AU78: 0
AL79: 0 | AM79: 0 | AN79: 0 | AO79: 0 | AP79: 0 | AR79: 0 | AS79: 0 | AU79: 0
C80: Basic Education (Vote 16) | D80: =SUM(D81) -> 958021 | E80: 269014 | F80: 1227035 | G80: 113603 | H80: 1340638 | I80: 0 | J80: 287406 | K80: 287406 | T80: =C80 -> Basic Education (Vote 16) | U80: 1585532 | V80: 0 | W80: 1585532 | X80: 0 | Y80: 1585532 | AA80: 990958 | AB80: 990958 | AK80: =C80 -> Basic Education (Vote 16) | AL80: 627511 | AM80: -269014 | AN80: 358497 | AO80: -113603 | AP80: 244894 | AR80: 703552 | AS80: 703552 | AU80: 0
C81: Education Infrastructure Grant | D81: 958021 | E81: =SUM(F81-D81) -> 269014 | F81: 1227035 | G81: 113603 | H81: =SUM(F81:G81) -> 1340638 | J81: 287406 | K81: 287406 | T81: Education Infrastructure Grant | U81: 1585532 | V81: 0 | W81: 1585532 | X81: 0 | Y81: 1585532 | AA81: 990958 | AB81: 990958 | AK81: Education Infrastructure Grant | AL81: 627511 | AM81: -269014 | AN81: 358497 | AO81: -113603 | AP81: 244894 | AR81: 703552 | AS81: 703552 | AU81: 0 | DB81: 958021 | DC81: 287406 | DD81: 287406 | DE81: =D81-DB81 -> 0 | DF81: =J81-DC81 -> 0 | DG81: =K81-DD81 -> 0
E82: =F82-D82 -> 0 | H82: =SUM(F82:G82) -> 0 | T82: 0 | V82: 0 | Y82: 0 | AK82: 0 | AL82: 0 | AM82: 0 | AN82: 0 | AO82: 0 | AP82: 0 | AR82: 0 | AS82: 0 | AU82: 0 | DE82: =D82-DB82 -> 0
E83: =F83-D83 -> 0 | H83: =SUM(F83:G83) -> 0 | T83: 0 | V83: 0 | Y83: 0 | AK83: 0 | AL83: 0 | AM83: 0 | AN83: 0 | AO83: 0 | AP83: 0 | AR83: 0 | AS83: 0 | AU83: 0 | DE83: =D83-DB83 -> 0
E84: =F84-D84 -> 0 | H84: =SUM(F84:G84) -> 0 | T84: 0 | V84: 0 | Y84: 0 | AK84: 0 | AL84: 0 | AM84: 0 | AN84: 0 | AO84: 0 | AP84: 0 | AR84: 0 | AS84: 0 | AU84: 0 | DE84: =D84-DB84 -> 0
E85: =F85-D85 -> 0 | H85: =SUM(F85:G85) -> 0 | T85: 0 | V85: 0 | Y85: 0 | AK85: 0 | AL85: 0 | AM85: 0 | AN85: 0 | AO85: 0 | AP85: 0 | AR85: 0 | AS85: 0 | AU85: 0 | DE85: =D85-DB85 -> 0
AK86: 0 | AL86: 0 | AM86: 0 | AN86: 0 | AO86: 0 | AP86: 0 | AR86: 0 | AS86: 0 | AU86: 0
C87: Health (Vote 18) | D87: =SUM(D88) -> 1225196 | E87: =SUM(E88+E89) -> -144350 | F87: =SUM(F88+F89) -> 1080846 | G87: =SUM(G88+G89) -> 55587 | H87: =SUM(H88+H89) -> 1136433 | I87: =SUM(I88+I89) -> 0 | J87: =SUM(J88) -> 306297 | K87: =SUM(K88) -> 306297 | T87: =C87 -> Health (Vote 18) | U87: 1248569 | V87: 0 | W87: 1248569 | X87: 0 | Y87: 1248569 | AA87: 624282 | AB87: 624282 | AK87: Health (Vote 18) | AL87: 23373 | AM87: 144350 | AN87: 167723 | AO87: -55587 | AP87: 112136 | AR87: 317985 | AS87: 317985 | AU87: 0
C88: National Tertiary Services Grant | D88: 1225196 | E88: =SUM(F88-D88) -> -1225196 | F88: 0 | G88: 44551 | H88: =SUM(F88:G88) -> 44551 | J88: 306297 | K88: 306297 | T88: National Tertiary Services Grant | U88: 253131 | V88: 0 | W88: 253131 | X88: 0 | Y88: 253131 | AA88: 126564 | AB88: 126564 | AK88: National Tertiary Services Grant | AL88: -972065 | AM88: 1225196 | AN88: 253131 | AO88: -44551 | AP88: 208580 | AR88: -179733 | AS88: -179733 | AU88: 0 | DB88: 1225196 | DC88: 306297 | DD88: 306296.9989 | DE88: =D88-DB88 -> 0 | DF88: =J88-DC88 -> 0 | DG88: =K88-DD88 -> 0.001050000021
E89: =SUM(F89-D89) -> 1080846 | F89: 1080846 | G89: 11036 | H89: =SUM(F89:G89) -> 1091882 | T89: 0 | U89: 995438 | V89: 0 | W89: 995438 | X89: 0 | Y89: 995438 | AA89: 497718 | AB89: 497718 | AK89: 0 | AL89: 995438 | AM89: -1080846 | AN89: -85408 | AO89: -11036 | AP89: -96444 | AR89: 497718 | AS89: 497718 | AU89: 0 | DE89: 0
E90: =F90-D90 -> 0 | H90: =SUM(F90:G90) -> 0 | T90: 0 | V90: 0 | Y90: 0 | AK90: 0 | AL90: 0 | AM90: 0 | AN90: 0 | AO90: 0 | AP90: 0 | AR90: 0 | AS90: 0 | AU90: 0 | DE90: 0
E91: =F91-D91 -> 0 | H91: =SUM(F91:G91) -> 0 | T91: 0 | V91: 0 | Y91: 0 | AK91: 0 | AL91: 0 | AM91: 0 | AN91: 0 | AO91: 0 | AP91: 0 | AR91: 0 | AS91: 0 | AU91: 0 | DE91: 0
E92: =F92-D92 -> 0 | H92: =SUM(F92:G92) -> 0 | T92: 0 | V92: 0 | Y92: 0 | AK92: 0 | AL92: 0 | AM92: 0 | AN92: 0 | AO92: 0 | AP92: 0 | AR92: 0 | AS92: 0 | AU92: 0 | DE92: 0
AK93: 0 | AL93: 0 | AM93: 0 | AN93: 0 | AO93: 0 | AP93: 0 | AR93: 0 | AS93: 0 | AU93: 0 | DE93: 0
E94: =F94-D94 -> 0 | T94: =C94 -> 0 | V94: 0 | AK94: 0 | AL94: 0 | AM94: 0 | AN94: 0 | AO94: 0 | AP94: 0 | AR94: 0 | AS94: 0 | AU94: 0 | DE94: 0
D95: 0 | E95: 0 | F95: 0 | G95: 0 | H95: =SUM(F95:G95) -> 0 | J95: 0 | K95: 0 | T95: 0 | U95: 0 | V95: 0 | W95: 0 | X95: 0 | Y95: 0 | AA95: 0 | AB95: 0 | AK95: 0 | AL95: 0 | AM95: 0 | AN95: 0 | AO95: 0 | AP95: 0 | AR95: 0 | AS95: 0 | AU95: 0 | DE95: 0
E96: 0 | H96: =SUM(F96:G96) -> 0 | T96: 0 | V96: 0 | Y96: 0 | AK96: 0 | AL96: 0 | AM96: 0 | AN96: 0 | AO96: 0 | AP96: 0 | AR96: 0 | AS96: 0 | AU96: 0 | DE96: 0
E97: 0 | H97: =SUM(F97:G97) -> 0 | T97: 0 | V97: 0 | Y97: 0 | AK97: 0 | AL97: 0 | AM97: 0 | AN97: 0 | AO97: 0 | AP97: 0 | AR97: 0 | AS97: 0 | AU97: 0 | DE97: 0
E98: 0 | H98: =SUM(F98:G98) -> 0 | T98: 0 | V98: 0 | Y98: 0 | AK98: 0 | AL98: 0 | AM98: 0 | AN98: 0 | AO98: 0 | AP98: 0 | AR98: 0 | AS98: 0 | AU98: 0 | DE98: 0
E99: 0 | H99: =SUM(F99:G99) -> 0 | T99: 0 | V99: 0 | Y99: 0 | AK99: 0 | AL99: =IFERROR(U99-D99,0) -> 0 | AM99: 0 | AN99: 0 | AO99: 0 | AP99: 0 | AR99: =IFERROR(AA99-J99,0) -> 0 | AS99: 0 | AU99: =IFERROR(AD99-M99,0) -> 0 | DE99: 0
AK100: 0 | AL100: 0 | AM100: 0 | AN100: 0 | AO100: 0 | AP100: 0 | AR100: 0 | AS100: 0 | AU100: 0
C101: Transport (Vote 40) | D101: =SUM(D102+D103) -> 1650072 | E101: 87742 | F101: 1737814 | G101: 34572 | H101: 1772386 | I101: 0 | J101: 392211 | K101: 392211 | T101: =C101 -> Transport (Vote 40) | U101: 1735654 | V101: 0 | W101: 1735654 | X101: 0 | Y101: 1735654 | AA101: 1018416 | AB101: 1018416 | AK101: Transport (Vote 40) | AL101: 85582 | AM101: -87742 | AN101: -2160 | AO101: -34572 | AP101: -36732 | AR101: 626205 | AS101: 626205 | AU101: 0
C102: (a) Provincial Roads Maintenance Grant | D102: 1337642 | E102: =SUM(F102-D102) -> 131165 | F102: 1468807 | G102: 34572 | H102: =SUM(F102:G102) -> 1503379 | J102: 334411 | K102: 334411 | T102: (a) Provincial Roads Maintenance Grant | U102: 1483539 | V102: 0 | W102: 1483539 | X102: 0 | Y102: 1483539 | AA102: 903816 | AB102: 903816 | AK102: (a) Provincial Roads Maintenance Grant | AL102: 145897 | AM102: -131165 | AN102: 14732 | AO102: -34572 | AP102: -19840 | AR102: 569405 | AS102: 569405 | AU102: 0 | DB102: 1337642 | DC102: 334411 | DD102: 334411 | DE102: =D102-DB102 -> 0 | DF102: =J102-DC102 -> 0 | DG102: =K102-DD102 -> 0
C103: (b) Public Transport Operations Grant | D103: 312430 | E103: =SUM(F103-D103) -> -43423 | F103: 269007 | G103: 0 | H103: =SUM(F103:G103) -> 269007 | J103: 57800 | K103: 57800 | T103: (b) Public Transport Operations Grant | U103: 252115 | V103: 0 | W103: 252115 | X103: 0 | Y103: 252115 | AA103: 114600 | AB103: 114600 | AK103: (b) Public Transport Operations Grant | AL103: -60315 | AM103: 43423 | AN103: -16892 | AO103: 0 | AP103: -16892 | AR103: 56800 | AS103: 56800 | AU103: 0 | DB103: 312430 | DC103: 57800 | DD103: 57800 | DE103: =D103-DB103 -> 0 | DF103: =J103-DC103 -> 0 | DG103: =K103-DD103 -> 0
E104: =F104-D104 -> 0 | H104: =SUM(F104:G104) -> 0 | T104: 0 | V104: 0 | Y104: 0 | AK104: 0 | AL104: 0 | AM104: 0 | AN104: 0 | AO104: 0 | AP104: 0 | AR104: 0 | AS104: 0 | AU104: 0 | DE104: =D104-DB104 -> 0
E105: =F105-D105 -> 0 | H105: =SUM(F105:G105) -> 0 | T105: 0 | V105: 0 | Y105: 0 | AK105: 0 | AL105: 0 | AM105: 0 | AN105: 0 | AO105: 0 | AP105: 0 | AR105: 0 | AS105: 0 | AU105: 0 | DE105: =D105-DB105 -> 0
E106: =F106-D106 -> 0 | H106: =SUM(F106:G106) -> 0 | T106: 0 | V106: 0 | Y106: 0 | AK106: 0 | AL106: 0 | AM106: 0 | AN106: 0 | AO106: 0 | AP106: 0 | AR106: 0 | AS106: 0 | AU106: 0 | DE106: =D106-DB106 -> 0
AK107: 0 | AL107: 0 | AM107: 0 | AN107: 0 | AO107: 0 | AP107: 0 | AR107: 0 | AS107: 0 | AU107: 0
C108: Sub-Total | D108: =SUM(D80+D87+D101) -> 3833289 | E108: 212406 | F108: 4045695 | G108: 203762 | H108: 4249457 | I108: 0 | J108: 985914 | K108: 985914 | T108: Sub-Total | U108: 4569755 | V108: 0 | W108: 4569755 | X108: 0 | Y108: 4569755 | AA108: 2633656 | AB108: 2633656 | AK108: Sub-Total | AL108: 736466 | AM108: -212406 | AN108: 524060 | AO108: -203762 | AP108: 320298 | AR108: 1647742 | AS108: 1647742 | AU108: 0
AL109: 0 | AM109: 0 | AN109: 0 | AO109: 0 | AP109: 0 | AR109: 0 | AS109: 0 | AU109: 0
C110: Schedule 7, Part A Grants3. | T110: Schedule 7, Part A Grants3. | AK110: =C110 -> Schedule 7, Part A Grants3. | AL110: 0 | AM110: 0 | AN110: 0 | AO110: 0 | AP110: 0 | AR110: 0 | AS110: 0 | AU110: 0
AK111: 0 | AL111: 0 | AM111: 0 | AN111: 0 | AO111: 0 | AP111: 0 | AR111: 0 | AS111: 0 | AU111: 0
C112: Cooperative Governance (Vote 3) | D112: =SUM(D113) -> 0 | E112: =SUM(E113) -> 0 | F112: =SUM(F113) -> 0 | G112: =SUM(G113) -> 35000 | H112: =SUM(H113) -> 35000 | K112: =SUM(K113) -> 0 | T112: =C112 -> Cooperative Governance (Vote 3) | U112: 0 | V112: 0 | W112: 0 | X112: 0 | Y112: 0 | AB112: 0 | AK112: Cooperative Governance (Vote 3) | AL112: 0 | AM112: 0 | AN112: 0 | AO112: -35000 | AP112: -35000 | AR112: 0 | AS112: 0 | AU112: 0
C113: Provincial Disaster Relief Grant | D113: 0 | E113: =SUM(F113-D113) -> 0 | F113: 0 | G113: 35000 | H113: =SUM(F113:G113) -> 35000 | K113: 0 | T113: =C113 -> Provincial Disaster Relief Grant | U113: 0 | V113: 0 | W113: 0 | X113: 0 | Y113: 0 | AB113: 0 | AK113: Provincial Disaster Relief Grant | AL113: 0 | AM113: 0 | AN113: 0 | AO113: -35000 | AP113: -35000 | AR113: 0 | AS113: 0 | AU113: 0
E114: =F114-D114 -> 0 | H114: =SUM(F114:G114) -> 0 | T114: =C114 -> 0 | V114: 0 | Y114: 0 | AK114: 0 | AL114: 0 | AM114: 0 | AN114: 0 | AO114: 0 | AP114: 0 | AR114: 0 | AS114: 0 | AU114: 0 | DE114: =D114-DB114 -> 0
E115: =F115-D115 -> 0 | H115: =SUM(F115:G115) -> 0 | V115: 0 | Y115: 0 | AK115: 0 | AL115: 0 | AM115: 0 | AN115: 0 | AO115: 0 | AP115: 0 | AR115: 0 | AS115: 0 | AU115: 0 | DE115: =D115-DB115 -> 0
AK116: 0 | AL116: 0 | AM116: 0 | AN116: 0 | AO116: 0 | AP116: 0 | AR116: 0 | AS116: 0 | AU116: 0
C117: Human Settlements (Vote 33) | D117: =SUM(D118) -> 0 | E117: =SUM(E118) -> 0 | F117: =SUM(F118) -> 0 | G117: =SUM(G118) -> 90153 | H117: =SUM(H118) -> 90153 | K117: =SUM(K118) -> 0 | T117: =C117 -> Human Settlements (Vote 33) | U117: 0 | V117: 0 | W117: 0 | X117: 0 | Y117: 0 | AB117: 0 | AK117: Human Settlements (Vote 33) | AL117: 0 | AM117: 0 | AN117: 0 | AO117: -90153 | AP117: -90153 | AR117: 0 | AS117: 0 | AU117: 0
C118: Provincial Emergency Housing Grant | D118: 0 | E118: =SUM(F118-D118) -> 0 | F118: 0 | G118: 90153 | H118: =SUM(F118:G118) -> 90153 | K118: 0 | T118: =C118 -> Provincial Emergency Housing Grant | U118: 0 | V118: 0 | W118: 0 | X118: 0 | Y118: 0 | AB118: 0 | AK118: Provincial Emergency Housing Grant | AL118: 0 | AM118: 0 | AN118: 0 | AO118: -90153 | AP118: -90153 | AR118: 0 | AS118: 0 | AU118: 0
T119: =C119 -> 0 | AK119: 0 | AL119: 0 | AM119: 0 | AN119: 0 | AO119: 0 | AP119: 0 | AR119: 0 | AS119: 0 | AU119: 0 | DE119: =D119-DB119 -> 0
AK120: 0 | AL120: 0 | AM120: 0 | AN120: 0 | AO120: 0 | AP120: 0 | AR120: 0 | AS120: 0 | AU120: 0 | DE120: =D120-DB120 -> 0
AK121: 0 | AL121: 0 | AM121: 0 | AN121: 0 | AO121: 0 | AP121: 0 | AR121: 0 | AS121: 0 | AU121: 0
C122: Sub-Total | D122: =SUM(D112+D117) -> 0 | E122: =SUM(E112+E117) -> 0 | F122: =SUM(F112+F117) -> 0 | G122: =SUM(G112+G117) -> 125153 | H122: =SUM(H112+H117) -> 125153 | K122: =SUM(K112+K117) -> 0 | T122: Sub-Total | U122: 0 | V122: 0 | W122: 0 | X122: 0 | Y122: 0 | AB122: 0 | AK122: Sub-Total | AL122: 0 | AM122: 0 | AN122: 0 | AO122: -125153 | AP122: -125153 | AR122: 0 | AS122: 0 | AU122: 0
AL123: 0 | AM123: 0 | AN123: 0 | AO123: 0 | AP123: 0 | AR123: 0 | AS123: 0 | AU123: 0
C124: Total | D124: =SUM(D76+D108+D122) -> 8737278 | E124: 3121068 | F124: 11793064 | G124: 605990 | H124: 12399054 | I124: 0 | J124: 2294186 | K124: 2231660 | T124: Total | U124: 12078833 | V124: 0 | W124: 12078833 | X124: 0 | Y124: 12078833 | AA124: 6856214 | AB124: 6861133 | AK124: =C124 -> Total | AL124: 3341555 | AM124: -3121068 | AN124: 285769 | AO124: -605990 | AP124: -320221 | AR124: 4562028 | AS124: 4629473 | AU124: 0 | DB124: =SUM(DB14:DB123) -> 8737278 | DC124: 2838372 | DD124: 2193059 | DE124: 0 | DF124: -29272 | DG124: 38601
B126: 1. | C126: Schedule 4, Part A grants specifying allocations to provinces to supplement the funding of programmes or functions funded from provincial budgets.
B127: 2. | C127: Schedule 5, Part A grants specifying specific-purpose allocations to provinces.
B128: 3. | C128: Schedule 7, Part A grants specifying unallocated provisions for provinces for disaster response.
B130: Signature:………………………………………………………………………………………………………………………………Date:…………………………………………………………………..
B131: =FS_1!C75 -> I, Masechaba Sesing certify :
B132: =FS_1!C76 -> 1. Amounts set out by provincial department have been checked and verified where necessary; and
B133: =FS_1!C77 -> 2. are in compliance with the relevant sections of the Public Finance Management Act, and Section 31(2) of the Division of Revenue Act, 2022 (Act No. 4 of 2022).
C137: Checks: IYM Model | D137: 3750333 | E137: -3790353 | F137: 25262 | G137: 0 | H137: 25262 | I137: 12487611 | J137: 956976 | K137: 1018265
C138: Checks: Datafile | D138: 4558759 | E138: -3121068 | F138: 1502973 | G138: -605990 | H138: 896983 | I138: 13296037 | J138: 1474048.75 | K138: 1459367.75
C140: checks | D140: 0 | J140: 0 | K140: 0

Sheet GT_1
C3: STATEMENT OF RECEIPTS AND PAYMENTS FOR THE FIRST QUARTER ENDED 30 JUNE 2022 | T3: ="NATIONAL TREASURY: " & C3 -> NATIONAL TREASURY: STATEMENT OF RECEIPTS AND PAYMENTS FOR THE FIRST QUARTER ENDED 30 JUNE 2022 | AK3: ="VARIANCE FROM NATIONAL TREASURY: " & C3 -> VARIANCE FROM NATIONAL TREASURY: STATEMENT OF RECEIPTS AND PAYMENTS FOR THE FIRST QUARTER ENDED 30 JUNE 2022
C4: GAUTENG PROVINCE | T4: =C4 -> GAUTENG PROVINCE | AK4: =C4 -> GAUTENG PROVINCE
C6: Provincial departments | D6: 2022/23 | T6: Provincial departments | U6: 2019/20 | AK6: Provincial departments | AL6: 2019/20
D7: Budget | H7: Receipts/Payments by Quarter | M7: Receipts/Payments to Date | U7: Budget | Y7: Payments by Quarter | AD7: Payments to Date | AL7: Budget | AP7: Payments by Quarter | AU7: Payments to Date
D8: Main Budget1. | E8: Adjustments | F8: Adjusted Budget2. | H8: First Quarter | I8: Second Quarter | J8: Third Quarter | K8: Fourth Quarter | M8: Actual Receipts/ Payments | N8: % Actual Receipts/ Payments | U8: Main Budget1. | V8: Adjustments | W8: Adjusted Budget2. | Y8: First Quarter | Z8: Second Quarter | AA8: Third Quarter | AB8: Fourth Quarter | AD8: Actual Payments | AE8: % Actual Payments | AL8: Main Budget1. | AM8: Adjustments | AN8: Adjusted Budget2. | AP8: First Quarter | AQ8: Second Quarter | AR8: Third Quarter | AS8: Fourth Quarter | AU8: Actual Payments | AV8: % Actual Payments
A9: Filter | D9: R'000 | E9: R'000 | F9: R'000 | H9: R'000 | I9: R'000 | J9: R'000 | K9: R'000 | M9: R'000 | N9: % | U9: R'000 | V9: R'000 | W9: R'000 | Y9: R'000 | Z9: R'000 | AA9: R'000 | AB9: R'000 | AD9: R'000 | AE9: % | AL9: R'000 | AM9: R'000 | AN9: R'000 | AP9: R'000 | AQ9: R'000 | AR9: R'000 | AS9: R'000 | AU9: R'000 | AV9: %
A10: 1
A11: 1 | C11: Receipts | T11: Receipts | AK11: Receipts
A12: 1 | C12: Transfers from National Revenue Fund | D12: =SUM(D13:D14) -> 146545313 | E12: =SUM(E13:E14) -> -65531734 | F12: =SUM(F13:F14) -> 81013579 | H12: =SUM(H13:H14) -> 36319587 | I12: =SUM(I13:I14) -> 0 | J12: =SUM(J13:J14) -> 0 | K12: =SUM(K13:K14) -> 0 | M12: =SUM(M13:M14) -> 36319587 | N12: =IFERROR(M12/D12,0) -> 0.2478386122 | T12: =C12 -> Transfers from National Revenue Fund | U12: 80903186 | V12: 0 | W12: 80903186 | Y12: 20808702 | Z12: 20464609 | AA12: 0 | AB12: 0 | AD12: 41273311 | AE12: 0.5101568064 | AK12: Transfers from National Revenue Fund | AL12: =SUM(AL13:AL14) -> -65642127 | AM12: =SUM(AM13:AM14) -> 65531734 | AN12: =SUM(AN13:AN14) -> -110393 | AP12: =SUM(AP13:AP14) -> -15510885 | AQ12: =SUM(AQ13:AQ14) -> 20464609 | AR12: =SUM(AR13:AR14) -> 0 | AS12: =SUM(AS13:AS14) -> 0 | AU12: =SUM(AU13:AU14) -> 4953724 | EB12: DoRA(annexure) | EC12: check
A13: 1 | C13: Equitable share of revenue | D13: 120041881 | E13: =SUM(F13-D13) -> -50846628 | F13: 69195253 | H13: 30010470 | M13: =SUM(H13:K13) -> 30010470 | N13: =IFERROR(M13/D13,0) -> 0.2499999979 | T13: =C13 -> Equitable share of revenue | U13: 68824353 | V13: 0 | W13: 68824353 | Y13: 17206089 | Z13: 17206089 | AD13: 34412178 | AE13: 0.5000000218 | AK13: Equitable share of revenue | AL13: =IFERROR(U13-D13,0) -> -51217528 | AM13: 50846628 | AN13: -370900 | AP13: =IFERROR(Y13-H13,0) -> -12804381 | AQ13: 17206089 | AR13: 0 | AS13: 0 | AU13: =IFERROR(AD13-M13,0) -> 4401708 | EB13: 120041881 | EC13: =D13-EB13 -> 0
A14: 1 | C14: Conditional grants | D14: 26503432 | E14: =SUM(F14-D14) -> -14685106 | F14: 11818326 | H14: =GT_2!$K$124 -> 6309117 | M14: =SUM(H14:K14) -> 6309117 | N14: =IFERROR(M14/D14,0) -> 0.2380490572 | T14: =C14 -> Conditional grants | U14: 12078833 | V14: 0 | W14: 12078833 | Y14: 3602613 | Z14: 3258520 | AD14: 6861133 | AE14: 0.5680294611 | AK14: Conditional grants | AL14: -14424599 | AM14: 14685106 | AN14: 260507 | AP14: -2706504 | AQ14: 3258520 | AR14: 0 | AS14: 0 | AU14: =IFERROR(AD14-M14,0) -> 552016 | EB14: 26503432 | EC14: =D14-EB14 -> 0
A15: 1 | C15: Provincial own receipts | D15: 7249930 | E15: =SUM(F15-D15) -> -5733640 | F15: 1516290 | H15: 1301752 | M15: =SUM(H15:K15) -> 1301752 | N15: =IFERROR(M15/D15,0) -> 0.1795537336 | T15: =C15 -> Provincial own receipts | U15: 1453671 | V15: 0 | W15: 1453671 | Y15: 394957 | Z15: 712433.8 | AD15: 1107390.8 | AE15: 0.7617891531 | AK15: Provincial own receipts | AL15: -5796259 | AM15: 5733640 | AN15: -62619 | AP15: -906795 | AQ15: 712433.8 | AR15: 0 | AS15: 0 | AU15: =IFERROR(AD15-M15,0) -> -194361.2
A16: 1
A17: 1 | C17: Total receipts | D17: =SUM(D12+D15) -> 153795243 | E17: =SUM(E12+E15) -> -71265374 | F17: =SUM(F12+F15) -> 82529869 | G17: =G12+G15 -> 0 | H17: =SUM(H12+H15) -> 37621339 | I17: =SUM(I12+I15) -> 0 | J17: =SUM(J12+J15) -> 0 | K17: =SUM(K12+K15) -> 0 | M17: =SUM(M12+M15) -> 37621339 | N17: =IFERROR(M17/D17,0) -> 0.2446196532 | T17: Total receipts | U17: 82356857 | V17: 0 | W17: 82356857 | X17: 0 | Y17: 21203659 | Z17: 21177042.8 | AA17: 0 | AD17: 42380701.8 | AE17: 0.5145983388 | AK17: Total receipts | AL17: =AL12+AL15 -> -71438386 | AM17: 71265374 | AN17: -173012 | AO17: 0 | AP17: -16417680 | AQ17: 21177042.8 | AR17: 0 | AS17: 0 | AU17: =AU12+AU15 -> 4759362.8
A18: 1
A19: 1 | C19: Payments by provincial departments | T19: Payments by provincial departments | AK19: Payments by provincial departments
A20: =IF(LEN(C20)>3,1,0) -> 1 | C20: Education | D20: 59736014 | E20: =SUM(F20-D20) -> -24659276 | F20: 35076738 | H20: 14671907 | M20: =SUM(H20:K20) -> 14671907 | N20: =IFERROR(M20/D20,0) -> 0.2456124207 | T20: =C20 -> Education | U20: 36328510.13 | V20: 0 | W20: 36328510.13 | Y20: 10097264 | Z20: 9310507 | AD20: 19407771 | AE20: 0.5342297532 | AK20: =C20 -> Education | AL20: =IFERROR(U20-D20,0) -> -23407503.87 | AM20: 24659276 | AN20: 1251772.13 | AP20: =IFERROR(Y20-H20,0) -> -4574643 | AQ20: 9310507 | AR20: 0 | AS20: 0 | AU20: =IFERROR(AD20-M20,0) -> 4735864
A21: 1 | C21: Health | D21: 59426398 | E21: -32995810 | F21: 26430588 | H21: 15319214 | M21: 15319214 | N21: 0.2577846633 | T21: Health | U21: 25189631.98 | V21: 0 | W21: 25189631.98 | Y21: 7451118 | Z21: 6394842 | AD21: 13845960 | AE21: 0.5496690071 | AK21: Health | AL21: -34236766.02 | AM21: 32995810 | AN21: -1240956.02 | AP21: -7868096 | AQ21: 6394842 | AR21: 0 | AS21: 0 | AU21: -1473254
A22: 1 | C22: Social Development | D22: 5537037 | E22: -2482179 | F22: 3054858 | H22: 1327100 | M22: 1327100 | N22: 0.2396769247 | T22: Social Development | U22: 3020607 | V22: 0 | W22: 3020607 | Y22: 536173 | Z22: 889221 | AD22: 1425394 | AE22: 0.4718899215 | AK22: Social Development | AL22: -2516430 | AM22: 2482179 | AN22: -34251 | AP22: -790927 | AQ22: 889221 | AR22: 0 | AS22: 0 | AU22: 98294
A23: 1 | C23: Office Of The Premier | D23: 722858 | E23: 309287 | F23: 1032145 | H23: 125604 | M23: 125604 | N23: 0.1737602683 | T23: Office Of The Premier | U23: 973083.46 | V23: 0 | W23: 973083.46 | Y23: 161829 | Z23: 186798 | AD23: 348627 | AE23: 0.3582703995 | AK23: Office Of The Premier | AL23: 250225.46 | AM23: -309287 | AN23: -59061.54 | AP23: 36225 | AQ23: 186798 | AR23: 0 | AS23: 0 | AU23: 223023
A24: 1 | C24: Gauteng Provincial Legislature | D24: 825163 | E24: -271913 | F24: 553250 | H24: 227801 | M24: 227801 | N24: 0.2760678799 | T24: Gauteng Provincial Legislature | U24: 541734 | V24: 0 | W24: 541734 | Y24: 167884 | Z24: 150198 | AD24: 318082 | AE24: 0.5871553198 | AK24: Gauteng Provincial Legislature | AL24: -283429 | AM24: 271913 | AN24: -11516 | AP24: -59917 | AQ24: 150198 | AR24: 0 | AS24: 0 | AU24: 90281
A25: 1 | C25: Economic Development | D25: 1982709 | E25: 522794 | F25: 2505503 | H25: 400703 | M25: 400703 | N25: 0.2020987447 | T25: Economic Development | U25: 2365265 | V25: 0 | W25: 2365265 | Y25: 451273 | Z25: 729895 | AD25: 1181168 | AE25: 0.4993808305 | AK25: Economic Development | AL25: 382556 | AM25: -522794 | AN25: -140238 | AP25: 50570 | AQ25: 729895 | AR25: 0 | AS25: 0 | AU25: 780465
A26: 1 | C26: Cooperative Governance And Traditional Affairs | D26: 610789 | E26: 380702.5 | F26: 991491.5 | H26: 153303 | M26: 153303 | N26: 0.25099175 | T26: Cooperative Governance And Traditional Affairs | U26: 1009712.01 | V26: 0 | W26: 1009712.01 | Y26: 227049 | Z26: 245101 | AD26: 472150 | AE26: 0.4676085808 | AK26: Cooperative Governance And Traditional Affairs | AL26: 398923.01 | AM26: -380702.5 | AN26: 18220.51 | AP26: 73746 | AQ26: 245101 | AR26: 0 | AS26: 0 | AU26: 318847
A27: 1 | C27: Human Settlements | D27: 6336392 | E27: -4040848 | F27: 2295544 | H27: 434820 | M27: 434820 | N27: 0.06862264835 | T27: Human Settlements | U27: 2340324 | V27: 0 | W27: 2340324 | Y27: 493092 | Z27: 517165 | AD27: 1010257 | AE27: 0.4316739904 | AK27: Human Settlements | AL27: -3996068 | AM27: 4040848 | AN27: 44780 | AP27: 58272 | AQ27: 517165 | AR27: 0 | AS27: 0 | AU27: 575437
A28: 1 | C28: Roads And Transport | D28: 8719282 | E28: -7029658 | F28: 1689624 | H28: 1458493 | M28: 1458493 | N28: 0.1672721447 | T28: Roads And Transport | U28: 1481960.31 | V28: 0 | W28: 1481960.31 | Y28: 395425 | Z28: 332243 | AD28: 727668 | AE28: 0.4910171987 | AK28: Roads And Transport | AL28: -7237321.69 | AM28: 7029658 | AN28: -207663.69 | AP28: -1063068 | AQ28: 332243 | AR28: 0 | AS28: 0 | AU28: -730825
A29: 1 | C29: Community Safety | D29: 1153296 | E29: 4008261.03 | F29: 5161557.03 | H29: 259815 | M29: 259815 | N29: 0.2252804137 | T29: Community Safety | U29: 4974537.38 | V29: 0 | W29: 4974537.38 | Y29: 915381.0396 | Z29: 1047823.567 | AD29: 1963204.606 | AE29: 0.3946506894 | AK29: Community Safety | AL29: 3821241.38 | AM29: -4008261.03 | AN29: -187019.65 | AP29: 655566.0396 | AQ29: 1047823.567 | AR29: 0 | AS29: 0 | AU29: 1703389.606
A30: 1 | C30: Agriculture And Rural Development | D30: 1042356 | E30: 1282792 | F30: 2325148 | H30: 213600 | M30: 213600 | N30: 0.2049203919 | T30: Agriculture And Rural Development | U30: 2443382 | V30: 0 | W30: 2443382 | Y30: 568047 | Z30: 601938 | AD30: 1169985 | AE30: 0.4788383478 | AK30: Agriculture And Rural Development | AL30: 1401026 | AM30: -1282792 | AN30: 118234 | AP30: 354447 | AQ30: 601938 | AR30: 0 | AS30: 0 | AU30: 956385
A31: 1 | C31: Sport, Arts, Culture And Recreation | D31: 1097407 | E31: -690917 | F31: 406490 | H31: 106300 | M31: 106300 | N31: 0.09686470015 | T31: Sport, Arts, Culture And Recreation | U31: 440930 | V31: 0 | W31: 440930 | Y31: 96175 | Z31: 106759 | AD31: 202934 | AE31: 0.4602408546 | AK31: Sport, Arts, Culture And Recreation | AL31: -656477 | AM31: 690917 | AN31: 34440 | AP31: -10125 | AQ31: 106759 | AR31: 0 | AS31: 0 | AU31: 96634
A32: 1 | C32: E-Government | D32: 1690374 | E32: -710146 | F32: 980228 | H32: 301933 | M32: 301933 | N32: 0.1786190512 | T32: E-Government | U32: 983069 | V32: 0 | W32: 983069 | Y32: 206375 | Z32: 260736 | AD32: 467111 | AE32: 0.4751558639 | AK32: E-Government | AL32: -707305 | AM32: 710146 | AN32: 2841 | AP32: -95558 | AQ32: 260736 | AR32: 0 | AS32: 0 | AU32: 165178
A33: 1 | C33: Gauteng Provincial Treasury | D33: 792933 | E33: -687923 | F33: 105010 | H33: 164610 | M33: 164610 | N33: 0.2075963543 | T33: Gauteng Provincial Treasury | U33: 105499 | V33: 0 | W33: 105499 | Y33: 22274 | Z33: 25927 | AD33: 48201 | AE33: 0.4568858473 | AK33: Gauteng Provincial Treasury | AL33: -687434 | AM33: 687923 | AN33: 489 | AP33: -142336 | AQ33: 25927 | AR33: 0 | AS33: 0 | AU33: -116409
A34: 1 | C34: Infrastructure Development | D34: 3312235 | E34: -3312235 | F34: 0 | H34: 650204 | M34: 650204 | N34: 0.1963037043 | T34: Infrastructure Development | U34: 0 | V34: 0 | W34: 0 | Y34: 0 | Z34: 0 | AD34: 0 | AE34: 0 | AK34: Infrastructure Development | AL34: =U34-D34 -> -3312235 | AM34: =AN34-AL34 -> 3312235 | AN34: =W34-F34 -> 0 | AP34: =Y34-H34 -> -650204 | AQ34: 0 | AR34: 0 | AS34: 0 | AU34: =SUM(AP34:AQ34) -> -650204
A35: 0 | D35: 0 | E35: 0 | F35: 0 | H35: 0 | M35: 0 | N35: 0 | U35: 0 | V35: 0 | W35: 0 | Y35: 0 | Z35: 0 | AD35: 0 | AE35: 0 | AL35: 0 | AM35: 0 | AN35: 0 | AP35: 0 | AQ35: 0 | AR35: 0 | AS35: 0 | AU35: 0
A36: 0 | C36: =PROPER("") ->  | E36: 0 | F36: 0 | M36: 0 | N36: 0 | U36: 0 | V36: 0 | W36: 0 | Y36: 0 | Z36: 0 | AD36: 0 | AE36: 0 | AL36: 0 | AM36: 0 | AN36: 0 | AP36: 0 | AQ36: 0 | AR36: 0 | AS36: 0 | AU36: 0
A37: 0 | C37: =PROPER("") ->  | E37: 0 | F37: 0 | M37: 0 | N37: 0 | U37: 0 | V37: 0 | W37: 0 | Y37: 0 | Z37: 0 | AD37: 0 | AE37: 0 | AL37: 0 | AM37: 0 | AN37: 0 | AP37: 0 | AQ37: 0 | AR37: 0 | AS37: 0 | AU37: 0
A38: 0 | C38: =PROPER("") ->  | E38: 0 | F38: 0 | M38: 0 | N38: 0 | U38: 0 | V38: 0 | W38: 0 | Y38: 0 | Z38: 0 | AD38: 0 | AE38: 0 | AL38: 0 | AM38: 0 | AN38: 0 | AP38: 0 | AQ38: 0 | AR38: 0 | AS38: 0 | AU38: 0
A39: 0 | C39: =PROPER("") ->  | E39: 0 | F39: 0 | M39: 0 | N39: 0 | U39: 0 | V39: 0 | W39: 0 | Y39: 0 | Z39: 0 | AD39: 0 | AE39: 0 | AL39: 0 | AM39: 0 | AN39: 0 | AP39: 0 | AQ39: 0 | AR39: 0 | AS39: 0 | AU39: 0
A40: 1
A41: 1 | C41: Total payments | D41: =SUM(D20:D39) -> 152985243 | E41: =SUM(E20:E39) -> -70377068.47 | F41: =SUM(F20:F39) -> 82608174.53 | H41: =SUM(H20:H39) -> 35815407 | I41: =SUM(I20:I39) -> 0 | J41: =SUM(J20:J39) -> 0 | K41: =SUM(K20:K39) -> 0 | M41: =SUM(M20:M39) -> 35815407 | N41: =IFERROR(M41/D41,0) -> 0.2341102076 | T41: Total payments | U41: 82198245.27 | V41: 0 | W41: 82198245.27 | Y41: 21789359.04 | Z41: 20799153.57 | AA41: 0 | AD41: 42588512.61 | AE41: 0.5181194862 | AK41: Total payments | AL41: =SUM(AL20:AL39) -> -70786997.73 | AM41: =SUM(AM20:AM39) -> 70377068.47 | AN41: =SUM(AN20:AN39) -> -409929.26 | AP41: =SUM(AP20:AP39) -> -14026047.96 | AQ41: =SUM(AQ20:AQ39) -> 20799153.57 | AR41: =SUM(AR20:AR39) -> 0 | AS41: =SUM(AS20:AS39) -> 0 | AU41: =SUM(AU20:AU39) -> 6773105.606
A42: 1
A43: 1 | C43: Payments by economic classification | T43: Payments by economic classification | AK43: Payments by economic classification
A44: 1 | C44: Current payments | D44: =SUM(D45:D47) -> 121365492 | E44: -52290328.9 | F44: 69075163.1 | G44: 0 | H44: 28591875 | I44: 0 | J44: 0 | K44: 0 | M44: =SUM(M45:M47) -> 28591875 | N44: =IFERROR(M44/D44,0) -> 0.2355848811 | T44: =C44 -> Current payments | U44: 68611109.57 | V44: 0 | W44: 68611109.57 | X44: 0 | Y44: 17881432.79 | Z44: 17346527.07 | AA44: 0 | AB44: 0 | AD44: 35227959.86 | AE44: 0.513443961 | AK44: Current payments | AL44: =SUM(AL45:AL47) -> -52754382.43 | AM44: 52290328.9 | AN44: -464053.53 | AO44: 0 | AP44: -10710442.21 | AQ44: 17346527.07 | AR44: 0 | AS44: 0 | AU44: =SUM(AU45:AU47) -> 6636084.864
A45: 1 | C45: Compensation of employees | D45: 86884782 | E45: =SUM(F45-D45) -> -32849525.35 | F45: 54035256.65 | H45: 21068382 | M45: =SUM(H45:K45) -> 21068382 | N45: 0.242486446 | T45: Compensation of employees | U45: 54152698.94 | V45: 0 | W45: 54152698.94 | Y45: 13341110.73 | Z45: 13672432.37 | AD45: 27013543.1 | AE45: 0.4988401987 | AK45: Compensation of employees | AL45: =IFERROR(U45-D45,0) -> -32732083.06 | AM45: 32849525.35 | AN45: 117442.29 | AP45: =IFERROR(Y45-H45,0) -> -7727271.269 | AQ45: 13672432.37 | AR45: 0 | AS45: 0 | AU45: =IFERROR(AD45-M45,0) -> 5945161.102
A46: 1 | C46: Goods and services | D46: 34480530 | E46: =SUM(F46-D46) -> -19440623.55 | F46: 15039906.45 | H46: 7523491 | M46: =SUM(H46:K46) -> 7523491 | N46: 0.218195341 | T46: Goods and services | U46: 14458410.63 | V46: 0 | W46: 14458410.63 | Y46: 4528730.059 | Z46: 3660735.503 | AD46: 8189465.562 | AE46: 0.5664153392 | AK46: Goods and services | AL46: -20022119.37 | AM46: 19440623.55 | AN46: -581495.82 | AP46: -2994760.941 | AQ46: 3660735.503 | AR46: 0 | AS46: 0 | AU46: =IFERROR(AD46-M46,0) -> 665974.5619
A47: 1 | C47: Interest and rent on land | D47: 180 | E47: =SUM(F47-D47) -> -180 | F47: 0 | H47: 2 | M47: =SUM(H47:K47) -> 2 | N47: 0.01111111111 | T47: Interest and rent on land | U47: 0 | V47: 0 | W47: 0 | Y47: 11592 | Z47: 13359.2 | AD47: 24951.2 | AE47: 0 | AK47: Interest and rent on land | AL47: -180 | AM47: 180 | AN47: 0 | AP47: 11590 | AQ47: 13359.2 | AR47: 0 | AS47: 0 | AU47: =IFERROR(AD47-M47,0) -> 24949.2
A48: 1 | C48: Transfers and subsidies | D48: =SUM(D49:D55) -> 25295366 | E48: -16292072.57 | F48: 9003293.43 | G48: 0 | H48: 6185979 | I48: 0 | J48: 0 | K48: 0 | M48: =SUM(M49:M55) -> 6185979 | N48: 0.2445498911 | T48: Transfers and subsidies | U48: 8844684.83 | V48: 0 | W48: 8844684.83 | X48: 0 | Y48: 2859224.386 | Z48: 2528167.064 | AA48: 0 | AB48: 0 | AD48: 5387391.45 | AE48: 0.6091106188 | AK48: Transfers and subsidies | AL48: =SUM(AL49:AL55) -> -16450681.17 | AM48: 16292072.57 | AN48: -158608.6 | AO48: 0 | AP48: -3326754.614 | AQ48: 2528167.064 | AR48: 0 | AS48: 0 | AU48: =SUM(AU49:AU55) -> -798587.5503
A49: 1 | C49: Provinces and municipalities | D49: 1900121 | E49: =SUM(F49-D49) -> -1035622 | F49: 864499 | H49: 114012 | M49: =SUM(H49:K49) -> 114012 | N49: 0.06000249458 | T49: Provinces and municipalities | U49: 662586 | V49: 0 | W49: 662586 | Y49: 63574.0934 | Z49: 355413 | AD49: 418987.0934 | AE49: 0.6323512622 | AK49: Provinces and municipalities | AL49: =IFERROR(U49-D49,0) -> -1237535 | AM49: 1035622 | AN49: -201913 | AP49: =IFERROR(Y49-H49,0) -> -50437.9066 | AQ49: 355413 | AR49: 0 | AS49: 0 | AU49: =IFERROR(AD49-M49,0) -> 304975.0934
A50: 1 | C50: Departmental agencies and accounts | D50: 3742914 | E50: -2106828 | F50: 1636086 | H50: 1050961 | M50: 1050961 | N50: 0.2807868415 | T50: Departmental agencies and accounts | U50: 1331834 | V50: 0 | W50: 1331834 | Y50: 475203.6004 | Z50: 272154.9058 | AD50: 747358.5062 | AE50: 0.5611498927 | AK50: Departmental agencies and accounts | AL50: -2411080 | AM50: 2106828 | AN50: -304252 | AP50: -575757.3996 | AQ50: 272154.9058 | AR50: 0 | AS50: 0 | AU50: -303602.4938
A51: 1 | C51: Higher education and institutions | D51: 76101 | E51: -5198 | F51: 70903 | H51: 10777 | M51: 10777 | N51: 0.1416144335 | T51: Higher education and institutions | U51: 55904 | V51: 0 | W51: 55904 | Y51: 13826 | Z51: 13826 | AD51: 27652 | AE51: 0.4946336577 | AK51: Higher education and institutions | AL51: -20197 | AM51: 5198 | AN51: -14999 | AP51: 3049 | AQ51: 13826 | AR51: 0 | AS51: 0 | AU51: 16875
A52: 1 | C52: Foreign governments and international organisations | D52: 0 | E52: 0 | F52: 0 | H52: 0 | M52: 0 | N52: 0 | T52: Foreign governments and international organisations | U52: 0 | V52: 0 | W52: 0 | Y52: 0 | Z52: 0 | AD52: 0 | AE52: 0 | AK52: Foreign governments and international organisations | AL52: 0 | AM52: 0 | AN52: 0 | AP52: 0 | AQ52: 0 | AR52: 0 | AS52: 0 | AU52: 0
A53: 1 | C53: Public corporations and private enterprises | D53: 3313413 | E53: -2692851 | F53: 620562 | H53: 499171 | M53: 499171 | N53: 0.1506516091 | T53: Public corporations and private enterprises | U53: 554665 | V53: 0 | W53: 554665 | Y53: 109998.5212 | Z53: 133780.9317 | AD53: 243779.4529 | AE53: 0.4395075459 | AK53: Public corporations and private enterprises | AL53: -2758748 | AM53: 2692851 | AN53: -65897 | AP53: -389172.4788 | AQ53: 133780.9317 | AR53: 0 | AS53: 0 | AU53: -255391.5471
A54: 1 | C54: Non profit institutions | D54: 10584553 | E54: -7335836 | F54: 3248717 | H54: 3794077 | M54: 3794077 | N54: 0.3584541548 | T54: Non profit institutions | U54: 3573034.73 | V54: 0 | W54: 3573034.73 | Y54: 1116276 | Z54: 1037745 | AD54: 2154021 | AE54: 0.6028547615 | AK54: Non profit institutions | AL54: -7011518.27 | AM54: 7335836 | AN54: 324317.73 | AP54: -2677801 | AQ54: 1037745 | AR54: 0 | AS54: 0 | AU54: -1640056
A55: 1 | C55: Households | D55: 5678264 | E55: -3115737.57 | F55: 2562526.43 | H55: 716981 | M55: 716981 | N55: 0.126267641 | T55: Households | U55: 2666661.1 | V55: 0 | W55: 2666661.1 | Y55: 1080346.171 | Z55: 715247.2264 | AD55: 1795593.397 | AE55: 0.6733489296 | AK55: Households | AL55: -3011602.9 | AM55: 3115737.57 | AN55: 104134.67 | AP55: 363365.1708 | AQ55: 715247.2264 | AR55: 0 | AS55: 0 | AU55: 1078612.397
A56: 1 | C56: Payments for capital assets | D56: =SUM(D57:D63) -> 6324385 | E56: -1794667 | F56: 4529718 | G56: 0 | H56: 1037194 | I56: 0 | J56: 0 | K56: 0 | M56: =SUM(M57:M63) -> 1037194 | N56: 0.1639991873 | T56: Payments for capital assets | U56: 4742450.96 | V56: 0 | W56: 4742450.96 | X56: 0 | Y56: 1048442.985 | Z56: 924459.4285 | AA56: 0 | AB56: 0 | AD56: 1972902.413 | AE56: 0.4160090277 | AK56: Payments for capital assets | AL56: =SUM(AL57:AL63) -> -1581934.04 | AM56: 1794667 | AN56: 212732.96 | AO56: 0 | AP56: 11248.98452 | AQ56: 924459.4285 | AR56: 0 | AS56: 0 | AU56: =SUM(AU57:AU63) -> 935708.413
A57: 1 | C57: Buildings and other fixed structures | D57: 3599974 | E57: =SUM(F57-D57) -> -364183 | F57: 3235791 | H57: 386690 | M57: =SUM(H57:K57) -> 386690 | N57: 0.1074146647 | T57: Buildings and other fixed structures | U57: 3635517 | V57: 0 | W57: 3635517 | Y57: 907397.9635 | Z57: 734847.4854 | AD57: 1642245.449 | AE57: 0.4517226708 | AK57: Buildings and other fixed structures | AL57: =IFERROR(U57-D57,0) -> 35543 | AM57: 364183 | AN57: 399726 | AP57: =IFERROR(Y57-H57,0) -> 520707.9635 | AQ57: 734847.4854 | AR57: 0 | AS57: 0 | AU57: =IFERROR(AD57-M57,0) -> 1255555.449
A58: 1 | C58: Machinery and equipment | D58: 2089115 | E58: -847535 | F58: 1241580 | H58: 630034 | M58: 630034 | N58: 0.3015793769 | T58: Machinery and equipment | U58: 1073001.94 | V58: 0 | W58: 1073001.94 | Y58: 129562.021 | Z58: 182905.5488 | AD58: 312467.5698 | AE58: 0.291208765 | AK58: Machinery and equipment | AL58: -1016113.06 | AM58: 847535 | AN58: -168578.06 | AP58: -500471.979 | AQ58: 182905.5488 | AR58: 0 | AS58: 0 | AU58: -317566.4302
A59: 1 | C59: Heritage assets | D59: 0 | E59: 1700 | F59: 1700 | H59: 0 | M59: 0 | N59: 0 | T59: Heritage assets | U59: 500 | V59: 0 | W59: 500 | Y59: 155 | Z59: 0 | AD59: 155 | AE59: 0.31 | AK59: Heritage assets | AL59: 500 | AM59: -1700 | AN59: -1200 | AP59: 155 | AQ59: 0 | AR59: 0 | AS59: 0 | AU59: 155
A60: 1 | C60: Specialised military assets | D60: 0 | E60: 0 | F60: 0 | H60: 0 | M60: 0 | N60: 0 | T60: Specialised military assets | U60: 0 | V60: 0 | W60: 0 | Y60: 0 | Z60: 0 | AD60: 0 | AE60: 0 | AK60: Specialised military assets | AL60: 0 | AM60: 0 | AN60: 0 | AP60: 0 | AQ60: 0 | AR60: 0 | AS60: 0 | AU60: 0
A61: 1 | C61: Biological assets | D61: 0 | E61: 11537 | F61: 11537 | H61: 0 | M61: 0 | N61: 0 | T61: Biological assets | U61: 16500 | V61: 0 | W61: 16500 | Y61: 0 | Z61: 87 | AD61: 87 | AE61: 0.005272727273 | AK61: Biological assets | AL61: 16500 | AM61: -11537 | AN61: 4963 | AP61: 0 | AQ61: 87 | AR61: 0 | AS61: 0 | AU61: 87
A62: 1 | C62: Land and sub-soil assets | D62: 609176 | E62: -609176 | F62: 0 | H62: 20028 | M62: 20028 | N62: 0.03287719805 | T62: Land and sub-soil assets | U62: 0 | V62: 0 | W62: 0 | Y62: 0 | Z62: 0 | AD62: 0 | AE62: 0 | AK62: Land and sub-soil assets | AL62: -609176 | AM62: 609176 | AN62: 0 | AP62: -20028 | AQ62: 0 | AR62: 0 | AS62: 0 | AU62: -20028
A63: 1 | C63: Software and other intangible assets | D63: 26120 | E63: 12990 | F63: 39110 | H63: 442 | M63: 442 | N63: 0.01692189893 | T63: Software and other intangible assets | U63: 16932.02 | V63: 0 | W63: 16932.02 | Y63: 11328 | Z63: 6619.39424 | AD63: 17947.39424 | AE63: 1.059967697 | AK63: Software and other intangible assets | AL63: -9187.98 | AM63: -12990 | AN63: -22177.98 | AP63: 10886 | AQ63: 6619.39424 | AR63: 0 | AS63: 0 | AU63: 17505.39424
A64: 1 | C64: Payments for financial assets | D64: 0 | E64: 0 | F64: 0 | H64: 359 | M64: 359 | N64: 0 | T64: Payments for financial assets | U64: 0 | V64: 0 | W64: 0 | Y64: 259 | Z64: 0 | AD64: 259 | AE64: 0 | AK64: Payments for financial assets | AL64: 0 | AM64: 0 | AN64: 0 | AP64: -100 | AQ64: 0 | AR64: 0 | AS64: 0 | AU64: -100
A65: 1
A66: 1 | C66: Total payments | D66: =SUM(D44+D48+D56+D64) -> 152985243 | E66: =SUM(E44+E48+E56+E64) -> -70377068.47 | F66: =SUM(F44+F48+F56+F64) -> 82608174.53 | H66: =SUM(H44+H48+H56+H64) -> 35815407 | I66: =SUM(I44+I48+I56+I64) -> 0 | J66: =SUM(J44+J48+J56+J64) -> 0 | K66: =SUM(K44+K48+K56+K64) -> 0 | M66: =SUM(M44+M48+M56+M64) -> 35815407 | N66: =IFERROR(M66/D66,0) -> 0.2341102076 | T66: Total payments | U66: 82198245.36 | V66: 0 | W66: 82198245.36 | Y66: 21789359.16 | Z66: 20799153.57 | AD66: 42588512.73 | AE66: 0.5181194871 | AK66: Total payments | AL66: =AL44+AL48+AL56+AL64 -> -70786997.64 | AM66: =AM44+AM48+AM56+AM64 -> 70377068.47 | AN66: =AN44+AN48+AN56+AN64 -> -409929.17 | AP66: =AP44+AP48+AP56+AP64 -> -14026047.84 | AQ66: =AQ44+AQ48+AQ56+AQ64 -> 20799153.57 | AR66: =AR44+AR48+AR56+AR64 -> 0 | AS66: =AS44+AS48+AS56+AS64 -> 0 | AU66: =AU44+AU48+AU56+AU64 -> 6773105.726
A67: 1
A68: 1 | C68: Information submitted by: Ncumisa Mnyani Head Official: Provincial Treasury Gauteng Tel No: (011) 689-8233
A69: 1
A70: 1 | B70: 1. | C70: Main Budget figures are based on the 2022/23 Estimates of Provincial Revenue and Expenditure tabled in the Provincial Legislature during March 2022.
A71: 1
A72: 1
A73: 1
A74: 1 | C74: Signature:……………………………………………………………………………………………..………………………………Date:…………………………………………………………………..
A75: 1 | C75: I, Ncumisa Mnyani certify :
A76: 1 | C76: 1. Amounts set out by provincial department have been checked and verified where necessary; and
A77: 1 | C77: 2. are in compliance with the relevant sections of the Public Finance Management Act, and Section 31(2) of the Division of Revenue Act, 2022 (Act No. 4 of 2022).
A78: 0
A79: 0
A80: 0 | C80: Checks: Depts vs Eco Classification | D80: =D41-D66 -> 0 | E80: 0 | F80: 0 | G80: 0 | H80: 0 | I80: 0 | J80: 0 | K80: 0 | L80: 0 | M80: 0 | O80: =O41-O66 -> 0
A81: 0 | C81: Checks: Receipts vs IYM Model | D81: 0 | F81: 0 | H81: -12250 | I81: 21391636 | J81: 21216210 | K81: 18566175 | M81: -12250 | O81: =O42-O67 -> 0
A82: 0 | C82: Checks: Depts vs IYM Model | D82: 0 | F82: 0 | H82: 0 | I82: 20860975.37 | J82: 20387856.67 | K82: 18481235.62 | M82: 0 | O82: =O43-O68 -> 0
A83: 0 | C83: Checks: Depts vs Datafile | D83: -70377068.47 | F83: 0 | H83: -13235744 | I83: 20860975.37 | J83: 20387856.67 | K83: 18481235.62 | M83: 46494323.65 | O83: =O44-O69 -> 0
A238: 1
A239: 1
A240: 1
A241: 1
A242: 1
A243: 1

Sheet GT_2
C3: CONDITIONAL GRANTS TRANSFERRED FROM NATIONAL DEPARTMENTS AND ACTUAL PAYMENTS MADE BY PROVINCES FOR THE FIRST QUARTER ENDED 30 JUNE 2022 | T3: ="NATIONAL TREASURY: " & C3 -> NATIONAL TREASURY: CONDITIONAL GRANTS TRANSFERRED FROM NATIONAL DEPARTMENTS AND ACTUAL PAYMENTS MADE BY PROVINCES FOR THE FIRST QUARTER ENDED 30 JUNE 2022 | AK3: ="VARIANCE FROM NATIONAL TREASURY: " & C3 -> VARIANCE FROM NATIONAL TREASURY: CONDITIONAL GRANTS TRANSFERRED FROM NATIONAL DEPARTMENTS AND ACTUAL PAYMENTS MADE BY PROVINCES FOR THE FIRST QUARTER ENDED 30 JUNE 2022
C4: GAUTENG PROVINCE | T4: =C4 -> GAUTENG PROVINCE | AK4: =C4 -> GAUTENG PROVINCE
C6: National departments administering conditional grants | D6: 2022/23 | T6: National departments administering conditional grants | U6: 2019/20 | AK6: National departments administering conditional grants | AL6: =D6 -> 2022/23
D7: Budget | J7: Transfers | M7: Payments to Date | U7: Budget | AA7: Transfers | AD7: Payments to Date | AL7: =D7 -> Budget | AR7: =J7 -> Transfers | AU7: =M7 -> Payments to Date
D8: Division of Revenue Act, No. 9 of 2022 | E8: Division of Revenue Amendment Act, No. 30 of 2022 and other Gazettes | F8: Total National Allocation | G8: Provincial roll-overs approved by National Treasury | H8: Total Available | J8: Provincial Payment Schedule (National Allocation) | K8: Transferred from National to Province | M8: Actual Payments | N8: % Actual Payments | U8: Division of Revenue Act, No. 14 of 2018 | V8: Division of Revenue Amendment Act, No. 14 of 2018 | W8: Total National Allocation | X8: Provincial roll-overs approved by National Treasury | Y8: Total Available | AA8: Provincial Payment Schedule (National Allocation) | AB8: Transferred from National to Province | AD8: Actual Payments | AE8: % Actual Payments | AL8: =D8 -> Division of Revenue Act, No. 9 of 2022 | AM8: =E8 -> Division of Revenue Amendment Act, No. 30 of 2022 and other Gazettes | AN8: =F8 -> Total National Allocation | AO8: =G8 -> Provincial roll-overs approved by National Treasury | AP8: =H8 -> Total Available | AR8: =J8 -> Provincial Payment Schedule (National Allocation) | AS8: =K8 -> Transferred from National to Province | AU8: =M8 -> Actual Payments | AV8: =N8 -> % Actual Payments
D9: R'000 | E9: R'000 | F9: R'000 | G9: R'000 | H9: R'000 | J9: R'000 | K9: R'000 | M9: R'000 | N9: % | U9: R'000 | V9: R'000 | W9: R'000 | X9: R'000 | Y9: R'000 | AA9: R'000 | AB9: R'000 | AD9: R'000 | AE9: % | AL9: R'000 | AM9: R'000 | AN9: R'000 | AO9: R'000 | AP9: R'000 | AR9: R'000 | AS9: R'000 | AU9: R'000 | AV9: %
C11: Schedule 5, Part A Grants2. | T11: Schedule 5, Part A Grants2. | AK11: Schedule 5, Part A Grants2.
DB12: Numbers from the sources | DE12: Checks
C13: Agriculture, Land Reform and Rural Development (Vote 29) | D13: =SUM(D14+D15+D16) -> 146229 | E13: 94191 | F13: 240420 | G13: 4481 | H13: 244901 | I13: 0 | J13: 8983 | K13: 0 | M13: =SUM(M14+M15+M16) -> 0 | N13: =IFERROR(M13/D13,0) -> 0 | T13: =C13 -> Agriculture, Land Reform and Rural Development (Vote 29) | U13: 330418 | V13: 0 | W13: 330418 | X13: 0 | Y13: 330418 | AA13: 184183 | AB13: 184183 | AD13: 86222 | AE13: 0.2609482534 | AK13: =C13 -> Agriculture, Land Reform and Rural Development (Vote 29) | AL13: =SUM(AL14:AL16) -> 184189 | AM13: =SUM(AM14:AM16) -> -94191 | AN13: =SUM(AN14:AN16) -> 89998 | AO13: =SUM(AO14:AO16) -> -4481 | AP13: =SUM(AP14:AP16) -> 85517 | AR13: =SUM(AR14:AR16) -> 175200 | AS13: =SUM(AS14:AS16) -> 184183 | AU13: =SUM(AU14:AU16) -> 86222 | DB13: DoRA(annexure) | DC13: Payment schedule(macro) | DD13: Transfer from National(vulindlela) | DE13: DoRA | DF13: Payment Schedule | DG13: Transfer from National(vulindlela)
C14: (a) Comprehensive Agricultural Support Programme Grant | D14: 103748 | E14: =SUM(F14-D14) -> 74088 | F14: 177836 | G14: 4481 | H14: =SUM(F14:G14) -> 182317 | J14: 6225 | K14: 0 | M14: 0 | N14: =IFERROR(M14/D14,0) -> 0 | T14: (a) Comprehensive Agricultural Support Programme Grant | U14: 244101 | V14: 0 | W14: 244101 | X14: 0 | Y14: 244101 | AA14: 141578 | AB14: 141578 | AD14: 62765 | AE14: 0.2571271728 | AK14: (a) Comprehensive Agricultural Support Programme Grant | AL14: =IFERROR(U14-D14,0) -> 140353 | AM14: -74088 | AN14: 66265 | AO14: -4481 | AP14: 61784 | AR14: =IFERROR(AA14-J14,0) -> 135353 | AS14: 141578 | AU14: =IFERROR(AD14-M14,0) -> 62765 | DB14: 103748 | DC14: 6225 | DD14: 0 | DE14: =D14-DB14 -> 0 | DF14: =J14-DC14 -> 0 | DG14: 0
C15: (b) Ilima/Letsema Projects Grant | D15: 37262 | E15: =SUM(F15-D15) -> 13098 | F15: 50360 | G15: 0 | H15: =SUM(F15:G15) -> 50360 | J15: 2236 | K15: 0 | M15: 0 | N15: =IFERROR(M15/D15,0) -> 0 | T15: (b) Ilima/Letsema Projects Grant | U15: 75254 | V15: 0 | W15: 75254 | X15: 0 | Y15: 75254 | AA15: 37627 | AB15: 37627 | AD15: 12015 | AE15: 0.1596592872 | AK15: (b) Ilima/Letsema Projects Grant | AL15: 37992 | AM15: -13098 | AN15: 24894 | AO15: 0 | AP15: 24894 | AR15: 35391 | AS15: 37627 | AU15: 12015 | DB15: 37262 | DC15: 2236 | DD15: 0 | DE15: =D15-DB15 -> 0 | DF15: 0 | DG15: 0
C16: (c) Land Care Programme Grant: Poverty Relief and Infrastructure Development | D16: 5219 | E16: =SUM(F16-D16) -> 7005 | F16: 12224 | G16: 0 | H16: =SUM(F16:G16) -> 12224 | J16: 522 | K16: 0 | M16: 0 | N16: =IFERROR(M16/D16,0) -> 0 | T16: (c) Land Care Programme Grant: Poverty Relief and Infrastructure Development | U16: 11063 | V16: 0 | W16: 11063 | X16: 0 | Y16: 11063 | AA16: 4978 | AB16: 4978 | AD16: 11442 | AE16: 1.034258339 | AK16: (c) Land Care Programme Grant: Poverty Relief and Infrastructure Development | AL16: 5844 | AM16: -7005 | AN16: -1161 | AO16: 0 | AP16: -1161 | AR16: 4456 | AS16: 4978 | AU16: 11442 | DB16: 5219 | DC16: 522 | DD16: 0 | DE16: =D16-DB16 -> 0 | DF16: 0 | DG16: 0
E17: =F17-D17 -> 0 | H17: =SUM(F17:G17) -> 0 | N17: =IFERROR(M17/F17,0) -> 0 | T17: 0 | V17: 0 | Y17: 0 | AE17: 0 | AK17: 0 | AL17: 0 | AM17: 0 | AN17: 0 | AO17: 0 | AP17: 0 | AR17: 0 | AS17: 0 | AU17: 0 | DC17: 2236 | DE17: =D17-DB17 -> 0 | DF17: =J17-DC17 -> -2236
E18: =F18-D18 -> 0 | H18: =SUM(F18:G18) -> 0 | N18: =IFERROR(M18/F18,0) -> 0 | T18: 0 | V18: 0 | Y18: 0 | AE18: 0 | AK18: 0 | AL18: 0 | AM18: 0 | AN18: 0 | AO18: 0 | AP18: 0 | AR18: 0 | AS18: 0 | AU18: 0 | DC18: 2236 | DE18: =D18-DB18 -> 0 | DF18: =J18-DC18 -> -2236
AK19: 0 | AL19: 0 | AM19: 0 | AN19: 0 | AO19: 0 | AP19: 0 | AR19: 0 | AS19: 0 | AU19: 0
C20: Sports, Arts and Culture (Vote 37) | D20: =SUM(D21) -> 174099 | E20: -43835 | F20: 130264 | G20: 4369 | H20: 134633 | I20: 0 | J20: 12000 | K20: 12000 | M20: =SUM(M21) -> 0 | N20: =IFERROR(M20/D20,0) -> 0 | T20: =C20 -> Sports, Arts and Culture (Vote 37) | U20: 169824 | V20: 0 | W20: 169824 | X20: 0 | Y20: 169824 | AA20: 79231 | AB20: 79231 | AD20: 82181 | AE20: 0.4839186452 | AK20: Sports, Arts and Culture (Vote 37) | AL20: -4275 | AM20: 43835 | AN20: 39560 | AO20: -4369 | AP20: 35191 | AR20: 67231 | AS20: 67231 | AU20: 82181
C21: Community Library Services Grant | D21: 174099 | E21: =SUM(F21-D21) -> -43835 | F21: 130264 | G21: 4369 | H21: =SUM(F21:G21) -> 134633 | J21: 12000 | K21: 12000 | M21: 0 | N21: =IFERROR(M21/D21,0) -> 0 | T21: Community Library Services Grant | U21: 169824 | V21: 0 | W21: 169824 | X21: 0 | Y21: 169824 | AA21: 79231 | AB21: 79231 | AD21: 82181 | AE21: 0.4839186452 | AK21: Community Library Services Grant | AL21: -4275 | AM21: 43835 | AN21: 39560 | AO21: -4369 | AP21: 35191 | AR21: 67231 | AS21: 67231 | AU21: 82181 | DB21: 174099 | DC21: 12000 | DD21: 12000 | DE21: =D21-DB21 -> 0 | DF21: =J21-DC21 -> 0 | DG21: =K21-DD21 -> 0
E22: =F22-D22 -> 0 | H22: =SUM(F22:G22) -> 0 | N22: =IFERROR(M22/F22,0) -> 0 | T22: 0 | V22: 0 | Y22: 0 | AE22: 0 | AK22: 0 | AL22: 0 | AM22: 0 | AN22: 0 | AO22: 0 | AP22: 0 | AR22: 0 | AS22: 0 | AU22: 0 | DE22: =D22-DB22 -> 0
E23: =F23-D23 -> 0 | H23: =SUM(F23:G23) -> 0 | N23: =IFERROR(M23/F23,0) -> 0 | T23: 0 | V23: 0 | Y23: 0 | AE23: 0 | AK23: 0 | AL23: 0 | AM23: 0 | AN23: 0 | AO23: 0 | AP23: 0 | AR23: 0 | AS23: 0 | AU23: 0 | DE23: =D23-DB23 -> 0
E24: =F24-D24 -> 0 | H24: =SUM(F24:G24) -> 0 | N24: =IFERROR(M24/F24,0) -> 0 | T24: 0 | V24: 0 | Y24: 0 | AE24: 0 | AK24: 0 | AL24: 0 | AM24: 0 | AN24: 0 | AO24: 0 | AP24: 0 | AR24: 0 | AS24: 0 | AU24: 0 | DE24: =D24-DB24 -> 0
E25: =F25-D25 -> 0 | H25: =SUM(F25:G25) -> 0 | N25: =IFERROR(M25/F25,0) -> 0 | T25: 0 | V25: 0 | Y25: 0 | AE25: 0 | AK25: 0 | AL25: 0 | AM25: 0 | AN25: 0 | AO25: 0 | AP25: 0 | AR25: 0 | AS25: 0 | AU25: 0 | DE25: =D25-DB25 -> 0
AK26: 0 | AL26: 0 | AM26: 0 | AN26: 0 | AO26: 0 | AP26: 0 | AR26: 0 | AS26: 0 | AU26: 0
C27: Basic Education (Vote 16) | D27: =SUM(D28+D29+D30+D31+D32) -> 1359444 | E27: =SUM(E29+E30+E31+E32) -> 344978 | F27: =SUM(F29+F30+F31+F32) -> 1471707 | G27: =SUM(G29+G30+G31+G32) -> 16989 | H27: =SUM(H29+H30+H31+H32) -> 1488696 | I27: =SUM(I29+I30+I31+I32) -> 0 | J27: =SUM(J28+J29+J30+J31+J32) -> 344151 | K27: =SUM(K28+K29+K30+K31+K32) -> 344151 | M27: =SUM(M28+M29+M30+M31+M32) -> 219398 | N27: =IFERROR(M27/D27,0) -> 0.1613880381 | T27: =C27 -> Basic Education (Vote 16) | U27: 1398706 | V27: 0 | W27: 1398706 | X27: 0 | Y27: 1398706 | AA27: 1022190 | AB27: 1022190 | AD27: 986310 | AE27: 0.7051589112 | AK27: Basic Education (Vote 16) | AL27: 39262 | AM27: -344978 | AN27: -73001 | AO27: -16989 | AP27: -89990 | AR27: 678039 | AS27: 678039 | AU27: 766912
C28: (a) Early Childhood Development Grant | D28: 232715 | J28: 58179 | K28: 58179 | M28: 33689 | N28: 0.144765056 | T28: =C29 -> (b) HIV and AIDS (Life Skills Education) Grant | U28: 45455 | V28: 0 | W28: 45455 | X28: 0 | Y28: 45455 | AA28: 18182 | AB28: 18182 | AD28: 24690 | AE28: 0.5431745683 | AK28: =C29 -> (b) HIV and AIDS (Life Skills Education) Grant | AL28: =IFERROR(U28-D29,0) -> 8144 | AM28: 3276 | AN28: 11420 | AO28: 0 | AP28: 11420 | AR28: =IFERROR(AA28-J29,0) -> 14451 | AS28: 14451 | AU28: =IFERROR(AD28-M29,0) -> 24649 | DB28: 232715 | DC28: 58179 | DD28: 58179 | DE28: =D28-DB28 -> 0 | DF28: =J28-DC28 -> 0 | DG28: 0
C29: (b) HIV and AIDS (Life Skills Education) Grant | D29: 37311 | E29: =SUM(F29-D29) -> -3276 | F29: 34035 | G29: 0 | H29: =SUM(F29:G29) -> 34035 | J29: 3731 | K29: 3731 | M29: 41 | N29: 0.001098871646 | T29: =C30 -> (c) Learners with Profound Intellectual Disabilities Grant | U29: 25182 | V29: 0 | W29: 25182 | X29: 0 | Y29: 25182 | AA29: 16785 | AB29: 16785 | AD29: 8389 | AE29: 0.3331347788 | AK29: =C30 -> (c) Learners with Profound Intellectual Disabilities Grant | AL29: -9968 | AM29: 7382 | AN29: -2586 | AO29: -6311 | AP29: -8897 | AR29: 5635 | AS29: 5635 | AU29: =IFERROR(AD29-M30,0) -> 3332 | DB29: 37311 | DC29: 3731 | DD29: 3731 | DE29: =D29-DB29 -> 0 | DF29: 0 | DG29: 0
C30: (c) Learners with Profound Intellectual Disabilities Grant | D30: 35150 | E30: =SUM(F30-D30) -> -7382 | F30: 27768 | G30: 6311 | H30: =SUM(F30:G30) -> 34079 | J30: 11150 | K30: 11150 | M30: 5057 | N30: 0.1438691323 | T30: =C31 -> (d) Maths, Science and Technology Grant | U30: 49434 | V30: 0 | W30: 49434 | X30: 0 | Y30: 49434 | AA30: 24717 | AB30: 24717 | AD30: 9816 | AE30: 0.1985677874 | AK30: =C31 -> (d) Maths, Science and Technology Grant | AL30: -11467 | AM30: 27340 | AN30: 15873 | AO30: -9654 | AP30: 6219 | AR30: 18627 | AS30: 18627 | AU30: =IFERROR(AD30-M31,0) -> 9428 | DB30: 35150 | DC30: 11150 | DD30: 11150 | DE30: =D30-DB30 -> 0 | DF30: 0 | DG30: 0
C31: (d) Maths, Science and Technology Grant | D31: 60901 | E31: =SUM(F31-D31) -> -27340 | F31: 33561 | G31: 9654 | H31: =SUM(F31:G31) -> 43215 | J31: 6090 | K31: 6090 | M31: 388 | N31: 0.00637099555 | T31: =C32 -> (e) National School Nutrition Programme Grant | U31: 1278635 | V31: 0 | W31: 1278635 | X31: 0 | Y31: 1278635 | AA31: 962506 | AB31: 962506 | AD31: 943415 | AE31: 0.7378297951 | AK31: =C32 -> (e) National School Nutrition Programme Grant | AL31: 285268 | AM31: -382976 | AN31: -97708 | AO31: -1024 | AP31: -98732 | AR31: 697505 | AS31: 697505 | AU31: =IFERROR(AD31-M32,0) -> 763192 | DB31: 60901 | DC31: 6090 | DD31: 6090 | DE31: =D31-DB31 -> 0 | DF31: 0 | DG31: 0
C32: (e) National School Nutrition Programme Grant | D32: 993367 | E32: =SUM(F32-D32) -> 382976 | F32: 1376343 | G32: 1024 | H32: =SUM(F32:G32) -> 1377367 | J32: 265001 | K32: 265001 | M32: 180223 | N32: 0.1814264013 | T32: =#REF! ->  | V32: 0 | Y32: 0 | AE32: 0 | AK32: =#REF! ->  | AL32: =IFERROR(U32-#REF!,0) -> 0 | AM32: =IFERROR(V32-#REF!,0) -> 0 | AN32: =IFERROR(W32-#REF!,0) -> 0 | AO32: =IFERROR(X32-#REF!,0) -> 0 | AP32: =IFERROR(Y32-#REF!,0) -> 0 | AR32: =IFERROR(AA32-#REF!,0) -> 0 | AS32: =IFERROR(AB32-#REF!,0) -> 0 | AU32: =IFERROR(AD32-#REF!,0) -> 0 | DB32: 993367 | DC32: 265001 | DD32: 265001 | DE32: =D32-DB32 -> 0 | DF32: 0 | DG32: 0
AK33: =C33 -> 0 | AL33: =IFERROR(U33-D33,0) -> 0 | AM33: =IFERROR(V33-E33,0) -> 0 | AN33: =IFERROR(W33-F33,0) -> 0 | AO33: =IFERROR(X33-G33,0) -> 0 | AP33: =IFERROR(Y33-H33,0) -> 0 | AR33: =IFERROR(AA33-J33,0) -> 0 | AS33: =IFERROR(AB33-K33,0) -> 0 | AU33: =IFERROR(AD33-M33,0) -> 0
C34: Cooperative Governance and Traditional Affairs (Vote 4) | D34: =SUM(D35) -> 0 | E34: 0 | F34: 0 | G34: 0 | H34: 0 | I34: 0 | J34: 0 | K34: 0 | L34: 0 | M34: 0 | N34: =IFERROR(M34/H34,0) -> 0 | T34: =C34 -> Cooperative Governance and Traditional Affairs (Vote 4) | AK34: Cooperative Governance and Traditional Affairs (Vote 4) | AL34: =SUM(AL35:AL37) -> 0 | AM34: =SUM(AM35:AM37) -> 0 | AN34: =SUM(AN35:AN37) -> 0 | AO34: =SUM(AO35:AO37) -> 0 | AP34: =SUM(AP35:AP37) -> 0 | AR34: =SUM(AR35:AR37) -> 0 | AS34: =SUM(AS35:AS37) -> 0 | AU34: =SUM(AU35:AU37) -> 0 | DE34: =D34-DB34 -> 0
C35: Provincial Disaster Recovery Grant | E35: =SUM(F35-D35) -> 0 | H35: =SUM(F35:G35) -> 0 | T35: Provincial Disaster Recovery Grant | V35: 0 | Y35: 0 | AE35: 0 | AK35: Provincial Disaster Recovery Grant | AL35: =IFERROR(U35-D35,0) -> 0 | AM35: 0 | AN35: 0 | AO35: 0 | AP35: 0 | AR35: =IFERROR(AA35-J35,0) -> 0 | AS35: 0 | AU35: =IFERROR(AD35-M35,0) -> 0 | DE35: 0
E36: =F36-D36 -> 0 | H36: =SUM(F36:G36) -> 0 | N36: =IFERROR(M36/F36,0) -> 0 | T36: 0 | V36: 0 | Y36: 0 | AE36: 0 | AK36: 0 | AL36: 0 | AM36: 0 | AN36: 0 | AO36: 0 | AP36: 0 | AR36: 0 | AS36: 0 | AU36: 0 | DE36: 0
E37: =F37-D37 -> 0 | H37: =SUM(F37:G37) -> 0 | N37: =IFERROR(M37/F37,0) -> 0 | T37: 0 | V37: 0 | Y37: 0 | AE37: 0 | AK37: 0 | AL37: 0 | AM37: 0 | AN37: 0 | AO37: 0 | AP37: 0 | AR37: 0 | AS37: 0 | AU37: 0 | DE37: 0
E38: =F38-D38 -> 0 | H38: =SUM(F38:G38) -> 0 | N38: =IFERROR(M38/F38,0) -> 0 | T38: 0 | V38: 0 | Y38: 0 | AE38: 0 | AK38: 0 | AL38: 0 | AM38: 0 | AN38: 0 | AO38: 0 | AP38: 0 | AR38: 0 | AS38: 0 | AU38: 0 | DE38: 0
E39: =F39-D39 -> 0 | H39: =SUM(F39:G39) -> 0 | N39: =IFERROR(M39/F39,0) -> 0 | T39: 0 | V39: 0 | Y39: 0 | AE39: 0 | AK39: 0 | AL39: 0 | AM39: 0 | AN39: 0 | AO39: 0 | AP39: 0 | AR39: 0 | AS39: 0 | AU39: 0 | DE39: 0
AK40: 0 | AL40: 0 | AM40: 0 | AN40: 0 | AO40: 0 | AP40: 0 | AR40: 0 | AS40: 0 | AU40: 0
C41: Health (Vote 18) | D41: =SUM(D42+D43+D44+D45+D46) -> 9317456 | E41: -5099331 | F41: 4218125 | G41: 11194 | H41: 4229319 | I41: 0 | J41: 2329356 | K41: 2329392 | M41: =SUM(M42+M43+M44+M45+M46) -> 1051738 | N41: =IFERROR(M41/D41,0) -> 0.1128782363 | T41: =C41 -> Health (Vote 18) | U41: 3276289 | V41: 0 | W41: 3276289 | X41: 0 | Y41: 3276289 | AA41: 1777697 | AB41: 1777700 | AD41: 1686271 | AE41: 0.514689333 | AK41: Health (Vote 18) | AL41: -6041167 | AM41: 5099331 | AN41: -941836 | AO41: -11194 | AP41: -953030 | AR41: -551659 | AS41: -551692 | AU41: 634533
C42: (a) District Health Programmes Grant | D42: 6295969 | E42: =SUM(F42-D42) -> -3138670 | F42: 3157299 | G42: 0 | H42: =SUM(F42:G42) -> 3157299 | J42: 1573989 | K42: 1573989 | M42: 546640 | N42: =IFERROR(M42/D42,0) -> 0.08682380742 | T42: (a) District Health Programmes Grant | U42: 2397703 | V42: 0 | W42: 2397703 | X42: 0 | Y42: 2397703 | AA42: 1198848 | AB42: 1198851 | AD42: 1104098 | AE42: 0.4604815526 | AK42: (a) District Health Programmes Grant | AL42: -3898266 | AM42: 3138670 | AN42: -759596 | AO42: 0 | AP42: -759596 | AR42: -375141 | AS42: -375138 | AU42: 557458 | DB42: 6295969 | DC42: 1573989 | DD42: 1573988.997 | DE42: =D42-DB42 -> 0 | DF42: =J42-DC42 -> 0 | DG42: 0.002980000107
C43: (b) Health Facility Revitalisation Grant | D43: 1058859 | E43: =SUM(F43-D43) -> -389326 | F43: 669533 | G43: 11194 | H43: =SUM(F43:G43) -> 680727 | J43: 264714 | K43: 264714 | M43: 147866 | N43: =IFERROR(M43/D43,0) -> 0.1396465441 | T43: (b) Health Facility Revitalisation Grant | U43: 784988 | V43: 0 | W43: 784988 | X43: 0 | Y43: 784988 | AA43: 532055 | AB43: 532055 | AD43: 515189 | AE43: 0.6563017524 | AK43: (b) Health Facility Revitalisation Grant | AL43: -273871 | AM43: 389326 | AN43: 115455 | AO43: -11194 | AP43: 104261 | AR43: 267341 | AS43: 267341 | AU43: 367323 | DB43: 1058859 | DC43: 264714 | DD43: 264714.0059 | DE43: =D43-DB43 -> 0 | DF43: 0 | DG43: -0.005919999967
C44: (c) Human Resources and Training Grant | D44: 1872229 | E44: =SUM(F44-D44) -> -1872229 | F44: 0 | G44: 0 | H44: =SUM(F44:G44) -> 0 | J44: 468054 | K44: 468054 | M44: 346826 | N44: =IFERROR(M44/D44,0) -> 0.185247638 | T44: (c) Human Resources and Training Grant | U44: 35345 | V44: 0 | W44: 35345 | X44: 0 | Y44: 35345 | AA44: 17670 | AB44: 17670 | AD44: 17524 | AE44: 0.4957985571 | AK44: (c) Human Resources and Training Grant | AL44: -1836884 | AM44: 1872229 | AN44: 35345 | AO44: 0 | AP44: 35345 | AR44: -450384 | AS44: -450384 | AU44: -329302 | DB44: 1872229 | DC44: 468054 | DD44: 468053.9897 | DE44: =D44-DB44 -> 0 | DF44: 0 | DG44: 0.01027999999
C45: (d) National Health Insurance Grant | D45: 90399 | E45: =SUM(F45-D45) -> 300894 | F45: 391293 | G45: 0 | H45: =SUM(F45:G45) -> 391293 | J45: 22599 | K45: 22635 | M45: 10406 | N45: =IFERROR(M45/D45,0) -> 0.1151118928 | T45: (d) National Health Insurance Grant | U45: 58253 | V45: 0 | W45: 58253 | X45: 0 | Y45: 58253 | AA45: 29124 | AB45: 29124 | AD45: 49460 | AE45: 0.8490549843 | AK45: (d) National Health Insurance Grant | AL45: -32146 | AM45: -300894 | AN45: -333040 | AO45: 0 | AP45: -333040 | AR45: 6525 | AS45: 6489 | AU45: 39054 | DB45: 90399 | DC45: 22599 | DD45: 22635.0124 | DE45: =D45-DB45 -> 0 | DF45: 0 | DG45: -0.0124
T46: 0 | V46: 0 | Y46: 0 | AE46: 0 | AK46: 0 | AL46: 0 | AM46: 0 | AN46: 0 | AO46: 0 | AP46: 0 | AR46: 0 | AS46: 0 | AU46: 0
AK47: 0 | AL47: 0 | AM47: 0 | AN47: 0 | AO47: 0 | AP47: 0 | AR47: 0 | AS47: 0 | AU47: 0 | DE47: =D47-DB47 -> 0
C48: Human Settlements (Vote 33) | D48: =SUM(D49+D50) -> 5130438 | E48: -3834114 | F48: 1296324 | G48: 237589 | H48: 1533913 | I48: 0 | J48: 1169107 | K48: 1169107 | M48: =SUM(M49+M50) -> 257646 | N48: =IFERROR(M48/D48,0) -> 0.0502191041 | T48: =C48 -> Human Settlements (Vote 33) | U48: 2021182 | V48: 0 | W48: 2021182 | X48: 0 | Y48: 2021182 | AA48: 969157 | AB48: 979307 | AD48: 959607 | AE48: 0.4747751563 | AK48: Human Settlements (Vote 33) | AL48: -3109256 | AM48: 3834114 | AN48: 724858 | AO48: -237589 | AP48: 487269 | AR48: -199950 | AS48: -189800 | AU48: 701961
C49: (a) Human Settlements Development Grant | D49: 3955283 | E49: =SUM(F49-D49) -> -2681199 | F49: 1274084 | G49: 205080 | H49: =SUM(F49:G49) -> 1479164 | J49: 934076 | K49: 934076 | M49: 229976 | N49: =IFERROR(M49/D49,0) -> 0.05814400638 | T49: (a) Human Settlements Development Grant | U49: 1960278 | V49: 0 | W49: 1960278 | X49: 0 | Y49: 1960278 | AA49: 953931 | AB49: 953931 | AD49: 939260 | AE49: 0.4791463252 | AK49: (a) Human Settlements Development Grant | AL49: -1995005 | AM49: 2681199 | AN49: 686194 | AO49: -205080 | AP49: 481114 | AR49: 19855 | AS49: 19855 | AU49: 709284 | DB49: 3955283 | DC49: 934076 | DD49: 934076 | DE49: =D49-DB49 -> 0 | DF49: =J49-DC49 -> 0 | DG49: =K49-DD49 -> 0
C50: (b) Informal Settlements Upgrading Partnership Grant: Provinces | D50: 1175155 | E50: =SUM(F50-D50) -> -1152915 | F50: 22240 | G50: 32509 | H50: =SUM(F50:G50) -> 54749 | J50: 235031 | K50: 235031 | M50: 27670 | N50: =IFERROR(M50/D50,0) -> 0.02354583012 | T50: (b) Informal Settlements Upgrading Partnership Grant: Provinces | U50: 60904 | V50: 0 | W50: 60904 | X50: 0 | Y50: 60904 | AA50: 15226 | AB50: 25376 | AD50: 20347 | AE50: 0.3340831472 | AK50: (b) Informal Settlements Upgrading Partnership Grant: Provinces | AL50: -1114251 | AM50: 1152915 | AN50: 38664 | AO50: -32509 | AP50: 6155 | AR50: -219805 | AS50: -209655 | AU50: -7323 | DB50: 1175155 | DC50: 235031 | DD50: 235031 | DE50: =D50-DB50 -> 0 | DF50: =J50-DC50 -> 0 | DG50: =K50-DD50 -> 0
E51: =F51-D51 -> 0 | H51: =SUM(F51:G51) -> 0 | N51: =IFERROR(M51/F51,0) -> 0 | T51: 0 | V51: 0 | Y51: 0 | AE51: 0 | AK51: 0 | AL51: 0 | AM51: 0 | AN51: 0 | AO51: 0 | AP51: 0 | AR51: 0 | AS51: 0 | AU51: 0 | DC51: 934076 | DE51: =D51-DB51 -> 0
E52: =F52-D52 -> 0 | H52: =SUM(F52:G52) -> 0 | N52: =IFERROR(M52/F52,0) -> 0 | T52: 0 | V52: 0 | Y52: 0 | AE52: 0 | AK52: 0 | AL52: 0 | AM52: 0 | AN52: 0 | AO52: 0 | AP52: 0 | AR52: 0 | AS52: 0 | AU52: 0 | DC52: 934076 | DE52: =D52-DB52 -> 0
E53: =F53-D53 -> 0 | H53: =SUM(F53:G53) -> 0 | N53: =IFERROR(M53/F53,0) -> 0 | T53: 0 | V53: 0 | Y53: 0 | AE53: 0 | AK53: 0 | AL53: 0 | AM53: 0 | AN53: 0 | AO53: 0 | AP53: 0 | AR53: 0 | AS53: 0 | AU53: 0 | DC53: 934076 | DE53: =D53-DB53 -> 0
AK54: 0 | AL54: 0 | AM54: 0 | AN54: 0 | AO54: 0 | AP54: 0 | AR54: 0 | AS54: 0 | AU54: 0
C55: Public Works and Infrastructure (Vote 13) | D55: =SUM(D56+D57) -> 92354 | E55: 70637 | F55: 162991 | G55: 0 | H55: 162991 | I55: 0 | J55: 23090 | K55: 22500 | M55: =SUM(M56+M57) -> 13226 | N55: =IFERROR(M55/D55,0) -> 0.1432098231 | T55: =C55 -> Public Works and Infrastructure (Vote 13) | U55: 157225 | V55: 0 | W55: 157225 | X55: 0 | Y55: 157225 | AA55: 110057 | AB55: 104823 | AD55: 78040.1276 | AE55: 0.4963595332 | AK55: Public Works and Infrastructure (Vote 13) | AL55: 64871 | AM55: -70637 | AN55: -5766 | AO55: 0 | AP55: -5766 | AR55: 86967 | AS55: 82323 | AU55: 64814.1276
C56: (a) Expanded Public Works Programme Integrated Grant for Provinces | D56: 40105 | E56: =SUM(F56-D56) -> 67684 | F56: 107789 | G56: 0 | H56: =SUM(F56:G56) -> 107789 | J56: 10027 | K56: 9437 | M56: 4235 | N56: =IFERROR(M56/D56,0) -> 0.1055978058 | T56: (a) Expanded Public Works Programme Integrated Grant for Provinces | U56: 106862 | V56: 0 | W56: 106862 | X56: 0 | Y56: 106862 | AA56: 74804 | AB56: 69570 | AD56: 51083.1276 | AE56: 0.4780289308 | AK56: (a) Expanded Public Works Programme Integrated Grant for Provinces | AL56: 66757 | AM56: -67684 | AN56: -927 | AO56: 0 | AP56: -927 | AR56: 64777 | AS56: 60133 | AU56: 46848.1276 | DB56: 40105 | DC56: 10027 | DD56: 9437 | DE56: =D56-DB56 -> 0 | DF56: =J56-DC56 -> 0 | DG56: =K56-DD56 -> 0
C57: (b) Social Sector Expanded Public Works Programme Incentive Grant for Provinces | D57: 52249 | E57: =SUM(F57-D57) -> 2953 | F57: 55202 | G57: 0 | H57: =SUM(F57:G57) -> 55202 | J57: 13063 | K57: 13063 | M57: 8991 | N57: =IFERROR(M57/D57,0) -> 0.1720798484 | T57: (b) Social Sector Expanded Public Works Programme Incentive Grant for Provinces | U57: 50363 | V57: 0 | W57: 50363 | X57: 0 | Y57: 50363 | AA57: 35253 | AB57: 35253 | AD57: 26957 | AE57: 0.5352540556 | AK57: (b) Social Sector Expanded Public Works Programme Incentive Grant for Provinces | AL57: -1886 | AM57: -2953 | AN57: -4839 | AO57: 0 | AP57: -4839 | AR57: 22190 | AS57: 22190 | AU57: 17966 | DB57: 52249 | DC57: 13063 | DD57: 13063 | DE57: =D57-DB57 -> 0 | DF57: =J57-DC57 -> 0 | DG57: =K57-DD57 -> 0
E58: =F58-D58 -> 0 | H58: =SUM(F58:G58) -> 0 | N58: =IFERROR(M58/F58,0) -> 0 | T58: 0 | V58: 0 | Y58: 0 | AE58: 0 | AK58: 0 | AL58: 0 | AM58: 0 | AN58: 0 | AO58: 0 | AP58: 0 | AR58: 0 | AS58: 0 | AU58: 0 | DE58: =D58-DB58 -> 0
E59: =F59-D59 -> 0 | H59: =SUM(F59:G59) -> 0 | N59: =IFERROR(M59/F59,0) -> 0 | T59: 0 | V59: 0 | Y59: 0 | AE59: 0 | AK59: 0 | AL59: 0 | AM59: 0 | AN59: 0 | AO59: 0 | AP59: 0 | AR59: 0 | AS59: 0 | AU59: 0 | DE59: =D59-DB59 -> 0
E60: =F60-D60 -> 0 | H60: =SUM(F60:G60) -> 0 | N60: =IFERROR(M60/F60,0) -> 0 | T60: 0 | V60: 0 | Y60: 0 | AE60: 0 | AK60: 0 | AL60: 0 | AM60: 0 | AN60: 0 | AO60: 0 | AP60: 0 | AR60: 0 | AS60: 0 | AU60: 0 | DE60: =D60-DB60 -> 0
AK61: 0 | AL61: 0 | AM61: 0 | AN61: 0 | AO61: 0 | AP61: 0 | AR61: 0 | AS61: 0 | AU61: 0
C62: Social Development (Vote 19) | D62: =SUM(D63) -> 0 | E62: 193934 | F62: 193934 | G62: 1978 | H62: 195912 | I62: 0 | J62: 0 | K62: 0 | M62: =SUM(M63) -> 0 | N62: =IFERROR(M62/D62,0) -> 0 | T62: =C62 -> Social Development (Vote 19) | U62: 85397 | V62: 0 | W62: 85397 | X62: 0 | Y62: 85397 | AA62: 45025 | AB62: 45025 | AD62: 33094 | AE62: 0.3875311779 | AK62: Social Development (Vote 19) | AL62: 85397 | AM62: -193934 | AN62: -108537 | AO62: -1978 | AP62: -110515 | AR62: 45025 | AS62: 45025 | AU62: 33094 | DE62: =D62-DB62 -> 0
E63: =SUM(F63-D63) -> 193934 | F63: 193934 | G63: 1978 | H63: =SUM(F63:G63) -> 195912 | T63: 0 | U63: 85397 | V63: 0 | W63: 85397 | X63: 0 | Y63: 85397 | AA63: 45025 | AB63: 45025 | AD63: 33094 | AE63: 0.3875311779 | AK63: 0 | AL63: 85397 | AM63: -193934 | AN63: -108537 | AO63: -1978 | AP63: -110515 | AR63: 45025 | AS63: 45025 | AU63: 33094 | DE63: 0
C64: (b) Substance Abuse Treatment Grant | T64: (b) Substance Abuse Treatment Grant | U64: 0 | V64: 0 | W64: 0 | X64: 0 | Y64: 0 | AA64: 0 | AB64: 0 | AD64: 0 | AE64: 0 | AK64: (b) Substance Abuse Treatment Grant | AL64: 0 | AM64: 0 | AN64: 0 | AO64: 0 | AP64: 0 | AR64: 0 | AS64: 0 | AU64: 0 | DE64: 0
E65: =F65-D65 -> 0 | H65: =SUM(F65:G65) -> 0 | N65: =IFERROR(M65/F65,0) -> 0 | T65: 0 | V65: 0 | Y65: 0 | AE65: 0 | AK65: 0 | AL65: 0 | AM65: 0 | AN65: 0 | AO65: 0 | AP65: 0 | AR65: 0 | AS65: 0 | AU65: 0 | DE65: 0
E66: =F66-D66 -> 0 | H66: =SUM(F66:G66) -> 0 | N66: =IFERROR(M66/F66,0) -> 0 | T66: 0 | V66: 0 | Y66: 0 | AE66: 0 | AK66: 0 | AL66: 0 | AM66: 0 | AN66: 0 | AO66: 0 | AP66: 0 | AR66: 0 | AS66: 0 | AU66: 0 | DE66: 0
E67: =F67-D67 -> 0 | H67: =SUM(F67:G67) -> 0 | N67: =IFERROR(M67/F67,0) -> 0 | T67: 0 | V67: 0 | Y67: 0 | AE67: 0 | AK67: 0 | AL67: =IFERROR(U67-D67,0) -> 0 | AM67: 0 | AN67: 0 | AO67: 0 | AP67: 0 | AR67: =IFERROR(AA67-J67,0) -> 0 | AS67: 0 | AU67: 0 | DE67: 0
AK68: 0 | AL68: 0 | AM68: 0 | AN68: 0 | AO68: 0 | AP68: 0 | AR68: 0 | AS68: 0 | AU68: 0
C69: Sports, Arts and Culture (Vote 37) | D69: =SUM(D70) -> 102073 | E69: -68469 | F69: 33604 | G69: 475 | H69: 34079 | I69: 0 | J69: 20414 | K69: 0 | M69: =SUM(M70) -> 6188 | N69: =IFERROR(M69/D69,0) -> 0.06062327942 | T69: =C69 -> Sports, Arts and Culture (Vote 37) | U69: 70037 | V69: 0 | W69: 70037 | X69: 0 | Y69: 70037 | AA69: 35018 | AB69: 35018 | AD69: 29735 | AE69: 0.4245613033 | AK69: Sports, Arts and Culture (Vote 37) | AL69: -32036 | AM69: 68469 | AN69: 36433 | AO69: -475 | AP69: 35958 | AR69: 14604 | AS69: 35018 | AU69: 23547
C70: Mass Participation and Sport Development Grant | D70: 102073 | E70: =SUM(F70-D70) -> -68469 | F70: 33604 | G70: 475 | H70: =SUM(F70:G70) -> 34079 | J70: 20414 | K70: 0 | M70: 6188 | N70: =IFERROR(M70/D70,0) -> 0.06062327942 | T70: Mass Participation and Sport Development Grant | U70: 70037 | V70: 0 | W70: 70037 | X70: 0 | Y70: 70037 | AA70: 35018 | AB70: 35018 | AD70: 29735 | AE70: 0.4245613033 | AK70: Mass Participation and Sport Development Grant | AL70: -32036 | AM70: 68469 | AN70: 36433 | AO70: -475 | AP70: 35958 | AR70: 14604 | AS70: 35018 | AU70: 23547 | DB70: 102073 | DC70: 20414 | DD70: 0 | DE70: =D70-DB70 -> 0 | DF70: =J70-DC70 -> 0 | DG70: =K70-DD70 -> 0
E71: =F71-D71 -> 0 | H71: =SUM(F71:G71) -> 0 | N71: =IFERROR(M71/F71,0) -> 0 | T71: 0 | V71: 0 | Y71: 0 | AE71: 0 | AK71: 0 | AL71: 0 | AM71: 0 | AN71: 0 | AO71: 0 | AP71: 0 | AR71: 0 | AS71: 0 | AU71: 0 | DE71: =D71-DB71 -> 0
E72: =F72-D72 -> 0 | H72: =SUM(F72:G72) -> 0 | N72: =IFERROR(M72/F72,0) -> 0 | T72: 0 | V72: 0 | Y72: 0 | AE72: 0 | AK72: 0 | AL72: 0 | AM72: 0 | AN72: 0 | AO72: 0 | AP72: 0 | AR72: 0 | AS72: 0 | AU72: 0 | DE72: =D72-DB72 -> 0
E73: =F73-D73 -> 0 | H73: =SUM(F73:G73) -> 0 | N73: =IFERROR(M73/F73,0) -> 0 | T73: 0 | V73: 0 | Y73: 0 | AE73: 0 | AK73: 0 | AL73: 0 | AM73: 0 | AN73: 0 | AO73: 0 | AP73: 0 | AR73: 0 | AS73: 0 | AU73: 0 | DE73: =D73-DB73 -> 0
E74: =F74-D74 -> 0 | H74: =SUM(F74:G74) -> 0 | N74: =IFERROR(M74/F74,0) -> 0 | T74: 0 | V74: 0 | Y74: 0 | AE74: 0 | AK74: 0 | AL74: 0 | AM74: 0 | AN74: 0 | AO74: 0 | AP74: 0 | AR74: 0 | AS74: 0 | AU74: 0 | DE74: =D74-DB74 -> 0
AK75: 0 | AL75: 0 | AM75: 0 | AN75: 0 | AO75: 0 | AP75: 0 | AR75: 0 | AS75: 0 | AU75: 0
C76: Sub-Total | D76: =SUM(D13+D20+D27+D41+D48+D55+D69) -> 16322093 | E76: =SUM(E13+E20+E27+E34+E41+E48+E55+E62+E69) -> -8342009 | F76: =SUM(F13+F20+F27+F34+F41+F48+F55+F62+F69) -> 7747369 | G76: =SUM(G13+G20+G27+G34+G41+G48+G55+G62+G69) -> 277075 | H76: =SUM(H13+H20+H27+H34+H41+H48+H55+H62+H69) -> 8024444 | I76: =SUM(I13+I20+I27+I34+I41+I48+I55+I62+I69) -> 0 | J76: =SUM(J13+J20+J27+J41+J48+J55+J69) -> 3907101 | K76: =SUM(K13+K20+K27+K41+K48+K55+K69) -> 3877150 | M76: =SUM(M13+M20+M27+M41+M48+M55+M69) -> 1548196 | N76: =IFERROR(M76/D76,0) -> 0.09485278634 | T76: Sub-Total | U76: 7509078 | V76: 0 | W76: 7509078 | X76: 0 | Y76: 7509078 | Z76: 0 | AA76: 4222558 | AB76: 4227477 | AD76: 3941460.128 | AE76: 0.5248926869 | AK76: Sub-Total | AL76: -8813015 | AM76: 8342009 | AN76: -238291 | AO76: -277075 | AP76: -515366 | AR76: 315457 | AS76: 350327 | AU76: 2393264.128
AL77: 0 | AM77: 0 | AN77: 0 | AO77: 0 | AP77: 0 | AR77: 0 | AS77: 0 | AU77: 0
C78: Schedule 4, Part A Grants1. | T78: Schedule 4, Part A Grants1. | AK78: =C78 -> Schedule 4, Part A Grants1. | AL78: 0 | AM78: 0 | AN78: 0 | AO78: 0 | AP78: 0 | AR78: 0 | AS78: 0 | AU78: 0
AL79: 0 | AM79: 0 | AN79: 0 | AO79: 0 | AP79: 0 | AR79: 0 | AS79: 0 | AU79: 0
C80: Basic Education (Vote 16) | D80: =SUM(D81) -> 1686845 | E80: -459810 | F80: 1227035 | G80: 113603 | H80: 1340638 | I80: 0 | J80: 506054 | K80: 506054 | T80: =C80 -> Basic Education (Vote 16) | U80: 1585532 | V80: 0 | W80: 1585532 | X80: 0 | Y80: 1585532 | AA80: 990958 | AB80: 990958 | AK80: =C80 -> Basic Education (Vote 16) | AL80: -101313 | AM80: 459810 | AN80: 358497 | AO80: -113603 | AP80: 244894 | AR80: 484904 | AS80: 484904 | AU80: 0
C81: Education Infrastructure Grant | D81: 1686845 | E81: =SUM(F81-D81) -> -459810 | F81: 1227035 | G81: 113603 | H81: =SUM(F81:G81) -> 1340638 | J81: 506054 | K81: 506054 | T81: Education Infrastructure Grant | U81: 1585532 | V81: 0 | W81: 1585532 | X81: 0 | Y81: 1585532 | AA81: 990958 | AB81: 990958 | AK81: Education Infrastructure Grant | AL81: -101313 | AM81: 459810 | AN81: 358497 | AO81: -113603 | AP81: 244894 | AR81: 484904 | AS81: 484904 | AU81: 0 | DB81: 1686845 | DC81: 506054 | DD81: 506054 | DE81: =D81-DB81 -> 0 | DF81: =J81-DC81 -> 0 | DG81: =K81-DD81 -> 0
E82: =F82-D82 -> 0 | H82: =SUM(F82:G82) -> 0 | T82: 0 | V82: 0 | Y82: 0 | AK82: 0 | AL82: 0 | AM82: 0 | AN82: 0 | AO82: 0 | AP82: 0 | AR82: 0 | AS82: 0 | AU82: 0 | DE82: =D82-DB82 -> 0
E83: =F83-D83 -> 0 | H83: =SUM(F83:G83) -> 0 | T83: 0 | V83: 0 | Y83: 0 | AK83: 0 | AL83: 0 | AM83: 0 | AN83: 0 | AO83: 0 | AP83: 0 | AR83: 0 | AS83: 0 | AU83: 0 | DE83: =D83-DB83 -> 0
E84: =F84-D84 -> 0 | H84: =SUM(F84:G84) -> 0 | T84: 0 | V84: 0 | Y84: 0 | AK84: 0 | AL84: 0 | AM84: 0 | AN84: 0 | AO84: 0 | AP84: 0 | AR84: 0 | AS84: 0 | AU84: 0 | DE84: =D84-DB84 -> 0
E85: =F85-D85 -> 0 | H85: =SUM(F85:G85) -> 0 | T85: 0 | V85: 0 | Y85: 0 | AK85: 0 | AL85: 0 | AM85: 0 | AN85: 0 | AO85: 0 | AP85: 0 | AR85: 0 | AS85: 0 | AU85: 0 | DE85: =D85-DB85 -> 0
AK86: 0 | AL86: 0 | AM86: 0 | AN86: 0 | AO86: 0 | AP86: 0 | AR86: 0 | AS86: 0 | AU86: 0
C87: Health (Vote 18) | D87: =SUM(D88) -> 5083886 | E87: =SUM(E88+E89) -> -4003040 | F87: =SUM(F88+F89) -> 1080846 | G87: =SUM(G88+G89) -> 55587 | H87: =SUM(H88+H89) -> 1136433 | I87: =SUM(I88+I89) -> 0 | J87: =SUM(J88) -> 1270971 | K87: =SUM(K88) -> 1270971 | T87: =C87 -> Health (Vote 18) | U87: 1248569 | V87: 0 | W87: 1248569 | X87: 0 | Y87: 1248569 | AA87: 624282 | AB87: 624282 | AK87: Health (Vote 18) | AL87: -3835317 | AM87: 4003040 | AN87: 167723 | AO87: -55587 | AP87: 112136 | AR87: -646689 | AS87: -646689 | AU87: 0
C88: National Tertiary Services Grant | D88: 5083886 | E88: =SUM(F88-D88) -> -5083886 | F88: 0 | G88: 44551 | H88: =SUM(F88:G88) -> 44551 | J88: 1270971 | K88: 1270971 | T88: National Tertiary Services Grant | U88: 253131 | V88: 0 | W88: 253131 | X88: 0 | Y88: 253131 | AA88: 126564 | AB88: 126564 | AK88: National Tertiary Services Grant | AL88: -4830755 | AM88: 5083886 | AN88: 253131 | AO88: -44551 | AP88: 208580 | AR88: -1144407 | AS88: -1144407 | AU88: 0 | DB88: 5083886 | DC88: 1270971 | DD88: 1270970.995 | DE88: =D88-DB88 -> 0 | DF88: =J88-DC88 -> 0 | DG88: =K88-DD88 -> 0.005059999879
E89: =SUM(F89-D89) -> 1080846 | F89: 1080846 | G89: 11036 | H89: =SUM(F89:G89) -> 1091882 | T89: 0 | U89: 995438 | V89: 0 | W89: 995438 | X89: 0 | Y89: 995438 | AA89: 497718 | AB89: 497718 | AK89: 0 | AL89: 995438 | AM89: -1080846 | AN89: -85408 | AO89: -11036 | AP89: -96444 | AR89: 497718 | AS89: 497718 | AU89: 0 | DE89: 0
E90: =F90-D90 -> 0 | H90: =SUM(F90:G90) -> 0 | T90: 0 | V90: 0 | Y90: 0 | AK90: 0 | AL90: 0 | AM90: 0 | AN90: 0 | AO90: 0 | AP90: 0 | AR90: 0 | AS90: 0 | AU90: 0 | DE90: 0
E91: =F91-D91 -> 0 | H91: =SUM(F91:G91) -> 0 | T91: 0 | V91: 0 | Y91: 0 | AK91: 0 | AL91: 0 | AM91: 0 | AN91: 0 | AO91: 0 | AP91: 0 | AR91: 0 | AS91: 0 | AU91: 0 | DE91: 0
E92: =F92-D92 -> 0 | H92: =SUM(F92:G92) -> 0 | T92: 0 | V92: 0 | Y92: 0 | AK92: 0 | AL92: 0 | AM92: 0 | AN92: 0 | AO92: 0 | AP92: 0 | AR92: 0 | AS92: 0 | AU92: 0 | DE92: 0
AK93: 0 | AL93: 0 | AM93: 0 | AN93: 0 | AO93: 0 | AP93: 0 | AR93: 0 | AS93: 0 | AU93: 0 | DE93: 0
E94: =F94-D94 -> 0 | T94: =C94 -> 0 | V94: 0 | AK94: 0 | AL94: 0 | AM94: 0 | AN94: 0 | AO94: 0 | AP94: 0 | AR94: 0 | AS94: 0 | AU94: 0 | DE94: 0
D95: 0 | E95: 0 | F95: 0 | G95: 0 | H95: =SUM(F95:G95) -> 0 | J95: 0 | K95: 0 | T95: 0 | U95: 0 | V95: 0 | W95: 0 | X95: 0 | Y95: 0 | AA95: 0 | AB95: 0 | AK95: 0 | AL95: 0 | AM95: 0 | AN95: 0 | AO95: 0 | AP95: 0 | AR95: 0 | AS95: 0 | AU95: 0 | DE95: 0
E96: 0 | H96: =SUM(F96:G96) -> 0 | T96: 0 | V96: 0 | Y96: 0 | AK96: 0 | AL96: 0 | AM96: 0 | AN96: 0 | AO96: 0 | AP96: 0 | AR96: 0 | AS96: 0 | AU96: 0 | DE96: 0
E97: 0 | H97: =SUM(F97:G97) -> 0 | T97: 0 | V97: 0 | Y97: 0 | AK97: 0 | AL97: 0 | AM97: 0 | AN97: 0 | AO97: 0 | AP97: 0 | AR97: 0 | AS97: 0 | AU97: 0 | DE97: 0
E98: 0 | H98: =SUM(F98:G98) -> 0 | T98: 0 | V98: 0 | Y98: 0 | AK98: 0 | AL98: 0 | AM98: 0 | AN98: 0 | AO98: 0 | AP98: 0 | AR98: 0 | AS98: 0 | AU98: 0 | DE98: 0
E99: 0 | H99: =SUM(F99:G99) -> 0 | T99: 0 | V99: 0 | Y99: 0 | AK99: 0 | AL99: =IFERROR(U99-D99,0) -> 0 | AM99: 0 | AN99: 0 | AO99: 0 | AP99: 0 | AR99: =IFERROR(AA99-J99,0) -> 0 | AS99: 0 | AU99: =IFERROR(AD99-M99,0) -> 0 | DE99: 0
AK100: 0 | AL100: 0 | AM100: 0 | AN100: 0 | AO100: 0 | AP100: 0 | AR100: 0 | AS100: 0 | AU100: 0
C101: Transport (Vote 40) | D101: =SUM(D102+D103) -> 3410608 | E101: -1672794 | F101: 1737814 | G101: 34572 | H101: 1772386 | I101: 0 | J101: 654942 | K101: 654942 | T101: =C101 -> Transport (Vote 40) | U101: 1735654 | V101: 0 | W101: 1735654 | X101: 0 | Y101: 1735654 | AA101: 1018416 | AB101: 1018416 | AK101: Transport (Vote 40) | AL101: -1674954 | AM101: 1672794 | AN101: -2160 | AO101: -34572 | AP101: -36732 | AR101: 363474 | AS101: 363474 | AU101: 0
C102: (a) Provincial Roads Maintenance Grant | D102: 680058 | E102: =SUM(F102-D102) -> 788749 | F102: 1468807 | G102: 34572 | H102: =SUM(F102:G102) -> 1503379 | J102: 170015 | K102: 170015 | T102: (a) Provincial Roads Maintenance Grant | U102: 1483539 | V102: 0 | W102: 1483539 | X102: 0 | Y102: 1483539 | AA102: 903816 | AB102: 903816 | AK102: (a) Provincial Roads Maintenance Grant | AL102: 803481 | AM102: -788749 | AN102: 14732 | AO102: -34572 | AP102: -19840 | AR102: 733801 | AS102: 733801 | AU102: 0 | DB102: 680058 | DC102: 170015 | DD102: 170015 | DE102: =D102-DB102 -> 0 | DF102: =J102-DC102 -> 0 | DG102: =K102-DD102 -> 0
C103: (b) Public Transport Operations Grant | D103: 2730550 | E103: =SUM(F103-D103) -> -2461543 | F103: 269007 | G103: 0 | H103: =SUM(F103:G103) -> 269007 | J103: 484927 | K103: 484927 | T103: (b) Public Transport Operations Grant | U103: 252115 | V103: 0 | W103: 252115 | X103: 0 | Y103: 252115 | AA103: 114600 | AB103: 114600 | AK103: (b) Public Transport Operations Grant | AL103: -2478435 | AM103: 2461543 | AN103: -16892 | AO103: 0 | AP103: -16892 | AR103: -370327 | AS103: -370327 | AU103: 0 | DB103: 2730550 | DC103: 484927 | DD103: 484927 | DE103: =D103-DB103 -> 0 | DF103: =J103-DC103 -> 0 | DG103: =K103-DD103 -> 0
E104: =F104-D104 -> 0 | H104: =SUM(F104:G104) -> 0 | T104: 0 | V104: 0 | Y104: 0 | AK104: 0 | AL104: 0 | AM104: 0 | AN104: 0 | AO104: 0 | AP104: 0 | AR104: 0 | AS104: 0 | AU104: 0 | DE104: =D104-DB104 -> 0
E105: =F105-D105 -> 0 | H105: =SUM(F105:G105) -> 0 | T105: 0 | V105: 0 | Y105: 0 | AK105: 0 | AL105: 0 | AM105: 0 | AN105: 0 | AO105: 0 | AP105: 0 | AR105: 0 | AS105: 0 | AU105: 0 | DE105: =D105-DB105 -> 0
E106: =F106-D106 -> 0 | H106: =SUM(F106:G106) -> 0 | T106: 0 | V106: 0 | Y106: 0 | AK106: 0 | AL106: 0 | AM106: 0 | AN106: 0 | AO106: 0 | AP106: 0 | AR106: 0 | AS106: 0 | AU106: 0 | DE106: =D106-DB106 -> 0
AK107: 0 | AL107: 0 | AM107: 0 | AN107: 0 | AO107: 0 | AP107: 0 | AR107: 0 | AS107: 0 | AU107: 0
C108: Sub-Total | D108: =SUM(D80+D87+D101) -> 10181339 | E108: -6135644 | F108: 4045695 | G108: 203762 | H108: 4249457 | I108: 0 | J108: 2431967 | K108: 2431967 | T108: Sub-Total | U108: 4569755 | V108: 0 | W108: 4569755 | X108: 0 | Y108: 4569755 | AA108: 2633656 | AB108: 2633656 | AK108: Sub-Total | AL108: -5611584 | AM108: 6135644 | AN108: 524060 | AO108: -203762 | AP108: 320298 | AR108: 201689 | AS108: 201689 | AU108: 0
AL109: 0 | AM109: 0 | AN109: 0 | AO109: 0 | AP109: 0 | AR109: 0 | AS109: 0 | AU109: 0
C110: Schedule 7, Part A Grants3. | T110: Schedule 7, Part A Grants3. | AK110: =C110 -> Schedule 7, Part A Grants3. | AL110: 0 | AM110: 0 | AN110: 0 | AO110: 0 | AP110: 0 | AR110: 0 | AS110: 0 | AU110: 0
AK111: 0 | AL111: 0 | AM111: 0 | AN111: 0 | AO111: 0 | AP111: 0 | AR111: 0 | AS111: 0 | AU111: 0
C112: Cooperative Governance (Vote 3) | D112: =SUM(D113) -> 0 | E112: =SUM(E113) -> 0 | F112: =SUM(F113) -> 0 | G112: =SUM(G113) -> 35000 | H112: =SUM(H113) -> 35000 | K112: =SUM(K113) -> 0 | T112: =C112 -> Cooperative Governance (Vote 3) | U112: 0 | V112: 0 | W112: 0 | X112: 0 | Y112: 0 | AB112: 0 | AK112: Cooperative Governance (Vote 3) | AL112: 0 | AM112: 0 | AN112: 0 | AO112: -35000 | AP112: -35000 | AR112: 0 | AS112: 0 | AU112: 0
C113: Provincial Disaster Relief Grant | D113: 0 | E113: =SUM(F113-D113) -> 0 | F113: 0 | G113: 35000 | H113: =SUM(F113:G113) -> 35000 | K113: 0 | T113: =C113 -> Provincial Disaster Relief Grant | U113: 0 | V113: 0 | W113: 0 | X113: 0 | Y113: 0 | AB113: 0 | AK113: Provincial Disaster Relief Grant | AL113: 0 | AM113: 0 | AN113: 0 | AO113: -35000 | AP113: -35000 | AR113: 0 | AS113: 0 | AU113: 0
E114: =F114-D114 -> 0 | H114: =SUM(F114:G114) -> 0 | T114: =C114 -> 0 | V114: 0 | Y114: 0 | AK114: 0 | AL114: 0 | AM114: 0 | AN114: 0 | AO114: 0 | AP114: 0 | AR114: 0 | AS114: 0 | AU114: 0 | DE114: =D114-DB114 -> 0
E115: =F115-D115 -> 0 | H115: =SUM(F115:G115) -> 0 | V115: 0 | Y115: 0 | AK115: 0 | AL115: 0 | AM115: 0 | AN115: 0 | AO115: 0 | AP115: 0 | AR115: 0 | AS115: 0 | AU115: 0 | DE115: =D115-DB115 -> 0
AK116: 0 | AL116: 0 | AM116: 0 | AN116: 0 | AO116: 0 | AP116: 0 | AR116: 0 | AS116: 0 | AU116: 0
C117: Human Settlements (Vote 33) | D117: =SUM(D118) -> 0 | E117: =SUM(E118) -> 0 | F117: =SUM(F118) -> 0 | G117: =SUM(G118) -> 90153 | H117: =SUM(H118) -> 90153 | K117: =SUM(K118) -> 0 | T117: =C117 -> Human Settlements (Vote 33) | U117: 0 | V117: 0 | W117: 0 | X117: 0 | Y117: 0 | AB117: 0 | AK117: Human Settlements (Vote 33) | AL117: 0 | AM117: 0 | AN117: 0 | AO117: -90153 | AP117: -90153 | AR117: 0 | AS117: 0 | AU117: 0
C118: Provincial Emergency Housing Grant | D118: 0 | E118: =SUM(F118-D118) -> 0 | F118: 0 | G118: 90153 | H118: =SUM(F118:G118) -> 90153 | K118: 0 | T118: =C118 -> Provincial Emergency Housing Grant | U118: 0 | V118: 0 | W118: 0 | X118: 0 | Y118: 0 | AB118: 0 | AK118: Provincial Emergency Housing Grant | AL118: 0 | AM118: 0 | AN118: 0 | AO118: -90153 | AP118: -90153 | AR118: 0 | AS118: 0 | AU118: 0
T119: =C119 -> 0 | AK119: 0 | AL119: 0 | AM119: 0 | AN119: 0 | AO119: 0 | AP119: 0 | AR119: 0 | AS119: 0 | AU119: 0 | DE119: =D119-DB119 -> 0
AK120: 0 | AL120: 0 | AM120: 0 | AN120: 0 | AO120: 0 | AP120: 0 | AR120: 0 | AS120: 0 | AU120: 0 | DE120: =D120-DB120 -> 0
AK121: 0 | AL121: 0 | AM121: 0 | AN121: 0 | AO121: 0 | AP121: 0 | AR121: 0 | AS121: 0 | AU121: 0
C122: Sub-Total | D122: =SUM(D112+D117) -> 0 | E122: =SUM(E112+E117) -> 0 | F122: =SUM(F112+F117) -> 0 | G122: =SUM(G112+G117) -> 125153 | H122: =SUM(H112+H117) -> 125153 | K122: =SUM(K112+K117) -> 0 | T122: Sub-Total | U122: 0 | V122: 0 | W122: 0 | X122: 0 | Y122: 0 | AB122: 0 | AK122: Sub-Total | AL122: 0 | AM122: 0 | AN122: 0 | AO122: -125153 | AP122: -125153 | AR122: 0 | AS122: 0 | AU122: 0
AL123: 0 | AM123: 0 | AN123: 0 | AO123: 0 | AP123: 0 | AR123: 0 | AS123: 0 | AU123: 0
C124: Total | D124: =SUM(D76+D108+D122) -> 26503432 | E124: -14477653 | F124: 11793064 | G124: 605990 | H124: 12399054 | I124: 0 | J124: 6339068 | K124: 6309117 | T124: Total | U124: 12078833 | V124: 0 | W124: 12078833 | X124: 0 | Y124: 12078833 | AA124: 6856214 | AB124: 6861133 | AK124: =C124 -> Total | AL124: -14424599 | AM124: 14477653 | AN124: 285769 | AO124: -605990 | AP124: -320221 | AR124: 517146 | AS124: 552016 | AU124: 0 | DB124: =SUM(DB14:DB123) -> 26503432 | DC124: 9145768 | DD124: 6309117 | DE124: 0 | DF124: -4472 | DG124: 7.275957614e-12
B126: 1. | C126: Schedule 4, Part A grants specifying allocations to provinces to supplement the funding of programmes or functions funded from provincial budgets.
B127: 2. | C127: Schedule 5, Part A grants specifying specific-purpose allocations to provinces.
B128: 3. | C128: Schedule 7, Part A grants specifying unallocated provisions for provinces for disaster response.
B130: Signature:………………………………………………………………………………………………………………………………Date:…………………………………………………………………..
B131: I, Ncumisa Mnyani certify :
B132: 1. Amounts set out by provincial department have been checked and verified where necessary; and
B133: 2. are in compliance with the relevant sections of the Public Finance Management Act, and Section 31(2) of the Division of Revenue Act, 2022 (Act No. 4 of 2022).
C137: Checks: IYM Model | D137: -14015821 | E137: 13808368 | F137: 25262 | G137: 0 | H137: 25262 | I137: 12487611 | J137: -3087906 | K137: -3059192
C138: Checks: Datafile | D138: -13207395 | E138: 14477653 | F138: 1502973 | G138: -605990 | H138: 896983 | I138: 13296037 | J138: -2570833.25 | K138: -2618089.25
C140: checks | D140: 0 | J140: 0 | K140: 12250

Sheet KZN_1
C3: STATEMENT OF RECEIPTS AND PAYMENTS FOR THE FIRST QUARTER ENDED 30 JUNE 2022 | T3: ="NATIONAL TREASURY: " & C3 -> NATIONAL TREASURY: STATEMENT OF RECEIPTS AND PAYMENTS FOR THE FIRST QUARTER ENDED 30 JUNE 2022 | AK3: ="VARIANCE FROM NATIONAL TREASURY: " & C3 -> VARIANCE FROM NATIONAL TREASURY: STATEMENT OF RECEIPTS AND PAYMENTS FOR THE FIRST QUARTER ENDED 30 JUNE 2022
C4: KWAZULU-NATAL PROVINCE | T4: =C4 -> KWAZULU-NATAL PROVINCE | AK4: =C4 -> KWAZULU-NATAL PROVINCE
C6: Provincial departments | D6: 2022/23 | T6: Provincial departments | U6: 2019/20 | AK6: Provincial departments | AL6: 2019/20
D7: Budget | H7: Receipts/Payments by Quarter | M7: Receipts/Payments to Date | U7: Budget | Y7: Payments by Quarter | AD7: Payments to Date | AL7: Budget | AP7: Payments by Quarter | AU7: Payments to Date
D8: Main Budget1. | E8: Adjustments | F8: Adjusted Budget2. | H8: First Quarter | I8: Second Quarter | J8: Third Quarter | K8: Fourth Quarter | M8: Actual Receipts/ Payments | N8: % Actual Receipts/ Payments | U8: Main Budget1. | V8: Adjustments | W8: Adjusted Budget2. | Y8: First Quarter | Z8: Second Quarter | AA8: Third Quarter | AB8: Fourth Quarter | AD8: Actual Payments | AE8: % Actual Payments | AL8: Main Budget1. | AM8: Adjustments | AN8: Adjusted Budget2. | AP8: First Quarter | AQ8: Second Quarter | AR8: Third Quarter | AS8: Fourth Quarter | AU8: Actual Payments | AV8: % Actual Payments
A9: Filter | D9: R'000 | E9: R'000 | F9: R'000 | H9: R'000 | I9: R'000 | J9: R'000 | K9: R'000 | M9: R'000 | N9: % | U9: R'000 | V9: R'000 | W9: R'000 | Y9: R'000 | Z9: R'000 | AA9: R'000 | AB9: R'000 | AD9: R'000 | AE9: % | AL9: R'000 | AM9: R'000 | AN9: R'000 | AP9: R'000 | AQ9: R'000 | AR9: R'000 | AS9: R'000 | AU9: R'000 | AV9: %
A10: 1
A11: 1 | C11: Receipts | T11: Receipts | AK11: Receipts
A12: 1 | C12: Transfers from National Revenue Fund | D12: =SUM(D13:D14) -> 139550610 | E12: =SUM(E13:E14) -> -58537031 | F12: =SUM(F13:F14) -> 81013579 | H12: =SUM(H13:H14) -> 35365802 | I12: =SUM(I13:I14) -> 0 | J12: =SUM(J13:J14) -> 0 | K12: =SUM(K13:K14) -> 0 | M12: =SUM(M13:M14) -> 35365802 | N12: =IFERROR(M12/D12,0) -> 0.2534263519 | T12: =C12 -> Transfers from National Revenue Fund | U12: 80903186 | V12: 0 | W12: 80903186 | Y12: 20808702 | Z12: 20464609 | AA12: 0 | AB12: 0 | AD12: 41273311 | AE12: 0.5101568064 | AK12: Transfers from National Revenue Fund | AL12: =SUM(AL13:AL14) -> -58647424 | AM12: =SUM(AM13:AM14) -> 58537031 | AN12: =SUM(AN13:AN14) -> -110393 | AP12: =SUM(AP13:AP14) -> -14557100 | AQ12: =SUM(AQ13:AQ14) -> 20464609 | AR12: =SUM(AR13:AR14) -> 0 | AS12: =SUM(AS13:AS14) -> 0 | AU12: =SUM(AU13:AU14) -> 5907509 | EB12: DoRA(annexure) | EC12: check
A13: 1 | C13: Equitable share of revenue | D13: 114509371 | E13: =SUM(F13-D13) -> -45314118 | F13: 69195253 | H13: 28627344 | M13: =SUM(H13:K13) -> 28627344 | N13: =IFERROR(M13/D13,0) -> 0.2500000109 | T13: =C13 -> Equitable share of revenue | U13: 68824353 | V13: 0 | W13: 68824353 | Y13: 17206089 | Z13: 17206089 | AD13: 34412178 | AE13: 0.5000000218 | AK13: Equitable share of revenue | AL13: =IFERROR(U13-D13,0) -> -45685018 | AM13: 45314118 | AN13: -370900 | AP13: =IFERROR(Y13-H13,0) -> -11421255 | AQ13: 17206089 | AR13: 0 | AS13: 0 | AU13: =IFERROR(AD13-M13,0) -> 5784834 | EB13: 114509371 | EC13: =D13-EB13 -> 0
A14: 1 | C14: Conditional grants | D14: 25041239 | E14: =SUM(F14-D14) -> -13222913 | F14: 11818326 | H14: =KZN_2!$K$124 -> 6738458 | M14: =SUM(H14:K14) -> 6738458 | N14: =IFERROR(M14/D14,0) -> 0.2690944326 | T14: =C14 -> Conditional grants | U14: 12078833 | V14: 0 | W14: 12078833 | Y14: 3602613 | Z14: 3258520 | AD14: 6861133 | AE14: 0.5680294611 | AK14: Conditional grants | AL14: -12962406 | AM14: 13222913 | AN14: 260507 | AP14: -3135845 | AQ14: 3258520 | AR14: 0 | AS14: 0 | AU14: =IFERROR(AD14-M14,0) -> 122675 | EB14: 25041239 | EC14: =D14-EB14 -> 0
A15: 1 | C15: Provincial own receipts | D15: 3761099 | E15: =SUM(F15-D15) -> -2244809 | F15: 1516290 | H15: 746276 | M15: =SUM(H15:K15) -> 746276 | N15: =IFERROR(M15/D15,0) -> 0.198419664 | T15: =C15 -> Provincial own receipts | U15: 1453671 | V15: 0 | W15: 1453671 | Y15: 394957 | Z15: 712433.8 | AD15: 1107390.8 | AE15: 0.7617891531 | AK15: Provincial own receipts | AL15: -2307428 | AM15: 2244809 | AN15: -62619 | AP15: -351319 | AQ15: 712433.8 | AR15: 0 | AS15: 0 | AU15: =IFERROR(AD15-M15,0) -> 361114.8
A16: 1
A17: 1 | C17: Total receipts | D17: =SUM(D12+D15) -> 143311709 | E17: =SUM(E12+E15) -> -60781840 | F17: =SUM(F12+F15) -> 82529869 | G17: =G12+G15 -> 0 | H17: =SUM(H12+H15) -> 36112078 | I17: =SUM(I12+I15) -> 0 | J17: =SUM(J12+J15) -> 0 | K17: =SUM(K12+K15) -> 0 | M17: =SUM(M12+M15) -> 36112078 | N17: =IFERROR(M17/D17,0) -> 0.2519827462 | T17: Total receipts | U17: 82356857 | V17: 0 | W17: 82356857 | X17: 0 | Y17: 21203659 | Z17: 21177042.8 | AA17: 0 | AD17: 42380701.8 | AE17: 0.5145983388 | AK17: Total receipts | AL17: =AL12+AL15 -> -60954852 | AM17: 60781840 | AN17: -173012 | AO17: 0 | AP17: -14908419 | AQ17: 21177042.8 | AR17: 0 | AS17: 0 | AU17: =AU12+AU15 -> 6268623.8
A18: 1
A19: 1 | C19: Payments by provincial departments | T19: Payments by provincial departments | AK19: Payments by provincial departments
A20: =IF(LEN(C20)>3,1,0) -> 1 | C20: Education | D20: 57480788 | E20: =SUM(F20-D20) -> -22404050 | F20: 35076738 | H20: 14316774 | M20: =SUM(H20:K20) -> 14316774 | N20: =IFERROR(M20/D20,0) -> 0.2490705938 | T20: =C20 -> Education | U20: 36328510.13 | V20: 0 | W20: 36328510.13 | Y20: 10097264 | Z20: 9310507 | AD20: 19407771 | AE20: 0.5342297532 | AK20: =C20 -> Education | AL20: =IFERROR(U20-D20,0) -> -21152277.87 | AM20: 22404050 | AN20: 1251772.13 | AP20: =IFERROR(Y20-H20,0) -> -4219510 | AQ20: 9310507 | AR20: 0 | AS20: 0 | AU20: =IFERROR(AD20-M20,0) -> 5090997
A21: 1 | C21: Health | D21: 49609769.5 | E21: -23179181.5 | F21: 26430588 | H21: 12422996 | M21: 12422996 | N21: 0.250414306 | T21: Health | U21: 25189631.98 | V21: 0 | W21: 25189631.98 | Y21: 7451118 | Z21: 6394842 | AD21: 13845960 | AE21: 0.5496690071 | AK21: Health | AL21: -24420137.52 | AM21: 23179181.5 | AN21: -1240956.02 | AP21: -4971878 | AQ21: 6394842 | AR21: 0 | AS21: 0 | AU21: 1422964
A22: 1 | C22: Social Development | D22: 3198281 | E22: -143423 | F22: 3054858 | H22: 821181 | M22: 821181 | N22: 0.2567569891 | T22: Social Development | U22: 3020607 | V22: 0 | W22: 3020607 | Y22: 536173 | Z22: 889221 | AD22: 1425394 | AE22: 0.4718899215 | AK22: Social Development | AL22: -177674 | AM22: 143423 | AN22: -34251 | AP22: -285008 | AQ22: 889221 | AR22: 0 | AS22: 0 | AU22: 604213
A23: 1 | C23: Office Of The Premier | D23: 767551 | E23: 264594 | F23: 1032145 | H23: 146334 | M23: 146334 | N23: 0.1906505235 | T23: Office Of The Premier | U23: 973083.46 | V23: 0 | W23: 973083.46 | Y23: 161829 | Z23: 186798 | AD23: 348627 | AE23: 0.3582703995 | AK23: Office Of The Premier | AL23: 205532.46 | AM23: -264594 | AN23: -59061.54 | AP23: 15495 | AQ23: 186798 | AR23: 0 | AS23: 0 | AU23: 202293
A24: 1 | C24: Provincial Legislature | D24: 644322 | E24: -91072 | F24: 553250 | H24: 155079 | M24: 155079 | N24: 0.2406855578 | T24: Provincial Legislature | U24: 541734 | V24: 0 | W24: 541734 | Y24: 167884 | Z24: 150198 | AD24: 318082 | AE24: 0.5871553198 | AK24: Provincial Legislature | AL24: -102588 | AM24: 91072 | AN24: -11516 | AP24: 12805 | AQ24: 150198 | AR24: 0 | AS24: 0 | AU24: 163003
A25: 1 | C25: Agriculture And Rural Development | D25: 2490556 | E25: 14947 | F25: 2505503 | H25: 548791 | M25: 548791 | N25: 0.2203487896 | T25: Agriculture And Rural Development | U25: 2365265 | V25: 0 | W25: 2365265 | Y25: 451273 | Z25: 729895 | AD25: 1181168 | AE25: 0.4993808305 | AK25: Agriculture And Rural Development | AL25: -125291 | AM25: -14947 | AN25: -140238 | AP25: -97518 | AQ25: 729895 | AR25: 0 | AS25: 0 | AU25: 632377
A26: 1 | C26: Economic Development, Tourism And Environmental Affairs | D26: 3412995 | E26: -2421503.5 | F26: 991491.5 | H26: 644481 | M26: 644481 | N26: 0.1888315102 | T26: Economic Development, Tourism And Environmental Affairs | U26: 1009712.01 | V26: 0 | W26: 1009712.01 | Y26: 227049 | Z26: 245101 | AD26: 472150 | AE26: 0.4676085808 | AK26: Economic Development, Tourism And Environmental Affairs | AL26: -2403282.99 | AM26: 2421503.5 | AN26: 18220.51 | AP26: -417432 | AQ26: 245101 | AR26: 0 | AS26: 0 | AU26: -172331
A27: 1 | C27: Provincial Treasury | D27: 684109 | E27: 1611435 | F27: 2295544 | H27: 129733 | M27: 129733 | N27: 0.1896379086 | T27: Provincial Treasury | U27: 2340324 | V27: 0 | W27: 2340324 | Y27: 493092 | Z27: 517165 | AD27: 1010257 | AE27: 0.4316739904 | AK27: Provincial Treasury | AL27: 1656215 | AM27: -1611435 | AN27: 44780 | AP27: 363359 | AQ27: 517165 | AR27: 0 | AS27: 0 | AU27: 880524
A28: 1 | C28: Human Settlements | D28: 4123328 | E28: -2433704 | F28: 1689624 | H28: 548297 | M28: 548297 | N28: 0.1329743838 | T28: Human Settlements | U28: 1481960.31 | V28: 0 | W28: 1481960.31 | Y28: 395425 | Z28: 332243 | AD28: 727668 | AE28: 0.4910171987 | AK28: Human Settlements | AL28: -2641367.69 | AM28: 2433704 | AN28: -207663.69 | AP28: -152872 | AQ28: 332243 | AR28: 0 | AS28: 0 | AU28: 179371
A29: 1 | C29: Community Safety And Liaison | D29: 236867 | E29: 4924690.03 | F29: 5161557.03 | H29: 52276 | M29: 52276 | N29: 0.2206976911 | T29: Community Safety And Liaison | U29: 4974537.38 | V29: 0 | W29: 4974537.38 | Y29: 915381.0396 | Z29: 1047823.567 | AD29: 1963204.606 | AE29: 0.3946506894 | AK29: Community Safety And Liaison | AL29: 4737670.38 | AM29: -4924690.03 | AN29: -187019.65 | AP29: 863105.0396 | AQ29: 1047823.567 | AR29: 0 | AS29: 0 | AU29: 1910928.606
A30: 1 | C30: Co-Operative Governance And Traditional Affairs | D30: 1820033 | E30: 505115 | F30: 2325148 | H30: 439514 | M30: 439514 | N30: 0.2414868302 | T30: Co-Operative Governance And Traditional Affairs | U30: 2443382 | V30: 0 | W30: 2443382 | Y30: 568047 | Z30: 601938 | AD30: 1169985 | AE30: 0.4788383478 | AK30: Co-Operative Governance And Traditional Affairs | AL30: 623349 | AM30: -505115 | AN30: 118234 | AP30: 128533 | AQ30: 601938 | AR30: 0 | AS30: 0 | AU30: 730471
A31: 1 | C31: Transport | D31: 12474796 | E31: -12068306 | F31: 406490 | H31: 2059395 | M31: 2059395 | N31: 0.1650844631 | T31: Transport | U31: 440930 | V31: 0 | W31: 440930 | Y31: 96175 | Z31: 106759 | AD31: 202934 | AE31: 0.4602408546 | AK31: Transport | AL31: -12033866 | AM31: 12068306 | AN31: 34440 | AP31: -1963220 | AQ31: 106759 | AR31: 0 | AS31: 0 | AU31: -1856461
A32: 1 | C32: Public Works | D32: 1942297 | E32: -962069 | F32: 980228 | H32: 230066 | M32: 230066 | N32: 0.1184504738 | T32: Public Works | U32: 983069 | V32: 0 | W32: 983069 | Y32: 206375 | Z32: 260736 | AD32: 467111 | AE32: 0.4751558639 | AK32: Public Works | AL32: -959228 | AM32: 962069 | AN32: 2841 | AP32: -23691 | AQ32: 260736 | AR32: 0 | AS32: 0 | AU32: 237045
A33: 1 | C33: Sport, Arts And Culture | D33: 1489055 | E33: -1384045 | F33: 105010 | H33: 273091 | M33: 273091 | N33: 0.1833988671 | T33: Sport, Arts And Culture | U33: 105499 | V33: 0 | W33: 105499 | Y33: 22274 | Z33: 25927 | AD33: 48201 | AE33: 0.4568858473 | AK33: Sport, Arts And Culture | AL33: -1383556 | AM33: 1384045 | AN33: 489 | AP33: -250817 | AQ33: 25927 | AR33: 0 | AS33: 0 | AU33: -224890
A34: 0 | D34: 0 | E34: 0 | F34: 0 | H34: 0 | M34: 0 | N34: 0 | U34: 0 | V34: 0 | W34: 0 | Y34: 0 | Z34: 0 | AD34: 0 | AE34: 0 | AL34: =U34-D34 -> 0 | AM34: =AN34-AL34 -> 0 | AN34: =W34-F34 -> 0 | AP34: =Y34-H34 -> 0 | AQ34: 0 | AR34: 0 | AS34: 0 | AU34: =SUM(AP34:AQ34) -> 0
A35: 0 | D35: 0 | E35: 0 | F35: 0 | H35: 0 | M35: 0 | N35: 0 | U35: 0 | V35: 0 | W35: 0 | Y35: 0 | Z35: 0 | AD35: 0 | AE35: 0 | AL35: 0 | AM35: 0 | AN35: 0 | AP35: 0 | AQ35: 0 | AR35: 0 | AS35: 0 | AU35: 0
A36: 0 | C36: =PROPER("") ->  | E36: 0 | F36: 0 | M36: 0 | N36: 0 | U36: 0 | V36: 0 | W36: 0 | Y36: 0 | Z36: 0 | AD36: 0 | AE36: 0 | AL36: 0 | AM36: 0 | AN36: 0 | AP36: 0 | AQ36: 0 | AR36: 0 | AS36: 0 | AU36: 0
A37: 0 | C37: =PROPER("") ->  | E37: 0 | F37: 0 | M37: 0 | N37: 0 | U37: 0 | V37: 0 | W37: 0 | Y37: 0 | Z37: 0 | AD37: 0 | AE37: 0 | AL37: 0 | AM37: 0 | AN37: 0 | AP37: 0 | AQ37: 0 | AR37: 0 | AS37: 0 | AU37: 0
A38: 0 | C38: =PROPER("") ->  | E38: 0 | F38: 0 | M38: 0 | N38: 0 | U38: 0 | V38: 0 | W38: 0 | Y38: 0 | Z38: 0 | AD38: 0 | AE38: 0 | AL38: 0 | AM38: 0 | AN38: 0 | AP38: 0 | AQ38: 0 | AR38: 0 | AS38: 0 | AU38: 0
A39: 0 | C39: =PROPER("") ->  | E39: 0 | F39: 0 | M39: 0 | N39: 0 | U39: 0 | V39: 0 | W39: 0 | Y39: 0 | Z39: 0 | AD39: 0 | AE39: 0 | AL39: 0 | AM39: 0 | AN39: 0 | AP39: 0 | AQ39: 0 | AR39: 0 | AS39: 0 | AU39: 0
A40: 1
A41: 1 | C41: Total payments | D41: =SUM(D20:D39) -> 140374747.5 | E41: =SUM(E20:E39) -> -57766572.97 | F41: =SUM(F20:F39) -> 82608174.53 | H41: =SUM(H20:H39) -> 32788008 | I41: =SUM(I20:I39) -> 0 | J41: =SUM(J20:J39) -> 0 | K41: =SUM(K20:K39) -> 0 | M41: =SUM(M20:M39) -> 32788008 | N41: =IFERROR(M41/D41,0) -> 0.2335748315 | T41: Total payments | U41: 82198245.27 | V41: 0 | W41: 82198245.27 | Y41: 21789359.04 | Z41: 20799153.57 | AA41: 0 | AD41: 42588512.61 | AE41: 0.5181194862 | AK41: Total payments | AL41: =SUM(AL20:AL39) -> -58176502.23 | AM41: =SUM(AM20:AM39) -> 57766572.97 | AN41: =SUM(AN20:AN39) -> -409929.26 | AP41: =SUM(AP20:AP39) -> -10998648.96 | AQ41: =SUM(AQ20:AQ39) -> 20799153.57 | AR41: =SUM(AR20:AR39) -> 0 | AS41: =SUM(AS20:AS39) -> 0 | AU41: =SUM(AU20:AU39) -> 9800504.606
A42: 1
A43: 1 | C43: Payments by economic classification | T43: Payments by economic classification | AK43: Payments by economic classification
A44: 1 | C44: Current payments | D44: =SUM(D45:D47) -> 118575810.5 | E44: -49500647.4 | F44: 69075163.1 | G44: 0 | H44: 29365248 | I44: 0 | J44: 0 | K44: 0 | M44: =SUM(M45:M47) -> 29365248 | N44: =IFERROR(M44/D44,0) -> 0.2476495659 | T44: =C44 -> Current payments | U44: 68611109.57 | V44: 0 | W44: 68611109.57 | X44: 0 | Y44: 17881432.79 | Z44: 17346527.07 | AA44: 0 | AB44: 0 | AD44: 35227959.86 | AE44: 0.513443961 | AK44: Current payments | AL44: =SUM(AL45:AL47) -> -49964700.93 | AM44: 49500647.4 | AN44: -464053.53 | AO44: 0 | AP44: -11483815.21 | AQ44: 17346527.07 | AR44: 0 | AS44: 0 | AU44: =SUM(AU45:AU47) -> 5862711.864
A45: 1 | C45: Compensation of employees | D45: 86231696.5 | E45: =SUM(F45-D45) -> -32196439.85 | F45: 54035256.65 | H45: 22459720 | M45: =SUM(H45:K45) -> 22459720 | N45: 0.2604578236 | T45: Compensation of employees | U45: 54152698.94 | V45: 0 | W45: 54152698.94 | Y45: 13341110.73 | Z45: 13672432.37 | AD45: 27013543.1 | AE45: 0.4988401987 | AK45: Compensation of employees | AL45: =IFERROR(U45-D45,0) -> -32078997.56 | AM45: 32196439.85 | AN45: 117442.29 | AP45: =IFERROR(Y45-H45,0) -> -9118609.269 | AQ45: 13672432.37 | AR45: 0 | AS45: 0 | AU45: =IFERROR(AD45-M45,0) -> 4553823.102
A46: 1 | C46: Goods and services | D46: 32343337 | E46: =SUM(F46-D46) -> -17303430.55 | F46: 15039906.45 | H46: 6905164 | M46: =SUM(H46:K46) -> 6905164 | N46: 0.2134957194 | T46: Goods and services | U46: 14458410.63 | V46: 0 | W46: 14458410.63 | Y46: 4528730.059 | Z46: 3660735.503 | AD46: 8189465.562 | AE46: 0.5664153392 | AK46: Goods and services | AL46: -17884926.37 | AM46: 17303430.55 | AN46: -581495.82 | AP46: -2376433.941 | AQ46: 3660735.503 | AR46: 0 | AS46: 0 | AU46: =IFERROR(AD46-M46,0) -> 1284301.562
A47: 1 | C47: Interest and rent on land | D47: 777 | E47: =SUM(F47-D47) -> -777 | F47: 0 | H47: 364 | M47: =SUM(H47:K47) -> 364 | N47: 0.4684684685 | T47: Interest and rent on land | U47: 0 | V47: 0 | W47: 0 | Y47: 11592 | Z47: 13359.2 | AD47: 24951.2 | AE47: 0 | AK47: Interest and rent on land | AL47: -777 | AM47: 777 | AN47: 0 | AP47: 11228 | AQ47: 13359.2 | AR47: 0 | AS47: 0 | AU47: =IFERROR(AD47-M47,0) -> 24587.2
A48: 1 | C48: Transfers and subsidies | D48: =SUM(D49:D55) -> 12527657 | E48: -3524363.57 | F48: 9003293.43 | G48: 0 | H48: 2338625 | I48: 0 | J48: 0 | K48: 0 | M48: =SUM(M49:M55) -> 2338625 | N48: 0.186676966 | T48: Transfers and subsidies | U48: 8844684.83 | V48: 0 | W48: 8844684.83 | X48: 0 | Y48: 2859224.386 | Z48: 2528167.064 | AA48: 0 | AB48: 0 | AD48: 5387391.45 | AE48: 0.6091106188 | AK48: Transfers and subsidies | AL48: =SUM(AL49:AL55) -> -3682972.17 | AM48: 3524363.57 | AN48: -158608.6 | AO48: 0 | AP48: 520599.3858 | AQ48: 2528167.064 | AR48: 0 | AS48: 0 | AU48: =SUM(AU49:AU55) -> 3048766.45
A49: 1 | C49: Provinces and municipalities | D49: 4031868 | E49: =SUM(F49-D49) -> -3167369 | F49: 864499 | H49: 189362 | M49: =SUM(H49:K49) -> 189362 | N49: 0.04696631933 | T49: Provinces and municipalities | U49: 662586 | V49: 0 | W49: 662586 | Y49: 63574.0934 | Z49: 355413 | AD49: 418987.0934 | AE49: 0.6323512622 | AK49: Provinces and municipalities | AL49: =IFERROR(U49-D49,0) -> -3369282 | AM49: 3167369 | AN49: -201913 | AP49: =IFERROR(Y49-H49,0) -> -125787.9066 | AQ49: 355413 | AR49: 0 | AS49: 0 | AU49: =IFERROR(AD49-M49,0) -> 229625.0934
A50: 1 | C50: Departmental agencies and accounts | D50: 2502596 | E50: -866510 | F50: 1636086 | H50: 604935 | M50: 604935 | N50: 0.2417229948 | T50: Departmental agencies and accounts | U50: 1331834 | V50: 0 | W50: 1331834 | Y50: 475203.6004 | Z50: 272154.9058 | AD50: 747358.5062 | AE50: 0.5611498927 | AK50: Departmental agencies and accounts | AL50: -1170762 | AM50: 866510 | AN50: -304252 | AP50: -129731.3996 | AQ50: 272154.9058 | AR50: 0 | AS50: 0 | AU50: 142423.5062
A51: 1 | C51: Higher education and institutions | D51: 5016 | E51: 65887 | F51: 70903 | H51: 0 | M51: 0 | N51: 0 | T51: Higher education and institutions | U51: 55904 | V51: 0 | W51: 55904 | Y51: 13826 | Z51: 13826 | AD51: 27652 | AE51: 0.4946336577 | AK51: Higher education and institutions | AL51: 50888 | AM51: -65887 | AN51: -14999 | AP51: 13826 | AQ51: 13826 | AR51: 0 | AS51: 0 | AU51: 27652
A52: 1 | C52: Foreign governments and international organisations | D52: 300 | E52: -300 | F52: 0 | H52: 0 | M52: 0 | N52: 0 | T52: Foreign governments and international organisations | U52: 0 | V52: 0 | W52: 0 | Y52: 0 | Z52: 0 | AD52: 0 | AE52: 0 | AK52: Foreign governments and international organisations | AL52: -300 | AM52: 300 | AN52: 0 | AP52: 0 | AQ52: 0 | AR52: 0 | AS52: 0 | AU52: 0
A53: 1 | C53: Public corporations and private enterprises | D53: 1672602 | E53: -1052040 | F53: 620562 | H53: 303199 | M53: 303199 | N53: 0.1812738476 | T53: Public corporations and private enterprises | U53: 554665 | V53: 0 | W53: 554665 | Y53: 109998.5212 | Z53: 133780.9317 | AD53: 243779.4529 | AE53: 0.4395075459 | AK53: Public corporations and private enterprises | AL53: -1117937 | AM53: 1052040 | AN53: -65897 | AP53: -193200.4788 | AQ53: 133780.9317 | AR53: 0 | AS53: 0 | AU53: -59419.54708
A54: 1 | C54: Non profit institutions | D54: 3651074 | E54: -402357 | F54: 3248717 | H54: 1001727 | M54: 1001727 | N54: 0.2743650225 | T54: Non profit institutions | U54: 3573034.73 | V54: 0 | W54: 3573034.73 | Y54: 1116276 | Z54: 1037745 | AD54: 2154021 | AE54: 0.6028547615 | AK54: Non profit institutions | AL54: -78039.27 | AM54: 402357 | AN54: 324317.73 | AP54: 114549 | AQ54: 1037745 | AR54: 0 | AS54: 0 | AU54: 1152294
A55: 1 | C55: Households | D55: 664201 | E55: 1898325.43 | F55: 2562526.43 | H55: 239402 | M55: 239402 | N55: 0.3604360728 | T55: Households | U55: 2666661.1 | V55: 0 | W55: 2666661.1 | Y55: 1080346.171 | Z55: 715247.2264 | AD55: 1795593.397 | AE55: 0.6733489296 | AK55: Households | AL55: 2002460.1 | AM55: -1898325.43 | AN55: 104134.67 | AP55: 840944.1708 | AQ55: 715247.2264 | AR55: 0 | AS55: 0 | AU55: 1556191.397
A56: 1 | C56: Payments for capital assets | D56: =SUM(D57:D63) -> 9271280 | E56: -4741562 | F56: 4529718 | G56: 0 | H56: 1083912 | I56: 0 | J56: 0 | K56: 0 | M56: =SUM(M57:M63) -> 1083912 | N56: 0.1169107178 | T56: Payments for capital assets | U56: 4742450.96 | V56: 0 | W56: 4742450.96 | X56: 0 | Y56: 1048442.985 | Z56: 924459.4285 | AA56: 0 | AB56: 0 | AD56: 1972902.413 | AE56: 0.4160090277 | AK56: Payments for capital assets | AL56: =SUM(AL57:AL63) -> -4528829.04 | AM56: 4741562 | AN56: 212732.96 | AO56: 0 | AP56: -35469.01548 | AQ56: 924459.4285 | AR56: 0 | AS56: 0 | AU56: =SUM(AU57:AU63) -> 888990.413
A57: 1 | C57: Buildings and other fixed structures | D57: 7835211 | E57: =SUM(F57-D57) -> -4599420 | F57: 3235791 | H57: 747980 | M57: =SUM(H57:K57) -> 747980 | N57: 0.0954639256 | T57: Buildings and other fixed structures | U57: 3635517 | V57: 0 | W57: 3635517 | Y57: 907397.9635 | Z57: 734847.4854 | AD57: 1642245.449 | AE57: 0.4517226708 | AK57: Buildings and other fixed structures | AL57: =IFERROR(U57-D57,0) -> -4199694 | AM57: 4599420 | AN57: 399726 | AP57: =IFERROR(Y57-H57,0) -> 159417.9635 | AQ57: 734847.4854 | AR57: 0 | AS57: 0 | AU57: =IFERROR(AD57-M57,0) -> 894265.4489
A58: 1 | C58: Machinery and equipment | D58: 1418322 | E58: -176742 | F58: 1241580 | H58: 326343 | M58: 326343 | N58: 0.2300909102 | T58: Machinery and equipment | U58: 1073001.94 | V58: 0 | W58: 1073001.94 | Y58: 129562.021 | Z58: 182905.5488 | AD58: 312467.5698 | AE58: 0.291208765 | AK58: Machinery and equipment | AL58: -345320.06 | AM58: 176742 | AN58: -168578.06 | AP58: -196780.979 | AQ58: 182905.5488 | AR58: 0 | AS58: 0 | AU58: -13875.4302
A59: 1 | C59: Heritage assets | D59: 0 | E59: 1700 | F59: 1700 | H59: 0 | M59: 0 | N59: 0 | T59: Heritage assets | U59: 500 | V59: 0 | W59: 500 | Y59: 155 | Z59: 0 | AD59: 155 | AE59: 0.31 | AK59: Heritage assets | AL59: 500 | AM59: -1700 | AN59: -1200 | AP59: 155 | AQ59: 0 | AR59: 0 | AS59: 0 | AU59: 155
A60: 1 | C60: Specialised military assets | D60: 0 | E60: 0 | F60: 0 | H60: 0 | M60: 0 | N60: 0 | T60: Specialised military assets | U60: 0 | V60: 0 | W60: 0 | Y60: 0 | Z60: 0 | AD60: 0 | AE60: 0 | AK60: Specialised military assets | AL60: 0 | AM60: 0 | AN60: 0 | AP60: 0 | AQ60: 0 | AR60: 0 | AS60: 0 | AU60: 0
A61: 1 | C61: Biological assets | D61: 630 | E61: 10907 | F61: 11537 | H61: 77 | M61: 77 | N61: 0.1222222222 | T61: Biological assets | U61: 16500 | V61: 0 | W61: 16500 | Y61: 0 | Z61: 87 | AD61: 87 | AE61: 0.005272727273 | AK61: Biological assets | AL61: 15870 | AM61: -10907 | AN61: 4963 | AP61: -77 | AQ61: 87 | AR61: 0 | AS61: 0 | AU61: 10
A62: 1 | C62: Land and sub-soil assets | D62: 0 | E62: 0 | F62: 0 | H62: 0 | M62: 0 | N62: 0 | T62: Land and sub-soil assets | U62: 0 | V62: 0 | W62: 0 | Y62: 0 | Z62: 0 | AD62: 0 | AE62: 0 | AK62: Land and sub-soil assets | AL62: 0 | AM62: 0 | AN62: 0 | AP62: 0 | AQ62: 0 | AR62: 0 | AS62: 0 | AU62: 0
A63: 1 | C63: Software and other intangible assets | D63: 17117 | E63: 21993 | F63: 39110 | H63: 9512 | M63: 9512 | N63: 0.5557048548 | T63: Software and other intangible assets | U63: 16932.02 | V63: 0 | W63: 16932.02 | Y63: 11328 | Z63: 6619.39424 | AD63: 17947.39424 | AE63: 1.059967697 | AK63: Software and other intangible assets | AL63: -184.98 | AM63: -21993 | AN63: -22177.98 | AP63: 1816 | AQ63: 6619.39424 | AR63: 0 | AS63: 0 | AU63: 8435.39424
A64: 1 | C64: Payments for financial assets | D64: 0 | E64: 0 | F64: 0 | H64: 223 | M64: 223 | N64: 0 | T64: Payments for financial assets | U64: 0 | V64: 0 | W64: 0 | Y64: 259 | Z64: 0 | AD64: 259 | AE64: 0 | AK64: Payments for financial assets | AL64: 0 | AM64: 0 | AN64: 0 | AP64: 36 | AQ64: 0 | AR64: 0 | AS64: 0 | AU64: 36
A65: 1
A66: 1 | C66: Total payments | D66: =SUM(D44+D48+D56+D64) -> 140374747.5 | E66: =SUM(E44+E48+E56+E64) -> -57766572.97 | F66: =SUM(F44+F48+F56+F64) -> 82608174.53 | H66: =SUM(H44+H48+H56+H64) -> 32788008 | I66: =SUM(I44+I48+I56+I64) -> 0 | J66: =SUM(J44+J48+J56+J64) -> 0 | K66: =SUM(K44+K48+K56+K64) -> 0 | M66: =SUM(M44+M48+M56+M64) -> 32788008 | N66: =IFERROR(M66/D66,0) -> 0.2335748315 | T66: Total payments | U66: 82198245.36 | V66: 0 | W66: 82198245.36 | Y66: 21789359.16 | Z66: 20799153.57 | AD66: 42588512.73 | AE66: 0.5181194871 | AK66: Total payments | AL66: =AL44+AL48+AL56+AL64 -> -58176502.14 | AM66: =AM44+AM48+AM56+AM64 -> 57766572.97 | AN66: =AN44+AN48+AN56+AN64 -> -409929.17 | AP66: =AP44+AP48+AP56+AP64 -> -10998648.84 | AQ66: =AQ44+AQ48+AQ56+AQ64 -> 20799153.57 | AR66: =AR44+AR48+AR56+AR64 -> 0 | AS66: =AS44+AS48+AS56+AS64 -> 0 | AU66: =AU44+AU48+AU56+AU64 -> 9800504.726
A67: 1
A68: 1 | C68: Information submitted by: Carol Coetzee Head Official: Provincial Treasury KwaZulu-Natal Tel No: (033) 897-4547
A69: 1
A70: 1 | B70: 1. | C70: Main Budget figures are based on the 2022/23 Estimates of Provincial Revenue and Expenditure tabled in the Provincial Legislature during March 2022.
A71: 1
A72: 1
A73: 1
A74: 1 | C74: Signature:……………………………………………………………………………………………..………………………………Date:…………………………………………………………………..
A75: 1 | C75: I, Carol Coetzee certify :
A76: 1 | C76: 1. Amounts set out by provincial department have been checked and verified where necessary; and
A77: 1 | C77: 2. are in compliance with the relevant sections of the Public Finance Management Act, and Section 31(2) of the Division of Revenue Act, 2022 (Act No. 4 of 2022).
A78: 0
A79: 0
A80: 0 | C80: Checks: Depts vs Eco Classification | D80: =D41-D66 -> 0 | E80: 0 | F80: 0 | G80: 0 | H80: 0 | I80: 0 | J80: 0 | K80: 0 | L80: 0 | M80: 0 | O80: =O41-O66 -> 0
A81: 0 | C81: Checks: Receipts vs IYM Model | D81: 0 | F81: 0 | H81: -147624 | M81: -147624 | O81: =O42-O67 -> 0
A82: 0 | C82: Checks: Depts vs IYM Model | D82: 0 | F82: 0 | H82: 0 | M82: 0 | O82: =O43-O68 -> 0
A83: 0 | C83: Checks: Depts vs Datafile | D83: -57766572.97 | F83: 0 | H83: -10208345 | I83: 20860975.37 | J83: 20387856.67 | K83: 18481235.62 | M83: 49521722.65 | O83: =O44-O69 -> 0
A238: 1
A239: 1
A240: 1
A241: 1
A242: 1
A243: 1

Sheet KZN_2
C3: CONDITIONAL GRANTS TRANSFERRED FROM NATIONAL DEPARTMENTS AND ACTUAL PAYMENTS MADE BY PROVINCES FOR THE FIRST QUARTER ENDED 30 JUNE 2022 | T3: ="NATIONAL TREASURY: " & C3 -> NATIONAL TREASURY: CONDITIONAL GRANTS TRANSFERRED FROM NATIONAL DEPARTMENTS AND ACTUAL PAYMENTS MADE BY PROVINCES FOR THE FIRST QUARTER ENDED 30 JUNE 2022 | AK3: ="VARIANCE FROM NATIONAL TREASURY: " & C3 -> VARIANCE FROM NATIONAL TREASURY: CONDITIONAL GRANTS TRANSFERRED FROM NATIONAL DEPARTMENTS AND ACTUAL PAYMENTS MADE BY PROVINCES FOR THE FIRST QUARTER ENDED 30 JUNE 2022
C4: KWAZULU-NATAL PROVINCE | T4: =C4 -> KWAZULU-NATAL PROVINCE | AK4: =C4 -> KWAZULU-NATAL PROVINCE
C6: National departments administering conditional grants | D6: 2022/23 | T6: National departments administering conditional grants | U6: 2019/20 | AK6: National departments administering conditional grants | AL6: =D6 -> 2022/23
D7: Budget | J7: Transfers | M7: Payments to Date | U7: Budget | AA7: Transfers | AD7: Payments to Date | AL7: =D7 -> Budget | AR7: =J7 -> Transfers | AU7: =M7 -> Payments to Date
D8: Division of Revenue Act, No. 9 of 2022 | E8: Division of Revenue Amendment Act, No. 30 of 2022 and other Gazettes | F8: Total National Allocation | G8: Provincial roll-overs approved by National Treasury | H8: Total Available | J8: Provincial Payment Schedule (National Allocation) | K8: Transferred from National to Province | M8: Actual Payments | N8: % Actual Payments | U8: Division of Revenue Act, No. 14 of 2018 | V8: Division of Revenue Amendment Act, No. 14 of 2018 | W8: Total National Allocation | X8: Provincial roll-overs approved by National Treasury | Y8: Total Available | AA8: Provincial Payment Schedule (National Allocation) | AB8: Transferred from National to Province | AD8: Actual Payments | AE8: % Actual Payments | AL8: =D8 -> Division of Revenue Act, No. 9 of 2022 | AM8: =E8 -> Division of Revenue Amendment Act, No. 30 of 2022 and other Gazettes | AN8: =F8 -> Total National Allocation | AO8: =G8 -> Provincial roll-overs approved by National Treasury | AP8: =H8 -> Total Available | AR8: =J8 -> Provincial Payment Schedule (National Allocation) | AS8: =K8 -> Transferred from National to Province | AU8: =M8 -> Actual Payments | AV8: =N8 -> % Actual Payments
D9: R'000 | E9: R'000 | F9: R'000 | G9: R'000 | H9: R'000 | J9: R'000 | K9: R'000 | M9: R'000 | N9: % | U9: R'000 | V9: R'000 | W9: R'000 | X9: R'000 | Y9: R'000 | AA9: R'000 | AB9: R'000 | AD9: R'000 | AE9: % | AL9: R'000 | AM9: R'000 | AN9: R'000 | AO9: R'000 | AP9: R'000 | AR9: R'000 | AS9: R'000 | AU9: R'000 | AV9: %
C11: Schedule 5, Part A Grants2. | T11: Schedule 5, Part A Grants2. | AK11: Schedule 5, Part A Grants2.
DB12: Numbers from the sources | DE12: Checks
C13: Agriculture, Land Reform and Rural Development (Vote 29) | D13: =SUM(D14+D15+D16) -> 307138 | E13: =SUM(E14+E15+E16) -> -66718 | F13: 240420 | G13: 4481 | H13: 244901 | I13: 0 | J13: =SUM(J14+J15+J16) -> 30713 | K13: =SUM(K14+K15+K16) -> 0 | M13: =SUM(M14+M15+M16) -> 36158 | N13: =IFERROR(M13/D13,0) -> 0.1177255826 | T13: =C13 -> Agriculture, Land Reform and Rural Development (Vote 29) | U13: 330418 | V13: 0 | W13: 330418 | X13: 0 | Y13: 330418 | AA13: 184183 | AB13: 184183 | AD13: 86222 | AE13: 0.2609482534 | AK13: =C13 -> Agriculture, Land Reform and Rural Development (Vote 29) | AL13: =SUM(AL14:AL16) -> 23280 | AM13: =SUM(AM14:AM16) -> 66718 | AN13: =SUM(AN14:AN16) -> 89998 | AO13: =SUM(AO14:AO16) -> -4481 | AP13: =SUM(AP14:AP16) -> 85517 | AR13: =SUM(AR14:AR16) -> 153470 | AS13: =SUM(AS14:AS16) -> 184183 | AU13: =SUM(AU14:AU16) -> 50064 | DB13: DoRA(annexure) | DC13: Payment schedule(macro) | DD13: Transfer from National(vulindlela) | DE13: DoRA | DF13: Payment Schedule | DG13: Transfer from National(vulindlela)
C14: (a) Comprehensive Agricultural Support Programme Grant | D14: 218604 | E14: =SUM(F14-D14) -> -40768 | F14: 177836 | G14: 4481 | H14: =SUM(F14:G14) -> 182317 | J14: 21860 | K14: 0 | M14: 33866 | N14: =IFERROR(M14/D14,0) -> 0.1549193976 | T14: (a) Comprehensive Agricultural Support Programme Grant | U14: 244101 | V14: 0 | W14: 244101 | X14: 0 | Y14: 244101 | AA14: 141578 | AB14: 141578 | AD14: 62765 | AE14: 0.2571271728 | AK14: (a) Comprehensive Agricultural Support Programme Grant | AL14: =IFERROR(U14-D14,0) -> 25497 | AM14: 40768 | AN14: 66265 | AO14: -4481 | AP14: 61784 | AR14: =IFERROR(AA14-J14,0) -> 119718 | AS14: 141578 | AU14: =IFERROR(AD14-M14,0) -> 28899 | DB14: 218604 | DC14: 21860 | DD14: 0 | DE14: =D14-DB14 -> 0 | DF14: =J14-DC14 -> 0 | DG14: =K14-DD14 -> 0
C15: (b) Ilima/Letsema Projects Grant | D15: 75424 | E15: =SUM(F15-D15) -> -25064 | F15: 50360 | G15: 0 | H15: =SUM(F15:G15) -> 50360 | J15: 7542 | K15: 0 | M15: 314 | N15: 0.004163131099 | T15: (b) Ilima/Letsema Projects Grant | U15: 75254 | V15: 0 | W15: 75254 | X15: 0 | Y15: 75254 | AA15: 37627 | AB15: 37627 | AD15: 12015 | AE15: 0.1596592872 | AK15: (b) Ilima/Letsema Projects Grant | AL15: -170 | AM15: 25064 | AN15: 24894 | AO15: 0 | AP15: 24894 | AR15: 30085 | AS15: 37627 | AU15: 11701 | DB15: 75424 | DC15: 7542 | DD15: 0 | DE15: =D15-DB15 -> 0 | DF15: =J15-DC15 -> 0 | DG15: 0
C16: (c) Land Care Programme Grant: Poverty Relief and Infrastructure Development | D16: 13110 | E16: =SUM(F16-D16) -> -886 | F16: 12224 | G16: 0 | H16: =SUM(F16:G16) -> 12224 | J16: 1311 | K16: 0 | M16: 1978 | N16: 0.150877193 | T16: (c) Land Care Programme Grant: Poverty Relief and Infrastructure Development | U16: 11063 | V16: 0 | W16: 11063 | X16: 0 | Y16: 11063 | AA16: 4978 | AB16: 4978 | AD16: 11442 | AE16: 1.034258339 | AK16: (c) Land Care Programme Grant: Poverty Relief and Infrastructure Development | AL16: -2047 | AM16: 886 | AN16: -1161 | AO16: 0 | AP16: -1161 | AR16: 3667 | AS16: 4978 | AU16: 9464 | DB16: 13110 | DC16: 1311 | DD16: 0 | DE16: 0 | DF16: 0 | DG16: 0
E17: =F17-D17 -> 0 | H17: =SUM(F17:G17) -> 0 | N17: =IFERROR(M17/F17,0) -> 0 | T17: 0 | V17: 0 | Y17: 0 | AE17: 0 | AK17: 0 | AL17: 0 | AM17: 0 | AN17: 0 | AO17: 0 | AP17: 0 | AR17: 0 | AS17: 0 | AU17: 0 | DC17: 7542 | DE17: 0 | DF17: =J17-DC17 -> -7542
E18: =F18-D18 -> 0 | H18: =SUM(F18:G18) -> 0 | N18: =IFERROR(M18/F18,0) -> 0 | T18: 0 | V18: 0 | Y18: 0 | AE18: 0 | AK18: 0 | AL18: 0 | AM18: 0 | AN18: 0 | AO18: 0 | AP18: 0 | AR18: 0 | AS18: 0 | AU18: 0 | DC18: 7542 | DE18: 0 | DF18: =J18-DC18 -> -7542
AK19: 0 | AL19: 0 | AM19: 0 | AN19: 0 | AO19: 0 | AP19: 0 | AR19: 0 | AS19: 0 | AU19: 0
C20: Sports, Arts and Culture (Vote 37) | D20: =SUM(D21) -> 186891 | E20: =SUM(E21) -> -56627 | F20: 130264 | G20: 4369 | H20: 134633 | I20: 0 | J20: =SUM(J21) -> 28400 | K20: =SUM(K21) -> 28400 | M20: =SUM(M21) -> 45855 | N20: =IFERROR(M20/D20,0) -> 0.2453569193 | T20: =C20 -> Sports, Arts and Culture (Vote 37) | U20: 169824 | V20: 0 | W20: 169824 | X20: 0 | Y20: 169824 | AA20: 79231 | AB20: 79231 | AD20: 82181 | AE20: 0.4839186452 | AK20: Sports, Arts and Culture (Vote 37) | AL20: -17067 | AM20: 56627 | AN20: 39560 | AO20: -4369 | AP20: 35191 | AR20: 50831 | AS20: 50831 | AU20: 36326
C21: Community Library Services Grant | D21: 186891 | E21: =SUM(F21-D21) -> -56627 | F21: 130264 | G21: 4369 | H21: =SUM(F21:G21) -> 134633 | J21: 28400 | K21: 28400 | M21: 45855 | N21: 0.2453569193 | T21: Community Library Services Grant | U21: 169824 | V21: 0 | W21: 169824 | X21: 0 | Y21: 169824 | AA21: 79231 | AB21: 79231 | AD21: 82181 | AE21: 0.4839186452 | AK21: Community Library Services Grant | AL21: -17067 | AM21: 56627 | AN21: 39560 | AO21: -4369 | AP21: 35191 | AR21: 50831 | AS21: 50831 | AU21: 36326 | DB21: 186891 | DC21: 28400 | DD21: 28400 | DE21: 0 | DF21: =J21-DC21 -> 0 | DG21: =K21-DD21 -> 0
E22: =F22-D22 -> 0 | H22: =SUM(F22:G22) -> 0 | N22: =IFERROR(M22/F22,0) -> 0 | T22: 0 | V22: 0 | Y22: 0 | AE22: 0 | AK22: 0 | AL22: 0 | AM22: 0 | AN22: 0 | AO22: 0 | AP22: 0 | AR22: 0 | AS22: 0 | AU22: 0 | DE22: 0
E23: =F23-D23 -> 0 | H23: =SUM(F23:G23) -> 0 | N23: =IFERROR(M23/F23,0) -> 0 | T23: 0 | V23: 0 | Y23: 0 | AE23: 0 | AK23: 0 | AL23: 0 | AM23: 0 | AN23: 0 | AO23: 0 | AP23: 0 | AR23: 0 | AS23: 0 | AU23: 0 | DE23: 0
E24: =F24-D24 -> 0 | H24: =SUM(F24:G24) -> 0 | N24: =IFERROR(M24/F24,0) -> 0 | T24: 0 | V24: 0 | Y24: 0 | AE24: 0 | AK24: 0 | AL24: 0 | AM24: 0 | AN24: 0 | AO24: 0 | AP24: 0 | AR24: 0 | AS24: 0 | AU24: 0 | DE24: 0
E25: =F25-D25 -> 0 | H25: =SUM(F25:G25) -> 0 | N25: =IFERROR(M25/F25,0) -> 0 | T25: 0 | V25: 0 | Y25: 0 | AE25: 0 | AK25: 0 | AL25: 0 | AM25: 0 | AN25: 0 | AO25: 0 | AP25: 0 | AR25: 0 | AS25: 0 | AU25: 0 | DE25: 0
AK26: 0 | AL26: 0 | AM26: 0 | AN26: 0 | AO26: 0 | AP26: 0 | AR26: 0 | AS26: 0 | AU26: 0
C27: Basic Education (Vote 16) | D27: =SUM(D28+D29+D30+D31+D32) -> 2305830 | E27: =SUM(E29+E30+E31+E32) -> -646920 | F27: =SUM(F29+F30+F31+F32) -> 1471707 | G27: =SUM(G29+G30+G31+G32) -> 16989 | H27: =SUM(H29+H30+H31+H32) -> 1488696 | I27: =SUM(I29+I30+I31+I32) -> 0 | J27: =SUM(J28+J29+J30+J31+J32) -> 578665 | K27: =SUM(K28+K29+K30+K31+K32) -> 578665 | M27: =SUM(M28+M29+M30+M31+M32) -> 561242 | N27: =IFERROR(M27/D27,0) -> 0.2434012915 | T27: =C27 -> Basic Education (Vote 16) | U27: 1398706 | V27: 0 | W27: 1398706 | X27: 0 | Y27: 1398706 | AA27: 1022190 | AB27: 1022190 | AD27: 986310 | AE27: 0.7051589112 | AK27: Basic Education (Vote 16) | AL27: -907124 | AM27: 646920 | AN27: -73001 | AO27: -16989 | AP27: -89990 | AR27: 443525 | AS27: 443525 | AU27: 425068
C28: (a) Early Childhood Development Grant | D28: 187203 | J28: 46801 | K28: 46801 | M28: 41103 | N28: 0.219563789 | T28: =C29 -> (b) HIV and AIDS (Life Skills Education) Grant | U28: 45455 | V28: 0 | W28: 45455 | X28: 0 | Y28: 45455 | AA28: 18182 | AB28: 18182 | AD28: 24690 | AE28: 0.5431745683 | AK28: =C29 -> (b) HIV and AIDS (Life Skills Education) Grant | AL28: =IFERROR(U28-D29,0) -> -15728 | AM28: 27148 | AN28: 11420 | AO28: 0 | AP28: 11420 | AR28: =IFERROR(AA28-J29,0) -> 12064 | AS28: 12064 | AU28: =IFERROR(AD28-M29,0) -> 14084 | DB28: 187203 | DC28: 46801 | DD28: 46801 | DE28: 0 | DF28: =J28-DC28 -> 0 | DG28: 0
C29: (b) HIV and AIDS (Life Skills Education) Grant | D29: 61183 | E29: =SUM(F29-D29) -> -27148 | F29: 34035 | G29: 0 | H29: =SUM(F29:G29) -> 34035 | J29: 6118 | K29: 6118 | M29: 10606 | N29: 0.173348806 | T29: =C30 -> (c) Learners with Profound Intellectual Disabilities Grant | U29: 25182 | V29: 0 | W29: 25182 | X29: 0 | Y29: 25182 | AA29: 16785 | AB29: 16785 | AD29: 8389 | AE29: 0.3331347788 | AK29: =C30 -> (c) Learners with Profound Intellectual Disabilities Grant | AL29: -9241 | AM29: 6655 | AN29: -2586 | AO29: -6311 | AP29: -8897 | AR29: 5785 | AS29: 5785 | AU29: =IFERROR(AD29-M30,0) -> 3160 | DB29: 61183 | DC29: 6118 | DD29: 6118 | DE29: 0 | DF29: 0 | DG29: 0
C30: (c) Learners with Profound Intellectual Disabilities Grant | D30: 34423 | E30: =SUM(F30-D30) -> -6655 | F30: 27768 | G30: 6311 | H30: =SUM(F30:G30) -> 34079 | J30: 11000 | K30: 11000 | M30: 5229 | N30: 0.1519042501 | T30: =C31 -> (d) Maths, Science and Technology Grant | U30: 49434 | V30: 0 | W30: 49434 | X30: 0 | Y30: 49434 | AA30: 24717 | AB30: 24717 | AD30: 9816 | AE30: 0.1985677874 | AK30: =C31 -> (d) Maths, Science and Technology Grant | AL30: -20810 | AM30: 36683 | AN30: 15873 | AO30: -9654 | AP30: 6219 | AR30: 17693 | AS30: 17693 | AU30: =IFERROR(AD30-M31,0) -> 8499 | DB30: 34423 | DC30: 11000 | DD30: 11000 | DE30: 0 | DF30: 0 | DG30: 0
C31: (d) Maths, Science and Technology Grant | D31: 70244 | E31: =SUM(F31-D31) -> -36683 | F31: 33561 | G31: 9654 | H31: =SUM(F31:G31) -> 43215 | J31: 7024 | K31: 7024 | M31: 1317 | N31: 0.01874893229 | T31: =C32 -> (e) National School Nutrition Programme Grant | U31: 1278635 | V31: 0 | W31: 1278635 | X31: 0 | Y31: 1278635 | AA31: 962506 | AB31: 962506 | AD31: 943415 | AE31: 0.7378297951 | AK31: =C32 -> (e) National School Nutrition Programme Grant | AL31: -674142 | AM31: 576434 | AN31: -97708 | AO31: -1024 | AP31: -98732 | AR31: 454784 | AS31: 454784 | AU31: =IFERROR(AD31-M32,0) -> 440428 | DB31: 70244 | DC31: 7024 | DD31: 7024 | DE31: 0 | DF31: 0 | DG31: 0
C32: (e) National School Nutrition Programme Grant | D32: 1952777 | E32: =SUM(F32-D32) -> -576434 | F32: 1376343 | G32: 1024 | H32: =SUM(F32:G32) -> 1377367 | J32: 507722 | K32: 507722 | M32: 502987 | N32: 0.2575752377 | T32: =#REF! ->  | V32: 0 | Y32: 0 | AE32: 0 | AK32: =#REF! ->  | AL32: =IFERROR(U32-#REF!,0) -> 0 | AM32: =IFERROR(V32-#REF!,0) -> 0 | AN32: =IFERROR(W32-#REF!,0) -> 0 | AO32: =IFERROR(X32-#REF!,0) -> 0 | AP32: =IFERROR(Y32-#REF!,0) -> 0 | AR32: =IFERROR(AA32-#REF!,0) -> 0 | AS32: =IFERROR(AB32-#REF!,0) -> 0 | AU32: =IFERROR(AD32-#REF!,0) -> 0 | DB32: 1952777 | DC32: 507722 | DD32: 507722 | DE32: 0 | DF32: 0 | DG32: 0
AK33: =C33 -> 0 | AL33: =IFERROR(U33-D33,0) -> 0 | AM33: =IFERROR(V33-E33,0) -> 0 | AN33: =IFERROR(W33-F33,0) -> 0 | AO33: =IFERROR(X33-G33,0) -> 0 | AP33: =IFERROR(Y33-H33,0) -> 0 | AR33: =IFERROR(AA33-J33,0) -> 0 | AS33: =IFERROR(AB33-K33,0) -> 0 | AU33: =IFERROR(AD33-M33,0) -> 0
C34: Cooperative Governance and Traditional Affairs (Vote 4) | D34: =SUM(D35) -> 0 | E34: 0 | F34: 0 | G34: 0 | H34: 0 | I34: 0 | J34: 0 | K34: 0 | L34: 0 | M34: 0 | N34: =IFERROR(M34/H34,0) -> 0 | T34: =C34 -> Cooperative Governance and Traditional Affairs (Vote 4) | AK34: Cooperative Governance and Traditional Affairs (Vote 4) | AL34: =SUM(AL35:AL37) -> 0 | AM34: =SUM(AM35:AM37) -> 0 | AN34: =SUM(AN35:AN37) -> 0 | AO34: =SUM(AO35:AO37) -> 0 | AP34: =SUM(AP35:AP37) -> 0 | AR34: =SUM(AR35:AR37) -> 0 | AS34: =SUM(AS35:AS37) -> 0 | AU34: =SUM(AU35:AU37) -> 0 | DE34: 0
C35: Provincial Disaster Recovery Grant | E35: =SUM(F35-D35) -> 0 | H35: =SUM(F35:G35) -> 0 | T35: Provincial Disaster Recovery Grant | V35: 0 | Y35: 0 | AE35: 0 | AK35: Provincial Disaster Recovery Grant | AL35: =IFERROR(U35-D35,0) -> 0 | AM35: 0 | AN35: 0 | AO35: 0 | AP35: 0 | AR35: =IFERROR(AA35-J35,0) -> 0 | AS35: 0 | AU35: =IFERROR(AD35-M35,0) -> 0 | DE35: 0
E36: =F36-D36 -> 0 | H36: =SUM(F36:G36) -> 0 | N36: =IFERROR(M36/F36,0) -> 0 | T36: 0 | V36: 0 | Y36: 0 | AE36: 0 | AK36: 0 | AL36: 0 | AM36: 0 | AN36: 0 | AO36: 0 | AP36: 0 | AR36: 0 | AS36: 0 | AU36: 0 | DE36: 0
E37: =F37-D37 -> 0 | H37: =SUM(F37:G37) -> 0 | N37: =IFERROR(M37/F37,0) -> 0 | T37: 0 | V37: 0 | Y37: 0 | AE37: 0 | AK37: 0 | AL37: 0 | AM37: 0 | AN37: 0 | AO37: 0 | AP37: 0 | AR37: 0 | AS37: 0 | AU37: 0 | DE37: 0
E38: =F38-D38 -> 0 | H38: =SUM(F38:G38) -> 0 | N38: =IFERROR(M38/F38,0) -> 0 | T38: 0 | V38: 0 | Y38: 0 | AE38: 0 | AK38: 0 | AL38: 0 | AM38: 0 | AN38: 0 | AO38: 0 | AP38: 0 | AR38: 0 | AS38: 0 | AU38: 0 | DE38: 0
E39: =F39-D39 -> 0 | H39: =SUM(F39:G39) -> 0 | N39: =IFERROR(M39/F39,0) -> 0 | T39: 0 | V39: 0 | Y39: 0 | AE39: 0 | AK39: 0 | AL39: 0 | AM39: 0 | AN39: 0 | AO39: 0 | AP39: 0 | AR39: 0 | AS39: 0 | AU39: 0 | DE39: 0
AK40: 0 | AL40: 0 | AM40: 0 | AN40: 0 | AO40: 0 | AP40: 0 | AR40: 0 | AS40: 0 | AU40: 0
C41: Health (Vote 18) | D41: =SUM(D42:D45) -> 9776558 | E41: =SUM(#REF!+E42+E43+E44+E46) ->  | F41: =SUM(#REF!+F42+F43+F44+F46) ->  | G41: =SUM(#REF!+G42+G43+G44+G46) ->  | H41: =SUM(#REF!+H42+H43+H44+H46) ->  | I41: =SUM(#REF!+I42+I43+I44+I46) ->  | J41: =SUM(J42:J45) -> 2423643 | K41: =SUM(K42:K45) -> 2428482 | M41: =SUM(M42:M45) -> 1500951 | N41: =IFERROR(M41/D41,0) -> 0.1535255046 | T41: =C41 -> Health (Vote 18) | U41: 3276289 | V41: 0 | W41: 3276289 | X41: 0 | Y41: 3276289 | AA41: 1777697 | AB41: 1777700 | AD41: 1686271 | AE41: 0.514689333 | AK41: Health (Vote 18) | AL41: -6500269 | AM41: 0 | AN41: 0 | AO41: 0 | AP41: 0 | AR41: -645946 | AS41: -650782 | AU41: 185320
C42: (a) District Health Programmes Grant | D42: 7547069 | E42: =SUM(F42-D42) -> -6877536 | F42: 669533 | G42: 11194 | H42: =SUM(F42:G42) -> 680727 | J42: 1886763 | K42: 1886763 | M42: 1100801 | N42: 0.1458580808 | T42: (a) District Health Programmes Grant | U42: 2397703 | V42: 0 | W42: 2397703 | X42: 0 | Y42: 2397703 | AA42: 1198848 | AB42: 1198851 | AD42: 1104098 | AE42: 0.4604815526 | AK42: (a) District Health Programmes Grant | AL42: =IFERROR(U42-#REF!,0) -> 0 | AM42: =IFERROR(V42-#REF!,0) -> 0 | AN42: =IFERROR(W42-#REF!,0) -> 0 | AO42: =IFERROR(X42-#REF!,0) -> 0 | AP42: =IFERROR(Y42-#REF!,0) -> 0 | AR42: =IFERROR(AA42-#REF!,0) -> 0 | AS42: =IFERROR(AB42-#REF!,0) -> 0 | AU42: =IFERROR(AD42-#REF!,0) -> 0 | DB42: 7547069 | DC42: 1886763 | DD42: 1886763 | DE42: 0 | DF42: =J42-DC42 -> 0 | DG42: 0
C43: (b) Health Facility Revitalisation Grant | D43: 1389913 | E43: =SUM(F43-D43) -> -1389913 | F43: 0 | G43: 0 | H43: =SUM(F43:G43) -> 0 | J43: 326988 | K43: 326988 | M43: 184612 | N43: 0.1328227019 | T43: (b) Health Facility Revitalisation Grant | U43: 784988 | V43: 0 | W43: 784988 | X43: 0 | Y43: 784988 | AA43: 532055 | AB43: 532055 | AD43: 515189 | AE43: 0.6563017524 | AK43: (b) Health Facility Revitalisation Grant | AL43: =IFERROR(U43-D42,0) -> -6762081 | AM43: 6877536 | AN43: 115455 | AO43: -11194 | AP43: 104261 | AR43: =IFERROR(AA43-J42,0) -> -1354708 | AS43: -1354708 | AU43: =IFERROR(AD43-M42,0) -> -585612 | DB43: 1389913 | DC43: 326988 | DD43: 326988 | DE43: 0 | DF43: 0 | DG43: 0
C44: (c) Human Resources and Training Grant | D44: 754850 | E44: =SUM(F44-D44) -> -363557 | F44: 391293 | G44: 0 | H44: =SUM(F44:G44) -> 391293 | J44: 188709 | K44: 188709 | M44: 195196 | N44: 0.2585891237 | T44: (c) Human Resources and Training Grant | U44: 35345 | V44: 0 | W44: 35345 | X44: 0 | Y44: 35345 | AA44: 17670 | AB44: 17670 | AD44: 17524 | AE44: 0.4957985571 | AK44: (c) Human Resources and Training Grant | AL44: -1354568 | AM44: 1389913 | AN44: 35345 | AO44: 0 | AP44: 35345 | AR44: -309318 | AS44: -309318 | AU44: =IFERROR(AD44-M43,0) -> -167088 | DB44: 754850 | DC44: 188709 | DD44: 188709 | DE44: 0 | DF44: 0 | DG44: 0
C45: (d) National Health Insurance Grant | D45: 84726 | J45: 21183 | K45: 26022 | M45: 20342 | N45: 0.2400915894 | T45: (d) National Health Insurance Grant | U45: 58253 | V45: 0 | W45: 58253 | X45: 0 | Y45: 58253 | AA45: 29124 | AB45: 29124 | AD45: 49460 | AE45: 0.8490549843 | AK45: (d) National Health Insurance Grant | AL45: -696597 | AM45: 363557 | AN45: -333040 | AO45: 0 | AP45: -333040 | AR45: -159585 | AS45: -159585 | AU45: =IFERROR(AD45-M44,0) -> -145736 | DB45: 84726 | DC45: 21183 | DD45: 26022 | DE45: 0 | DF45: 0 | DG45: 0
T46: 0 | V46: 0 | Y46: 0 | AE46: 0 | AK46: 0 | AL46: =IFERROR(U46-D46,0) -> 0 | AM46: 0 | AN46: 0 | AO46: 0 | AP46: 0 | AR46: =IFERROR(AA46-J46,0) -> 0 | AS46: 0 | AU46: =IFERROR(AD46-M46,0) -> 0 | DE46: 0
AK47: 0 | AL47: 0 | AM47: 0 | AN47: 0 | AO47: 0 | AP47: 0 | AR47: 0 | AS47: 0 | AU47: =IFERROR(AD47-M47,0) -> 0 | DE47: 0
C48: Human Settlements (Vote 33) | D48: =SUM(D49+D50) -> 3692092 | E48: =SUM(#REF!+E49) ->  | F48: =SUM(#REF!+F49) ->  | G48: =SUM(#REF!+G49) ->  | H48: =SUM(#REF!+H49) ->  | I48: =SUM(#REF!+I49) ->  | J48: =SUM(J49+J50) -> 1360875 | K48: =SUM(K49+K50) -> 1360875 | L48: =SUM(L49+L50) -> 0 | M48: =SUM(M49+M50) -> 435799 | N48: =IFERROR(M48/D48,0) -> 0.1180357911 | T48: =C48 -> Human Settlements (Vote 33) | U48: 2021182 | V48: 0 | W48: 2021182 | X48: 0 | Y48: 2021182 | AA48: 969157 | AB48: 979307 | AD48: 959607 | AE48: 0.4747751563 | AK48: Human Settlements (Vote 33) | AL48: -1670910 | AM48: 0 | AN48: 0 | AO48: 0 | AP48: 0 | AR48: -391718 | AS48: -381568 | AU48: =IFERROR(AD48-M48,0) -> 523808
C49: (a) Human Settlements Development Grant | D49: 2935224 | E49: =SUM(F49-D49) -> -2912984 | F49: 22240 | G49: 32509 | H49: =SUM(F49:G49) -> 54749 | J49: 1050608 | K49: 1050608 | M49: 399856 | N49: 0.1362267411 | T49: (a) Human Settlements Development Grant | U49: 1960278 | V49: 0 | W49: 1960278 | X49: 0 | Y49: 1960278 | AA49: 953931 | AB49: 953931 | AD49: 939260 | AE49: 0.4791463252 | AK49: (a) Human Settlements Development Grant | AL49: =IFERROR(U49-#REF!,0) -> 0 | AM49: =IFERROR(V49-#REF!,0) -> 0 | AN49: =IFERROR(W49-#REF!,0) -> 0 | AO49: =IFERROR(X49-#REF!,0) -> 0 | AP49: =IFERROR(Y49-#REF!,0) -> 0 | AR49: =IFERROR(AA49-#REF!,0) -> 0 | AS49: =IFERROR(AB49-#REF!,0) -> 0 | AU49: =IFERROR(AD49-#REF!,0) -> 0 | DB49: 2935224 | DC49: 1050608 | DD49: 1050608 | DE49: 0 | DF49: =J49-DC49 -> 0 | DG49: 0
C50: (b) Informal Settlements Upgrading Partnership Grant: Provinces | D50: 756868 | J50: 310267 | K50: 310267 | M50: 35943 | N50: 0.04748912624 | T50: (b) Informal Settlements Upgrading Partnership Grant: Provinces | U50: 60904 | V50: 0 | W50: 60904 | X50: 0 | Y50: 60904 | AA50: 15226 | AB50: 25376 | AD50: 20347 | AE50: 0.3340831472 | AK50: (b) Informal Settlements Upgrading Partnership Grant: Provinces | AL50: =IFERROR(U50-D49,0) -> -2874320 | AM50: =IFERROR(V50-E49,0) -> 2912984 | AN50: =IFERROR(W50-F49,0) -> 38664 | AO50: =IFERROR(X50-G49,0) -> -32509 | AP50: =IFERROR(Y50-H49,0) -> 6155 | AR50: =IFERROR(AA50-J49,0) -> -1035382 | AS50: =IFERROR(AB50-K49,0) -> -1025232 | AU50: =IFERROR(AD50-M49,0) -> -379509 | DB50: 756868 | DC50: 310267 | DD50: 310267 | DE50: 0 | DF50: 0 | DG50: 0
E51: =F51-D51 -> 0 | H51: =SUM(F51:G51) -> 0 | N51: =IFERROR(M51/F51,0) -> 0 | T51: 0 | V51: 0 | Y51: 0 | AE51: 0 | AK51: 0 | AL51: =IFERROR(U51-D51,0) -> 0 | AM51: 0 | AN51: 0 | AO51: 0 | AP51: 0 | AR51: =IFERROR(AA51-J51,0) -> 0 | AS51: 0 | AU51: =IFERROR(AD51-M51,0) -> 0 | DC51: 1050608 | DE51: 0
E52: =F52-D52 -> 0 | H52: =SUM(F52:G52) -> 0 | N52: =IFERROR(M52/F52,0) -> 0 | T52: 0 | V52: 0 | Y52: 0 | AE52: 0 | AK52: 0 | AL52: 0 | AM52: 0 | AN52: 0 | AO52: 0 | AP52: 0 | AR52: 0 | AS52: 0 | AU52: =IFERROR(AD52-M52,0) -> 0 | DC52: 1050608 | DE52: 0
E53: =F53-D53 -> 0 | H53: =SUM(F53:G53) -> 0 | N53: =IFERROR(M53/F53,0) -> 0 | T53: 0 | V53: 0 | Y53: 0 | AE53: 0 | AK53: 0 | AL53: 0 | AM53: 0 | AN53: 0 | AO53: 0 | AP53: 0 | AR53: 0 | AS53: 0 | AU53: =IFERROR(AD53-M53,0) -> 0 | DC53: 1050608 | DE53: 0
AK54: 0 | AL54: 0 | AM54: 0 | AN54: 0 | AO54: 0 | AP54: 0 | AR54: 0 | AS54: 0 | AU54: =IFERROR(AD54-M54,0) -> 0
C55: Public Works and Infrastructure (Vote 13) | D55: =SUM(D56+D57) -> 211665 | E55: =SUM(E57+E102) -> -2657486 | F55: =SUM(F57+F102) -> 162991 | G55: =SUM(G57+G102) -> 0 | H55: =SUM(H57+H102) -> 162991 | I55: =SUM(I57+I102) -> 0 | J55: =SUM(J56+J57) -> 52918 | K55: =SUM(K56+K57) -> 52918 | M55: =SUM(M56+M57) -> 76320 | N55: =IFERROR(M55/D55,0) -> 0.3605697683 | T55: =C55 -> Public Works and Infrastructure (Vote 13) | U55: 157225 | V55: 0 | W55: 157225 | X55: 0 | Y55: 157225 | AA55: 110057 | AB55: 104823 | AD55: 78040.1276 | AE55: 0.4963595332 | AK55: Public Works and Infrastructure (Vote 13) | AL55: -54440 | AM55: 2657486 | AN55: -5766 | AO55: 0 | AP55: -5766 | AR55: 57139 | AS55: 51905 | AU55: =IFERROR(AD55-M55,0) -> 1720.1276
C56: (a) Expanded Public Works Programme Integrated Grant for Provinces | D56: 111866 | J56: 27968 | K56: =$DD$56 -> 27968 | M56: 62180 | N56: 0.5558435986 | T56: (a) Expanded Public Works Programme Integrated Grant for Provinces | U56: 106862 | V56: 0 | W56: 106862 | X56: 0 | Y56: 106862 | AA56: 74804 | AB56: 69570 | AD56: 51083.1276 | AE56: 0.4780289308 | AK56: (a) Expanded Public Works Programme Integrated Grant for Provinces | AL56: =IFERROR(U56-D57,0) -> 7063 | AM56: =IFERROR(V56-E57,0) -> -7990 | AN56: =IFERROR(W56-F57,0) -> -927 | AO56: =IFERROR(X56-G57,0) -> 0 | AP56: =IFERROR(Y56-H57,0) -> -927 | AR56: =IFERROR(AA56-J57,0) -> 49854 | AS56: =IFERROR(AB56-K57,0) -> 44620 | AU56: =IFERROR(AD56-M57,0) -> 36943.1276 | DB56: 111866 | DC56: 27968 | DD56: 27968 | DE56: 0 | DF56: =J56-DC56 -> 0 | DG56: 0
C57: (b) Social Sector Expanded Public Works Programme Incentive Grant for Provinces | D57: 99799 | E57: =SUM(F57-D57) -> 7990 | F57: 107789 | G57: 0 | H57: =SUM(F57:G57) -> 107789 | J57: 24950 | K57: 24950 | M57: 14140 | N57: 0.1416847864 | T57: (b) Social Sector Expanded Public Works Programme Incentive Grant for Provinces | U57: 50363 | V57: 0 | W57: 50363 | X57: 0 | Y57: 50363 | AA57: 35253 | AB57: 35253 | AD57: 26957 | AE57: 0.5352540556 | AK57: (b) Social Sector Expanded Public Works Programme Incentive Grant for Provinces | AL57: =IFERROR(U57-D102,0) -> -2670315 | AM57: =IFERROR(V57-E102,0) -> 2665476 | AN57: =IFERROR(W57-F102,0) -> -4839 | AO57: =IFERROR(X57-G102,0) -> 0 | AP57: =IFERROR(Y57-H102,0) -> -4839 | AR57: =IFERROR(AA57-J102,0) -> -644916 | AS57: =IFERROR(AB57-K102,0) -> -644916 | AU57: =IFERROR(AD57-#REF!,0) -> 0 | DB57: 99799 | DC57: 24950 | DD57: 24950 | DE57: 0 | DF57: 0 | DG57: 0
E58: =F58-D58 -> 0 | H58: =SUM(F58:G58) -> 0 | N58: =IFERROR(M58/F58,0) -> 0 | T58: 0 | V58: 0 | Y58: 0 | AE58: 0 | AK58: 0 | AL58: =IFERROR(U58-D58,0) -> 0 | AM58: 0 | AN58: 0 | AO58: 0 | AP58: 0 | AR58: =IFERROR(AA58-J58,0) -> 0 | AS58: 0 | AU58: =IFERROR(AD58-M58,0) -> 0 | DE58: 0
E59: =F59-D59 -> 0 | H59: =SUM(F59:G59) -> 0 | N59: =IFERROR(M59/F59,0) -> 0 | T59: 0 | V59: 0 | Y59: 0 | AE59: 0 | AK59: 0 | AL59: 0 | AM59: 0 | AN59: 0 | AO59: 0 | AP59: 0 | AR59: 0 | AS59: 0 | AU59: 0 | DE59: 0
E60: =F60-D60 -> 0 | H60: =SUM(F60:G60) -> 0 | N60: =IFERROR(M60/F60,0) -> 0 | T60: 0 | V60: 0 | Y60: 0 | AE60: 0 | AK60: 0 | AL60: 0 | AM60: 0 | AN60: 0 | AO60: 0 | AP60: 0 | AR60: 0 | AS60: 0 | AU60: 0 | DE60: 0
AK61: 0 | AL61: 0 | AM61: 0 | AN61: 0 | AO61: 0 | AP61: 0 | AR61: 0 | AS61: 0 | AU61: 0
C62: Social Development (Vote 19) | D62: =SUM(D63) -> 0 | E62: 193934 | F62: 193934 | G62: 1978 | H62: 195912 | I62: 0 | J62: 0 | K62: 0 | M62: =SUM(M63) -> 0 | N62: =IFERROR(M62/D62,0) -> 0 | T62: =C62 -> Social Development (Vote 19) | U62: 85397 | V62: 0 | W62: 85397 | X62: 0 | Y62: 85397 | AA62: 45025 | AB62: 45025 | AD62: 33094 | AE62: 0.3875311779 | AK62: Social Development (Vote 19) | AL62: 85397 | AM62: -193934 | AN62: -108537 | AO62: -1978 | AP62: -110515 | AR62: 45025 | AS62: 45025 | AU62: 33094 | DE62: 0
E63: =SUM(F63-D63) -> 193934 | F63: 193934 | G63: 1978 | H63: =SUM(F63:G63) -> 195912 | T63: 0 | U63: 85397 | V63: 0 | W63: 85397 | X63: 0 | Y63: 85397 | AA63: 45025 | AB63: 45025 | AD63: 33094 | AE63: 0.3875311779 | AK63: 0 | AL63: 85397 | AM63: -193934 | AN63: -108537 | AO63: -1978 | AP63: -110515 | AR63: 45025 | AS63: 45025 | AU63: 33094 | DE63: 0
C64: (b) Substance Abuse Treatment Grant | T64: (b) Substance Abuse Treatment Grant | U64: 0 | V64: 0 | W64: 0 | X64: 0 | Y64: 0 | AA64: 0 | AB64: 0 | AD64: 0 | AE64: 0 | AK64: (b) Substance Abuse Treatment Grant | AL64: 0 | AM64: 0 | AN64: 0 | AO64: 0 | AP64: 0 | AR64: 0 | AS64: 0 | AU64: 0 | DE64: 0
E65: =F65-D65 -> 0 | H65: =SUM(F65:G65) -> 0 | N65: =IFERROR(M65/F65,0) -> 0 | T65: 0 | V65: 0 | Y65: 0 | AE65: 0 | AK65: 0 | AL65: 0 | AM65: 0 | AN65: 0 | AO65: 0 | AP65: 0 | AR65: 0 | AS65: 0 | AU65: 0 | DE65: 0
E66: =F66-D66 -> 0 | H66: =SUM(F66:G66) -> 0 | N66: =IFERROR(M66/F66,0) -> 0 | T66: 0 | V66: 0 | Y66: 0 | AE66: 0 | AK66: 0 | AL66: 0 | AM66: 0 | AN66: 0 | AO66: 0 | AP66: 0 | AR66: 0 | AS66: 0 | AU66: 0 | DE66: 0
E67: =F67-D67 -> 0 | H67: =SUM(F67:G67) -> 0 | N67: =IFERROR(M67/F67,0) -> 0 | T67: 0 | V67: 0 | Y67: 0 | AE67: 0 | AK67: 0 | AL67: 0 | AM67: 0 | AN67: 0 | AO67: 0 | AP67: 0 | AR67: 0 | AS67: 0 | AU67: 0 | DE67: 0
AK68: 0 | AL68: 0 | AM68: 0 | AN68: 0 | AO68: 0 | AP68: 0 | AR68: 0 | AS68: 0 | AU68: 0
C69: Sports, Arts and Culture (Vote 37) | D69: =SUM(D70) -> 97278 | E69: -63674 | F69: 33604 | G69: 475 | H69: 34079 | I69: 0 | J69: =SUM(J70) -> 19455 | K69: =SUM(K70) -> 0 | M69: =SUM(M70) -> 6455 | N69: =IFERROR(M69/D69,0) -> 0.06635621621 | T69: =C69 -> Sports, Arts and Culture (Vote 37) | U69: 70037 | V69: 0 | W69: 70037 | X69: 0 | Y69: 70037 | AA69: 35018 | AB69: 35018 | AD69: 29735 | AE69: 0.4245613033 | AK69: Sports, Arts and Culture (Vote 37) | AL69: -27241 | AM69: 63674 | AN69: 36433 | AO69: -475 | AP69: 35958 | AR69: 15563 | AS69: 35018 | AU69: 23280
C70: Mass Participation and Sport Development Grant | D70: 97278 | E70: =SUM(F70-D70) -> -63674 | F70: 33604 | G70: 475 | H70: =SUM(F70:G70) -> 34079 | J70: 19455 | K70: 0 | M70: 6455 | N70: 0.06635621621 | T70: Mass Participation and Sport Development Grant | U70: 70037 | V70: 0 | W70: 70037 | X70: 0 | Y70: 70037 | AA70: 35018 | AB70: 35018 | AD70: 29735 | AE70: 0.4245613033 | AK70: Mass Participation and Sport Development Grant | AL70: -27241 | AM70: 63674 | AN70: 36433 | AO70: -475 | AP70: 35958 | AR70: 15563 | AS70: 35018 | AU70: 23280 | DB70: 97278 | DC70: 19455 | DD70: 0 | DE70: 0 | DF70: =J70-DC70 -> 0 | DG70: =K70-DD70 -> 0
E71: =F71-D71 -> 0 | H71: =SUM(F71:G71) -> 0 | N71: =IFERROR(M71/F71,0) -> 0 | T71: 0 | V71: 0 | Y71: 0 | AE71: 0 | AK71: 0 | AL71: 0 | AM71: 0 | AN71: 0 | AO71: 0 | AP71: 0 | AR71: 0 | AS71: 0 | AU71: 0 | DE71: 0
E72: =F72-D72 -> 0 | H72: =SUM(F72:G72) -> 0 | N72: =IFERROR(M72/F72,0) -> 0 | T72: 0 | V72: 0 | Y72: 0 | AE72: 0 | AK72: 0 | AL72: 0 | AM72: 0 | AN72: 0 | AO72: 0 | AP72: 0 | AR72: 0 | AS72: 0 | AU72: 0 | DE72: 0
E73: =F73-D73 -> 0 | H73: =SUM(F73:G73) -> 0 | N73: =IFERROR(M73/F73,0) -> 0 | T73: 0 | V73: 0 | Y73: 0 | AE73: 0 | AK73: 0 | AL73: 0 | AM73: 0 | AN73: 0 | AO73: 0 | AP73: 0 | AR73: 0 | AS73: 0 | AU73: 0 | DE73: 0
E74: =F74-D74 -> 0 | H74: =SUM(F74:G74) -> 0 | N74: =IFERROR(M74/F74,0) -> 0 | T74: 0 | V74: 0 | Y74: 0 | AE74: 0 | AK74: 0 | AL74: 0 | AM74: 0 | AN74: 0 | AO74: 0 | AP74: 0 | AR74: 0 | AS74: 0 | AU74: 0 | DE74: 0
AK75: 0 | AL75: 0 | AM75: 0 | AN75: 0 | AO75: 0 | AP75: 0 | AR75: 0 | AS75: 0 | AU75: 0
C76: Sub-Total | D76: =SUM(D13+D20+D27+D41+D48+D55+D69) -> 16577452 | E76: =SUM(E13+E20+E27+E34+E41+E48+E55+E62+E69) ->  | F76: =SUM(F13+F20+F27+F34+F41+F48+F55+F62+F69) ->  | G76: =SUM(G13+G20+G27+G34+G41+G48+G55+G62+G69) ->  | H76: =SUM(H13+H20+H27+H34+H41+H48+H55+H62+H69) ->  | I76: =SUM(I13+I20+I27+I34+I41+I48+I55+I62+I69) ->  | J76: =SUM(J13+J20+J27+J41+J48+J55+J69) -> 4494669 | K76: =SUM(K13+K20+K27+K41+K48+K55+K69) -> 4449340 | M76: =SUM(M13+M20+M27+M41+M48+M55+M69) -> 2662780 | N76: =IFERROR(M76/D76,0) -> 0.160626615 | T76: Sub-Total | U76: 7509078 | V76: 0 | W76: 7509078 | X76: 0 | Y76: 7509078 | Z76: 0 | AA76: 4222558 | AB76: 4227477 | AD76: 3941460.128 | AE76: 0.5248926869 | AK76: Sub-Total | AL76: -9068374 | AM76: 0 | AN76: 0 | AO76: 0 | AP76: 0 | AR76: -272111 | AS76: -221863 | AU76: 1278680.128
AL77: 0 | AM77: 0 | AN77: 0 | AO77: 0 | AP77: 0 | AR77: 0 | AS77: 0 | AU77: 0
C78: Schedule 4, Part A Grants1. | T78: Schedule 4, Part A Grants1. | AK78: =C78 -> Schedule 4, Part A Grants1. | AL78: 0 | AM78: 0 | AN78: 0 | AO78: 0 | AP78: 0 | AR78: 0 | AS78: 0 | AU78: 0
AL79: 0 | AM79: 0 | AN79: 0 | AO79: 0 | AP79: 0 | AR79: 0 | AS79: 0 | AU79: 0
C80: Basic Education (Vote 16) | D80: =SUM(D81) -> 2387952 | E80: -1160917 | F80: 1227035 | G80: 113603 | H80: 1340638 | I80: 0 | J80: =SUM(J81) -> 716385 | K80: =SUM(K81) -> 716385 | T80: =C80 -> Basic Education (Vote 16) | U80: 1585532 | V80: 0 | W80: 1585532 | X80: 0 | Y80: 1585532 | AA80: 990958 | AB80: 990958 | AK80: =C80 -> Basic Education (Vote 16) | AL80: -802420 | AM80: 1160917 | AN80: 358497 | AO80: -113603 | AP80: 244894 | AR80: 274573 | AS80: 274573 | AU80: 0
C81: Education Infrastructure Grant | D81: 2387952 | E81: =SUM(F81-D81) -> -1160917 | F81: 1227035 | G81: 113603 | H81: =SUM(F81:G81) -> 1340638 | J81: 716385 | K81: 716385 | T81: Education Infrastructure Grant | U81: 1585532 | V81: 0 | W81: 1585532 | X81: 0 | Y81: 1585532 | AA81: 990958 | AB81: 990958 | AK81: Education Infrastructure Grant | AL81: -802420 | AM81: 1160917 | AN81: 358497 | AO81: -113603 | AP81: 244894 | AR81: 274573 | AS81: 274573 | AU81: 0 | DB81: 2387952 | DC81: 716385 | DD81: 716385 | DE81: =D81-DB81 -> 0 | DF81: =J81-DC81 -> 0 | DG81: =K81-DD81 -> 0
E82: =F82-D82 -> 0 | H82: =SUM(F82:G82) -> 0 | T82: 0 | V82: 0 | Y82: 0 | AK82: 0 | AL82: 0 | AM82: 0 | AN82: 0 | AO82: 0 | AP82: 0 | AR82: 0 | AS82: 0 | AU82: 0 | DE82: 0
E83: =F83-D83 -> 0 | H83: =SUM(F83:G83) -> 0 | T83: 0 | V83: 0 | Y83: 0 | AK83: 0 | AL83: 0 | AM83: 0 | AN83: 0 | AO83: 0 | AP83: 0 | AR83: 0 | AS83: 0 | AU83: 0 | DE83: 0
E84: =F84-D84 -> 0 | H84: =SUM(F84:G84) -> 0 | T84: 0 | V84: 0 | Y84: 0 | AK84: 0 | AL84: 0 | AM84: 0 | AN84: 0 | AO84: 0 | AP84: 0 | AR84: 0 | AS84: 0 | AU84: 0 | DE84: 0
E85: =F85-D85 -> 0 | H85: =SUM(F85:G85) -> 0 | T85: 0 | V85: 0 | Y85: 0 | AK85: 0 | AL85: 0 | AM85: 0 | AN85: 0 | AO85: 0 | AP85: 0 | AR85: 0 | AS85: 0 | AU85: 0 | DE85: 0
AK86: 0 | AL86: 0 | AM86: 0 | AN86: 0 | AO86: 0 | AP86: 0 | AR86: 0 | AS86: 0 | AU86: 0
C87: Health (Vote 18) | D87: =SUM(D88) -> 2045854 | E87: =SUM(E88+E89) -> -965008 | F87: =SUM(F88+F89) -> 1080846 | G87: =SUM(G88+G89) -> 55587 | H87: =SUM(H88+H89) -> 1136433 | I87: =SUM(I88+I89) -> 0 | J87: =SUM(J88) -> 511461 | K87: =SUM(K88) -> 511461 | T87: =C87 -> Health (Vote 18) | U87: 1248569 | V87: 0 | W87: 1248569 | X87: 0 | Y87: 1248569 | AA87: 624282 | AB87: 624282 | AK87: Health (Vote 18) | AL87: -797285 | AM87: 965008 | AN87: 167723 | AO87: -55587 | AP87: 112136 | AR87: 112821 | AS87: 112821 | AU87: 0
C88: National Tertiary Services Grant | D88: 2045854 | E88: =SUM(F88-D88) -> -2045854 | F88: 0 | G88: 44551 | H88: =SUM(F88:G88) -> 44551 | J88: 511461 | K88: 511461 | T88: National Tertiary Services Grant | U88: 253131 | V88: 0 | W88: 253131 | X88: 0 | Y88: 253131 | AA88: 126564 | AB88: 126564 | AK88: National Tertiary Services Grant | AL88: -1792723 | AM88: 2045854 | AN88: 253131 | AO88: -44551 | AP88: 208580 | AR88: -384897 | AS88: -384897 | AU88: 0 | DB88: 2045854 | DC88: 511461 | DD88: 511461 | DE88: 0 | DF88: =J88-DC88 -> 0 | DG88: =K88-DD88 -> 0
E89: =SUM(F89-D89) -> 1080846 | F89: 1080846 | G89: 11036 | H89: =SUM(F89:G89) -> 1091882 | T89: 0 | U89: 995438 | V89: 0 | W89: 995438 | X89: 0 | Y89: 995438 | AA89: 497718 | AB89: 497718 | AK89: 0 | AL89: 995438 | AM89: -1080846 | AN89: -85408 | AO89: -11036 | AP89: -96444 | AR89: 497718 | AS89: 497718 | AU89: 0 | DE89: 0
E90: =F90-D90 -> 0 | H90: =SUM(F90:G90) -> 0 | T90: 0 | V90: 0 | Y90: 0 | AK90: 0 | AL90: 0 | AM90: 0 | AN90: 0 | AO90: 0 | AP90: 0 | AR90: 0 | AS90: 0 | AU90: 0 | DE90: 0
E91: =F91-D91 -> 0 | H91: =SUM(F91:G91) -> 0 | T91: 0 | V91: 0 | Y91: 0 | AK91: 0 | AL91: 0 | AM91: 0 | AN91: 0 | AO91: 0 | AP91: 0 | AR91: 0 | AS91: 0 | AU91: 0 | DE91: 0
E92: =F92-D92 -> 0 | H92: =SUM(F92:G92) -> 0 | T92: 0 | V92: 0 | Y92: 0 | AK92: 0 | AL92: 0 | AM92: 0 | AN92: 0 | AO92: 0 | AP92: 0 | AR92: 0 | AS92: 0 | AU92: 0 | DE92: 0
AK93: 0 | AL93: 0 | AM93: 0 | AN93: 0 | AO93: 0 | AP93: 0 | AR93: 0 | AS93: 0 | AU93: 0 | DE93: 0
E94: =F94-D94 -> 0 | T94: =C94 -> 0 | V94: 0 | AK94: 0 | AL94: 0 | AM94: 0 | AN94: 0 | AO94: 0 | AP94: 0 | AR94: 0 | AS94: 0 | AU94: 0 | DE94: 0
D95: 0 | E95: 0 | F95: 0 | G95: 0 | H95: =SUM(F95:G95) -> 0 | J95: 0 | K95: 0 | T95: 0 | U95: 0 | V95: 0 | W95: 0 | X95: 0 | Y95: 0 | AA95: 0 | AB95: 0 | AK95: 0 | AL95: 0 | AM95: 0 | AN95: 0 | AO95: 0 | AP95: 0 | AR95: 0 | AS95: 0 | AU95: 0 | DE95: 0
E96: 0 | H96: =SUM(F96:G96) -> 0 | T96: 0 | V96: 0 | Y96: 0 | AK96: 0 | AL96: 0 | AM96: 0 | AN96: 0 | AO96: 0 | AP96: 0 | AR96: 0 | AS96: 0 | AU96: 0 | DE96: 0
E97: 0 | H97: =SUM(F97:G97) -> 0 | T97: 0 | V97: 0 | Y97: 0 | AK97: 0 | AL97: 0 | AM97: 0 | AN97: 0 | AO97: 0 | AP97: 0 | AR97: 0 | AS97: 0 | AU97: 0 | DE97: 0
E98: 0 | H98: =SUM(F98:G98) -> 0 | T98: 0 | V98: 0 | Y98: 0 | AK98: 0 | AL98: 0 | AM98: 0 | AN98: 0 | AO98: 0 | AP98: 0 | AR98: 0 | AS98: 0 | AU98: 0 | DE98: 0
E99: 0 | H99: =SUM(F99:G99) -> 0 | T99: 0 | V99: 0 | Y99: 0 | AK99: 0 | AL99: 0 | AM99: 0 | AN99: 0 | AO99: 0 | AP99: 0 | AR99: 0 | AS99: 0 | AU99: 0 | DE99: 0
AK100: 0 | AL100: 0 | AM100: 0 | AN100: 0 | AO100: 0 | AP100: 0 | AR100: 0 | AS100: 0 | AU100: 0
C101: Transport (Vote 40) | D101: =SUM(D102+D103) -> 4029981 | E101: =SUM(E103+#REF!) ->  | F101: =SUM(F103+#REF!) ->  | G101: =SUM(G103+#REF!) ->  | H101: =SUM(H103+#REF!) ->  | I101: =SUM(I103+#REF!) ->  | J101: =SUM(J102+J103) -> 921269 | K101: =SUM(K102+K103) -> 921269 | T101: =C101 -> Transport (Vote 40) | U101: 1735654 | V101: 0 | W101: 1735654 | X101: 0 | Y101: 1735654 | AA101: 1018416 | AB101: 1018416 | AK101: Transport (Vote 40) | AL101: -2294327 | AM101: 0 | AN101: 0 | AO101: 0 | AP101: 0 | AR101: 97147 | AS101: 97147 | AU101: 0
C102: (a) Provincial Roads Maintenance Grant | D102: 2720678 | E102: =SUM(F102-D102) -> -2665476 | F102: 55202 | G102: 0 | H102: =SUM(F102:G102) -> 55202 | J102: 680169 | K102: 680169 | T102: (a) Provincial Roads Maintenance Grant | U102: 1483539 | V102: 0 | W102: 1483539 | X102: 0 | Y102: 1483539 | AA102: 903816 | AB102: 903816 | AK102: (a) Provincial Roads Maintenance Grant | AL102: =IFERROR(U102-D103,0) -> 174236 | AM102: =IFERROR(V102-E103,0) -> -159504 | AN102: =IFERROR(W102-F103,0) -> 14732 | AO102: =IFERROR(X102-G103,0) -> -34572 | AP102: =IFERROR(Y102-H103,0) -> -19840 | AR102: =IFERROR(AA102-J103,0) -> 662716 | AS102: =IFERROR(AB102-K103,0) -> 662716 | AU102: 0 | DB102: 2720678 | DC102: 680169 | DD102: 680169 | DE102: 0 | DF102: =J102-DC102 -> 0 | DG102: 0
C103: (b) Public Transport Operations Grant | D103: 1309303 | E103: =SUM(F103-D103) -> 159504 | F103: 1468807 | G103: 34572 | H103: =SUM(F103:G103) -> 1503379 | J103: 241100 | K103: 241100 | T103: (b) Public Transport Operations Grant | U103: 252115 | V103: 0 | W103: 252115 | X103: 0 | Y103: 252115 | AA103: 114600 | AB103: 114600 | AK103: (b) Public Transport Operations Grant | AL103: =IFERROR(U103-#REF!,0) -> 0 | AM103: =IFERROR(V103-#REF!,0) -> 0 | AN103: =IFERROR(W103-#REF!,0) -> 0 | AO103: =IFERROR(X103-#REF!,0) -> 0 | AP103: =IFERROR(Y103-#REF!,0) -> 0 | AR103: =IFERROR(AA103-#REF!,0) -> 0 | AS103: =IFERROR(AB103-#REF!,0) -> 0 | AU103: 0 | DB103: 1309303 | DC103: 241100 | DD103: 241100 | DE103: 0 | DF103: 0 | DG103: 0
E104: =F104-D104 -> 0 | H104: =SUM(F104:G104) -> 0 | T104: 0 | V104: 0 | Y104: 0 | AK104: 0 | AL104: =IFERROR(U104-D104,0) -> 0 | AM104: 0 | AN104: 0 | AO104: 0 | AP104: 0 | AR104: =IFERROR(AA104-J104,0) -> 0 | AS104: 0 | AU104: 0 | DE104: =D104-DB104 -> 0
E105: =F105-D105 -> 0 | H105: =SUM(F105:G105) -> 0 | T105: 0 | V105: 0 | Y105: 0 | AK105: 0 | AL105: 0 | AM105: 0 | AN105: 0 | AO105: 0 | AP105: 0 | AR105: 0 | AS105: 0 | AU105: 0 | DE105: =D105-DB105 -> 0
E106: =F106-D106 -> 0 | H106: =SUM(F106:G106) -> 0 | T106: 0 | V106: 0 | Y106: 0 | AK106: 0 | AL106: 0 | AM106: 0 | AN106: 0 | AO106: 0 | AP106: 0 | AR106: 0 | AS106: 0 | AU106: 0 | DE106: =D106-DB106 -> 0
AK107: 0 | AL107: 0 | AM107: 0 | AN107: 0 | AO107: 0 | AP107: 0 | AR107: 0 | AS107: 0 | AU107: 0
C108: Sub-Total | D108: =SUM(D80+D87+D101) -> 8463787 | E108: =SUM(E80+E87+E101) ->  | J108: =SUM(J80+J87+J101) -> 2149115 | K108: =SUM(K80+K87+K101) -> 2149115 | T108: Sub-Total | U108: 4569755 | V108: 0 | W108: 4569755 | X108: 0 | Y108: 4569755 | AA108: 2633656 | AB108: 2633656 | AK108: Sub-Total | AL108: -3894032 | AM108: 0 | AN108: 0 | AO108: 0 | AP108: 0 | AR108: 484541 | AS108: 484541 | AU108: 0
AL109: 0 | AM109: 0 | AN109: 0 | AO109: 0 | AP109: 0 | AR109: 0 | AS109: 0 | AU109: 0
C110: Schedule 7, Part A Grants3. | T110: Schedule 7, Part A Grants3. | AK110: =C110 -> Schedule 7, Part A Grants3. | AL110: 0 | AM110: 0 | AN110: 0 | AO110: 0 | AP110: 0 | AR110: 0 | AS110: 0 | AU110: 0
AK111: 0 | AL111: 0 | AM111: 0 | AN111: 0 | AO111: 0 | AP111: 0 | AR111: 0 | AS111: 0 | AU111: 0
C112: Cooperative Governance (Vote 3) | D112: =SUM(D113) -> 0 | E112: =SUM(E113) -> 0 | F112: =SUM(F113) -> 0 | G112: =SUM(G113) -> 35000 | H112: =SUM(H113) -> 35000 | K112: =SUM(K113) -> 0 | T112: =C112 -> Cooperative Governance (Vote 3) | U112: 0 | V112: 0 | W112: 0 | X112: 0 | Y112: 0 | AB112: 0 | AK112: Cooperative Governance (Vote 3) | AL112: 0 | AM112: 0 | AN112: 0 | AO112: -35000 | AP112: -35000 | AR112: 0 | AS112: 0 | AU112: 0
C113: Provincial Disaster Relief Grant | D113: 0 | E113: =SUM(F113-D113) -> 0 | F113: 0 | G113: 35000 | H113: =SUM(F113:G113) -> 35000 | K113: 0 | T113: =C113 -> Provincial Disaster Relief Grant | U113: 0 | V113: 0 | W113: 0 | X113: 0 | Y113: 0 | AB113: 0 | AK113: Provincial Disaster Relief Grant | AL113: 0 | AM113: 0 | AN113: 0 | AO113: -35000 | AP113: -35000 | AR113: 0 | AS113: 0 | AU113: 0
E114: =F114-D114 -> 0 | H114: =SUM(F114:G114) -> 0 | T114: =C114 -> 0 | V114: 0 | Y114: 0 | AK114: 0 | AL114: 0 | AM114: 0 | AN114: 0 | AO114: 0 | AP114: 0 | AR114: 0 | AS114: 0 | AU114: 0 | DE114: =D114-DB114 -> 0
E115: =F115-D115 -> 0 | H115: =SUM(F115:G115) -> 0 | V115: 0 | Y115: 0 | AK115: 0 | AL115: 0 | AM115: 0 | AN115: 0 | AO115: 0 | AP115: 0 | AR115: 0 | AS115: 0 | AU115: 0 | DE115: =D115-DB115 -> 0
AK116: 0 | AL116: 0 | AM116: 0 | AN116: 0 | AO116: 0 | AP116: 0 | AR116: 0 | AS116: 0 | AU116: 0
C117: Human Settlements (Vote 33) | D117: =SUM(D118) -> 0 | E117: =SUM(E118) -> 0 | F117: =SUM(F118) -> 0 | G117: =SUM(G118) -> 90153 | H117: =SUM(H118) -> 90153 | K117: =SUM(K118) -> 140003 | T117: =C117 -> Human Settlements (Vote 33) | U117: 0 | V117: 0 | W117: 0 | X117: 0 | Y117: 0 | AB117: 0 | AK117: Human Settlements (Vote 33) | AL117: 0 | AM117: 0 | AN117: 0 | AO117: -90153 | AP117: -90153 | AR117: 0 | AS117: -140003 | AU117: 0
C118: Provincial Emergency Housing Grant | D118: 0 | E118: =SUM(F118-D118) -> 0 | F118: 0 | G118: 90153 | H118: =SUM(F118:G118) -> 90153 | K118: 140003 | T118: =C118 -> Provincial Emergency Housing Grant | U118: 0 | V118: 0 | W118: 0 | X118: 0 | Y118: 0 | AB118: 0 | AK118: Provincial Emergency Housing Grant | AL118: 0 | AM118: 0 | AN118: 0 | AO118: -90153 | AP118: -90153 | AR118: 0 | AS118: -140003 | AU118: 0
T119: =C119 -> 0 | AK119: 0 | AL119: 0 | AM119: 0 | AN119: 0 | AO119: 0 | AP119: 0 | AR119: 0 | AS119: 0 | AU119: 0 | DE119: =D119-DB119 -> 0
AK120: 0 | AL120: 0 | AM120: 0 | AN120: 0 | AO120: 0 | AP120: 0 | AR120: 0 | AS120: 0 | AU120: 0 | DE120: =D120-DB120 -> 0
AK121: 0 | AL121: 0 | AM121: 0 | AN121: 0 | AO121: 0 | AP121: 0 | AR121: 0 | AS121: 0 | AU121: 0
C122: Sub-Total | D122: =SUM(D112+D117) -> 0 | E122: =SUM(E112+E117) -> 0 | F122: =SUM(F112+F117) -> 0 | G122: =SUM(G112+G117) -> 125153 | H122: =SUM(H112+H117) -> 125153 | K122: =SUM(K112+K117) -> 140003 | T122: Sub-Total | U122: 0 | V122: 0 | W122: 0 | X122: 0 | Y122: 0 | AB122: 0 | AK122: Sub-Total | AL122: 0 | AM122: 0 | AN122: 0 | AO122: -125153 | AP122: -125153 | AR122: 0 | AS122: -140003 | AU122: =IFERROR(AD122-M122,0) -> 0
AL123: 0 | AM123: 0 | AN123: 0 | AO123: 0 | AP123: 0 | AR123: 0 | AS123: 0 | AU123: 0
C124: Total | D124: =SUM(D76+D108+D122) -> 25041239 | E124: =SUM(E76+E108+E122) ->  | J124: 6643784 | K124: =SUM(K76+K108+K122) -> 6738458 | T124: Total | U124: 12078833 | V124: 0 | W124: 12078833 | X124: 0 | Y124: 12078833 | AA124: 6856214 | AB124: 6861133 | AK124: =C124 -> Total | AL124: -12962406 | AM124: 0 | AN124: 0 | AO124: 0 | AP124: 0 | AR124: 212430 | AS124: 122675 | AU124: 0 | DB124: =SUM(DB14:DB123) -> 25041239 | DC124: 9810692 | DD124: 6598455 | DE124: 0 | DF124: -15084 | DG124: 0
B126: 1. | C126: Schedule 4, Part A grants specifying allocations to provinces to supplement the funding of programmes or functions funded from provincial budgets.
B127: 2. | C127: Schedule 5, Part A grants specifying specific-purpose allocations to provinces.
B128: 3. | C128: Schedule 7, Part A grants specifying unallocated provisions for provinces for disaster response.
B130: Signature:………………………………………………………………………………………………………………………………Date:…………………………………………………………………..
B131: I, Carol Coetzee certify :
B132: 1. Amounts set out by provincial department have been checked and verified where necessary; and
B133: 2. are in compliance with the relevant sections of the Public Finance Management Act, and Section 31(2) of the Division of Revenue Act, 2022 (Act No. 4 of 2022).
C137: Checks: IYM Model | D137: -12553628 | J137: -3392622 | K137: -3488533
C138: Checks: Datafile | D138: -11745202 | J138: -2875549.25 | K138: -3047430.25
C140: checks | D140: 0 | J140: 0 | K140: 147624

Sheet LIM_1
C3: STATEMENT OF RECEIPTS AND PAYMENTS FOR THE FIRST QUARTER ENDED 30 JUNE 2022 | T3: ="NATIONAL TREASURY: " & C3 -> NATIONAL TREASURY: STATEMENT OF RECEIPTS AND PAYMENTS FOR THE FIRST QUARTER ENDED 30 JUNE 2022 | AK3: ="VARIANCE FROM NATIONAL TREASURY: " & C3 -> VARIANCE FROM NATIONAL TREASURY: STATEMENT OF RECEIPTS AND PAYMENTS FOR THE FIRST QUARTER ENDED 30 JUNE 2022
C4: LIMPOPO PROVINCE | T4: =C4 -> LIMPOPO PROVINCE | AK4: =C4 -> LIMPOPO PROVINCE
C6: Provincial departments | D6: 2022/23 | T6: Provincial departments | U6: 2019/20 | AK6: Provincial departments | AL6: 2019/20
D7: Budget | H7: Receipts/Payments by Quarter | M7: Receipts/Payments to Date | U7: Budget | Y7: Payments by Quarter | AD7: Payments to Date | AL7: Budget | AP7: Payments by Quarter | AU7: Payments to Date
D8: Main Budget1. | E8: Adjustments | F8: Adjusted Budget2. | H8: First Quarter | I8: Second Quarter | J8: Third Quarter | K8: Fourth Quarter | M8: Actual Receipts/ Payments | N8: % Actual Receipts/ Payments | U8: Main Budget1. | V8: Adjustments | W8: Adjusted Budget2. | Y8: First Quarter | Z8: Second Quarter | AA8: Third Quarter | AB8: Fourth Quarter | AD8: Actual Payments | AE8: % Actual Payments | AL8: Main Budget1. | AM8: Adjustments | AN8: Adjusted Budget2. | AP8: First Quarter | AQ8: Second Quarter | AR8: Third Quarter | AS8: Fourth Quarter | AU8: Actual Payments | AV8: % Actual Payments
A9: Filter | D9: R'000 | E9: R'000 | F9: R'000 | H9: R'000 | I9: R'000 | J9: R'000 | K9: R'000 | M9: R'000 | N9: % | U9: R'000 | V9: R'000 | W9: R'000 | Y9: R'000 | Z9: R'000 | AA9: R'000 | AB9: R'000 | AD9: R'000 | AE9: % | AL9: R'000 | AM9: R'000 | AN9: R'000 | AP9: R'000 | AQ9: R'000 | AR9: R'000 | AS9: R'000 | AU9: R'000 | AV9: %
A10: 1
A11: 1 | C11: Receipts | T11: Receipts | AK11: Receipts
A12: 1 | C12: Transfers from National Revenue Fund | D12: =SUM(D13:D14) -> 74796098 | E12: =SUM(E13:E14) -> 6217481 | F12: =SUM(F13:F14) -> 81013579 | H12: =SUM(H13:H14) -> 18563497 | I12: =SUM(I13:I14) -> 0 | J12: =SUM(J13:J14) -> 0 | K12: =SUM(K13:K14) -> 0 | M12: =SUM(M13:M14) -> 18563497 | N12: =IFERROR(M12/D12,0) -> 0.2481880405 | T12: =C12 -> Transfers from National Revenue Fund | U12: 80903186 | V12: 0 | W12: 80903186 | Y12: 20808702 | Z12: 20464609 | AA12: 0 | AB12: 0 | AD12: 41273311 | AE12: 0.5101568064 | AK12: Transfers from National Revenue Fund | AL12: =SUM(AL13:AL14) -> 6107088 | AM12: =SUM(AM13:AM14) -> -6217481 | AN12: =SUM(AN13:AN14) -> -110393 | AP12: =SUM(AP13:AP14) -> 2245205 | AQ12: =SUM(AQ13:AQ14) -> 20464609 | AR12: =SUM(AR13:AR14) -> 0 | AS12: =SUM(AS13:AS14) -> 0 | AU12: =SUM(AU13:AU14) -> 22709814 | EB12: DoRA(annexure) | EC12: check
A13: 1 | C13: Equitable share of revenue | D13: 64055553 | E13: =SUM(F13-D13) -> 5139700 | F13: 69195253 | H13: 16013889 | M13: =SUM(H13:K13) -> 16013889 | N13: =IFERROR(M13/D13,0) -> 0.2500000117 | T13: =C13 -> Equitable share of revenue | U13: 68824353 | V13: 0 | W13: 68824353 | Y13: 17206089 | Z13: 17206089 | AD13: 34412178 | AE13: 0.5000000218 | AK13: Equitable share of revenue | AL13: =IFERROR(U13-D13,0) -> 4768800 | AM13: -5139700 | AN13: -370900 | AP13: =IFERROR(Y13-H13,0) -> 1192200 | AQ13: 17206089 | AR13: 0 | AS13: 0 | AU13: =IFERROR(AD13-M13,0) -> 18398289 | EB13: 64055553 | EC13: =D13-EB13 -> 0
A14: 1 | C14: Conditional grants | D14: 10740545 | E14: =SUM(F14-D14) -> 1077781 | F14: 11818326 | H14: 2549608 | M14: =SUM(H14:K14) -> 2549608 | N14: =IFERROR(M14/D14,0) -> 0.2373816226 | T14: =C14 -> Conditional grants | U14: 12078833 | V14: 0 | W14: 12078833 | Y14: 3602613 | Z14: 3258520 | AD14: 6861133 | AE14: 0.5680294611 | AK14: Conditional grants | AL14: 1338288 | AM14: -1077781 | AN14: 260507 | AP14: 1053005 | AQ14: 3258520 | AR14: 0 | AS14: 0 | AU14: =IFERROR(AD14-M14,0) -> 4311525 | EB14: 10740545 | EC14: =D14-EB14 -> 0
A15: 1 | C15: Provincial own receipts | D15: 1481372 | E15: =SUM(F15-D15) -> 34918 | F15: 1516290 | H15: 341582 | M15: =SUM(H15:K15) -> 341582 | N15: =IFERROR(M15/D15,0) -> 0.2305848902 | T15: =C15 -> Provincial own receipts | U15: 1453671 | V15: 0 | W15: 1453671 | Y15: 394957 | Z15: 712433.8 | AD15: 1107390.8 | AE15: 0.7617891531 | AK15: Provincial own receipts | AL15: -27701 | AM15: -34918 | AN15: -62619 | AP15: 53375 | AQ15: 712433.8 | AR15: 0 | AS15: 0 | AU15: =IFERROR(AD15-M15,0) -> 765808.8
A16: 1
A17: 1 | C17: Total receipts | D17: =SUM(D12+D15) -> 76277470 | E17: =SUM(E12+E15) -> 6252399 | F17: =SUM(F12+F15) -> 82529869 | G17: =G12+G15 -> 0 | H17: =SUM(H12+H15) -> 18905079 | I17: =SUM(I12+I15) -> 0 | J17: =SUM(J12+J15) -> 0 | K17: =SUM(K12+K15) -> 0 | M17: =SUM(M12+M15) -> 18905079 | N17: =IFERROR(M17/D17,0) -> 0.2478461727 | T17: Total receipts | U17: 82356857 | V17: 0 | W17: 82356857 | X17: 0 | Y17: 21203659 | Z17: 21177042.8 | AA17: 0 | AD17: 42380701.8 | AE17: 0.5145983388 | AK17: Total receipts | AL17: =AL12+AL15 -> 6079387 | AM17: -6252399 | AN17: -173012 | AO17: 0 | AP17: 2298580 | AQ17: 21177042.8 | AR17: 0 | AS17: 0 | AU17: =AU12+AU15 -> 23475622.8
A18: 1
A19: 1 | C19: Payments by provincial departments | T19: Payments by provincial departments | AK19: Payments by provincial departments
A20: =IF(LEN(C20)>3,1,0) -> 1 | C20: Education | D20: 36445088 | E20: =SUM(F20-D20) -> -1368350 | F20: 35076738 | H20: 9224976 | M20: =SUM(H20:K20) -> 9224976 | N20: =IFERROR(M20/D20,0) -> 0.2531198717 | T20: =C20 -> Education | U20: 36328510.13 | V20: 0 | W20: 36328510.13 | Y20: 10097264 | Z20: 9310507 | AD20: 19407771 | AE20: 0.5342297532 | AK20: =C20 -> Education | AL20: =IFERROR(U20-D20,0) -> -116577.87 | AM20: 1368350 | AN20: 1251772.13 | AP20: =IFERROR(Y20-H20,0) -> 872288 | AQ20: 9310507 | AR20: 0 | AS20: 0 | AU20: =IFERROR(AD20-M20,0) -> 10182795
A21: 1 | C21: Health | D21: 22725589 | E21: 3704999 | F21: 26430588 | H21: 5273199 | M21: 5273199 | N21: 0.2320379463 | T21: Health | U21: 25189631.98 | V21: 0 | W21: 25189631.98 | Y21: 7451118 | Z21: 6394842 | AD21: 13845960 | AE21: 0.5496690071 | AK21: Health | AL21: 2464042.98 | AM21: -3704999 | AN21: -1240956.02 | AP21: 2177919 | AQ21: 6394842 | AR21: 0 | AS21: 0 | AU21: 8572761
A22: 1 | C22: Social Development | D22: 1787927 | E22: 1266931 | F22: 3054858 | H22: 439800 | M22: 439800 | N22: 0.2459831973 | T22: Social Development | U22: 3020607 | V22: 0 | W22: 3020607 | Y22: 536173 | Z22: 889221 | AD22: 1425394 | AE22: 0.4718899215 | AK22: Social Development | AL22: 1232680 | AM22: -1266931 | AN22: -34251 | AP22: 96373 | AQ22: 889221 | AR22: 0 | AS22: 0 | AU22: 985594
A23: 1 | C23: Office Of The Premier | D23: 417501 | E23: 614644 | F23: 1032145 | H23: 97043 | M23: 97043 | N23: 0.2324377666 | T23: Office Of The Premier | U23: 973083.46 | V23: 0 | W23: 973083.46 | Y23: 161829 | Z23: 186798 | AD23: 348627 | AE23: 0.3582703995 | AK23: Office Of The Premier | AL23: 555582.46 | AM23: -614644 | AN23: -59061.54 | AP23: 64786 | AQ23: 186798 | AR23: 0 | AS23: 0 | AU23: 251584
A24: 1 | C24: Provincial Legislature | D24: 385979 | E24: 167271 | F24: 553250 | H24: 92992 | M24: 92992 | N24: 0.2409250244 | T24: Provincial Legislature | U24: 541734 | V24: 0 | W24: 541734 | Y24: 167884 | Z24: 150198 | AD24: 318082 | AE24: 0.5871553198 | AK24: Provincial Legislature | AL24: 155755 | AM24: -167271 | AN24: -11516 | AP24: 74892 | AQ24: 150198 | AR24: 0 | AS24: 0 | AU24: 225090
A25: 1 | C25: Agriculture | D25: 1657274 | E25: 848229 | F25: 2505503 | H25: 326357 | M25: 326357 | N25: 0.1969239848 | T25: Agriculture | U25: 2365265 | V25: 0 | W25: 2365265 | Y25: 451273 | Z25: 729895 | AD25: 1181168 | AE25: 0.4993808305 | AK25: Agriculture | AL25: 707991 | AM25: -848229 | AN25: -140238 | AP25: 124916 | AQ25: 729895 | AR25: 0 | AS25: 0 | AU25: 854811
A26: 1 | C26: Provincial Treasury | D26: 409910 | E26: 581581.5 | F26: 991491.5 | H26: 79298 | M26: 79298 | N26: 0.1934522212 | T26: Provincial Treasury | U26: 1009712.01 | V26: 0 | W26: 1009712.01 | Y26: 227049 | Z26: 245101 | AD26: 472150 | AE26: 0.4676085808 | AK26: Provincial Treasury | AL26: 599802.01 | AM26: -581581.5 | AN26: 18220.51 | AP26: 147751 | AQ26: 245101 | AR26: 0 | AS26: 0 | AU26: 392852
A27: 1 | C27: Economic Development, Environment And Tourism | D27: 1612128 | E27: 683416 | F27: 2295544 | H27: 383220 | M27: 383220 | N27: 0.2377106532 | T27: Economic Development, Environment And Tourism | U27: 2340324 | V27: 0 | W27: 2340324 | Y27: 493092 | Z27: 517165 | AD27: 1010257 | AE27: 0.4316739904 | AK27: Economic Development, Environment And Tourism | AL27: 728196 | AM27: -683416 | AN27: 44780 | AP27: 109872 | AQ27: 517165 | AR27: 0 | AS27: 0 | AU27: 627037
A28: 1 | C28: Transport And Community Safety | D28: 2365562 | E28: -675938 | F28: 1689624 | H28: 560228 | M28: 560228 | N28: 0.2368265977 | T28: Transport And Community Safety | U28: 1481960.31 | V28: 0 | W28: 1481960.31 | Y28: 395425 | Z28: 332243 | AD28: 727668 | AE28: 0.4910171987 | AK28: Transport And Community Safety | AL28: -883601.69 | AM28: 675938 | AN28: -207663.69 | AP28: -164803 | AQ28: 332243 | AR28: 0 | AS28: 0 | AU28: 167440
A29: 1 | C29: Public Works, Roads And Infrastructure | D29: 3471248 | E29: 1690309.03 | F29: 5161557.03 | H29: 394785 | M29: 394785 | N29: 0.1137299899 | T29: Public Works, Roads And Infrastructure | U29: 4974537.38 | V29: 0 | W29: 4974537.38 | Y29: 915381.0396 | Z29: 1047823.567 | AD29: 1963204.606 | AE29: 0.3946506894 | AK29: Public Works, Roads And Infrastructure | AL29: 1503289.38 | AM29: -1690309.03 | AN29: -187019.65 | AP29: 520596.0396 | AQ29: 1047823.567 | AR29: 0 | AS29: 0 | AU29: 1568419.606
A30: 1 | C30: Cooperative Governance, Human Settlements And Traditional Affairs | D30: 2418737 | E30: -93589 | F30: 2325148 | H30: 437525 | M30: 437525 | N30: 0.1808898611 | T30: Cooperative Governance, Human Settlements And Traditional Affairs | U30: 2443382 | V30: 0 | W30: 2443382 | Y30: 568047 | Z30: 601938 | AD30: 1169985 | AE30: 0.4788383478 | AK30: Cooperative Governance, Human Settlements And Traditional Affairs | AL30: 24645 | AM30: 93589 | AN30: 118234 | AP30: 130522 | AQ30: 601938 | AR30: 0 | AS30: 0 | AU30: 732460
A31: 1 | C31: Sport, Arts And Culture | D31: 533293 | E31: -126803 | F31: 406490 | H31: 101225 | M31: 101225 | N31: 0.1898112295 | T31: Sport, Arts And Culture | U31: 440930 | V31: 0 | W31: 440930 | Y31: 96175 | Z31: 106759 | AD31: 202934 | AE31: 0.4602408546 | AK31: Sport, Arts And Culture | AL31: -92363 | AM31: 126803 | AN31: 34440 | AP31: -5050 | AQ31: 106759 | AR31: 0 | AS31: 0 | AU31: 101709
A32: 0 | D32: 0 | E32: 980228 | F32: 980228 | H32: 0 | M32: 0 | N32: 0 | U32: 983069 | V32: 0 | W32: 983069 | Y32: 206375 | Z32: 260736 | AD32: 467111 | AE32: 0.4751558639 | AL32: 983069 | AM32: -980228 | AN32: 2841 | AP32: 206375 | AQ32: 260736 | AR32: 0 | AS32: 0 | AU32: 467111
A33: 0 | D33: 0 | E33: 105010 | F33: 105010 | H33: 0 | M33: 0 | N33: 0 | U33: 105499 | V33: 0 | W33: 105499 | Y33: 22274 | Z33: 25927 | AD33: 48201 | AE33: 0.4568858473 | AL33: 105499 | AM33: -105010 | AN33: 489 | AP33: 22274 | AQ33: 25927 | AR33: 0 | AS33: 0 | AU33: 48201
A34: 0 | D34: 0 | E34: 0 | F34: 0 | H34: 0 | M34: 0 | N34: 0 | U34: 0 | V34: 0 | W34: 0 | Y34: 0 | Z34: 0 | AD34: 0 | AE34: 0 | AL34: =U34-D34 -> 0 | AM34: =AN34-AL34 -> 0 | AN34: =W34-F34 -> 0 | AP34: =Y34-H34 -> 0 | AQ34: 0 | AR34: 0 | AS34: 0 | AU34: =SUM(AP34:AQ34) -> 0
A35: 0 | D35: 0 | E35: 0 | F35: 0 | H35: 0 | M35: 0 | N35: 0 | U35: 0 | V35: 0 | W35: 0 | Y35: 0 | Z35: 0 | AD35: 0 | AE35: 0 | AL35: 0 | AM35: 0 | AN35: 0 | AP35: 0 | AQ35: 0 | AR35: 0 | AS35: 0 | AU35: 0
A36: 0 | C36: =PROPER("") ->  | E36: 0 | F36: 0 | M36: 0 | N36: 0 | U36: 0 | V36: 0 | W36: 0 | Y36: 0 | Z36: 0 | AD36: 0 | AE36: 0 | AL36: 0 | AM36: 0 | AN36: 0 | AP36: 0 | AQ36: 0 | AR36: 0 | AS36: 0 | AU36: 0
A37: 0 | C37: =PROPER("") ->  | E37: 0 | F37: 0 | M37: 0 | N37: 0 | U37: 0 | V37: 0 | W37: 0 | Y37: 0 | Z37: 0 | AD37: 0 | AE37: 0 | AL37: 0 | AM37: 0 | AN37: 0 | AP37: 0 | AQ37: 0 | AR37: 0 | AS37: 0 | AU37: 0
A38: 0 | C38: =PROPER("") ->  | E38: 0 | F38: 0 | M38: 0 | N38: 0 | U38: 0 | V38: 0 | W38: 0 | Y38: 0 | Z38: 0 | AD38: 0 | AE38: 0 | AL38: 0 | AM38: 0 | AN38: 0 | AP38: 0 | AQ38: 0 | AR38: 0 | AS38: 0 | AU38: 0
A39: 0 | C39: =PROPER("") ->  | E39: 0 | F39: 0 | M39: 0 | N39: 0 | U39: 0 | V39: 0 | W39: 0 | Y39: 0 | Z39: 0 | AD39: 0 | AE39: 0 | AL39: 0 | AM39: 0 | AN39: 0 | AP39: 0 | AQ39: 0 | AR39: 0 | AS39: 0 | AU39: 0
A40: 1
A41: 1 | C41: Total payments | D41: =SUM(D20:D39) -> 74230236 | E41: =SUM(E20:E39) -> 8377938.53 | F41: =SUM(F20:F39) -> 82608174.53 | H41: =SUM(H20:H39) -> 17410648 | I41: =SUM(I20:I39) -> 0 | J41: =SUM(J20:J39) -> 0 | K41: =SUM(K20:K39) -> 0 | M41: =SUM(M20:M39) -> 17410648 | N41: =IFERROR(M41/D41,0) -> 0.2345492745 | T41: Total payments | U41: 82198245.27 | V41: 0 | W41: 82198245.27 | Y41: 21789359.04 | Z41: 20799153.57 | AA41: 0 | AD41: 42588512.61 | AE41: 0.5181194862 | AK41: Total payments | AL41: =SUM(AL20:AL39) -> 7968009.27 | AM41: =SUM(AM20:AM39) -> -8377938.53 | AN41: =SUM(AN20:AN39) -> -409929.26 | AP41: =SUM(AP20:AP39) -> 4378711.04 | AQ41: =SUM(AQ20:AQ39) -> 20799153.57 | AR41: =SUM(AR20:AR39) -> 0 | AS41: =SUM(AS20:AS39) -> 0 | AU41: =SUM(AU20:AU39) -> 25177864.61
A42: 1
A43: 1 | C43: Payments by economic classification | T43: Payments by economic classification | AK43: Payments by economic classification
A44: 1 | C44: Current payments | D44: =SUM(D45:D47) -> 62052875.21 | E44: 7022287.892 | F44: 69075163.1 | G44: 0 | H44: 14440397 | I44: 0 | J44: 0 | K44: 0 | M44: =SUM(M45:M47) -> 14440397 | N44: =IFERROR(M44/D44,0) -> 0.2327111669 | T44: =C44 -> Current payments | U44: 68611109.57 | V44: 0 | W44: 68611109.57 | X44: 0 | Y44: 17881432.79 | Z44: 17346527.07 | AA44: 0 | AB44: 0 | AD44: 35227959.86 | AE44: 0.513443961 | AK44: Current payments | AL44: =SUM(AL45:AL47) -> 6558234.362 | AM44: -7022287.892 | AN44: -464053.53 | AO44: 0 | AP44: 3441035.789 | AQ44: 17346527.07 | AR44: 0 | AS44: 0 | AU44: =SUM(AU45:AU47) -> 20787562.86
A45: 1 | C45: Compensation of employees | D45: 50755761 | E45: =SUM(F45-D45) -> 3279495.65 | F45: 54035256.65 | H45: 12175161 | M45: =SUM(H45:K45) -> 12175161 | N45: 0.23987742 | T45: Compensation of employees | U45: 54152698.94 | V45: 0 | W45: 54152698.94 | Y45: 13341110.73 | Z45: 13672432.37 | AD45: 27013543.1 | AE45: 0.4988401987 | AK45: Compensation of employees | AL45: =IFERROR(U45-D45,0) -> 3396937.94 | AM45: -3279495.65 | AN45: 117442.29 | AP45: =IFERROR(Y45-H45,0) -> 1165949.731 | AQ45: 13672432.37 | AR45: 0 | AS45: 0 | AU45: =IFERROR(AD45-M45,0) -> 14838382.1
A46: 1 | C46: Goods and services | D46: 11296084.21 | E46: =SUM(F46-D46) -> 3743822.242 | F46: 15039906.45 | H46: 2264375 | M46: =SUM(H46:K46) -> 2264375 | N46: 0.2004566324 | T46: Goods and services | U46: 14458410.63 | V46: 0 | W46: 14458410.63 | Y46: 4528730.059 | Z46: 3660735.503 | AD46: 8189465.562 | AE46: 0.5664153392 | AK46: Goods and services | AL46: 3162326.422 | AM46: -3743822.242 | AN46: -581495.82 | AP46: 2264355.059 | AQ46: 3660735.503 | AR46: 0 | AS46: 0 | AU46: =IFERROR(AD46-M46,0) -> 5925090.562
A47: 1 | C47: Interest and rent on land | D47: 1030 | E47: =SUM(F47-D47) -> -1030 | F47: 0 | H47: 861 | M47: =SUM(H47:K47) -> 861 | N47: 0.8359223301 | T47: Interest and rent on land | U47: 0 | V47: 0 | W47: 0 | Y47: 11592 | Z47: 13359.2 | AD47: 24951.2 | AE47: 0 | AK47: Interest and rent on land | AL47: -1030 | AM47: 1030 | AN47: 0 | AP47: 10731 | AQ47: 13359.2 | AR47: 0 | AS47: 0 | AU47: =IFERROR(AD47-M47,0) -> 24090.2
A48: 1 | C48: Transfers and subsidies | D48: =SUM(D49:D55) -> 9509905 | E48: -506611.57 | F48: 9003293.43 | G48: 0 | H48: 2564529 | I48: 0 | J48: 0 | K48: 0 | M48: =SUM(M49:M55) -> 2564529 | N48: 0.2696692554 | T48: Transfers and subsidies | U48: 8844684.83 | V48: 0 | W48: 8844684.83 | X48: 0 | Y48: 2859224.386 | Z48: 2528167.064 | AA48: 0 | AB48: 0 | AD48: 5387391.45 | AE48: 0.6091106188 | AK48: Transfers and subsidies | AL48: =SUM(AL49:AL55) -> -665220.17 | AM48: 506611.57 | AN48: -158608.6 | AO48: 0 | AP48: 294695.3858 | AQ48: 2528167.064 | AR48: 0 | AS48: 0 | AU48: =SUM(AU49:AU55) -> 2822862.45
A49: 1 | C49: Provinces and municipalities | D49: 191132 | E49: =SUM(F49-D49) -> 673367 | F49: 864499 | H49: 32903 | M49: =SUM(H49:K49) -> 32903 | N49: 0.1721480443 | T49: Provinces and municipalities | U49: 662586 | V49: 0 | W49: 662586 | Y49: 63574.0934 | Z49: 355413 | AD49: 418987.0934 | AE49: 0.6323512622 | AK49: Provinces and municipalities | AL49: =IFERROR(U49-D49,0) -> 471454 | AM49: -673367 | AN49: -201913 | AP49: =IFERROR(Y49-H49,0) -> 30671.0934 | AQ49: 355413 | AR49: 0 | AS49: 0 | AU49: =IFERROR(AD49-M49,0) -> 386084.0934
A50: 1 | C50: Departmental agencies and accounts | D50: 2467566 | E50: -831480 | F50: 1636086 | H50: 240595 | M50: 240595 | N50: 0.09750296446 | T50: Departmental agencies and accounts | U50: 1331834 | V50: 0 | W50: 1331834 | Y50: 475203.6004 | Z50: 272154.9058 | AD50: 747358.5062 | AE50: 0.5611498927 | AK50: Departmental agencies and accounts | AL50: -1135732 | AM50: 831480 | AN50: -304252 | AP50: 234608.6004 | AQ50: 272154.9058 | AR50: 0 | AS50: 0 | AU50: 506763.5062
A51: 1 | C51: Higher education and institutions | D51: 0 | E51: 70903 | F51: 70903 | H51: 0 | M51: 0 | N51: 0 | T51: Higher education and institutions | U51: 55904 | V51: 0 | W51: 55904 | Y51: 13826 | Z51: 13826 | AD51: 27652 | AE51: 0.4946336577 | AK51: Higher education and institutions | AL51: 55904 | AM51: -70903 | AN51: -14999 | AP51: 13826 | AQ51: 13826 | AR51: 0 | AS51: 0 | AU51: 27652
A52: 1 | C52: Foreign governments and international organisations | D52: 0 | E52: 0 | F52: 0 | H52: 0 | M52: 0 | N52: 0 | T52: Foreign governments and international organisations | U52: 0 | V52: 0 | W52: 0 | Y52: 0 | Z52: 0 | AD52: 0 | AE52: 0 | AK52: Foreign governments and international organisations | AL52: 0 | AM52: 0 | AN52: 0 | AP52: 0 | AQ52: 0 | AR52: 0 | AS52: 0 | AU52: 0
A53: 1 | C53: Public corporations and private enterprises | D53: 716026 | E53: -95464 | F53: 620562 | H53: 196340 | M53: 196340 | N53: 0.2742079198 | T53: Public corporations and private enterprises | U53: 554665 | V53: 0 | W53: 554665 | Y53: 109998.5212 | Z53: 133780.9317 | AD53: 243779.4529 | AE53: 0.4395075459 | AK53: Public corporations and private enterprises | AL53: -161361 | AM53: 95464 | AN53: -65897 | AP53: -86341.47875 | AQ53: 133780.9317 | AR53: 0 | AS53: 0 | AU53: 47439.45292
A54: 1 | C54: Non profit institutions | D54: 4375236 | E54: -1126519 | F54: 3248717 | H54: 1781003 | M54: 1781003 | N54: 0.4070644418 | T54: Non profit institutions | U54: 3573034.73 | V54: 0 | W54: 3573034.73 | Y54: 1116276 | Z54: 1037745 | AD54: 2154021 | AE54: 0.6028547615 | AK54: Non profit institutions | AL54: -802201.27 | AM54: 1126519 | AN54: 324317.73 | AP54: -664727 | AQ54: 1037745 | AR54: 0 | AS54: 0 | AU54: 373018
A55: 1 | C55: Households | D55: 1759945 | E55: 802581.43 | F55: 2562526.43 | H55: 313688 | M55: 313688 | N55: 0.1782373881 | T55: Households | U55: 2666661.1 | V55: 0 | W55: 2666661.1 | Y55: 1080346.171 | Z55: 715247.2264 | AD55: 1795593.397 | AE55: 0.6733489296 | AK55: Households | AL55: 906716.1 | AM55: -802581.43 | AN55: 104134.67 | AP55: 766658.1708 | AQ55: 715247.2264 | AR55: 0 | AS55: 0 | AU55: 1481905.397
A56: 1 | C56: Payments for capital assets | D56: =SUM(D57:D63) -> 2667456 | E56: 1862262 | F56: 4529718 | G56: 0 | H56: 405697 | I56: 0 | J56: 0 | K56: 0 | M56: =SUM(M57:M63) -> 405697 | N56: 0.152091356 | T56: Payments for capital assets | U56: 4742450.96 | V56: 0 | W56: 4742450.96 | X56: 0 | Y56: 1048442.985 | Z56: 924459.4285 | AA56: 0 | AB56: 0 | AD56: 1972902.413 | AE56: 0.4160090277 | AK56: Payments for capital assets | AL56: =SUM(AL57:AL63) -> 2074994.96 | AM56: -1862262 | AN56: 212732.96 | AO56: 0 | AP56: 642745.9845 | AQ56: 924459.4285 | AR56: 0 | AS56: 0 | AU56: =SUM(AU57:AU63) -> 1567205.413
A57: 1 | C57: Buildings and other fixed structures | D57: 2168785 | E57: =SUM(F57-D57) -> 1067006 | F57: 3235791 | H57: 335268 | M57: =SUM(H57:K57) -> 335268 | N57: 0.1545879375 | T57: Buildings and other fixed structures | U57: 3635517 | V57: 0 | W57: 3635517 | Y57: 907397.9635 | Z57: 734847.4854 | AD57: 1642245.449 | AE57: 0.4517226708 | AK57: Buildings and other fixed structures | AL57: =IFERROR(U57-D57,0) -> 1466732 | AM57: -1067006 | AN57: 399726 | AP57: =IFERROR(Y57-H57,0) -> 572129.9635 | AQ57: 734847.4854 | AR57: 0 | AS57: 0 | AU57: =IFERROR(AD57-M57,0) -> 1306977.449
A58: 1 | C58: Machinery and equipment | D58: 493159 | E58: 748421 | F58: 1241580 | H58: 70165 | M58: 70165 | N58: 0.1422766288 | T58: Machinery and equipment | U58: 1073001.94 | V58: 0 | W58: 1073001.94 | Y58: 129562.021 | Z58: 182905.5488 | AD58: 312467.5698 | AE58: 0.291208765 | AK58: Machinery and equipment | AL58: 579842.94 | AM58: -748421 | AN58: -168578.06 | AP58: 59397.02098 | AQ58: 182905.5488 | AR58: 0 | AS58: 0 | AU58: 242302.5698
A59: 1 | C59: Heritage assets | D59: 0 | E59: 1700 | F59: 1700 | H59: 0 | M59: 0 | N59: 0 | T59: Heritage assets | U59: 500 | V59: 0 | W59: 500 | Y59: 155 | Z59: 0 | AD59: 155 | AE59: 0.31 | AK59: Heritage assets | AL59: 500 | AM59: -1700 | AN59: -1200 | AP59: 155 | AQ59: 0 | AR59: 0 | AS59: 0 | AU59: 155
A60: 1 | C60: Specialised military assets | D60: 0 | E60: 0 | F60: 0 | H60: 0 | M60: 0 | N60: 0 | T60: Specialised military assets | U60: 0 | V60: 0 | W60: 0 | Y60: 0 | Z60: 0 | AD60: 0 | AE60: 0 | AK60: Specialised military assets | AL60: 0 | AM60: 0 | AN60: 0 | AP60: 0 | AQ60: 0 | AR60: 0 | AS60: 0 | AU60: 0
A61: 1 | C61: Biological assets | D61: 1512 | E61: 10025 | F61: 11537 | H61: 264 | M61: 264 | N61: 0.1746031746 | T61: Biological assets | U61: 16500 | V61: 0 | W61: 16500 | Y61: 0 | Z61: 87 | AD61: 87 | AE61: 0.005272727273 | AK61: Biological assets | AL61: 14988 | AM61: -10025 | AN61: 4963 | AP61: -264 | AQ61: 87 | AR61: 0 | AS61: 0 | AU61: -177
A62: 1 | C62: Land and sub-soil assets | D62: 0 | E62: 0 | F62: 0 | H62: 0 | M62: 0 | N62: 0 | T62: Land and sub-soil assets | U62: 0 | V62: 0 | W62: 0 | Y62: 0 | Z62: 0 | AD62: 0 | AE62: 0 | AK62: Land and sub-soil assets | AL62: 0 | AM62: 0 | AN62: 0 | AP62: 0 | AQ62: 0 | AR62: 0 | AS62: 0 | AU62: 0
A63: 1 | C63: Software and other intangible assets | D63: 4000 | E63: 35110 | F63: 39110 | H63: 0 | M63: 0 | N63: 0 | T63: Software and other intangible assets | U63: 16932.02 | V63: 0 | W63: 16932.02 | Y63: 11328 | Z63: 6619.39424 | AD63: 17947.39424 | AE63: 1.059967697 | AK63: Software and other intangible assets | AL63: 12932.02 | AM63: -35110 | AN63: -22177.98 | AP63: 11328 | AQ63: 6619.39424 | AR63: 0 | AS63: 0 | AU63: 17947.39424
A64: 1 | C64: Payments for financial assets | D64: 0 | E64: 0 | F64: 0 | H64: 25 | M64: 25 | N64: 0 | T64: Payments for financial assets | U64: 0 | V64: 0 | W64: 0 | Y64: 259 | Z64: 0 | AD64: 259 | AE64: 0 | AK64: Payments for financial assets | AL64: 0 | AM64: 0 | AN64: 0 | AP64: 234 | AQ64: 0 | AR64: 0 | AS64: 0 | AU64: 234
A65: 1
